Workbook

Sheet Eing.Allg..Daten
B2: Name der Liga: | G2: Mannschaftsstärke auswählen >>>
B3: Saison:
B4: Welcher Spieltag: | U4: Beton | V4: 2
B5: Ausrichtender Verein: | U5: Miniaturgolf | V5: 1
B6: Spielort: | U6: Filzgolf | V6: 2
B7: Datum: | U7: MOS | V7: 1
B8: Welche Abteilung: | F8: << In dieser Zelle das System auswählen. | U8: Cobi groß | V8: 2
B9: Standardwert je Bahn: | D9: =IF(D8="",2,VLOOKUP(D8,U3:V10,2,FALSE)) -> 2 | F9: << Dieser Wert wird automatisch nach Eingabe des Systems ermittelt | U9: Cobi klein | V9: 1
B10: Anz. gemeldeter Mannschaften: | G10: 4 | U10: Sterngolf | V10: 2
B11: Anzahl Spieler je Mannschaft: | D11: 5 | E11: +1 (+1) | G11: 5
A12: Anzahl bish. gespielte Punktsp.: | G12: 6
B13: á 4 Runden:
B14: á 3 Runden: | I14: Zur Eingabe der Rundengebnisse "Ma 1" - "Ma 7" anklicken
B15: á 2 Runden:
B16: Gesamtzahl bish. gesp.Runden: | D16: =AnzSpieler*(D13*4+D14*3+D15*2) -> 0
A17: Turnierleiter | B17: Name: | J17: =+'Ma1'!$D$1 -> 0
B18: Verein: | J18: =+'Ma2'!$D$1 -> 0
J19: =+'Ma3'!$D$1 -> 0
A20: Oberschiedsrichter | B20: Name: | J20: =+'Ma4'!$D$1 -> 0
B21: Verein: | J21: =+'Ma5'!$D$1 -> 0
A22: Schiedrichter | B22: Name: | J22: =+'Ma6'!$D$1 -> 0
B23: Verein: | J23: =+'Ma7'!$D$1 -> 0
A24: Schiedsrichter | B24: Name:
B25: Verein:
B27: Turnierbeginn: | E27: Uhr
B28: Turnierende: | E28: Uhr
A32: Version: | B32: 2025-08-04
AZ153: Bahnreihenfolge:

Sheet Bahnen
A4: Bahn Nr.: | B4: Name /Bezeichnung der Bahn | C4: Bahn Nr.: | D4: Name /Bezeichnung der Bahn | E4: Bahn Nr.: | F4: Name /Bezeichnung der Bahn
B6: Beton | D6: Miniaturgolf | F6: Filz -
A7: 1 | B7: Bahn 1 | D7: "V" - Hindernis | F7: Ass-Bahn
A8: 2 | B8: Bahn 2 | D8: Auflaufkeil mit Zielfenster | F8: Blitz
A9: 3 | B9: Bahn 3 | D9: Blitz | F9: Briefkasten
A10: 4 | B10: Bahn 4 | D10: Brücke | F10: Briefkasten mit 3 Eingängen
A11: 5 | B11: Bahn 5 | D11: Doppelkeile | F11: Brücke
A12: 6 | B12: Bahn 6 | D12: Doppelwellen | F12: Deutscher Absatz
A13: 7 | B13: Bahn 7 | D13: Gerade Bahn m. Zielkreisfenster | F13: Doppeltor
A14: 8 | B14: Bahn 8 | D14: Gerade Bahn mit Rampe | F14: Einfachtor
A15: 9 | B15: Bahn 9 | D15: Gerade Bahn mit Zielhügel | F15: Fischgräte
A16: 10 | B16: Bahn 10 | D16: Gerade Bahn ohne Hindernis | F16: Geldkasten
A17: 11 | B17: Bahn 11 | D17: Labyrinth | F17: Gentleman
A18: 12 | B18: Bahn 12 | D18: Liegende Schleife | F18: Graben
A19: 13 | B19: Bahn 13 | D19: Mittelhügel | F19: Hufeisen
A20: 14 | B20: Bahn 14 | D20: Netz | F20: Hügel mit Tor
A21: 15 | B21: Bahn 15 | D21: Passagen | F21: Kästen
A22: 16 | B22: Bahn 16 | D22: Plateau | F22: Kreuz
A23: 17 | B23: Bahn 17 | D23: Pyramiden | F23: Mittelhügel
A24: 18 | B24: Bahn 18 | D24: Raute | F24: Mittelloch
D25: Rohr | F25: Möllberg-Mulde
D26: Salto | F26: Mulde
D27: Schägkreis ohne Hindernis | F27: Optische Täuschung
D28: Schräger Kreis mit "V"- Hindernis | F28: Örkeljunga
D29: Schrägerkreis mit Niere | F29: Passage
D30: Stäbe | F30: Rinne
D31: Steilschräge ohne Hindernis | F31: Schräger Hügel mit Tor
D32: Stumpfe Kegel | F32: Schwedischer Absatz
D33: Vulkan | F33: Seitentore
D34: Winkel | F34: Stationäre Rampe
D35: Schanze | F35: Steigung mit Mittelloch
F36: Steigung mit Seitenloch
F37: Steigung mit Vertikalloch
F38: Winkel
F39: Winkel mit Umgehung
F40: Winkel mit Verlängerung
F41: Zwillingstore
B52: Beton
A53: =IF(Eing.Allg..Daten!$D$8="Beton",+A7,"") ->  | B53: Bahn 1
A54: =IF(Eing.Allg..Daten!$D$8="Beton",+A8,"") ->  | B54: Bahn 2
A55: =IF(Eing.Allg..Daten!$D$8="Beton",+A9,"") ->  | B55: Bahn 3
A56: =IF(Eing.Allg..Daten!$D$8="Beton",+A10,"") ->  | B56: Bahn 4
A57: =IF(Eing.Allg..Daten!$D$8="Beton",+A11,"") ->  | B57: Bahn 5
A58: =IF(Eing.Allg..Daten!$D$8="Beton",+A12,"") ->  | B58: Bahn 6
A59: =IF(Eing.Allg..Daten!$D$8="Beton",+A13,"") ->  | B59: Bahn 7
A60: =IF(Eing.Allg..Daten!$D$8="Beton",+A14,"") ->  | B60: Bahn 8
A61: =IF(Eing.Allg..Daten!$D$8="Beton",+A15,"") ->  | B61: Bahn 9
A62: =IF(Eing.Allg..Daten!$D$8="Beton",+A16,"") ->  | B62: Bahn 10
A63: =IF(Eing.Allg..Daten!$D$8="Beton",+A17,"") ->  | B63: Bahn 11
A64: =IF(Eing.Allg..Daten!$D$8="Beton",+A18,"") ->  | B64: Bahn 12
A65: =IF(Eing.Allg..Daten!$D$8="Beton",+A19,"") ->  | B65: Bahn 13
A66: =IF(Eing.Allg..Daten!$D$8="Beton",+A20,"") ->  | B66: Bahn 14
A67: =IF(Eing.Allg..Daten!$D$8="Beton",+A21,"") ->  | B67: Bahn 15
A68: =IF(Eing.Allg..Daten!$D$8="Beton",+A22,"") ->  | B68: Bahn 16
A69: =IF(Eing.Allg..Daten!$D$8="Beton",+A23,"") ->  | B69: Bahn 17
A70: =IF(Eing.Allg..Daten!$D$8="Beton",+A24,"") ->  | B70: Bahn 18
B71: Miniaturgolf
A72: =IF(Eing.Allg..Daten!$D$8="Miniaturgolf",+C7,"") ->  | B72: =IF(Eing.Allg..Daten!$D$8="Miniaturgolf",+D7,"") -> 
A73: =IF(Eing.Allg..Daten!$D$8="Miniaturgolf",+C8,"") ->  | B73: =IF(Eing.Allg..Daten!$D$8="Miniaturgolf",+D8,"") -> 
A74: =IF(Eing.Allg..Daten!$D$8="Miniaturgolf",+C9,"") ->  | B74: =IF(Eing.Allg..Daten!$D$8="Miniaturgolf",+D9,"") -> 
A75: =IF(Eing.Allg..Daten!$D$8="Miniaturgolf",+C10,"") ->  | B75: =IF(Eing.Allg..Daten!$D$8="Miniaturgolf",+D10,"") -> 
A76: =IF(Eing.Allg..Daten!$D$8="Miniaturgolf",+C11,"") ->  | B76: =IF(Eing.Allg..Daten!$D$8="Miniaturgolf",+D11,"") -> 
A77: =IF(Eing.Allg..Daten!$D$8="Miniaturgolf",+C12,"") ->  | B77: =IF(Eing.Allg..Daten!$D$8="Miniaturgolf",+D12,"") -> 
A78: =IF(Eing.Allg..Daten!$D$8="Miniaturgolf",+C13,"") ->  | B78: =IF(Eing.Allg..Daten!$D$8="Miniaturgolf",+D13,"") -> 
A79: =IF(Eing.Allg..Daten!$D$8="Miniaturgolf",+C14,"") ->  | B79: =IF(Eing.Allg..Daten!$D$8="Miniaturgolf",+D14,"") -> 
A80: =IF(Eing.Allg..Daten!$D$8="Miniaturgolf",+C15,"") ->  | B80: =IF(Eing.Allg..Daten!$D$8="Miniaturgolf",+D15,"") -> 
A81: =IF(Eing.Allg..Daten!$D$8="Miniaturgolf",+C16,"") ->  | B81: =IF(Eing.Allg..Daten!$D$8="Miniaturgolf",+D16,"") -> 
A82: =IF(Eing.Allg..Daten!$D$8="Miniaturgolf",+C17,"") ->  | B82: =IF(Eing.Allg..Daten!$D$8="Miniaturgolf",+D17,"") -> 
A83: =IF(Eing.Allg..Daten!$D$8="Miniaturgolf",+C18,"") ->  | B83: =IF(Eing.Allg..Daten!$D$8="Miniaturgolf",+D18,"") -> 
A84: =IF(Eing.Allg..Daten!$D$8="Miniaturgolf",+C19,"") ->  | B84: =IF(Eing.Allg..Daten!$D$8="Miniaturgolf",+D19,"") -> 
A85: =IF(Eing.Allg..Daten!$D$8="Miniaturgolf",+C20,"") ->  | B85: =IF(Eing.Allg..Daten!$D$8="Miniaturgolf",+D20,"") -> 
A86: =IF(Eing.Allg..Daten!$D$8="Miniaturgolf",+C21,"") ->  | B86: =IF(Eing.Allg..Daten!$D$8="Miniaturgolf",+D21,"") -> 
A87: =IF(Eing.Allg..Daten!$D$8="Miniaturgolf",+C22,"") ->  | B87: =IF(Eing.Allg..Daten!$D$8="Miniaturgolf",+D22,"") -> 
A88: =IF(Eing.Allg..Daten!$D$8="Miniaturgolf",+C23,"") ->  | B88: =IF(Eing.Allg..Daten!$D$8="Miniaturgolf",+D23,"") -> 
A89: =IF(Eing.Allg..Daten!$D$8="Miniaturgolf",+C24,"") ->  | B89: =IF(Eing.Allg..Daten!$D$8="Miniaturgolf",+D24,"") -> 
A90: =IF(Eing.Allg..Daten!$D$8="Miniaturgolf",+C25,"") ->  | B90: =IF(Eing.Allg..Daten!$D$8="Miniaturgolf",+D25,"") -> 
A91: =IF(Eing.Allg..Daten!$D$8="Miniaturgolf",+C26,"") ->  | B91: =IF(Eing.Allg..Daten!$D$8="Miniaturgolf",+D26,"") -> 
A92: =IF(Eing.Allg..Daten!$D$8="Miniaturgolf",+C27,"") ->  | B92: =IF(Eing.Allg..Daten!$D$8="Miniaturgolf",+D27,"") -> 
A93: =IF(Eing.Allg..Daten!$D$8="Miniaturgolf",+C28,"") ->  | B93: =IF(Eing.Allg..Daten!$D$8="Miniaturgolf",+D28,"") -> 
A94: =IF(Eing.Allg..Daten!$D$8="Miniaturgolf",+C29,"") ->  | B94: =IF(Eing.Allg..Daten!$D$8="Miniaturgolf",+D29,"") -> 
A95: =IF(Eing.Allg..Daten!$D$8="Miniaturgolf",+C30,"") ->  | B95: =IF(Eing.Allg..Daten!$D$8="Miniaturgolf",+D30,"") -> 
A96: =IF(Eing.Allg..Daten!$D$8="Miniaturgolf",+C31,"") ->  | B96: =IF(Eing.Allg..Daten!$D$8="Miniaturgolf",+D31,"") -> 
A97: =IF(Eing.Allg..Daten!$D$8="Miniaturgolf",+C32,"") ->  | B97: =IF(Eing.Allg..Daten!$D$8="Miniaturgolf",+D32,"") -> 
A98: =IF(Eing.Allg..Daten!$D$8="Miniaturgolf",+C33,"") ->  | B98: =IF(Eing.Allg..Daten!$D$8="Miniaturgolf",+D33,"") -> 
A99: =IF(Eing.Allg..Daten!$D$8="Miniaturgolf",+C34,"") ->  | B99: =IF(Eing.Allg..Daten!$D$8="Miniaturgolf",+D34,"") -> 
A100: =IF(Eing.Allg..Daten!$D$8="Miniaturgolf",+C35,"") ->  | B100: =IF(Eing.Allg..Daten!$D$8="Miniaturgolf",+D35,"") -> 
A101: =IF(Eing.Allg..Daten!$D$8="Miniaturgolf",+C36,"") ->  | B101: =IF(Eing.Allg..Daten!$D$8="Miniaturgolf",+D36,"") -> 
A102: =IF(Eing.Allg..Daten!$D$8="Miniaturgolf",+C37,"") ->  | B102: =IF(Eing.Allg..Daten!$D$8="Miniaturgolf",+D37,"") -> 
A103: =IF(Eing.Allg..Daten!$D$8="Miniaturgolf",+C38,"") ->  | B103: =IF(Eing.Allg..Daten!$D$8="Miniaturgolf",+D38,"") -> 
A104: =IF(Eing.Allg..Daten!$D$8="Miniaturgolf",+C39,"") ->  | B104: =IF(Eing.Allg..Daten!$D$8="Miniaturgolf",+D39,"") -> 
A105: =IF(Eing.Allg..Daten!$D$8="Miniaturgolf",+C40,"") ->  | B105: =IF(Eing.Allg..Daten!$D$8="Miniaturgolf",+D40,"") -> 
A106: =IF(Eing.Allg..Daten!$D$8="Miniaturgolf",+C41,"") ->  | B106: =IF(Eing.Allg..Daten!$D$8="Miniaturgolf",+D41,"") -> 
A107: =IF(Eing.Allg..Daten!$D$8="Miniaturgolf",+C42,"") ->  | B107: =IF(Eing.Allg..Daten!$D$8="Miniaturgolf",+D42,"") -> 
B108: Filz -
A109: =IF(Eing.Allg..Daten!$D$8="Filzgolf",+E7,"") ->  | B109: =IF(Eing.Allg..Daten!$D$8="Filzgolf",+F7,"") -> 
A110: =IF(Eing.Allg..Daten!$D$8="Filzgolf",+E8,"") ->  | B110: =IF(Eing.Allg..Daten!$D$8="Filzgolf",+F8,"") -> 
A111: =IF(Eing.Allg..Daten!$D$8="Filzgolf",+E9,"") ->  | B111: =IF(Eing.Allg..Daten!$D$8="Filzgolf",+F9,"") -> 
A112: =IF(Eing.Allg..Daten!$D$8="Filzgolf",+E10,"") ->  | B112: =IF(Eing.Allg..Daten!$D$8="Filzgolf",+F10,"") -> 
A113: =IF(Eing.Allg..Daten!$D$8="Filzgolf",+E11,"") ->  | B113: =IF(Eing.Allg..Daten!$D$8="Filzgolf",+F11,"") -> 
A114: =IF(Eing.Allg..Daten!$D$8="Filzgolf",+E12,"") ->  | B114: =IF(Eing.Allg..Daten!$D$8="Filzgolf",+F12,"") -> 
A115: =IF(Eing.Allg..Daten!$D$8="Filzgolf",+E13,"") ->  | B115: =IF(Eing.Allg..Daten!$D$8="Filzgolf",+F13,"") -> 
A116: =IF(Eing.Allg..Daten!$D$8="Filzgolf",+E14,"") ->  | B116: =IF(Eing.Allg..Daten!$D$8="Filzgolf",+F14,"") -> 
A117: =IF(Eing.Allg..Daten!$D$8="Filzgolf",+E15,"") ->  | B117: =IF(Eing.Allg..Daten!$D$8="Filzgolf",+F15,"") -> 
A118: =IF(Eing.Allg..Daten!$D$8="Filzgolf",+E16,"") ->  | B118: =IF(Eing.Allg..Daten!$D$8="Filzgolf",+F16,"") -> 
A119: =IF(Eing.Allg..Daten!$D$8="Filzgolf",+E17,"") ->  | B119: =IF(Eing.Allg..Daten!$D$8="Filzgolf",+F17,"") -> 
A120: =IF(Eing.Allg..Daten!$D$8="Filzgolf",+E18,"") ->  | B120: =IF(Eing.Allg..Daten!$D$8="Filzgolf",+F18,"") -> 
A121: =IF(Eing.Allg..Daten!$D$8="Filzgolf",+E19,"") ->  | B121: =IF(Eing.Allg..Daten!$D$8="Filzgolf",+F19,"") -> 
A122: =IF(Eing.Allg..Daten!$D$8="Filzgolf",+E20,"") ->  | B122: =IF(Eing.Allg..Daten!$D$8="Filzgolf",+F20,"") -> 
A123: =IF(Eing.Allg..Daten!$D$8="Filzgolf",+E21,"") ->  | B123: =IF(Eing.Allg..Daten!$D$8="Filzgolf",+F21,"") -> 
A124: =IF(Eing.Allg..Daten!$D$8="Filzgolf",+E22,"") ->  | B124: =IF(Eing.Allg..Daten!$D$8="Filzgolf",+F22,"") -> 
A125: =IF(Eing.Allg..Daten!$D$8="Filzgolf",+E23,"") ->  | B125: =IF(Eing.Allg..Daten!$D$8="Filzgolf",+F23,"") -> 
A126: =IF(Eing.Allg..Daten!$D$8="Filzgolf",+E24,"") ->  | B126: =IF(Eing.Allg..Daten!$D$8="Filzgolf",+F24,"") -> 
A127: =IF(Eing.Allg..Daten!$D$8="Filzgolf",+E25,"") ->  | B127: =IF(Eing.Allg..Daten!$D$8="Filzgolf",+F25,"") -> 
A128: =IF(Eing.Allg..Daten!$D$8="Filzgolf",+E26,"") ->  | B128: =IF(Eing.Allg..Daten!$D$8="Filzgolf",+F26,"") -> 
A129: =IF(Eing.Allg..Daten!$D$8="Filzgolf",+E27,"") ->  | B129: =IF(Eing.Allg..Daten!$D$8="Filzgolf",+F27,"") -> 
A130: =IF(Eing.Allg..Daten!$D$8="Filzgolf",+E28,"") ->  | B130: =IF(Eing.Allg..Daten!$D$8="Filzgolf",+F28,"") -> 
A131: =IF(Eing.Allg..Daten!$D$8="Filzgolf",+E29,"") ->  | B131: =IF(Eing.Allg..Daten!$D$8="Filzgolf",+F29,"") -> 
A132: =IF(Eing.Allg..Daten!$D$8="Filzgolf",+E30,"") ->  | B132: =IF(Eing.Allg..Daten!$D$8="Filzgolf",+F30,"") -> 
A133: =IF(Eing.Allg..Daten!$D$8="Filzgolf",+E31,"") ->  | B133: =IF(Eing.Allg..Daten!$D$8="Filzgolf",+F31,"") -> 
A134: =IF(Eing.Allg..Daten!$D$8="Filzgolf",+E32,"") ->  | B134: =IF(Eing.Allg..Daten!$D$8="Filzgolf",+F32,"") -> 
A135: =IF(Eing.Allg..Daten!$D$8="Filzgolf",+E33,"") ->  | B135: =IF(Eing.Allg..Daten!$D$8="Filzgolf",+F33,"") -> 
A136: =IF(Eing.Allg..Daten!$D$8="Filzgolf",+E34,"") ->  | B136: =IF(Eing.Allg..Daten!$D$8="Filzgolf",+F34,"") -> 
A137: =IF(Eing.Allg..Daten!$D$8="Filzgolf",+E35,"") ->  | B137: =IF(Eing.Allg..Daten!$D$8="Filzgolf",+F35,"") -> 
A138: =IF(Eing.Allg..Daten!$D$8="Filzgolf",+E36,"") ->  | B138: =IF(Eing.Allg..Daten!$D$8="Filzgolf",+F36,"") -> 
A139: =IF(Eing.Allg..Daten!$D$8="Filzgolf",+E37,"") ->  | B139: =IF(Eing.Allg..Daten!$D$8="Filzgolf",+F37,"") -> 
A140: =IF(Eing.Allg..Daten!$D$8="Filzgolf",+E38,"") ->  | B140: =IF(Eing.Allg..Daten!$D$8="Filzgolf",+F38,"") -> 
A141: =IF(Eing.Allg..Daten!$D$8="Filzgolf",+E39,"") ->  | B141: =IF(Eing.Allg..Daten!$D$8="Filzgolf",+F39,"") -> 
A142: =IF(Eing.Allg..Daten!$D$8="Filzgolf",+E40,"") ->  | B142: =IF(Eing.Allg..Daten!$D$8="Filzgolf",+F40,"") -> 
A143: =IF(Eing.Allg..Daten!$D$8="Filzgolf",+E41,"") ->  | B143: =IF(Eing.Allg..Daten!$D$8="Filzgolf",+F41,"") -> 
A144: =IF(Eing.Allg..Daten!$D$8="Filzgolf",+E42,"") ->  | B144: =IF(Eing.Allg..Daten!$D$8="Filzgolf",+F42,"") -> 

Sheet Startliste
B2: TL: | C2: =Eing.Allg..Daten!D17 -> 0 | E2: OS: | F2: =Eing.Allg..Daten!D20 -> 0 | G2: =Eing.Allg..Daten!D21 -> 0 | J2: für 2er Gruppe ein X setzen und Startliste neu erstellen | K2: =CONCATENATE(AnzMa,AnzSpieler) -> 5 | AA2: =IF(Eing.Allg..Daten!$Q2>0,Eing.Allg..Daten!$Q2,"") ->  | AE2: =Seite1!C5 ->  | AF2: =Seite1!D5 -> . Spieltag
C3: =+Seite1!B3 ->  | E3: S: | F3: =Eing.Allg..Daten!D22 -> 0 | G3: =Eing.Allg..Daten!D23 -> 0 | Q3: X | AA3: Paßnr | AB3: Mannsch Nr | AC3: Spieler Nr | AD3: Name | AE3: Verein | AF3: StNr - Spieler | AG3: StNr _Mannsch | AH3: Belegt ja/nein
B4: =+Seite1!C5 ->  | C4: =+Seite1!D5 -> . Spieltag | E4: S: | F4: =Eing.Allg..Daten!D24 -> 0 | G4: =Eing.Allg..Daten!D25 -> 0
J7: =COUNTIF(J$8:J$69,"x") -> 0 | Z7: =IF(AA7>0,1,0) -> 0 | AA7: =IF(M7S1p>0,M7S1p,0) -> 0 | AB7: =IF(Ma1_Eing>0,Eing.Mannsch.aufstellung!$C$179,0) -> 0 | AC7: =IF(Ma1_Eing>0,Eing.Mannsch.aufstellung!$C181,0) -> 0 | AD7: =IF(M7S1p>0,M7S1,0) -> 0 | AE7: =IF(Ma1_Eing>0,Eing.Mannsch.aufstellung!$B$180,0) -> 0 | AF7: =IF(AA7>0,IF(AC7="AK","9",AC7),0) -> 0 | AG7: =IF(AA7>0,AB7,0) -> 0 | AH7: =IF(AA7>0,1,2) -> 2
B8: St.-Gr. | C8: =IF(D8=0,1,0) -> 1 | D8: =$Q105 -> 0 | E8: =IF(F8=0,1,0) -> 1 | F8: =$Q106 -> 0 | G8: =IF(H8=0,1,0) -> 1 | H8: =$Q107 -> 0 | Z8: =IF(AA8>0,Z7+1,Z7) -> 0 | AA8: =IF(M6S1p>0,M6S1p,0) -> 0 | AB8: =IF(Ma1_Eing>0,Eing.Mannsch.aufstellung!$C$154,0) -> 0 | AC8: =IF(Ma1_Eing>0,Eing.Mannsch.aufstellung!$C156,0) -> 0 | AD8: =IF(M6S1p>0,M6S1,0) -> 0 | AE8: =IF(Ma1_Eing>0,Eing.Mannsch.aufstellung!$B$155,0) -> 0 | AF8: 0 | AG8: 0 | AH8: 2
B9: 1 | D9: =CONCATENATE($R105," / Sp ",$P105) -> 0 / Sp 0 | F9: =CONCATENATE($R106," / Sp ",$P106) -> 0 / Sp 0 | H9: =CONCATENATE($R107," / Sp ",$P107) -> 0 / Sp 0 | Z9: 0 | AA9: =IF(M5S1p>0,M5S1p,0) -> 0 | AB9: =IF(Ma1_Eing>0,Eing.Mannsch.aufstellung!$C$129,0) -> 0 | AC9: =IF(Ma1_Eing>0,Eing.Mannsch.aufstellung!$C131,0) -> 0 | AD9: =IF(M5S1p>0,M5S1,0) -> 0 | AE9: =IF(Ma1_Eing>0,Eing.Mannsch.aufstellung!$B$130,0) -> 0 | AF9: 0 | AG9: 0 | AH9: 2
Z10: 0 | AA10: =IF(M4S1p>0,M4S1p,0) -> 0 | AB10: =IF(Ma1_Eing>0,Eing.Mannsch.aufstellung!$C$103,0) -> 0 | AC10: =IF(Ma1_Eing>0,Eing.Mannsch.aufstellung!$C105,0) -> 0 | AD10: =IF(M4S1p>0,M4S1,0) -> 0 | AE10: =IF(Ma1_Eing>0,Eing.Mannsch.aufstellung!$B$104,0) -> 0 | AF10: 0 | AG10: 0 | AH10: 2
B11: St.-Gr. | C11: =IF(D11=0,1,0) -> 1 | D11: =$Q108 -> 0 | E11: =IF(F11=0,1,0) -> 1 | F11: =$Q109 -> 0 | G11: =IF(H11=0,1,0) -> 1 | H11: =$Q110 -> 0 | Z11: 0 | AA11: =IF(M3S1p>0,M3S1p,0) -> 0 | AB11: =IF(Ma1_Eing>0,Eing.Mannsch.aufstellung!$C$78,0) -> 0 | AC11: =IF(Ma1_Eing>0,Eing.Mannsch.aufstellung!$C80,0) -> 0 | AD11: =IF(M3S1p>0,M3S1,0) -> 0 | AE11: =IF(Ma1_Eing>0,Eing.Mannsch.aufstellung!$B$79,0) -> 0 | AF11: 0 | AG11: 0 | AH11: 2
B12: =B9+1 -> 2 | D12: =CONCATENATE($R108," / Sp ",$P108) -> 0 / Sp 0 | F12: =CONCATENATE($R109," / Sp ",$P109) -> 0 / Sp 0 | H12: =CONCATENATE($R110," / Sp ",$P110) -> 0 / Sp 0 | Z12: 0 | AA12: =IF(M2S1p>0,M2S1p,0) -> 0 | AB12: =IF(Ma1_Eing>0,Eing.Mannsch.aufstellung!$C$53,0) -> 0 | AC12: =IF(Ma1_Eing>0,Eing.Mannsch.aufstellung!$C55,0) -> 0 | AD12: =IF(M2S1p>0,M2S1,0) -> 0 | AE12: =IF(Ma1_Eing>0,Eing.Mannsch.aufstellung!$B$54,0) -> 0 | AF12: 0 | AG12: 0 | AH12: 2
Z13: 0 | AA13: =IF(M1S1p>0,M1S1p,0) -> 0 | AB13: =IF(Ma1_Eing>0,Eing.Mannsch.aufstellung!$C$29,0) -> 0 | AC13: =IF(Ma1_Eing>0,Eing.Mannsch.aufstellung!$C31,0) -> 0 | AD13: =IF(M1S1p>0,M1S1,0) -> 0 | AE13: =IF(Ma1_Eing>0,Eing.Mannsch.aufstellung!B$30,0) -> 0 | AF13: 0 | AG13: 0 | AH13: 2
B14: St.-Gr. | C14: =IF(D14=0,1,0) -> 1 | D14: =$Q111 -> 0 | E14: =IF(F14=0,1,0) -> 1 | F14: =$Q112 -> 0 | G14: =IF(H14=0,1,0) -> 1 | H14: =$Q113 -> 0 | Z14: 0 | AA14: =IF(M7S2p>0,M7S2p,0) -> 0 | AB14: =IF(Ma1_Eing>0,Eing.Mannsch.aufstellung!$C$179,0) -> 0 | AC14: =IF(Ma1_Eing>0,Eing.Mannsch.aufstellung!$C182,0) -> 0 | AD14: =IF(M7S2p>0,M7S2,0) -> 0 | AE14: =IF(Ma1_Eing>0,Eing.Mannsch.aufstellung!$B$180,0) -> 0 | AF14: 0 | AG14: 0 | AH14: 2
B15: =B12+1 -> 3 | D15: =CONCATENATE($R111," / Sp ",$P111) -> 0 / Sp 0 | F15: =CONCATENATE($R112," / Sp ",$P112) -> 0 / Sp 0 | H15: =CONCATENATE($R113," / Sp ",$P113) -> 0 / Sp 0 | Z15: 0 | AA15: =IF(M6S2p>0,M6S2p,0) -> 0 | AB15: =IF(Ma1_Eing>0,Eing.Mannsch.aufstellung!$C$154,0) -> 0 | AC15: =IF(Ma1_Eing>0,Eing.Mannsch.aufstellung!$C157,0) -> 0 | AD15: =IF(M6S2p>0,M6S2,0) -> 0 | AE15: =IF(Ma1_Eing>0,Eing.Mannsch.aufstellung!$B$155,0) -> 0 | AF15: 0 | AG15: 0 | AH15: 2
Z16: 0 | AA16: =IF(M5S2p>0,M5S2p,0) -> 0 | AB16: =IF(Ma1_Eing>0,Eing.Mannsch.aufstellung!$C$129,0) -> 0 | AC16: =IF(Ma1_Eing>0,Eing.Mannsch.aufstellung!$C132,0) -> 0 | AD16: =IF(M5S2p>0,M5S2,0) -> 0 | AE16: =IF(Ma1_Eing>0,Eing.Mannsch.aufstellung!$B$130,0) -> 0 | AF16: 0 | AG16: 0 | AH16: 2
B17: St.-Gr. | C17: =IF(D17=0,1,0) -> 1 | D17: =$Q114 -> 0 | E17: =IF(F17=0,1,0) -> 1 | F17: =$Q115 -> 0 | G17: =IF(H17=0,1,0) -> 1 | H17: =$Q116 -> 0 | Z17: 0 | AA17: =IF(M4S2p>0,M4S2p,0) -> 0 | AB17: =IF(Ma1_Eing>0,Eing.Mannsch.aufstellung!$C$103,0) -> 0 | AC17: =IF(Ma1_Eing>0,Eing.Mannsch.aufstellung!$C106,0) -> 0 | AD17: =IF(M4S2p>0,M4S2,0) -> 0 | AE17: =IF(Ma1_Eing>0,Eing.Mannsch.aufstellung!$B$104,0) -> 0 | AF17: 0 | AG17: 0 | AH17: 2
B18: =B15+1 -> 4 | D18: =CONCATENATE($R114," / Sp ",$P114) -> 0 / Sp 0 | F18: =CONCATENATE($R115," / Sp ",$P115) -> 0 / Sp 0 | H18: =CONCATENATE($R116," / Sp ",$P116) -> 0 / Sp 0 | Z18: 0 | AA18: =IF(M3S2p>0,M3S2p,0) -> 0 | AB18: =IF(Ma1_Eing>0,Eing.Mannsch.aufstellung!$C$78,0) -> 0 | AC18: =IF(Ma1_Eing>0,Eing.Mannsch.aufstellung!$C81,0) -> 0 | AD18: =IF(M3S2p>0,M3S2,0) -> 0 | AE18: =IF(Ma1_Eing>0,Eing.Mannsch.aufstellung!$B$79,0) -> 0 | AF18: 0 | AG18: 0 | AH18: 2
Z19: 0 | AA19: =IF(M2S2p>0,M2S2p,0) -> 0 | AB19: =IF(Ma1_Eing>0,Eing.Mannsch.aufstellung!$C$53,0) -> 0 | AC19: =IF(Ma1_Eing>0,Eing.Mannsch.aufstellung!$C56,0) -> 0 | AD19: =IF(M2S2p>0,M2S2,0) -> 0 | AE19: =IF(Ma1_Eing>0,Eing.Mannsch.aufstellung!$B$54,0) -> 0 | AF19: 0 | AG19: 0 | AH19: 2
B20: St.-Gr. | C20: =IF(D20=0,1,0) -> 1 | D20: =$Q117 -> 0 | E20: =IF(F20=0,1,0) -> 1 | F20: =$Q118 -> 0 | G20: =IF(H20=0,1,0) -> 1 | H20: =$Q119 -> 0 | Z20: 0 | AA20: =IF(M1S2p>0,M1S2p,0) -> 0 | AB20: =IF(Ma1_Eing>0,Eing.Mannsch.aufstellung!$C$29,0) -> 0 | AC20: =IF(Ma1_Eing>0,Eing.Mannsch.aufstellung!$C32,0) -> 0 | AD20: =IF(M1S2p>0,M1S2,0) -> 0 | AE20: =IF(Ma1_Eing>0,Eing.Mannsch.aufstellung!$B$30,0) -> 0 | AF20: 0 | AG20: 0 | AH20: 2
B21: =B18+1 -> 5 | D21: =CONCATENATE($R117," / Sp ",$P117) -> 0 / Sp 0 | F21: =CONCATENATE($R118," / Sp ",$P118) -> 0 / Sp 0 | H21: =CONCATENATE($R119," / Sp ",$P119) -> 0 / Sp 0 | Z21: 0 | AA21: =IF(M7S3p>0,M7S3p,0) -> 0 | AB21: =IF(Ma1_Eing>0,Eing.Mannsch.aufstellung!$C$179,0) -> 0 | AC21: =IF(Ma1_Eing>0,Eing.Mannsch.aufstellung!$C183,0) -> 0 | AD21: =IF(M7S3p>0,M7S3,0) -> 0 | AE21: =IF(Ma1_Eing>0,Eing.Mannsch.aufstellung!$B$180,0) -> 0 | AF21: 0 | AG21: 0 | AH21: 2
Z22: 0 | AA22: =IF(M6S3p>0,M6S3p,0) -> 0 | AB22: =IF(Ma1_Eing>0,Eing.Mannsch.aufstellung!$C$154,0) -> 0 | AC22: =IF(Ma1_Eing>0,Eing.Mannsch.aufstellung!$C158,0) -> 0 | AD22: =IF(M6S3p>0,M6S3,0) -> 0 | AE22: =IF(Ma1_Eing>0,Eing.Mannsch.aufstellung!$B$155,0) -> 0 | AF22: 0 | AG22: 0 | AH22: 2
B23: St.-Gr. | C23: =IF(D23=0,1,0) -> 1 | D23: =$Q120 -> 0 | E23: =IF(F23=0,1,0) -> 1 | F23: =$Q121 -> 0 | G23: =IF(H23=0,1,0) -> 1 | H23: =$Q122 -> 0 | Z23: 0 | AA23: =IF(M5S3p>0,M5S3p,0) -> 0 | AB23: =IF(Ma1_Eing>0,Eing.Mannsch.aufstellung!$C$129,0) -> 0 | AC23: =IF(Ma1_Eing>0,Eing.Mannsch.aufstellung!$C133,0) -> 0 | AD23: =IF(M5S3p>0,M5S3,0) -> 0 | AE23: =IF(Ma1_Eing>0,Eing.Mannsch.aufstellung!$B$130,0) -> 0 | AF23: 0 | AG23: 0 | AH23: 2
B24: =B21+1 -> 6 | D24: =CONCATENATE($R120," / Sp ",$P120) -> 0 / Sp 0 | F24: =CONCATENATE($R121," / Sp ",$P121) -> 0 / Sp 0 | H24: =CONCATENATE($R122," / Sp ",$P122) -> 0 / Sp 0 | Z24: 0 | AA24: =IF(M4S3p>0,M4S3p,0) -> 0 | AB24: =IF(Ma1_Eing>0,Eing.Mannsch.aufstellung!$C$103,0) -> 0 | AC24: =IF(Ma1_Eing>0,Eing.Mannsch.aufstellung!$C107,0) -> 0 | AD24: =IF(M4S3p>0,M4S3,0) -> 0 | AE24: =IF(Ma1_Eing>0,Eing.Mannsch.aufstellung!$B$104,0) -> 0 | AF24: 0 | AG24: 0 | AH24: 2
Z25: 0 | AA25: =IF(M3S3p>0,M3S3p,0) -> 0 | AB25: =IF(Ma1_Eing>0,Eing.Mannsch.aufstellung!$C$78,0) -> 0 | AC25: =IF(Ma1_Eing>0,Eing.Mannsch.aufstellung!$C82,0) -> 0 | AD25: =IF(M3S3p>0,M3S3,0) -> 0 | AE25: =IF(Ma1_Eing>0,Eing.Mannsch.aufstellung!$B$79,0) -> 0 | AF25: 0 | AG25: 0 | AH25: 2
B26: St.-Gr. | C26: =IF(D26=0,1,0) -> 1 | D26: =$Q123 -> 0 | E26: =IF(F26=0,1,0) -> 1 | F26: =$Q124 -> 0 | G26: =IF(H26=0,1,0) -> 1 | H26: =$Q125 -> 0 | Z26: 0 | AA26: =IF(M2S3p>0,M2S3p,0) -> 0 | AB26: =IF(Ma1_Eing>0,Eing.Mannsch.aufstellung!$C$53,0) -> 0 | AC26: =IF(Ma1_Eing>0,Eing.Mannsch.aufstellung!$C57,0) -> 0 | AD26: =IF(M2S3p>0,M2S3,0) -> 0 | AE26: =IF(Ma1_Eing>0,Eing.Mannsch.aufstellung!$B$54,0) -> 0 | AF26: 0 | AG26: 0 | AH26: 2
B27: =B24+1 -> 7 | D27: =CONCATENATE($R123," / Sp ",$P123) -> 0 / Sp 0 | F27: =CONCATENATE($R124," / Sp ",$P124) -> 0 / Sp 0 | H27: =CONCATENATE($R125," / Sp ",$P125) -> 0 / Sp 0 | Z27: 0 | AA27: =IF(M1S3p>0,M1S3p,0) -> 0 | AB27: =IF(Ma1_Eing>0,Eing.Mannsch.aufstellung!$C$29,0) -> 0 | AC27: =IF(Ma1_Eing>0,Eing.Mannsch.aufstellung!$C33,0) -> 0 | AD27: =IF(M1S3p>0,M1S3,0) -> 0 | AE27: =IF(Ma1_Eing>0,Eing.Mannsch.aufstellung!$B$30,0) -> 0 | AF27: 0 | AG27: 0 | AH27: 2
Z28: 0 | AA28: =IF(M7S4p>0,M7S4p,0) -> 0 | AB28: =IF(Ma1_Eing>0,Eing.Mannsch.aufstellung!$C$179,0) -> 0 | AC28: =IF(Ma1_Eing>0,Eing.Mannsch.aufstellung!$C184,0) -> 0 | AD28: =IF(M7S4p>0,M7S4,0) -> 0 | AE28: =IF(Ma1_Eing>0,Eing.Mannsch.aufstellung!$B$180,0) -> 0 | AF28: 0 | AG28: 0 | AH28: 2
B29: St.-Gr. | C29: =IF(D29=0,1,0) -> 1 | D29: =$Q126 -> 0 | E29: =IF(F29=0,1,0) -> 1 | F29: =$Q127 -> 0 | G29: =IF(H29=0,1,0) -> 1 | H29: =$Q128 -> 0 | Z29: 0 | AA29: =IF(M6S4p>0,M6S4p,0) -> 0 | AB29: =IF(Ma1_Eing>0,Eing.Mannsch.aufstellung!$C$154,0) -> 0 | AC29: =IF(Ma1_Eing>0,Eing.Mannsch.aufstellung!$C159,0) -> 0 | AD29: =IF(M6S4p>0,M6S4,0) -> 0 | AE29: =IF(Ma1_Eing>0,Eing.Mannsch.aufstellung!$B$155,0) -> 0 | AF29: 0 | AG29: 0 | AH29: 2
B30: =B27+1 -> 8 | D30: =CONCATENATE($R126," / Sp ",$P126) -> 0 / Sp 0 | F30: =CONCATENATE($R127," / Sp ",$P127) -> 0 / Sp 0 | H30: =CONCATENATE($R128," / Sp ",$P128) -> 0 / Sp 0 | Z30: 0 | AA30: =IF(M5S4p>0,M5S4p,0) -> 0 | AB30: =IF(Ma1_Eing>0,Eing.Mannsch.aufstellung!$C$129,0) -> 0 | AC30: =IF(Ma1_Eing>0,Eing.Mannsch.aufstellung!$C134,0) -> 0 | AD30: =IF(M5S4p>0,M5S4,0) -> 0 | AE30: =IF(Ma1_Eing>0,Eing.Mannsch.aufstellung!$B$130,0) -> 0 | AF30: 0 | AG30: 0 | AH30: 2
Z31: 0 | AA31: =IF(M4S4p>0,M4S4p,0) -> 0 | AB31: =IF(Ma1_Eing>0,Eing.Mannsch.aufstellung!$C$103,0) -> 0 | AC31: =IF(Ma1_Eing>0,Eing.Mannsch.aufstellung!$C108,0) -> 0 | AD31: =IF(M4S4p>0,M4S4,0) -> 0 | AE31: =IF(Ma1_Eing>0,Eing.Mannsch.aufstellung!$B$104,0) -> 0 | AF31: 0 | AG31: 0 | AH31: 2
B32: St.-Gr. | C32: =IF(D32=0,1,0) -> 1 | D32: =$Q129 -> 0 | E32: =IF(F32=0,1,0) -> 1 | F32: =$Q130 -> 0 | G32: =IF(H32=0,1,0) -> 1 | H32: =$Q131 -> 0 | Z32: 0 | AA32: =IF(M3S4p>0,M3S4p,0) -> 0 | AB32: =IF(Ma1_Eing>0,Eing.Mannsch.aufstellung!$C$78,0) -> 0 | AC32: =IF(Ma1_Eing>0,Eing.Mannsch.aufstellung!$C83,0) -> 0 | AD32: =IF(M3S4p>0,M3S4,0) -> 0 | AE32: =IF(Ma1_Eing>0,Eing.Mannsch.aufstellung!$B$79,0) -> 0 | AF32: 0 | AG32: 0 | AH32: 2
B33: =B30+1 -> 9 | D33: =CONCATENATE($R129," / Sp ",$P129) -> 0 / Sp 0 | F33: =CONCATENATE($R130," / Sp ",$P130) -> 0 / Sp 0 | H33: =CONCATENATE($R131," / Sp ",$P131) -> 0 / Sp 0 | Z33: 0 | AA33: =IF(M2S4p>0,M2S4p,0) -> 0 | AB33: =IF(Ma1_Eing>0,Eing.Mannsch.aufstellung!$C$53,0) -> 0 | AC33: =IF(Ma1_Eing>0,Eing.Mannsch.aufstellung!$C58,0) -> 0 | AD33: =IF(M2S4p>0,M2S4,0) -> 0 | AE33: =IF(Ma1_Eing>0,Eing.Mannsch.aufstellung!$B$54,0) -> 0 | AF33: 0 | AG33: 0 | AH33: 2
Z34: 0 | AA34: =IF(M1S4p>0,M1S4p,0) -> 0 | AB34: =IF(Ma1_Eing>0,Eing.Mannsch.aufstellung!$C$29,0) -> 0 | AC34: =IF(Ma1_Eing>0,Eing.Mannsch.aufstellung!$C34,0) -> 0 | AD34: =IF(M1S4p>0,M1S4,0) -> 0 | AE34: =IF(Ma1_Eing>0,Eing.Mannsch.aufstellung!$B$30,0) -> 0 | AF34: 0 | AG34: 0 | AH34: 2
B35: St.-Gr. | C35: =IF(D35=0,1,0) -> 1 | D35: =$Q132 -> 0 | E35: =IF(F35=0,1,0) -> 1 | F35: =$Q133 -> 0 | G35: =IF(H35=0,1,0) -> 1 | H35: =$Q134 -> 0 | Z35: 0 | AA35: =IF(M7S5p>0,M7S5p,0) -> 0 | AB35: =IF(Ma1_Eing>0,Eing.Mannsch.aufstellung!$C$179,0) -> 0 | AC35: =IF(Ma1_Eing>0,Eing.Mannsch.aufstellung!$C185,0) -> 0 | AD35: =IF(M7S5p>0,M7S5,0) -> 0 | AE35: =IF(Ma1_Eing>0,Eing.Mannsch.aufstellung!$B$180,0) -> 0 | AF35: 0 | AG35: 0 | AH35: 2
B36: =B33+1 -> 10 | D36: =CONCATENATE($R132," / Sp ",$P132) -> 0 / Sp 0 | F36: =CONCATENATE($R133," / Sp ",$P133) -> 0 / Sp 0 | H36: =CONCATENATE($R134," / Sp ",$P134) -> 0 / Sp 0 | Z36: 0 | AA36: =IF(M6S5p>0,M6S5p,0) -> 0 | AB36: =IF(Ma1_Eing>0,Eing.Mannsch.aufstellung!$C$154,0) -> 0 | AC36: =IF(Ma1_Eing>0,Eing.Mannsch.aufstellung!$C160,0) -> 0 | AD36: =IF(M6S5p>0,M6S5,0) -> 0 | AE36: =IF(Ma1_Eing>0,Eing.Mannsch.aufstellung!$B$155,0) -> 0 | AF36: 0 | AG36: 0 | AH36: 2
Z37: 0 | AA37: =IF(M5S5p>0,M5S5p,0) -> 0 | AB37: =IF(Ma1_Eing>0,Eing.Mannsch.aufstellung!$C$129,0) -> 0 | AC37: =IF(Ma1_Eing>0,Eing.Mannsch.aufstellung!$C135,0) -> 0 | AD37: =IF(M5S5p>0,M5S5,0) -> 0 | AE37: =IF(Ma1_Eing>0,Eing.Mannsch.aufstellung!$B$130,0) -> 0 | AF37: 0 | AG37: 0 | AH37: 2
B38: St.-Gr. | C38: =IF(D38=0,1,0) -> 1 | D38: =$Q135 -> 0 | E38: =IF(F38=0,1,0) -> 1 | F38: =$Q136 -> 0 | G38: =IF(H38=0,1,0) -> 1 | H38: =$Q137 -> 0 | Z38: 0 | AA38: =IF(M4S5p>0,M4S5p,0) -> 0 | AB38: =IF(Ma1_Eing>0,Eing.Mannsch.aufstellung!$C$103,0) -> 0 | AC38: =IF(Ma1_Eing>0,Eing.Mannsch.aufstellung!$C109,0) -> 0 | AD38: =IF(M4S5p>0,M4S5,0) -> 0 | AE38: =IF(Ma1_Eing>0,Eing.Mannsch.aufstellung!$B$104,0) -> 0 | AF38: 0 | AG38: 0 | AH38: 2
B39: =B36+1 -> 11 | D39: =CONCATENATE($R135," / Sp ",$P135) -> 0 / Sp 0 | F39: =CONCATENATE($R136," / Sp ",$P136) -> 0 / Sp 0 | H39: =CONCATENATE($R137," / Sp ",$P137) -> 0 / Sp 0 | Z39: 0 | AA39: =IF(M3S5p>0,M3S5p,0) -> 0 | AB39: =IF(Ma1_Eing>0,Eing.Mannsch.aufstellung!$C$78,0) -> 0 | AC39: =IF(Ma1_Eing>0,Eing.Mannsch.aufstellung!$C84,0) -> 0 | AD39: =IF(M3S5p>0,M3S5,0) -> 0 | AE39: =IF(Ma1_Eing>0,Eing.Mannsch.aufstellung!$B$79,0) -> 0 | AF39: 0 | AG39: 0 | AH39: 2
Z40: =IF(AA40>0,Z39+1,Z39) -> 0 | AA40: =IF(M2S5p>0,M2S5p,0) -> 0 | AB40: =IF(Ma1_Eing>0,Eing.Mannsch.aufstellung!$C$53,0) -> 0 | AC40: =IF(Ma1_Eing>0,Eing.Mannsch.aufstellung!$C59,0) -> 0 | AD40: =IF(M2S5p>0,M2S5,0) -> 0 | AE40: =IF(Ma1_Eing>0,Eing.Mannsch.aufstellung!$B$54,0) -> 0 | AF40: 0 | AG40: 0 | AH40: 2
B41: St.-Gr. | C41: =IF(D41=0,1,0) -> 1 | D41: =$Q138 -> 0 | E41: =IF(F41=0,1,0) -> 1 | F41: =$Q139 -> 0 | G41: =IF(H41=0,1,0) -> 1 | H41: =$Q140 -> 0 | Z41: 0 | AA41: =IF(M1S5p>0,M1S5p,0) -> 0 | AB41: =IF(Ma1_Eing>0,Eing.Mannsch.aufstellung!$C$29,0) -> 0 | AC41: =IF(Ma1_Eing>0,Eing.Mannsch.aufstellung!$C35,0) -> 0 | AD41: =IF(M1S5p>0,M1S5,0) -> 0 | AE41: =IF(Ma1_Eing>0,Eing.Mannsch.aufstellung!$B$30,0) -> 0 | AF41: 0 | AG41: 0 | AH41: 2
B42: =B39+1 -> 12 | D42: =CONCATENATE($R138," / Sp ",$P138) -> 0 / Sp 0 | F42: =CONCATENATE($R139," / Sp ",$P139) -> 0 / Sp 0 | H42: =CONCATENATE($R140," / Sp ",$P140) -> 0 / Sp 0 | Z42: 0 | AA42: =IF(M6S6p>0,M6S6p,0) -> 0 | AB42: =IF(Ma1_Eing>0,Eing.Mannsch.aufstellung!$C$154,0) -> 0 | AC42: =IF(Ma1_Eing>0,Eing.Mannsch.aufstellung!$C161,0) -> 0 | AD42: =IF(M6S6p>0,M6S6,0) -> 0 | AE42: =IF(Ma1_Eing>0,Eing.Mannsch.aufstellung!$B$155,0) -> 0 | AF42: 0 | AG42: 0 | AH42: 2
Z43: 0 | AA43: =IF(M5S6p>0,M5S6p,0) -> 0 | AB43: =IF(Ma1_Eing>0,Eing.Mannsch.aufstellung!$C$129,0) -> 0 | AC43: =IF(Ma1_Eing>0,Eing.Mannsch.aufstellung!$C136,0) -> 0 | AD43: =IF(M5S6p>0,M5S6,0) -> 0 | AE43: =IF(Ma1_Eing>0,Eing.Mannsch.aufstellung!$B$130,0) -> 0 | AF43: 0 | AG43: 0 | AH43: 2
B44: St.-Gr. | C44: =IF(D44=0,1,0) -> 1 | D44: =$Q141 -> 0 | E44: =IF(F44=0,1,0) -> 1 | F44: =$Q142 -> 0 | G44: =IF(H44=0,1,0) -> 1 | H44: =$Q143 -> 0 | Z44: 0 | AA44: =IF(M4S6p>0,M4S6p,0) -> 0 | AB44: =IF(Ma1_Eing>0,Eing.Mannsch.aufstellung!$C$103,0) -> 0 | AC44: =IF(Ma1_Eing>0,Eing.Mannsch.aufstellung!$C110,0) -> 0 | AD44: =IF(M4S6p>0,M4S6,0) -> 0 | AE44: =IF(Ma1_Eing>0,Eing.Mannsch.aufstellung!$B$104,0) -> 0 | AF44: 0 | AG44: 0 | AH44: 2
B45: =B42+1 -> 13 | D45: =CONCATENATE($R141," / Sp ",$P141) -> 0 / Sp 0 | F45: =CONCATENATE($R142," / Sp ",$P142) -> 0 / Sp 0 | H45: =CONCATENATE($R143," / Sp ",$P143) -> 0 / Sp 0 | Z45: 0 | AA45: =IF(M3S6p>0,M3S6p,0) -> 0 | AB45: =IF(Ma1_Eing>0,Eing.Mannsch.aufstellung!$C$78,0) -> 0 | AC45: =IF(Ma1_Eing>0,Eing.Mannsch.aufstellung!$C85,0) -> 0 | AD45: =IF(M3S6p>0,M3S6,0) -> 0 | AE45: =IF(Ma1_Eing>0,Eing.Mannsch.aufstellung!$B$79,0) -> 0 | AF45: 0 | AG45: 0 | AH45: 2
Z46: 0 | AA46: =IF(M2S6p>0,M2S6p,0) -> 0 | AB46: =IF(Ma1_Eing>0,Eing.Mannsch.aufstellung!$C$53,0) -> 0 | AC46: =IF(Ma1_Eing>0,Eing.Mannsch.aufstellung!$C60,0) -> 0 | AD46: =IF(M2S6p>0,M2S6,0) -> 0 | AE46: =IF(Ma1_Eing>0,Eing.Mannsch.aufstellung!$B$54,0) -> 0 | AF46: 0 | AG46: 0 | AH46: 2
B47: St.-Gr. | C47: =IF(D47=0,1,0) -> 1 | D47: =$Q144 -> 0 | E47: =IF(F47=0,1,0) -> 1 | F47: =$Q145 -> 0 | G47: =IF(H47=0,1,0) -> 1 | H47: =$Q146 -> 0 | Z47: 0 | AA47: =IF(M1S6p>0,M1S6p,0) -> 0 | AB47: =IF(Ma1_Eing>0,Eing.Mannsch.aufstellung!$C$29,0) -> 0 | AC47: =IF(Ma1_Eing>0,Eing.Mannsch.aufstellung!$C36,0) -> 0 | AD47: =IF(M1S6p>0,M1S6,0) -> 0 | AE47: =IF(Ma1_Eing>0,Eing.Mannsch.aufstellung!$B$30,0) -> 0 | AF47: 0 | AG47: 0 | AH47: 2
B48: =B45+1 -> 14 | D48: =CONCATENATE($R144," / Sp ",$P144) -> 0 / Sp 0 | F48: =CONCATENATE($R145," / Sp ",$P145) -> 0 / Sp 0 | H48: =CONCATENATE($R146," / Sp ",$P146) -> 0 / Sp 0 | Z48: 0 | AA48: 0 | AB48: 8 | AD48: 0 | AE48: Füller | AF48: =IF($AJ$72=$AI$72,VLOOKUP($Z$73,$Z$7:$AH$69,7),0) -> 0 | AG48: =IF($AJ$72=$AI$72,VLOOKUP($Z$73,$Z$5:$AH$69,8,FALSE)-0.5,0) -> 0 | AH48: =IF($AJ$72=$AI$72,1,2) -> 2
Z49: 0 | AA49: =IF(M4S7p>0,M4S7p,0) -> 0 | AB49: =IF(Ma1_Eing>0,Eing.Mannsch.aufstellung!$C$103,0) -> 0 | AC49: =IF(Ma1_Eing>0,Eing.Mannsch.aufstellung!$C111,0) -> 0 | AD49: =IF(M4S7p>0,M4S7,0) -> 0 | AE49: =IF(Ma1_Eing>0,Eing.Mannsch.aufstellung!$B$104,0) -> 0 | AF49: =IF(AA49>0,IF(AC49="AK","9",AC49),0) -> 0 | AG49: =IF(AA49>0,AB49,0) -> 0 | AH49: =IF(AA49>0,1,2) -> 2
B50: St.-Gr. | C50: =IF(D50=0,1,0) -> 1 | D50: =$Q147 -> 0 | E50: =IF(F50=0,1,0) -> 1 | F50: =$Q148 -> 0 | G50: =IF(H50=0,1,0) -> 1 | H50: =$Q149 -> 0 | Z50: 0 | AA50: =IF(M2SAKp>0,M2SAKp,0) -> 0 | AB50: =IF(Ma1_Eing>0,Eing.Mannsch.aufstellung!$C$53,0) -> 0 | AC50: =IF(Ma1_Eing>0,Eing.Mannsch.aufstellung!$C63,0) -> 0 | AD50: =IF(M2SAKp>0,M2SAK,0) -> 0 | AE50: =IF(Ma1_Eing>0,Eing.Mannsch.aufstellung!$B$54,0) -> 0 | AF50: 0 | AG50: 0 | AH50: 2
B51: =B48+1 -> 15 | D51: =CONCATENATE($R147," / Sp ",$P147) -> 0 / Sp 0 | F51: =CONCATENATE($R148," / Sp ",$P148) -> 0 / Sp 0 | H51: =CONCATENATE($R149," / Sp ",$P149) -> 0 / Sp 0 | Z51: 0 | AA51: =IF(M1S7p>0,M1S7p,0) -> 0 | AB51: =IF(Ma1_Eing>0,Eing.Mannsch.aufstellung!$C$29,0) -> 0 | AC51: =IF(Ma1_Eing>0,Eing.Mannsch.aufstellung!$C37,0) -> 0 | AD51: =IF(M1S7p>0,M1S7,0) -> 0 | AE51: =IF(Ma1_Eing>0,Eing.Mannsch.aufstellung!$B$30,0) -> 0 | AF51: 0 | AG51: 0 | AH51: 2
Z52: 0 | AA52: =IF(M1S8p>0,M1S8p,0) -> 0 | AB52: =IF(Ma1_Eing>0,Eing.Mannsch.aufstellung!$C$29,0) -> 0 | AC52: =IF(Ma1_Eing>0,Eing.Mannsch.aufstellung!$C38,0) -> 0 | AD52: =IF(M1S8p>0,M1S8,0) -> 0 | AE52: =IF(Ma1_Eing>0,Eing.Mannsch.aufstellung!$B$30,0) -> 0 | AF52: 0 | AG52: 0 | AH52: 2
B53: St.-Gr. | C53: =IF(D53=0,1,0) -> 1 | D53: =$Q150 -> 0 | E53: =IF(F53=0,1,0) -> 1 | F53: =$Q151 -> 0 | G53: =IF(H53=0,1,0) -> 1 | H53: =$Q152 -> 0 | Z53: 0 | AA53: =IF(M1SAKp>0,M1SAKp,0) -> 0 | AB53: =IF(Ma1_Eing>0,Eing.Mannsch.aufstellung!$C$29,0) -> 0 | AC53: =IF(Ma1_Eing>0,Eing.Mannsch.aufstellung!$C39,0) -> 0 | AD53: =IF(M1SAKp>0,M1SAK,0) -> 0 | AE53: =IF(Ma1_Eing>0,Eing.Mannsch.aufstellung!$B$30,0) -> 0 | AF53: 0 | AG53: 0 | AH53: 2
B54: =B51+1 -> 16 | D54: =CONCATENATE($R150," / Sp ",$P150) -> 0 / Sp 0 | F54: =CONCATENATE($R151," / Sp ",$P151) -> 0 / Sp 0 | H54: =CONCATENATE($R152," / Sp ",$P152) -> 0 / Sp 0 | Z54: 0 | AA54: =IF(M2S7p>0,M2S7p,0) -> 0 | AB54: =IF(Ma1_Eing>0,Eing.Mannsch.aufstellung!$C$53,0) -> 0 | AC54: =IF(Ma1_Eing>0,Eing.Mannsch.aufstellung!$C61,0) -> 0 | AD54: =IF(M2S7p>0,M2S7,0) -> 0 | AE54: =IF(Ma1_Eing>0,Eing.Mannsch.aufstellung!$B$54,0) -> 0 | AF54: 0 | AG54: 0 | AH54: 2
Z55: 0 | AA55: =IF(M2S8p>0,M2S8p,0) -> 0 | AB55: =IF(Ma1_Eing>0,Eing.Mannsch.aufstellung!$C$53,0) -> 0 | AC55: =IF(Ma1_Eing>0,Eing.Mannsch.aufstellung!$C62,0) -> 0 | AD55: =IF(M2S8p>0,M2S8,0) -> 0 | AE55: =IF(Ma1_Eing>0,Eing.Mannsch.aufstellung!$B$54,0) -> 0 | AF55: 0 | AG55: 0 | AH55: 2
B56: St.-Gr. | C56: =IF(D56=0,1,0) -> 1 | D56: =$Q153 -> 0 | E56: =IF(F56=0,1,0) -> 1 | F56: =$Q154 -> 0 | G56: =IF(H56=0,1,0) -> 1 | H56: =$Q155 -> 0 | Z56: 0 | AA56: =IF(M3S7p>0,M3S7p,0) -> 0 | AB56: =IF(Ma1_Eing>0,Eing.Mannsch.aufstellung!$C$78,0) -> 0 | AC56: =IF(Ma1_Eing>0,Eing.Mannsch.aufstellung!$C86,0) -> 0 | AD56: =IF(M3S7p>0,M3S7,0) -> 0 | AE56: =IF(Ma1_Eing>0,Eing.Mannsch.aufstellung!$B$79,0) -> 0 | AF56: 0 | AG56: 0 | AH56: 2
B57: =B54+1 -> 17 | D57: =CONCATENATE($R153," / Sp ",$P153) -> 0 / Sp 0 | F57: =CONCATENATE($R154," / Sp ",$P154) -> 0 / Sp 0 | H57: =CONCATENATE($R155," / Sp ",$P155) -> 0 / Sp 0 | Z57: 0 | AA57: =IF(M3S8p>0,M3S8p,0) -> 0 | AB57: =IF(Ma1_Eing>0,Eing.Mannsch.aufstellung!$C$78,0) -> 0 | AC57: =IF(Ma1_Eing>0,Eing.Mannsch.aufstellung!$C87,0) -> 0 | AD57: =IF(M3S8p>0,M3S8,0) -> 0 | AE57: =IF(Ma1_Eing>0,Eing.Mannsch.aufstellung!$B$79,0) -> 0 | AF57: 0 | AG57: 0 | AH57: 2
Z58: 0 | AA58: =IF(M3SAKp>0,M3SAKp,0) -> 0 | AB58: =IF(Ma1_Eing>0,Eing.Mannsch.aufstellung!$C$78,0) -> 0 | AC58: =IF(Ma1_Eing>0,Eing.Mannsch.aufstellung!$C88,0) -> 0 | AD58: =IF(M3SAKp>0,M3SAK,0) -> 0 | AE58: =IF(Ma1_Eing>0,Eing.Mannsch.aufstellung!$B$79,0) -> 0 | AF58: 0 | AG58: 0 | AH58: 2
B59: St.-Gr. | C59: =IF(D59=0,1,0) -> 1 | D59: =$Q156 -> 0 | E59: =IF(F59=0,1,0) -> 1 | F59: =$Q157 -> 0 | G59: =IF(H59=0,1,0) -> 1 | H59: =$Q158 -> 0 | Z59: 0 | AA59: =IF(M4S8p>0,M4S8p,0) -> 0 | AB59: =IF(Ma1_Eing>0,Eing.Mannsch.aufstellung!$C$103,0) -> 0 | AC59: =IF(Ma1_Eing>0,Eing.Mannsch.aufstellung!$C112,0) -> 0 | AD59: =IF(M4S8p>0,M4S8,0) -> 0 | AE59: =IF(Ma1_Eing>0,Eing.Mannsch.aufstellung!$B$104,0) -> 0 | AF59: 0 | AG59: 0 | AH59: 2
B60: =B57+1 -> 18 | D60: =CONCATENATE($R156," / Sp ",$P156) -> 0 / Sp 0 | F60: =CONCATENATE($R157," / Sp ",$P157) -> 0 / Sp 0 | H60: =CONCATENATE($R158," / Sp ",$P158) -> 0 / Sp 0 | Z60: 0 | AA60: =IF(M4SAKp>0,M4SAKp,0) -> 0 | AB60: =IF(Ma1_Eing>0,Eing.Mannsch.aufstellung!$C$103,0) -> 0 | AC60: =IF(Ma1_Eing>0,Eing.Mannsch.aufstellung!$C113,0) -> 0 | AD60: =IF(M4SAKp>0,M4SAK,0) -> 0 | AE60: =IF(Ma1_Eing>0,Eing.Mannsch.aufstellung!$B$104,0) -> 0 | AF60: 0 | AG60: 0 | AH60: 2
Z61: 0 | AA61: =IF(M5S7p>0,M5S7p,0) -> 0 | AB61: =IF(Ma1_Eing>0,Eing.Mannsch.aufstellung!$C$129,0) -> 0 | AC61: =IF(Ma1_Eing>0,Eing.Mannsch.aufstellung!$C137,0) -> 0 | AD61: =IF(M5S7p>0,M5S7,0) -> 0 | AE61: =IF(Ma1_Eing>0,Eing.Mannsch.aufstellung!$B$130,0) -> 0 | AF61: 0 | AG61: 0 | AH61: 2
B62: St.-Gr. | C62: =IF(D62=0,1,0) -> 1 | D62: =$Q159 -> 0 | E62: =IF(F62=0,1,0) -> 1 | F62: =$Q160 -> 0 | G62: =IF(H62=0,1,0) -> 1 | H62: =$Q161 -> 0 | Z62: 0 | AA62: =IF(M5S8p>0,M5S8p,0) -> 0 | AB62: =IF(Ma1_Eing>0,Eing.Mannsch.aufstellung!$C$129,0) -> 0 | AC62: =IF(Ma1_Eing>0,Eing.Mannsch.aufstellung!$C138,0) -> 0 | AD62: =IF(M5S8p>0,M5S8,0) -> 0 | AE62: =IF(Ma1_Eing>0,Eing.Mannsch.aufstellung!$B$130,0) -> 0 | AF62: 0 | AG62: 0 | AH62: 2
B63: =B60+1 -> 19 | D63: =CONCATENATE($R159," / Sp ",$P159) -> 0 / Sp 0 | F63: =CONCATENATE($R160," / Sp ",$P160) -> 0 / Sp 0 | H63: =CONCATENATE($R161," / Sp ",$P161) -> 0 / Sp 0 | Z63: 0 | AA63: =IF(M5SAKp>0,M5SAKp,0) -> 0 | AB63: =IF(Ma1_Eing>0,Eing.Mannsch.aufstellung!$C$129,0) -> 0 | AC63: =IF(Ma1_Eing>0,Eing.Mannsch.aufstellung!$C139,0) -> 0 | AD63: =IF(M5SAKp>0,M5SAK,0) -> 0 | AE63: =IF(Ma1_Eing>0,Eing.Mannsch.aufstellung!$B$130,0) -> 0 | AF63: 0 | AG63: 0 | AH63: 2
Z64: 0 | AA64: =IF(M6S7p>0,M6S7p,0) -> 0 | AB64: =IF(Ma1_Eing>0,Eing.Mannsch.aufstellung!$C$154,0) -> 0 | AC64: =IF(Ma1_Eing>0,Eing.Mannsch.aufstellung!$C162,0) -> 0 | AD64: =IF(M6S7p>0,M6S7,0) -> 0 | AE64: =IF(Ma1_Eing>0,Eing.Mannsch.aufstellung!$B$155,0) -> 0 | AF64: 0 | AG64: 0 | AH64: 2
B65: St.-Gr. | C65: =IF(D65=0,1,0) -> 1 | D65: =$Q162 -> 0 | E65: =IF(F65=0,1,0) -> 1 | F65: =$Q163 -> 0 | G65: =IF(H65=0,1,0) -> 1 | H65: =$Q164 -> 0 | Z65: 0 | AA65: =IF(M6S8p>0,M6S8p,0) -> 0 | AB65: =IF(Ma1_Eing>0,Eing.Mannsch.aufstellung!$C$154,0) -> 0 | AC65: =IF(Ma1_Eing>0,Eing.Mannsch.aufstellung!$C163,0) -> 0 | AD65: =IF(M6S8p>0,M6S8,0) -> 0 | AE65: =IF(Ma1_Eing>0,Eing.Mannsch.aufstellung!$B$155,0) -> 0 | AF65: 0 | AG65: 0 | AH65: 2
B66: =B63+1 -> 20 | D66: =CONCATENATE($R162," / Sp ",$P162) -> 0 / Sp 0 | F66: =CONCATENATE($R163," / Sp ",$P163) -> 0 / Sp 0 | H66: =CONCATENATE($R164," / Sp ",$P164) -> 0 / Sp 0 | Z66: 0 | AA66: =IF(M6SAKp>0,M6SAKp,0) -> 0 | AB66: =IF(Ma1_Eing>0,Eing.Mannsch.aufstellung!$C$154,0) -> 0 | AC66: =IF(Ma1_Eing>0,Eing.Mannsch.aufstellung!$C164,0) -> 0 | AD66: =IF(M6SAKp>0,M6SAK,0) -> 0 | AE66: =IF(Ma1_Eing>0,Eing.Mannsch.aufstellung!$B$155,0) -> 0 | AF66: 0 | AG66: 0 | AH66: 2
Z67: 0 | AA67: =IF(M7S6p>0,M7S6p,0) -> 0 | AB67: =IF(Ma1_Eing>0,Eing.Mannsch.aufstellung!$C$179,0) -> 0 | AC67: =IF(Ma1_Eing>0,Eing.Mannsch.aufstellung!$C186,0) -> 0 | AD67: =IF(M7S6p>0,M7S6,0) -> 0 | AE67: =IF(Ma1_Eing>0,Eing.Mannsch.aufstellung!$B$180,0) -> 0 | AF67: 0 | AG67: 0 | AH67: 2
B68: St.-Gr. | C68: =IF(D68=0,1,0) -> 1 | D68: =$Q165 -> 0 | E68: =IF(F68=0,1,0) -> 1 | F68: =$Q166 -> 0 | G68: =IF(H68=0,1,0) -> 1 | H68: =$Q167 -> 0 | Z68: 0 | AA68: =IF(M7S7p>0,M7S7p,0) -> 0 | AB68: =IF(Ma1_Eing>0,Eing.Mannsch.aufstellung!$C$179,0) -> 0 | AC68: =IF(Ma1_Eing>0,Eing.Mannsch.aufstellung!$C187,0) -> 0 | AD68: =IF(M7S7p>0,M7S7,0) -> 0 | AE68: =IF(Ma1_Eing>0,Eing.Mannsch.aufstellung!$B$180,0) -> 0 | AF68: 0 | AG68: 0 | AH68: 2
B69: =B66+1 -> 21 | D69: =CONCATENATE($R165," / Sp ",$P165) -> 0 / Sp 0 | F69: =CONCATENATE($R166," / Sp ",$P166) -> 0 / Sp 0 | H69: =CONCATENATE($R167," / Sp ",$P167) -> 0 / Sp 0 | Z69: 0 | AA69: =IF(M7S8p>0,M7S8p,0) -> 0 | AB69: =IF(Ma1_Eing>0,Eing.Mannsch.aufstellung!$C$179,0) -> 0 | AC69: =IF(Ma1_Eing>0,Eing.Mannsch.aufstellung!$C188,0) -> 0 | AD69: =IF(M7S8p>0,M7S8,0) -> 0 | AE69: =IF(Ma1_Eing>0,Eing.Mannsch.aufstellung!$B$180,0) -> 0 | AF69: 0 | AG69: 0 | AH69: 2
Z70: 0 | AA70: =IF(M7SAKp>0,M7SAKp,0) -> 0 | AB70: =IF(Ma1_Eing>0,Eing.Mannsch.aufstellung!$C$179,0) -> 0 | AC70: =IF(Ma1_Eing>0,Eing.Mannsch.aufstellung!$C189,0) -> 0 | AD70: =IF(M7SAKp>0,M7SAK,0) -> 0 | AE70: =IF(Ma1_Eing>0,Eing.Mannsch.aufstellung!$B$180,0) -> 0 | AF70: 0 | AG70: 0 | AH70: 2 | AJ70: =INT(AJ71) -> 0
AI71: =COUNTIF(AA7:AA69,">0") -> 0 | AJ71: =AI71/3 -> 0
AF72: =AnzMa -> 0 | AI72: 0.333 | AJ72: =ROUND(AJ71-AJ70,3) -> 0
Z73: =MAX(Z7:Z69)-2 -> -2 | AD73: Sortierreihenfolge | AF73: 2. | AG73: 3. | AH73: 1.
S100: . Spieltag
N101: Paßnr | O101: Mannsch Nr | P101: Spieler Nr | Q101: Name | R101: Verein | S101: StNr - Spieler | T101: StNr _Mannsch | U101: Belegt ja/nein
M105: =IF(N105>0,1,0) -> 0 | N105: =IF(M3S1p>0,M3S1p,0) -> 0 | O105: =IF(Ma3_Eing>0,Eing.Mannsch.aufstellung!$C$78,0) -> 0 | P105: =IF(Ma3_Eing>0,Eing.Mannsch.aufstellung!$C80,0) -> 0 | Q105: =IF(M3S1p>0,M3S1,0) -> 0 | R105: =IF(Ma1_Eing>0,Eing.Mannsch.aufstellung!$B$79,0) -> 0 | S105: =IF(N105>0,IF(P105="AK",9,P105),0) -> 0 | T105: =IF(N105>0,O105,0) -> 0 | U105: =IF(N105>0,1,2) -> 2
M106: =IF(N106>0,M105+1,M105) -> 0 | N106: =IF(M1S1p>0,M1S1p,0) -> 0 | O106: =IF(Ma1_Eing>0,Eing.Mannsch.aufstellung!$C$29,0) -> 0 | P106: =IF(Ma1_Eing>0,Eing.Mannsch.aufstellung!$C31,0) -> 0 | Q106: =IF(M1S1p>0,M1S1,0) -> 0 | R106: =IF(Ma1_Eing>0,Eing.Mannsch.aufstellung!$B$30,0) -> 0 | S106: 0 | T106: 0 | U106: 2 | V106: 1
M107: 0 | N107: =IF(M5S2p>0,M5S2p,0) -> 0 | O107: =IF(Ma1_Eing>0,Eing.Mannsch.aufstellung!$C$129,0) -> 0 | P107: =IF(Ma1_Eing>0,Eing.Mannsch.aufstellung!$C132,0) -> 0 | Q107: =IF(M5S2p>0,M5S2,0) -> 0 | R107: =IF(Ma1_Eing>0,Eing.Mannsch.aufstellung!$B$130,0) -> 0 | S107: 0 | T107: 0 | U107: 2
M108: 0 | N108: =IF(M4S2p>0,M4S2p,0) -> 0 | O108: =IF(Ma1_Eing>0,Eing.Mannsch.aufstellung!$C$103,0) -> 0 | P108: =IF(Ma1_Eing>0,Eing.Mannsch.aufstellung!$C106,0) -> 0 | Q108: =IF(M4S2p>0,M4S2,0) -> 0 | R108: =IF(Ma1_Eing>0,Eing.Mannsch.aufstellung!$B$104,0) -> 0 | S108: 0 | T108: 0 | U108: 2
M109: 0 | N109: =IF(M3S2p>0,M3S2p,0) -> 0 | O109: =IF(Ma3_Eing>0,Eing.Mannsch.aufstellung!$C$78,0) -> 0 | P109: =IF(Ma3_Eing>0,Eing.Mannsch.aufstellung!$C81,0) -> 0 | Q109: =IF(M3S2p>0,M3S2,0) -> 0 | R109: =IF(Ma1_Eing>0,Eing.Mannsch.aufstellung!$B$79,0) -> 0 | S109: 0 | T109: 0 | U109: 2 | V109: 2
M110: 0 | N110: =IF(M2S2p>0,M2S2p,0) -> 0 | O110: =IF(Ma1_Eing>0,Eing.Mannsch.aufstellung!$C$53,0) -> 0 | P110: =IF(Ma1_Eing>0,Eing.Mannsch.aufstellung!$C56,0) -> 0 | Q110: =IF(M2S2p>0,M2S2,0) -> 0 | R110: =IF(Ma1_Eing>0,Eing.Mannsch.aufstellung!$B$54,0) -> 0 | S110: 0 | T110: 0 | U110: 2
M111: 0 | N111: =IF(M1S2p>0,M1S2p,0) -> 0 | O111: =IF(Ma1_Eing>0,Eing.Mannsch.aufstellung!$C$29,0) -> 0 | P111: =IF(Ma1_Eing>0,Eing.Mannsch.aufstellung!$C32,0) -> 0 | Q111: =IF(M1S2p>0,M1S2,0) -> 0 | R111: =IF(Ma1_Eing>0,Eing.Mannsch.aufstellung!$B$30,0) -> 0 | S111: 0 | T111: 0 | U111: 2
M112: 0 | N112: =IF(M5S3p>0,M5S3p,0) -> 0 | O112: =IF(Ma1_Eing>0,Eing.Mannsch.aufstellung!$C$129,0) -> 0 | P112: =IF(Ma1_Eing>0,Eing.Mannsch.aufstellung!$C133,0) -> 0 | Q112: =IF(M5S3p>0,M5S3,0) -> 0 | R112: =IF(Ma1_Eing>0,Eing.Mannsch.aufstellung!$B$130,0) -> 0 | S112: 0 | T112: 0 | U112: 2 | V112: 3
M113: 0 | N113: =IF(M4S3p>0,M4S3p,0) -> 0 | O113: =IF(Ma1_Eing>0,Eing.Mannsch.aufstellung!$C$103,0) -> 0 | P113: =IF(Ma1_Eing>0,Eing.Mannsch.aufstellung!$C107,0) -> 0 | Q113: =IF(M4S3p>0,M4S3,0) -> 0 | R113: =IF(Ma1_Eing>0,Eing.Mannsch.aufstellung!$B$104,0) -> 0 | S113: 0 | T113: 0 | U113: 2
M114: 0 | N114: =IF(M3S3p>0,M3S3p,0) -> 0 | O114: =IF(Ma3_Eing>0,Eing.Mannsch.aufstellung!$C$78,0) -> 0 | P114: =IF(Ma3_Eing>0,Eing.Mannsch.aufstellung!$C82,0) -> 0 | Q114: =IF(M3S3p>0,M3S3,0) -> 0 | R114: =IF(Ma1_Eing>0,Eing.Mannsch.aufstellung!$B$79,0) -> 0 | S114: 0 | T114: 0 | U114: 2
M115: 0 | N115: =IF(M2S3p>0,M2S3p,0) -> 0 | O115: =IF(Ma1_Eing>0,Eing.Mannsch.aufstellung!$C$53,0) -> 0 | P115: =IF(Ma1_Eing>0,Eing.Mannsch.aufstellung!$C57,0) -> 0 | Q115: =IF(M2S3p>0,M2S3,0) -> 0 | R115: =IF(Ma1_Eing>0,Eing.Mannsch.aufstellung!$B$54,0) -> 0 | S115: 0 | T115: 0 | U115: 2 | V115: 4
M116: 0 | N116: =IF(M1S3p>0,M1S3p,0) -> 0 | O116: =IF(Ma1_Eing>0,Eing.Mannsch.aufstellung!$C$29,0) -> 0 | P116: =IF(Ma1_Eing>0,Eing.Mannsch.aufstellung!$C33,0) -> 0 | Q116: =IF(M1S3p>0,M1S3,0) -> 0 | R116: =IF(Ma1_Eing>0,Eing.Mannsch.aufstellung!$B$30,0) -> 0 | S116: 0 | T116: 0 | U116: 2
M117: 0 | N117: =IF(M5S4p>0,M5S4p,0) -> 0 | O117: =IF(Ma1_Eing>0,Eing.Mannsch.aufstellung!$C$129,0) -> 0 | P117: =IF(Ma1_Eing>0,Eing.Mannsch.aufstellung!$C134,0) -> 0 | Q117: =IF(M5S4p>0,M5S4,0) -> 0 | R117: =IF(Ma1_Eing>0,Eing.Mannsch.aufstellung!$B$130,0) -> 0 | S117: 0 | T117: 0 | U117: 2
M118: 0 | N118: =IF(M4S4p>0,M4S4p,0) -> 0 | O118: =IF(Ma1_Eing>0,Eing.Mannsch.aufstellung!$C$103,0) -> 0 | P118: =IF(Ma1_Eing>0,Eing.Mannsch.aufstellung!$C108,0) -> 0 | Q118: =IF(M4S4p>0,M4S4,0) -> 0 | R118: =IF(Ma1_Eing>0,Eing.Mannsch.aufstellung!$B$104,0) -> 0 | S118: 0 | T118: 0 | U118: 2 | V118: 5
M119: 0 | N119: =IF(M3S4p>0,M3S4p,0) -> 0 | O119: =IF(Ma3_Eing>0,Eing.Mannsch.aufstellung!$C$78,0) -> 0 | P119: =IF(Ma3_Eing>0,Eing.Mannsch.aufstellung!$C83,0) -> 0 | Q119: =IF(M3S4p>0,M3S4,0) -> 0 | R119: =IF(Ma1_Eing>0,Eing.Mannsch.aufstellung!$B$79,0) -> 0 | S119: 0 | T119: 0 | U119: 2
M120: 0 | N120: =IF(M2S4p>0,M2S4p,0) -> 0 | O120: =IF(Ma1_Eing>0,Eing.Mannsch.aufstellung!$C$53,0) -> 0 | P120: =IF(Ma1_Eing>0,Eing.Mannsch.aufstellung!$C58,0) -> 0 | Q120: =IF(M2S4p>0,M2S4,0) -> 0 | R120: =IF(Ma1_Eing>0,Eing.Mannsch.aufstellung!$B$54,0) -> 0 | S120: 0 | T120: 0 | U120: 2
M121: 0 | N121: =IF(M1S4p>0,M1S4p,0) -> 0 | O121: =IF(Ma1_Eing>0,Eing.Mannsch.aufstellung!$C$29,0) -> 0 | P121: =IF(Ma1_Eing>0,Eing.Mannsch.aufstellung!$C34,0) -> 0 | Q121: =IF(M1S4p>0,M1S4,0) -> 0 | R121: =IF(Ma1_Eing>0,Eing.Mannsch.aufstellung!$B$30,0) -> 0 | S121: 0 | T121: 0 | U121: 2 | V121: 6
M122: 0 | N122: =IF(M5S5p>0,M5S5p,0) -> 0 | O122: =IF(Ma1_Eing>0,Eing.Mannsch.aufstellung!$C$129,0) -> 0 | P122: =IF(Ma1_Eing>0,Eing.Mannsch.aufstellung!$C135,0) -> 0 | Q122: =IF(M5S5p>0,M5S5,0) -> 0 | R122: =IF(Ma1_Eing>0,Eing.Mannsch.aufstellung!$B$130,0) -> 0 | S122: 0 | T122: 0 | U122: 2
M123: 0 | N123: =IF(M4S5p>0,M4S5p,0) -> 0 | O123: =IF(Ma1_Eing>0,Eing.Mannsch.aufstellung!$C$103,0) -> 0 | P123: =IF(Ma1_Eing>0,Eing.Mannsch.aufstellung!$C109,0) -> 0 | Q123: =IF(M4S5p>0,M4S5,0) -> 0 | R123: =IF(Ma1_Eing>0,Eing.Mannsch.aufstellung!$B$104,0) -> 0 | S123: 0 | T123: 0 | U123: 2
M124: 0 | N124: =IF(M3S5p>0,M3S5p,0) -> 0 | O124: =IF(Ma3_Eing>0,Eing.Mannsch.aufstellung!$C$78,0) -> 0 | P124: =IF(Ma3_Eing>0,Eing.Mannsch.aufstellung!$C84,0) -> 0 | Q124: =IF(M3S5p>0,M3S5,0) -> 0 | R124: =IF(Ma1_Eing>0,Eing.Mannsch.aufstellung!$B$79,0) -> 0 | S124: 0 | T124: 0 | U124: 2 | V124: 7
M125: 0 | N125: =IF(M2S5p>0,M2S5p,0) -> 0 | O125: =IF(Ma1_Eing>0,Eing.Mannsch.aufstellung!$C$53,0) -> 0 | P125: =IF(Ma1_Eing>0,Eing.Mannsch.aufstellung!$C59,0) -> 0 | Q125: =IF(M2S5p>0,M2S5,0) -> 0 | R125: =IF(Ma1_Eing>0,Eing.Mannsch.aufstellung!$B$54,0) -> 0 | S125: 0 | T125: 0 | U125: 2
M126: 0 | N126: =IF(M1S5p>0,M1S5p,0) -> 0 | O126: =IF(Ma1_Eing>0,Eing.Mannsch.aufstellung!$C$29,0) -> 0 | P126: =IF(Ma1_Eing>0,Eing.Mannsch.aufstellung!$C35,0) -> 0 | Q126: =IF(M1S5p>0,M1S5,0) -> 0 | R126: =IF(Ma1_Eing>0,Eing.Mannsch.aufstellung!$B$30,0) -> 0 | S126: 0 | T126: 0 | U126: 2
M127: 0 | N127: =IF(M5S6p>0,M5S6p,0) -> 0 | O127: =IF(Ma1_Eing>0,Eing.Mannsch.aufstellung!$C$129,0) -> 0 | P127: =IF(Ma1_Eing>0,Eing.Mannsch.aufstellung!$C136,0) -> 0 | Q127: =IF(M5S6p>0,M5S6,0) -> 0 | R127: =IF(Ma1_Eing>0,Eing.Mannsch.aufstellung!$B$130,0) -> 0 | S127: 0 | T127: 0 | U127: 2 | V127: 8
M128: 0 | N128: =IF(M4S6p>0,M4S6p,0) -> 0 | O128: =IF(Ma1_Eing>0,Eing.Mannsch.aufstellung!$C$103,0) -> 0 | P128: =IF(Ma1_Eing>0,Eing.Mannsch.aufstellung!$C110,0) -> 0 | Q128: =IF(M4S6p>0,M4S6,0) -> 0 | R128: =IF(Ma1_Eing>0,Eing.Mannsch.aufstellung!$B$104,0) -> 0 | S128: 0 | T128: 0 | U128: 2
M129: 0 | N129: =IF(M3S6p>0,M3S6p,0) -> 0 | O129: =IF(Ma3_Eing>0,Eing.Mannsch.aufstellung!$C$78,0) -> 0 | P129: =IF(Ma3_Eing>0,Eing.Mannsch.aufstellung!$C85,0) -> 0 | Q129: =IF(M3S6p>0,M3S6,0) -> 0 | R129: =IF(Ma1_Eing>0,Eing.Mannsch.aufstellung!$B$79,0) -> 0 | S129: 0 | T129: 0 | U129: 2
M130: 0 | N130: =IF(M2S6p>0,M2S6p,0) -> 0 | O130: =IF(Ma1_Eing>0,Eing.Mannsch.aufstellung!$C$53,0) -> 0 | P130: =IF(Ma1_Eing>0,Eing.Mannsch.aufstellung!$C60,0) -> 0 | Q130: =IF(M2S6p>0,M2S6,0) -> 0 | R130: =IF(Ma1_Eing>0,Eing.Mannsch.aufstellung!$B$54,0) -> 0 | S130: 0 | T130: 0 | U130: 2 | V130: 9
M131: 0 | N131: =IF(M1S6p>0,M1S6p,0) -> 0 | O131: =IF(Ma1_Eing>0,Eing.Mannsch.aufstellung!$C$29,0) -> 0 | P131: =IF(Ma1_Eing>0,Eing.Mannsch.aufstellung!$C36,0) -> 0 | Q131: =IF(M1S6p>0,M1S6,0) -> 0 | R131: =IF(Ma1_Eing>0,Eing.Mannsch.aufstellung!$B$30,0) -> 0 | S131: 0 | T131: 0 | U131: 2
M132: 0 | N132: =IF(M5S7p>0,M5S7p,0) -> 0 | O132: =IF(Ma1_Eing>0,Eing.Mannsch.aufstellung!$C$129,0) -> 0 | P132: =IF(Ma1_Eing>0,Eing.Mannsch.aufstellung!$C137,0) -> 0 | Q132: =IF(M5S7p>0,M5S7,0) -> 0 | R132: =IF(Ma1_Eing>0,Eing.Mannsch.aufstellung!$B$130,0) -> 0 | S132: 0 | T132: 0 | U132: 2
M133: 0 | N133: =IF(M4S7p>0,M4S7p,0) -> 0 | O133: =IF(Ma1_Eing>0,Eing.Mannsch.aufstellung!$C$103,0) -> 0 | P133: =IF(Ma1_Eing>0,Eing.Mannsch.aufstellung!$C111,0) -> 0 | Q133: =IF(M4S7p>0,M4S7,0) -> 0 | R133: =IF(Ma1_Eing>0,Eing.Mannsch.aufstellung!$B$104,0) -> 0 | S133: 0 | T133: 0 | U133: 2 | V133: 10
M134: 0 | N134: =IF(M3S7p>0,M3S7p,0) -> 0 | O134: =IF(Ma3_Eing>0,Eing.Mannsch.aufstellung!$C$78,0) -> 0 | P134: =IF(Ma3_Eing>0,Eing.Mannsch.aufstellung!$C86,0) -> 0 | Q134: =IF(M3S7p>0,M3S7,0) -> 0 | R134: =IF(Ma1_Eing>0,Eing.Mannsch.aufstellung!$B$79,0) -> 0 | S134: 0 | T134: 0 | U134: 2
M135: 0 | N135: =IF(M2S7p>0,M2S7p,0) -> 0 | O135: =IF(Ma1_Eing>0,Eing.Mannsch.aufstellung!$C$53,0) -> 0 | P135: =IF(Ma1_Eing>0,Eing.Mannsch.aufstellung!$C61,0) -> 0 | Q135: =IF(M2S7p>0,M2S7,0) -> 0 | R135: =IF(Ma1_Eing>0,Eing.Mannsch.aufstellung!$B$54,0) -> 0 | S135: 0 | T135: 0 | U135: 2
M136: 0 | N136: =IF(M1S7p>0,M1S7p,0) -> 0 | O136: =IF(Ma1_Eing>0,Eing.Mannsch.aufstellung!$C$29,0) -> 0 | P136: =IF(Ma1_Eing>0,Eing.Mannsch.aufstellung!$C37,0) -> 0 | Q136: =IF(M1S7p>0,M1S7,0) -> 0 | R136: =IF(Ma1_Eing>0,Eing.Mannsch.aufstellung!$B$30,0) -> 0 | S136: 0 | T136: 0 | U136: 2 | V136: 11
M137: 0 | N137: =IF(M5SAKp>0,M5SAKp,0) -> 0 | O137: =IF(Ma1_Eing>0,Eing.Mannsch.aufstellung!$C$129,0) -> 0 | P137: =IF(Ma1_Eing>0,Eing.Mannsch.aufstellung!$C139,0) -> 0 | Q137: =IF(M5SAKp>0,M5SAK,0) -> 0 | R137: =IF(Ma1_Eing>0,Eing.Mannsch.aufstellung!$B$130,0) -> 0 | S137: =IF(N137>0,IF(P137="AK",9,P137),0) -> 0 | T137: =IF(N137>0,O137,0) -> 0 | U137: =IF(N137>0,1,2) -> 2
M138: 0 | N138: =IF(M3SAKp>0,M3SAKp,0) -> 0 | O138: =IF(Ma3_Eing>0,Eing.Mannsch.aufstellung!$C$78,0) -> 0 | P138: =IF(Ma3_Eing>0,Eing.Mannsch.aufstellung!$C88,0) -> 0 | Q138: =IF(M3SAKp>0,M3SAK,0) -> 0 | R138: =IF(Ma1_Eing>0,Eing.Mannsch.aufstellung!$B$79,0) -> 0 | S138: 0 | T138: 0 | U138: 2
M139: 0 | N139: =IF(M1S8p>0,M1S8p,0) -> 0 | O139: =IF(Ma1_Eing>0,Eing.Mannsch.aufstellung!$C$29,0) -> 0 | P139: =IF(Ma1_Eing>0,Eing.Mannsch.aufstellung!$C38,0) -> 0 | Q139: =IF(M1S8p>0,M1S8,0) -> 0 | R139: =IF(Ma1_Eing>0,Eing.Mannsch.aufstellung!$B$30,0) -> 0 | S139: 0 | T139: 0 | U139: 2 | V139: 12
M140: 0 | N140: =IF(M1SAKp>0,M1SAKp,0) -> 0 | O140: =IF(Ma1_Eing>0,Eing.Mannsch.aufstellung!$C$29,0) -> 0 | P140: =IF(Ma1_Eing>0,Eing.Mannsch.aufstellung!$C39,0) -> 0 | Q140: =IF(M1SAKp>0,M1SAK,0) -> 0 | R140: =IF(Ma1_Eing>0,Eing.Mannsch.aufstellung!$B$30,0) -> 0 | S140: 0 | T140: 0 | U140: 2
M141: 0 | N141: =IF(M2S1p>0,M2S1p,0) -> 0 | O141: =IF(Ma1_Eing>0,Eing.Mannsch.aufstellung!$C$53,0) -> 0 | P141: =IF(Ma1_Eing>0,Eing.Mannsch.aufstellung!$C55,0) -> 0 | Q141: =IF(M2S1p>0,M2S1,0) -> 0 | R141: =IF(Ma1_Eing>0,Eing.Mannsch.aufstellung!$B$54,0) -> 0 | S141: 0 | T141: 0 | U141: 2
M142: 0 | N142: =IF(M2S8p>0,M2S8p,0) -> 0 | O142: =IF(Ma1_Eing>0,Eing.Mannsch.aufstellung!$C$53,0) -> 0 | P142: =IF(Ma1_Eing>0,Eing.Mannsch.aufstellung!$C62,0) -> 0 | Q142: =IF(M2S8p>0,M2S8,0) -> 0 | R142: =IF(Ma1_Eing>0,Eing.Mannsch.aufstellung!$B$54,0) -> 0 | S142: 0 | T142: 0 | U142: 2 | V142: 13
M143: 0 | N143: =IF(M2SAKp>0,M2SAKp,0) -> 0 | O143: =IF(Ma1_Eing>0,Eing.Mannsch.aufstellung!$C$53,0) -> 0 | P143: =IF(Ma1_Eing>0,Eing.Mannsch.aufstellung!$C63,0) -> 0 | Q143: =IF(M2SAKp>0,M2SAK,0) -> 0 | R143: =IF(Ma1_Eing>0,Eing.Mannsch.aufstellung!$B$54,0) -> 0 | S143: 0 | T143: 0 | U143: 2
M144: 0 | N144: =IF(M3S8p>0,M3S8p,0) -> 0 | O144: =IF(Ma3_Eing>0,Eing.Mannsch.aufstellung!$C$78,0) -> 0 | P144: =IF(Ma3_Eing>0,Eing.Mannsch.aufstellung!$C87,0) -> 0 | Q144: =IF(M3S8p>0,M3S8,0) -> 0 | R144: =IF(Ma1_Eing>0,Eing.Mannsch.aufstellung!$B$79,0) -> 0 | S144: 0 | T144: 0 | U144: 2
M145: 0 | N145: =IF(M4S1p>0,M4S1p,0) -> 0 | O145: =IF(Ma1_Eing>0,Eing.Mannsch.aufstellung!$C$103,0) -> 0 | P145: =IF(Ma1_Eing>0,Eing.Mannsch.aufstellung!$C105,0) -> 0 | Q145: =IF(M4S1p>0,M4S1,0) -> 0 | R145: =IF(Ma1_Eing>0,Eing.Mannsch.aufstellung!$B$104,0) -> 0 | S145: 0 | T145: 0 | U145: 2 | V145: 14
M146: 0 | N146: =IF(M4S8p>0,M4S8p,0) -> 0 | O146: =IF(Ma1_Eing>0,Eing.Mannsch.aufstellung!$C$103,0) -> 0 | P146: =IF(Ma1_Eing>0,Eing.Mannsch.aufstellung!$C112,0) -> 0 | Q146: =IF(M4S8p>0,M4S8,0) -> 0 | R146: =IF(Ma1_Eing>0,Eing.Mannsch.aufstellung!$B$104,0) -> 0 | S146: 0 | T146: 0 | U146: 2
M147: 0 | N147: =IF(M4SAKp>0,M4SAKp,0) -> 0 | O147: =IF(Ma1_Eing>0,Eing.Mannsch.aufstellung!$C$103,0) -> 0 | P147: =IF(Ma1_Eing>0,Eing.Mannsch.aufstellung!$C113,0) -> 0 | Q147: =IF(M4SAKp>0,M4SAK,0) -> 0 | R147: =IF(Ma1_Eing>0,Eing.Mannsch.aufstellung!$B$104,0) -> 0 | S147: 0 | T147: 0 | U147: 2
M148: 0 | N148: =IF(M5S1p>0,M5S1p,0) -> 0 | O148: =IF(Ma1_Eing>0,Eing.Mannsch.aufstellung!$C$129,0) -> 0 | P148: =IF(Ma1_Eing>0,Eing.Mannsch.aufstellung!$C131,0) -> 0 | Q148: =IF(M5S1p>0,M5S1,0) -> 0 | R148: =IF(Ma1_Eing>0,Eing.Mannsch.aufstellung!$B$130,0) -> 0 | S148: 0 | T148: 0 | U148: 2 | V148: 15
M149: 0 | N149: =IF(M5S8p>0,M5S8p,0) -> 0 | O149: =IF(Ma1_Eing>0,Eing.Mannsch.aufstellung!$C$129,0) -> 0 | P149: =IF(Ma1_Eing>0,Eing.Mannsch.aufstellung!$C138,0) -> 0 | Q149: =IF(M5S8p>0,M5S8,0) -> 0 | R149: =IF(Ma1_Eing>0,Eing.Mannsch.aufstellung!$B$130,0) -> 0 | S149: 0 | T149: 0 | U149: 2
M150: 0 | N150: =IF(M6S1p>0,M6S1p,0) -> 0 | O150: =IF(Ma1_Eing>0,Eing.Mannsch.aufstellung!$C$154,0) -> 0 | P150: =IF(Ma1_Eing>0,Eing.Mannsch.aufstellung!$C156,0) -> 0 | Q150: =IF(M6S1p>0,M6S1,0) -> 0 | R150: =IF(Ma1_Eing>0,Eing.Mannsch.aufstellung!$B$155,0) -> 0 | S150: 0 | T150: 0 | U150: 2
M151: 0 | N151: =IF(M6S2p>0,M6S2p,0) -> 0 | O151: =IF(Ma1_Eing>0,Eing.Mannsch.aufstellung!$C$154,0) -> 0 | P151: =IF(Ma1_Eing>0,Eing.Mannsch.aufstellung!$C157,0) -> 0 | Q151: =IF(M6S2p>0,M6S2,0) -> 0 | R151: =IF(Ma1_Eing>0,Eing.Mannsch.aufstellung!$B$155,0) -> 0 | S151: 0 | T151: 0 | U151: 2 | V151: 16
M152: 0 | N152: =IF(M6S3p>0,M6S3p,0) -> 0 | O152: =IF(Ma1_Eing>0,Eing.Mannsch.aufstellung!$C$154,0) -> 0 | P152: =IF(Ma1_Eing>0,Eing.Mannsch.aufstellung!$C158,0) -> 0 | Q152: =IF(M6S3p>0,M6S3,0) -> 0 | R152: =IF(Ma1_Eing>0,Eing.Mannsch.aufstellung!$B$155,0) -> 0 | S152: 0 | T152: 0 | U152: 2
M153: 0 | N153: =IF(M6S4p>0,M6S4p,0) -> 0 | O153: =IF(Ma1_Eing>0,Eing.Mannsch.aufstellung!$C$154,0) -> 0 | P153: =IF(Ma1_Eing>0,Eing.Mannsch.aufstellung!$C159,0) -> 0 | Q153: =IF(M6S4p>0,M6S4,0) -> 0 | R153: =IF(Ma1_Eing>0,Eing.Mannsch.aufstellung!$B$155,0) -> 0 | S153: 0 | T153: 0 | U153: 2
M154: 0 | N154: =IF(M6S5p>0,M6S5p,0) -> 0 | O154: =IF(Ma1_Eing>0,Eing.Mannsch.aufstellung!$C$154,0) -> 0 | P154: =IF(Ma1_Eing>0,Eing.Mannsch.aufstellung!$C160,0) -> 0 | Q154: =IF(M6S5p>0,M6S5,0) -> 0 | R154: =IF(Ma1_Eing>0,Eing.Mannsch.aufstellung!$B$155,0) -> 0 | S154: 0 | T154: 0 | U154: 2 | V154: 17
M155: 0 | N155: =IF(M6S6p>0,M6S6p,0) -> 0 | O155: =IF(Ma1_Eing>0,Eing.Mannsch.aufstellung!$C$154,0) -> 0 | P155: =IF(Ma1_Eing>0,Eing.Mannsch.aufstellung!$C161,0) -> 0 | Q155: =IF(M6S6p>0,M6S6,0) -> 0 | R155: =IF(Ma1_Eing>0,Eing.Mannsch.aufstellung!$B$155,0) -> 0 | S155: 0 | T155: 0 | U155: 2
M156: 0 | N156: =IF(M6S7p>0,M6S7p,0) -> 0 | O156: =IF(Ma1_Eing>0,Eing.Mannsch.aufstellung!$C$154,0) -> 0 | P156: =IF(Ma1_Eing>0,Eing.Mannsch.aufstellung!$C162,0) -> 0 | Q156: =IF(M6S7p>0,M6S7,0) -> 0 | R156: =IF(Ma1_Eing>0,Eing.Mannsch.aufstellung!$B$155,0) -> 0 | S156: 0 | T156: 0 | U156: 2
M157: 0 | N157: =IF(M6S8p>0,M6S8p,0) -> 0 | O157: =IF(Ma1_Eing>0,Eing.Mannsch.aufstellung!$C$154,0) -> 0 | P157: =IF(Ma1_Eing>0,Eing.Mannsch.aufstellung!$C163,0) -> 0 | Q157: =IF(M6S8p>0,M6S8,0) -> 0 | R157: =IF(Ma1_Eing>0,Eing.Mannsch.aufstellung!$B$155,0) -> 0 | S157: 0 | T157: 0 | U157: 2 | V157: 18
M158: 0 | N158: =IF(M6SAKp>0,M6SAKp,0) -> 0 | O158: =IF(Ma1_Eing>0,Eing.Mannsch.aufstellung!$C$154,0) -> 0 | P158: =IF(Ma1_Eing>0,Eing.Mannsch.aufstellung!$C164,0) -> 0 | Q158: =IF(M6SAKp>0,M6SAK,0) -> 0 | R158: =IF(Ma1_Eing>0,Eing.Mannsch.aufstellung!$B$155,0) -> 0 | S158: 0 | T158: 0 | U158: 2
M159: 0 | N159: =IF(M7S1p>0,M7S1p,0) -> 0 | O159: =IF(Ma1_Eing>0,Eing.Mannsch.aufstellung!$C$179,0) -> 0 | P159: =IF(Ma1_Eing>0,Eing.Mannsch.aufstellung!$C181,0) -> 0 | Q159: =IF(M7S1p>0,M7S1,0) -> 0 | R159: =IF(Ma1_Eing>0,Eing.Mannsch.aufstellung!$B$180,0) -> 0 | S159: 0 | T159: 0 | U159: 2
M160: 0 | N160: =IF(M7S2p>0,M7S2p,0) -> 0 | O160: =IF(Ma1_Eing>0,Eing.Mannsch.aufstellung!$C$179,0) -> 0 | P160: =IF(Ma1_Eing>0,Eing.Mannsch.aufstellung!$C182,0) -> 0 | Q160: =IF(M7S2p>0,M7S2,0) -> 0 | R160: =IF(Ma1_Eing>0,Eing.Mannsch.aufstellung!$B$180,0) -> 0 | S160: 0 | T160: 0 | U160: 2 | V160: 19
M161: 0 | N161: =IF(M7S3p>0,M7S3p,0) -> 0 | O161: =IF(Ma1_Eing>0,Eing.Mannsch.aufstellung!$C$179,0) -> 0 | P161: =IF(Ma1_Eing>0,Eing.Mannsch.aufstellung!$C183,0) -> 0 | Q161: =IF(M7S3p>0,M7S3,0) -> 0 | R161: =IF(Ma1_Eing>0,Eing.Mannsch.aufstellung!$B$180,0) -> 0 | S161: 0 | T161: 0 | U161: 2
M162: 0 | N162: =IF(M7S4p>0,M7S4p,0) -> 0 | O162: =IF(Ma1_Eing>0,Eing.Mannsch.aufstellung!$C$179,0) -> 0 | P162: =IF(Ma1_Eing>0,Eing.Mannsch.aufstellung!$C184,0) -> 0 | Q162: =IF(M7S4p>0,M7S4,0) -> 0 | R162: =IF(Ma1_Eing>0,Eing.Mannsch.aufstellung!$B$180,0) -> 0 | S162: 0 | T162: 0 | U162: 2
M163: 0 | N163: =IF(M7S5p>0,M7S5p,0) -> 0 | O163: =IF(Ma1_Eing>0,Eing.Mannsch.aufstellung!$C$179,0) -> 0 | P163: =IF(Ma1_Eing>0,Eing.Mannsch.aufstellung!$C185,0) -> 0 | Q163: =IF(M7S5p>0,M7S5,0) -> 0 | R163: =IF(Ma1_Eing>0,Eing.Mannsch.aufstellung!$B$180,0) -> 0 | S163: 0 | T163: 0 | U163: 2 | V163: 20
M164: 0 | N164: =IF(M7S6p>0,M7S6p,0) -> 0 | O164: =IF(Ma1_Eing>0,Eing.Mannsch.aufstellung!$C$179,0) -> 0 | P164: =IF(Ma1_Eing>0,Eing.Mannsch.aufstellung!$C186,0) -> 0 | Q164: =IF(M7S6p>0,M7S6,0) -> 0 | R164: =IF(Ma1_Eing>0,Eing.Mannsch.aufstellung!$B$180,0) -> 0 | S164: 0 | T164: 0 | U164: 2
M165: 0 | N165: =IF(M7S7p>0,M7S7p,0) -> 0 | O165: =IF(Ma1_Eing>0,Eing.Mannsch.aufstellung!$C$179,0) -> 0 | P165: =IF(Ma1_Eing>0,Eing.Mannsch.aufstellung!$C187,0) -> 0 | Q165: =IF(M7S7p>0,M7S7,0) -> 0 | R165: =IF(Ma1_Eing>0,Eing.Mannsch.aufstellung!$B$180,0) -> 0 | S165: 0 | T165: 0 | U165: 2
M166: 0 | N166: =IF(M7S8p>0,M7S8p,0) -> 0 | O166: =IF(Ma1_Eing>0,Eing.Mannsch.aufstellung!$C$179,0) -> 0 | P166: =IF(Ma1_Eing>0,Eing.Mannsch.aufstellung!$C188,0) -> 0 | Q166: =IF(M7S8p>0,M7S8,0) -> 0 | R166: =IF(Ma1_Eing>0,Eing.Mannsch.aufstellung!$B$180,0) -> 0 | S166: 0 | T166: 0 | U166: 2
M167: 0 | N167: =IF(M7SAKp>0,M7SAKp,0) -> 0 | O167: =IF(Ma1_Eing>0,Eing.Mannsch.aufstellung!$C$179,0) -> 0 | P167: =IF(Ma1_Eing>0,Eing.Mannsch.aufstellung!$C189,0) -> 0 | Q167: =IF(M7SAKp>0,M7SAK,0) -> 0 | R167: =IF(Ma1_Eing>0,Eing.Mannsch.aufstellung!$B$180,0) -> 0 | S167: 0 | T167: 0 | U167: 2
M168: 0 | O168: 7.5 | P168: 1
M169: 0 | N169: =IF(ESES3p>0,ESES3p,0) -> 0 | O169: 8 | P169: =IF(ESES3p>0,ESES3,0) -> 0 | Q169: =IF(ESES3p>0,ESES3n,0) -> 0 | R169: =IF(ESES3p>0,ESES3Ver,0) -> 0 | S169: =IF(N169>0,9.5,0) -> 0 | T169: =IF(N169>0,O169,0) -> 0 | U169: =IF(N169>0,1,2) -> 2
M170: 0 | N170: =IF(ESES4p>0,ESES4p,0) -> 0 | O170: 8 | P170: =IF(ESES4p>0,ESES4,0) -> 0 | Q170: =IF(ESES4p>0,ESES4n,0) -> 0 | R170: =IF(ESES4p>0,ESES4Ver,0) -> 0 | S170: 0 | T170: 0 | U170: 2
M171: 0 | N171: =IF(ESES5p>0,ESES5p,0) -> 0 | O171: 8 | P171: =IF(ESES5p>0,ESES5,0) -> 0 | Q171: =IF(ESES5p>0,ESES5n,0) -> 0 | R171: =IF(ESES5p>0,ESES5Ver,0) -> 0 | S171: 0 | T171: 0 | U171: 2
M172: 0 | N172: =IF(ESES6p>0,ESES6p,0) -> 0 | O172: 8 | P172: =IF(ESES6p>0,ESES6,0) -> 0 | Q172: =IF(ESES6p>0,ESES6n,0) -> 0 | R172: =IF(ESES6p>0,ESES6VER,0) -> 0 | S172: 0 | T172: 0 | U172: 2
M173: 0 | N173: =IF(ESES7p>0,ESES7p,0) -> 0 | O173: 8 | P173: =IF(ESES7p>0,ESES7,0) -> 0 | Q173: =IF(ESES7p>0,ESES7n,0) -> 0 | R173: =IF(ESES7p>0,ESES7VER,0) -> 0 | S173: 0 | T173: 0 | U173: 2
M174: 0 | N174: =IF(ESES8p>0,ESES8p,0) -> 0 | O174: 8 | P174: =IF(ESES8p>0,ESES8,0) -> 0 | Q174: =IF(ESES8p>0,ESES8n,0) -> 0 | R174: =IF(ESES8p>0,ESES8Ver,0) -> 0 | S174: 0 | T174: 0 | U174: 2
M175: 0 | N175: =IF(ESES9p>0,ESES9p,0) -> 0 | O175: 8 | P175: =IF(ESES9p>0,ESES9,0) -> 0 | Q175: =IF(ESES9p>0,ESES9n,0) -> 0 | R175: =IF(ESES9p>0,ESES9Ver,0) -> 0 | S175: 0 | T175: 0 | U175: 2
M176: 0 | N176: =IF(ESES10p>0,ESES10p,0) -> 0 | O176: 8 | P176: =IF(ESES10p>0,ESES10,0) -> 0 | Q176: =IF(ESES10p>0,ESES10n,0) -> 0 | R176: =IF(ESES10p>0,ESES10Ver,0) -> 0 | S176: 0 | T176: 0 | U176: 2
M177: 0 | N177: =IF(ESES11p>0,ESES11p,0) -> 0 | O177: 8 | P177: =IF(ESES11p>0,ESES11,0) -> 0 | Q177: =IF(ESES11p>0,ESES11n,0) -> 0 | R177: =IF(ESES11p>0,ESES11Ver,0) -> 0 | S177: 0 | T177: 0 | U177: 2
M178: 0 | N178: =IF(ESES12p>0,ESES12p,0) -> 0 | O178: 8 | P178: =IF(ESES12p>0,ESES12,0) -> 0 | Q178: =IF(ESES12p>0,ESES12n,0) -> 0 | R178: =IF(ESES12p>0,ESES12Ver,0) -> 0 | S178: 0 | T178: 0 | U178: 2
M179: 0 | N179: =IF(ESES1p>0,ESES1p,0) -> 0 | O179: 8 | P179: =IF(ESES1p>0,ESES1,0) -> 0 | Q179: =IF(ESES1p>0,ESES1n,0) -> 0 | R179: =IF(ESES1p>0,ESES1Ver,0) -> 0 | S179: 9.5 | T179: 0 | U179: 2
M180: 0 | N180: =IF(ESES2p>0,ESES2p,0) -> 0 | O180: 8 | P180: =IF(ESES2p>0,ESES2,0) -> 0 | Q180: =IF(ESES2p>0,ESES2n,0) -> 0 | R180: =IF(ESES2p>0,ESES2Ver,0) -> 0 | S180: 9.5 | T180: 0 | U180: 2
M181: 0 | N181: =IF($J$8="X",1,0) -> 0 | O181: 9 | P181: 1 | R181: frei Gruppe 1 | S181: =IF($J$8="X",S$107,0) -> 0 | T181: =IF($J$8="X",T$107+0.1,0) -> 0 | U181: 2
M182: 0 | N182: =IF($J$11="X",1,0) -> 0 | O182: 9 | P182: 2 | R182: frei Gruppe 2 | S182: =IF($J$11="X",S$110,0) -> 0 | T182: =IF($J$11="X",T$110+0.1,0) -> 0 | U182: 2
M183: 0 | N183: =IF($J$14="X",1,0) -> 0 | O183: 9 | P183: 3 | R183: frei Gruppe 3 | S183: =IF($J$14="X",S$113,0) -> 0 | T183: =IF($J$14="X",T$113+0.1,0) -> 0 | U183: 2
M184: 0 | N184: =IF($J$17="X",1,0) -> 0 | O184: 9 | P184: 4 | R184: frei Gruppe 4 | S184: =IF($J$17="X",S$116,0) -> 0 | T184: =IF($J$17="X",T$116+0.1,0) -> 0 | U184: 2
M185: 0 | N185: =IF($J$20="X",1,0) -> 0 | O185: 9 | P185: 5 | R185: frei Gruppe 5 | S185: =IF($J$20="X",S$119,0) -> 0 | T185: =IF($J$20="X",T$119+0.1,0) -> 0 | U185: 2
M186: 0 | N186: =IF($J$23="X",1,0) -> 0 | O186: 9 | P186: 6 | R186: frei Gruppe 6 | S186: =IF($J$23="X",S$122,0) -> 0 | T186: =IF($J$23="X",T$122+0.1,0) -> 0 | U186: 2
M187: 0 | N187: =IF($J$26="X",1,0) -> 0 | O187: 9 | P187: 7 | R187: frei Gruppe 7 | S187: =IF($J$26="X",S$125,0) -> 0 | T187: =IF($J$26="X",T$125+0.1,0) -> 0 | U187: 2
M188: 0 | N188: =IF($J$29="X",1,0) -> 0 | O188: 9 | P188: 8 | R188: frei Gruppe 8 | S188: =IF($J$29="X",S$128,0) -> 0 | T188: =IF($J$29="X",T$128+0.1,0) -> 0 | U188: 2
M189: 0 | N189: =IF($J$32="X",1,0) -> 0 | O189: 9 | P189: 9 | R189: frei Gruppe 9 | S189: =IF($J$32="X",S$131,0) -> 0 | T189: =IF($J$32="X",T$131+0.1,0) -> 0 | U189: 2
M190: 0 | N190: =IF($J$35="X",1,0) -> 0 | O190: 9 | P190: 10 | R190: frei Gruppe 10 | S190: =IF($J$35="X",S$134,0) -> 0 | T190: =IF($J$35="X",T$134+0.1,0) -> 0 | U190: 2
M191: 0 | N191: =IF($J$38="X",1,0) -> 0 | O191: 9 | P191: 11 | R191: frei Gruppe 11 | S191: =IF($J$38="X",S$137,0) -> 0 | T191: =IF($J$38="X",T$137+0.1,0) -> 0 | U191: 2
M192: 0 | N192: =IF($J$41="X",1,0) -> 0 | O192: 9 | P192: 12 | R192: frei Gruppe 12 | S192: =IF($J$41="X",S$140,0) -> 0 | T192: =IF($J$41="X",T$140+0.1,0) -> 0 | U192: 2
M193: 0 | N193: =IF($J$44="X",1,0) -> 0 | O193: 9 | P193: 13 | R193: frei Gruppe 13 | S193: =IF($J$44="X",S$143,0) -> 0 | T193: =IF($J$44="X",T$143+0.1,0) -> 0 | U193: 2
M194: =IF(N194>0,M193+1,M193) -> 0 | N194: =IF($J$47="X",1,0) -> 0 | O194: 9 | P194: 14 | R194: frei Gruppe 14 | S194: =IF($J$47="X",S$146,0) -> 0 | T194: =IF($J$47="X",T$146+0.1,0) -> 0 | U194: 2
M195: 0 | N195: =IF($J$50="X",1,0) -> 0 | O195: 9 | P195: 15 | R195: frei Gruppe 15 | S195: =IF($J$50="X",S$149,0) -> 0 | T195: =IF($J$50="X",T$149+0.1,0) -> 0 | U195: 2
M196: 0 | N196: =IF($J$53="X",1,0) -> 0 | O196: 9 | P196: 16 | R196: frei Gruppe 16 | S196: =IF($J$53="X",S$152,0) -> 0 | T196: =IF($J$53="X",T$152+0.1,0) -> 0 | U196: 2
M197: 0 | N197: =IF($J$56="X",1,0) -> 0 | O197: 9 | P197: 17 | R197: frei Gruppe 17 | S197: =IF($J$56="X",S$155,0) -> 0 | T197: =IF($J$56="X",T$155+0.1,0) -> 0 | U197: 2
M198: 0 | N198: =IF($J$59="X",1,0) -> 0 | O198: 9 | P198: 18 | R198: frei Gruppe 18 | S198: =IF($J$59="X",S$158,0) -> 0 | T198: =IF($J$59="X",T$158+0.1,0) -> 0 | U198: 2
M199: 0 | N199: =IF($J$62="X",1,0) -> 0 | O199: 9 | P199: 19 | R199: frei Gruppe 19 | S199: =IF($J$62="X",S$161,0) -> 0 | T199: =IF($J$62="X",T$161+0.1,0) -> 0 | U199: 2
M200: 0 | N200: =IF($J$65="X",1,0) -> 0 | O200: 9 | P200: 20 | R200: frei Gruppe 20 | S200: =IF($J$65="X",S$164,0) -> 0 | T200: =IF($J$65="X",T$164+0.1,0) -> 0 | U200: 2
M201: 0 | N201: 0 | O201: 10 | Q201: 0 | R201: Füller | S201: =IF($W$203=$V$203,VLOOKUP($M$204,$M$105:$U$200,7),0) -> 0 | T201: =IF($W$203=$V$203,VLOOKUP($M$204,$M$105:$U$200,8,FALSE)-0.5,0) -> 0 | U201: =IF(J$7>0,3,IF($W$203=$V$203,1,2)) -> 2 | W201: =INT(W202) -> 0
V202: =COUNTIF(N105:N200,">0") -> 0 | W202: =V202/3 -> 0
S203: =AnzMa -> 0 | V203: 0.333 | W203: =ROUND(W202-W201,3) -> 0
M204: =MAX(M105:M201)-2 -> -2 | Q204: Sortierreihenfolge | S204: 2. | T204: 3. | U204: 1.
N210: 0 | O210: 10 | Q210: 0 | R210: Füller | S210: =IF($W$203=$V$203,VLOOKUP($M$204,$M$105:$U$200,7),0) -> 0 | T210: =IF($W$203=$V$203,VLOOKUP($M$204,$M$105:$U$200,8,FALSE)-0.5,0) -> 0 | U210: =IF(J$7>0,3,IF($W$203=$V$203,1,2)) -> 2
U220: =IF($W$203=$V$203,1,2) -> 2
I222: Zeile 167

Sheet Aushang
E2: =+Seite1!$B$3 ->  | G2: =+Seite1!$C$5 ->  | H2: =+Seite1!$D$5 -> . Spieltag
B4: M a n n s c h a f t : | D4: =+Eing.Mannsch.aufstellung!B$30 -> 0
A5: Start | B5: Name / Vorname | E5: Übertrag | G5: Übertrag | I5: Übertrag | M5: Einzel- ergebnisse
A6: Nr. | C6: 1. Runde | E6: 2. Runde | G6: 3. Runde | I6: 4. Runde
A7: 1 | B7: =M1S1 -> 
A8: 2 | B8: =M1S2 -> 
A9: 3 | B9: =M1S3 -> 
A10: 4 | B10: =M1S4 -> 
A11: 5 | B11: =M1S5 -> 
A12: 6 | B12: =M1S6 -> 
A13: 7 | B13: =M1S7 -> 
A14: 8 | B14: =M1S8 -> 
B15: Rundenergebnisse:
B16: Gesamtergebnis:
B18: Mannschaftsführer | H18: Platz | I18: Schlagzahl | J18: Punkte
B19: =M1Ausw ->  | G19: Tabelle ALT : | H19: =Seite1!B21 ->  | I19: =Seite1!F21 ->  | J19: =Seite1!H21 -> 
G20: Tagesergebnis :
G21: Tabelle NEU :
B22: Zusätzliche/r Einzelspieler/in
A23: AK | B23: =M1SAK -> 
E25: =+Seite1!$B$3 ->  | G25: =+Seite1!$C$5 ->  | H25: =+Seite1!$D$5 -> . Spieltag
B27: M a n n s c h a f t : | D27: =+Eing.Mannsch.aufstellung!B$54 -> 0
A28: Start | B28: Name / Vorname | E28: Übertrag | G28: Übertrag | I28: Übertrag | M28: Einzel- ergebnisse
A29: Nr. | C29: 1. Runde | E29: 2. Runde | G29: 3. Runde | I29: 4. Runde
A30: 1 | B30: =M2S1 -> 
A31: 2 | B31: =M2S2 -> 
A32: 3 | B32: =M2S3 -> 
A33: 4 | B33: =M2S4 -> 
A34: 5 | B34: =M2S5 -> 
A35: 6 | B35: =M2S6 -> 
A36: 7 | B36: =M2S7 -> 
A37: 8 | B37: =M2S8 -> 
B38: Rundenergebnisse:
B39: Gesamtergebnis:
B41: Mannschaftsführer | H41: Platz | I41: Schlagzahl | J41: Punkte
B42: =M2Ausw ->  | G42: Tabelle ALT : | H42: =Seite1!B22 ->  | I42: =Seite1!F22 ->  | J42: =Seite1!H22 -> 
G43: Tagesergebnis :
G44: Tabelle NEU :
B45: Zusätzliche/r Einzelspieler/in
A46: AK | B46: =M2SAK -> 
E48: =+Seite1!$B$3 ->  | G48: =+Seite1!$C$5 ->  | H48: =+Seite1!$D$5 -> . Spieltag
B50: M a n n s c h a f t : | D50: =+Eing.Mannsch.aufstellung!B$79 -> 0
A51: Start | B51: Name / Vorname | E51: Übertrag | G51: Übertrag | I51: Übertrag | M51: Einzel- ergebnisse
A52: Nr. | C52: 1. Runde | E52: 2. Runde | G52: 3. Runde | I52: 4. Runde
A53: 1 | B53: =M3S1 -> 
A54: 2 | B54: =M3S2 -> 
A55: 3 | B55: =M3S3 -> 
A56: 4 | B56: =M3S4 -> 
A57: 5 | B57: =M3S5 -> 
A58: 6 | B58: =M3S6 -> 
A59: 7 | B59: =M3S7 -> 
A60: 8 | B60: =M3S8 -> 
B61: Rundenergebnisse:
B62: Gesamtergebnis:
B64: Mannschaftsführer | H64: Platz | I64: Schlagzahl | J64: Punkte
B65: =M3Ausw ->  | G65: Tabelle ALT : | H65: =Seite1!B23 ->  | I65: =Seite1!F23 ->  | J65: =Seite1!H23 -> 
G66: Tagesergebnis :
G67: Tabelle NEU :
B68: Zusätzliche/r Einzelspieler/in
A69: AK | B69: =M3SAK -> 
E71: =+Seite1!$B$3 ->  | G71: =+Seite1!$C$5 ->  | H71: =+Seite1!$D$5 -> . Spieltag
B73: M a n n s c h a f t : | D73: =+Eing.Mannsch.aufstellung!B$104 -> 0
A74: Start | B74: Name / Vorname | E74: Übertrag | G74: Übertrag | I74: Übertrag | M74: Einzel- ergebnisse
A75: Nr. | C75: 1. Runde | E75: 2. Runde | G75: 3. Runde | I75: 4. Runde
A76: 1 | B76: =M4S1 -> 
A77: 2 | B77: =M4S2 -> 
A78: 3 | B78: =M4S3 -> 
A79: 4 | B79: =M4S4 -> 
A80: 5 | B80: =M4S5 -> 
A81: 6 | B81: =M4S6 -> 
A82: 7 | B82: =M4S7 -> 
A83: 8 | B83: =M4S8 -> 
B84: Rundenergebnisse:
B85: Gesamtergebnis:
B87: Mannschaftsführer | H87: Platz | I87: Schlagzahl | J87: Punkte
B88: =M4Ausw ->  | G88: Tabelle ALT : | H88: =Seite1!B24 ->  | I88: =Seite1!F24 ->  | J88: =Seite1!H24 -> 
G89: Tagesergebnis :
G90: Tabelle NEU :
B91: Zusätzliche/r Einzelspieler/in
A92: AK | B92: =M4SAK -> 
E94: =+Seite1!$B$3 ->  | G94: =+Seite1!$C$5 ->  | H94: =+Seite1!$D$5 -> . Spieltag
B96: M a n n s c h a f t : | D96: =+Eing.Mannsch.aufstellung!B$130 -> 0
A97: Start | B97: Name / Vorname | E97: Übertrag | G97: Übertrag | I97: Übertrag | M97: Einzel- ergebnisse
A98: Nr. | C98: 1. Runde | E98: 2. Runde | G98: 3. Runde | I98: 4. Runde
A99: 1 | B99: =M5S1 -> 
A100: 2 | B100: =M5S2 -> 
A101: 3 | B101: =M5S3 -> 
A102: 4 | B102: =M5S4 -> 
A103: 5 | B103: =M5S5 -> 
A104: 6 | B104: =M5S6 -> 
A105: 7 | B105: =M5S7 -> 
A106: 8 | B106: =M5S8 -> 
B107: Rundenergebnisse:
B108: Gesamtergebnis:
B110: Mannschaftsführer | H110: Platz | I110: Schlagzahl | J110: Punkte
B111: =+M5Ausw ->  | G111: Tabelle ALT : | H111: =Seite1!B25 ->  | I111: =Seite1!F25 ->  | J111: =Seite1!H25 -> 
G112: Tagesergebnis :
G113: Tabelle NEU :
B114: Zusätzliche/r Einzelspieler/in
A115: AK | B115: =M5SAK -> 
E117: =+Seite1!$B$3 ->  | G117: =+Seite1!$C$5 ->  | H117: =+Seite1!$D$5 -> . Spieltag
B119: M a n n s c h a f t : | D119: =+Eing.Mannsch.aufstellung!B155 -> 0
A120: Start | B120: Name / Vorname | E120: Übertrag | G120: Übertrag | I120: Übertrag | M120: Einzel- ergebnisse
A121: Nr. | C121: 1. Runde | E121: 2. Runde | G121: 3. Runde | I121: 4. Runde
A122: 1 | B122: =M6S1 -> 
A123: 2 | B123: =M6S2 -> 
A124: 3 | B124: =M6S3 -> 
A125: 4 | B125: =M6S4 -> 
A126: 5 | B126: =M6S5 -> 
A127: 6 | B127: =M6S6 -> 
A128: 7 | B128: =M6S7 -> 
A129: 8 | B129: =M6S8 -> 
B130: Rundenergebnisse:
B131: Gesamtergebnis:
B133: Mannschaftsführer | H133: Platz | I133: Schlagzahl | J133: Punkte
B134: =M6Ausw ->  | G134: Tabelle ALT : | H134: =Seite1!B26 ->  | I134: =Seite1!F26 ->  | J134: =Seite1!H26 -> 
G135: Tagesergebnis :
G136: Tabelle NEU :
B137: Zusätzliche/r Einzelspieler/in
A138: AK | B138: =M6SAK -> 
E140: =+Seite1!$B$3 ->  | G140: =+Seite1!$C$5 ->  | H140: =+Seite1!$D$5 -> . Spieltag
B142: M a n n s c h a f t : | D142: =+Eing.Mannsch.aufstellung!B180 -> 0
A143: Start | B143: Name / Vorname | E143: Übertrag | G143: Übertrag | I143: Übertrag | M143: Einzel- ergebnisse
A144: Nr. | C144: 1. Runde | E144: 2. Runde | G144: 3. Runde | I144: 4. Runde
A145: 1 | B145: =M7S1 -> 
A146: 2 | B146: =M7S2 -> 
A147: 3 | B147: =M7S3 -> 
A148: 4 | B148: =M7S4 -> 
A149: 5 | B149: =M7S5 -> 
A150: 6 | B150: =M7S6 -> 
A151: 7 | B151: =M7S7 -> 
A152: 8 | B152: =M7S8 -> 
B153: Rundenergebnisse:
B154: Gesamtergebnis:
B156: Mannschaftsführer | H156: Platz | I156: Schlagzahl | J156: Punkte
B157: =M7Ausw ->  | G157: Tabelle ALT : | H157: =Seite1!B27 ->  | I157: =Seite1!F27 ->  | J157: =Seite1!H27 -> 
G158: Tagesergebnis :
G159: Tabelle NEU :
B160: Zusätzliche/r Einzelspieler/in
A161: AK | B161: =M7SAK -> 

Sheet Seite1
B3: =IF(+Eing.Allg..Daten!D2>0,+Eing.Allg..Daten!D2,"") ->  | AA3: Tabelle Alt | AG3: Tagestabelle | AM3: Tabelle Neu (unsortiert)
B5: Ergebnisliste vom | C5: =IF(+Eing.Allg..Daten!D4>0,+Eing.Allg..Daten!D4,"") ->  | D5: . Spieltag | E5: Saison | F5: =IF(+Eing.Allg..Daten!D3>0,+Eing.Allg..Daten!D3,"") ->  | G5: am | H5: =IF(+Eing.Allg..Daten!D7>0,+Eing.Allg..Daten!D7,"") ->  | AA5: =IF(+Eing.Mannsch.aufstellung!BC4<>"",+Eing.Mannsch.aufstellung!BC4,"") ->  | AB5: =IF(+Eing.Mannsch.aufstellung!BC4<>"",+Eing.Mannsch.aufstellung!BD4,"") ->  | AC5: =IF(+Eing.Mannsch.aufstellung!BC4<>"",+Eing.Mannsch.aufstellung!BG4,"") ->  | AG5: =VLOOKUP($AA5,$D$31:$G$37,1,0) ->  | AH5: =VLOOKUP($AA5,$D$31:$G$37,3,0) ->  | AI5: =VLOOKUP($AA5,$D$31:$H$37,5,0) ->  | AM5: =IF(+Eing.Mannsch.aufstellung!BC4<>"",+AA5,"") ->  | AO5: =IF(+Eing.Mannsch.aufstellung!BC4<>"",+AH5+AB5,"") ->  | AP5: =IF(+Eing.Mannsch.aufstellung!BC4<>"",AO5/AT5,"") ->  | AQ5: =IF(+Eing.Mannsch.aufstellung!BC4<>"",+Eing.Mannsch.aufstellung!BG4+AI5,"") ->  | AR5: =+AD5 -> 0 | AS5: =IF(+Eing.Mannsch.aufstellung!BC4<>"",+Eing.Mannsch.aufstellung!BI4+AK5,"") ->  | AT5: =IF(+Eing.Mannsch.aufstellung!BC4<>"",+L31+L21,"") -> 
AA6: =IF(+Eing.Mannsch.aufstellung!BC5<>"",+Eing.Mannsch.aufstellung!BC5,"") ->  | AB6: =IF(+Eing.Mannsch.aufstellung!BC5<>"",+Eing.Mannsch.aufstellung!BD5,"") ->  | AC6: =IF(+Eing.Mannsch.aufstellung!BC5<>"",+Eing.Mannsch.aufstellung!BG5,"") ->  | AM6: =IF(+Eing.Mannsch.aufstellung!BC5<>"",+AA6,"") ->  | AO6: =IF(+Eing.Mannsch.aufstellung!BC5<>"",+AH6+AB6,"") ->  | AP6: =IF(+Eing.Mannsch.aufstellung!BC5<>"",AO6/AT6,"") ->  | AQ6: =IF(+Eing.Mannsch.aufstellung!BC5<>"",+Eing.Mannsch.aufstellung!BG5+AI6,"") ->  | AR6: 0 | AS6: =IF(+Eing.Mannsch.aufstellung!BC5<>"",+Eing.Mannsch.aufstellung!BI5+AK6,"") ->  | AT6: =IF(+Eing.Mannsch.aufstellung!BC5<>"",+L32+L22,"") -> 
B7: in : | D7: =IF(+Eing.Allg..Daten!D6>0,+Eing.Allg..Daten!D6,"") ->  | F7: System : | G7: =IF(+Eing.Allg..Daten!D8>0,+Eing.Allg..Daten!D8,"") ->  | AA7: =IF(+Eing.Mannsch.aufstellung!BC6<>"",+Eing.Mannsch.aufstellung!BC6,"") ->  | AB7: =IF(+Eing.Mannsch.aufstellung!BC6<>"",+Eing.Mannsch.aufstellung!BD6,"") ->  | AC7: =IF(+Eing.Mannsch.aufstellung!BC6<>"",+Eing.Mannsch.aufstellung!BG6,"") ->  | AM7: =IF(+Eing.Mannsch.aufstellung!BC6<>"",+AA7,"") ->  | AO7: =IF(+Eing.Mannsch.aufstellung!BC6<>"",+AH7+AB7,"") ->  | AP7: =IF(+Eing.Mannsch.aufstellung!BC6<>"",AO7/AT7,"") ->  | AQ7: =IF(+Eing.Mannsch.aufstellung!BC6<>"",+Eing.Mannsch.aufstellung!BG6+AI7,"") ->  | AR7: 0 | AS7: =IF(+Eing.Mannsch.aufstellung!BC6<>"",+Eing.Mannsch.aufstellung!BI6+AK7,"") ->  | AT7: =IF(+Eing.Mannsch.aufstellung!BC6<>"",+L33+L23,"") -> 
AA8: =IF(+Eing.Mannsch.aufstellung!BC7<>"",+Eing.Mannsch.aufstellung!BC7,"") ->  | AB8: =IF(+Eing.Mannsch.aufstellung!BC7<>"",+Eing.Mannsch.aufstellung!BD7,"") ->  | AC8: =IF(+Eing.Mannsch.aufstellung!BC7<>"",+Eing.Mannsch.aufstellung!BG7,"") ->  | AM8: =IF(+Eing.Mannsch.aufstellung!BC7<>"",+AA8,"") ->  | AO8: =IF(+Eing.Mannsch.aufstellung!BC7<>"",+AH8+AB8,"") ->  | AP8: =IF(+Eing.Mannsch.aufstellung!BC7<>"",AO8/AT8,"") ->  | AQ8: =IF(+Eing.Mannsch.aufstellung!BC7<>"",+Eing.Mannsch.aufstellung!BG7+AI8,"") ->  | AR8: 0 | AS8: =IF(+Eing.Mannsch.aufstellung!BC7<>"",+Eing.Mannsch.aufstellung!BI7+AK8,"") ->  | AT8: =IF(+Eing.Mannsch.aufstellung!BC7<>"",+L34+L24,"") -> 
B9: Oberschiedsrichter : | D9: =IF(+Eing.Allg..Daten!D20>0,+Eing.Allg..Daten!D20,"") ->  | F9: =IF(+Eing.Allg..Daten!D21>0,+Eing.Allg..Daten!D21,"") ->  | AA9: =IF(+Eing.Mannsch.aufstellung!BC8<>"",+Eing.Mannsch.aufstellung!BC8,"") ->  | AB9: =IF(+Eing.Mannsch.aufstellung!BC8<>"",+Eing.Mannsch.aufstellung!BD8,"") ->  | AC9: =IF(+Eing.Mannsch.aufstellung!BC8<>"",+Eing.Mannsch.aufstellung!BG8,"") ->  | AM9: =IF(+Eing.Mannsch.aufstellung!BC8<>"",+AA9,"") ->  | AO9: =IF(+Eing.Mannsch.aufstellung!BC8<>"",+AH9+AB9,"") ->  | AP9: =IF(+Eing.Mannsch.aufstellung!BC8<>"",AO9/AT9,"") ->  | AQ9: =IF(+Eing.Mannsch.aufstellung!BC8<>"",+Eing.Mannsch.aufstellung!BG8+AI9,"") ->  | AR9: 0 | AS9: =IF(+Eing.Mannsch.aufstellung!BC8<>"",+Eing.Mannsch.aufstellung!BI8+AK9,"") ->  | AT9: =IF(+Eing.Mannsch.aufstellung!BC8<>"",+L35+L25,"") -> 
B10: Schiedsrichter : | D10: =IF(+Eing.Allg..Daten!D22>0,+Eing.Allg..Daten!D22,"") ->  | F10: =IF(+Eing.Allg..Daten!D23>0,+Eing.Allg..Daten!D23,"") ->  | AA10: =IF(+Eing.Mannsch.aufstellung!BC9<>"",+Eing.Mannsch.aufstellung!BC9,"") ->  | AB10: =IF(+Eing.Mannsch.aufstellung!BC9<>"",+Eing.Mannsch.aufstellung!BD9,"") ->  | AC10: =IF(+Eing.Mannsch.aufstellung!BC9<>"",+Eing.Mannsch.aufstellung!BG9,"") ->  | AM10: =IF(+Eing.Mannsch.aufstellung!BC9<>"",+AA10,"") ->  | AO10: =IF(+Eing.Mannsch.aufstellung!BC9<>"",+AH10+AB10,"") ->  | AP10: =IF(+Eing.Mannsch.aufstellung!BC9<>"",AO10/AT10,"") ->  | AQ10: =IF(+Eing.Mannsch.aufstellung!BC9<>"",+Eing.Mannsch.aufstellung!BG9+AI10,"") ->  | AR10: 0 | AS10: =IF(+Eing.Mannsch.aufstellung!BC9<>"",+Eing.Mannsch.aufstellung!BI9+AK10,"") ->  | AT10: =IF(+Eing.Mannsch.aufstellung!BC9<>"",+L36+L26,"") -> 
B11: Schiedsrichter : | D11: =IF(+Eing.Allg..Daten!D24>0,+Eing.Allg..Daten!D24,"") ->  | F11: =IF(+Eing.Allg..Daten!D25>0,+Eing.Allg..Daten!D25,"") ->  | AA11: =IF(+Eing.Mannsch.aufstellung!BC10<>"",+Eing.Mannsch.aufstellung!BC10,"") ->  | AB11: =IF(+Eing.Mannsch.aufstellung!BC10<>"",+Eing.Mannsch.aufstellung!BD10,"") ->  | AC11: =IF(+Eing.Mannsch.aufstellung!BC10<>"",+Eing.Mannsch.aufstellung!BG10,"") ->  | AM11: =IF(+Eing.Mannsch.aufstellung!BC10<>"",+AA11,"") ->  | AO11: =IF(+Eing.Mannsch.aufstellung!BC10<>"",+AH11+AB11,"") ->  | AP11: =IF(+Eing.Mannsch.aufstellung!BC10<>"",AO11/AT11,"") ->  | AQ11: =IF(+Eing.Mannsch.aufstellung!BC10<>"",+Eing.Mannsch.aufstellung!BG10+AI11,"") ->  | AT11: =IF(+Eing.Mannsch.aufstellung!BC10<>"",+L37+L27,"") -> 
B13: Turnierleiter : | D13: =IF(+Eing.Allg..Daten!D17>0,+Eing.Allg..Daten!D17,"") ->  | F13: =IF(+Eing.Allg..Daten!D18>0,+Eing.Allg..Daten!D18,"") -> 
B15: Turnierbeginn : | D15: =IF(+Eing.Allg..Daten!D27>0,+Eing.Allg..Daten!D27,"") ->  | E15: Uhr | F15: Turnierende : | G15: =IF(+Eing.Allg..Daten!D28>0,+Eing.Allg..Daten!D28,"") ->  | H15: Uhr
D19: Tabelle vor dem | F19: =+Eing.Allg..Daten!D4 -> 0 | G19: . Spieltag
B20: Rang | D20: Mannschaft | F20: Schläge | G20: Schnitt | H20: Punkte
B21: =IF(+Eing.Mannsch.aufstellung!BD4>0,RANK(H21,H$21:H$27,0),"") ->  | D21: =IF(+Eing.Mannsch.aufstellung!BC4>0,+Eing.Mannsch.aufstellung!BC4,"") ->  | F21: =IF(+Eing.Mannsch.aufstellung!BD4>0,+Eing.Mannsch.aufstellung!BD4,"") ->  | G21: =IF(+Eing.Mannsch.aufstellung!BD4>0,F21/L21,"") ->  | H21: =IF(+Eing.Mannsch.aufstellung!BD4>0,+Eing.Mannsch.aufstellung!BG4,"") ->  | L21: =IF(+Eing.Mannsch.aufstellung!BD4<>"",+AnzRundenALT,0) -> 0
B22: =IF(+Eing.Mannsch.aufstellung!BD5>0,RANK(H22,H$21:H$27,0),"") ->  | D22: =IF(+Eing.Mannsch.aufstellung!BC5>0,+Eing.Mannsch.aufstellung!BC5,"") ->  | F22: =IF(+Eing.Mannsch.aufstellung!BD5>0,+Eing.Mannsch.aufstellung!BD5,"") ->  | G22: =IF(+Eing.Mannsch.aufstellung!BD5>0,F22/L22,"") ->  | H22: =IF(+Eing.Mannsch.aufstellung!BD5>0,+Eing.Mannsch.aufstellung!BG5,"") ->  | L22: =IF(+Eing.Mannsch.aufstellung!BD5<>"",+AnzRundenALT,0) -> 0
B23: =IF(+Eing.Mannsch.aufstellung!BD6>0,RANK(H23,H$21:H$27,0),"") ->  | D23: =IF(+Eing.Mannsch.aufstellung!BC6>0,+Eing.Mannsch.aufstellung!BC6,"") ->  | F23: =IF(+Eing.Mannsch.aufstellung!BD6>0,+Eing.Mannsch.aufstellung!BD6,"") ->  | G23: =IF(+Eing.Mannsch.aufstellung!BD6>0,F23/L23,"") ->  | H23: =IF(+Eing.Mannsch.aufstellung!BD6>0,+Eing.Mannsch.aufstellung!BG6,"") ->  | L23: =IF(+Eing.Mannsch.aufstellung!BD6<>"",+AnzRundenALT,0) -> 0
B24: =IF(+Eing.Mannsch.aufstellung!BD7>0,RANK(H24,H$21:H$27,0),"") ->  | D24: =IF(+Eing.Mannsch.aufstellung!BC7>0,+Eing.Mannsch.aufstellung!BC7,"") ->  | F24: =IF(+Eing.Mannsch.aufstellung!BD7>0,+Eing.Mannsch.aufstellung!BD7,"") ->  | G24: =IF(+Eing.Mannsch.aufstellung!BD7>0,F24/L24,"") ->  | H24: =IF(+Eing.Mannsch.aufstellung!BD7>0,+Eing.Mannsch.aufstellung!BG7,"") ->  | L24: =IF(+Eing.Mannsch.aufstellung!BD7<>"",+AnzRundenALT,0) -> 0
B25: =IF(+Eing.Mannsch.aufstellung!BD8>0,RANK(H25,H$21:H$27,0),"") ->  | D25: =IF(+Eing.Mannsch.aufstellung!BC8>0,+Eing.Mannsch.aufstellung!BC8,"") ->  | F25: =IF(+Eing.Mannsch.aufstellung!BD8>0,+Eing.Mannsch.aufstellung!BD8,"") ->  | G25: =IF(+Eing.Mannsch.aufstellung!BD8>0,F25/L25,"") ->  | H25: =IF(+Eing.Mannsch.aufstellung!BD8>0,+Eing.Mannsch.aufstellung!BG8,"") ->  | L25: =IF(+Eing.Mannsch.aufstellung!BD8<>"",+AnzRundenALT,0) -> 0
B26: =IF(+Eing.Mannsch.aufstellung!BD9>0,RANK(H26,H$21:H$27,0),"") ->  | D26: =IF(+Eing.Mannsch.aufstellung!BC9>0,+Eing.Mannsch.aufstellung!BC9,"") ->  | F26: =IF(+Eing.Mannsch.aufstellung!BD9>0,+Eing.Mannsch.aufstellung!BD9,"") ->  | G26: =IF(+Eing.Mannsch.aufstellung!BD9>0,F26/L26,"") ->  | H26: =IF(+Eing.Mannsch.aufstellung!BD9>0,+Eing.Mannsch.aufstellung!BG9,"") ->  | L26: =IF(+Eing.Mannsch.aufstellung!BD9<>"",+AnzRundenALT,0) -> 0
B27: =IF(+Eing.Mannsch.aufstellung!BD10>0,RANK(H27,H$21:H$27,0),"") ->  | D27: =IF(+Eing.Mannsch.aufstellung!BC10>0,+Eing.Mannsch.aufstellung!BC10,"") ->  | F27: =IF(+Eing.Mannsch.aufstellung!BD10>0,+Eing.Mannsch.aufstellung!BD10,"") ->  | G27: =IF(+Eing.Mannsch.aufstellung!BD10>0,F27/L27,"") ->  | H27: =IF(+Eing.Mannsch.aufstellung!BD10>0,+Eing.Mannsch.aufstellung!BG10,"") ->  | L27: =IF(+Eing.Mannsch.aufstellung!BD10<>"",+AnzRundenALT,0) -> 0
D29: Tagestabelle
B30: Rang | D30: Mannschaft | F30: Schläge | G30: Schnitt | H30: Punkte
B31: =IF(F31="","",RANK(F31,F$31:F$37,1)) ->  | D31: =IF(+Tagestabelle!E5>0,+Tagestabelle!E5,"") ->  | F31: =IF(+Tagestabelle!M14>1999,"",ROUND(+Tagestabelle!M14,0)) ->  | G31: =IF(F31="","",F31/L31) ->  | H31: =IF(+Tagestabelle!E5>0,+Tagestabelle!B5,"") ->  | L31: =IF(D31<>"",AnzSpieler*Tagestabelle!$N$3,"") -> 
D32: =IF(+Tagestabelle!E21>0,+Tagestabelle!E21,"") ->  | F32: =IF(+Tagestabelle!M30>1999,"",ROUND(+Tagestabelle!M30,0)) ->  | H32: =IF(+Tagestabelle!E21>0,+Tagestabelle!B21,"") ->  | L32: =IF(D32<>"",AnzSpieler*Tagestabelle!$N$3,"") -> 
D33: =IF(+Tagestabelle!E37>0,+Tagestabelle!E37,"") ->  | F33: =IF(+Tagestabelle!M46>1999,"",ROUND(+Tagestabelle!M46,0)) ->  | H33: =IF(+Tagestabelle!E37>0,+Tagestabelle!B37,"") ->  | L33: =IF(D33<>"",AnzSpieler*Tagestabelle!$N$3,"") -> 
D34: =IF(+Tagestabelle!E53>0,+Tagestabelle!E53,"") ->  | F34: =IF(+Tagestabelle!M62>1999,"",ROUND(+Tagestabelle!M62,0)) ->  | H34: =IF(+Tagestabelle!E53>0,+Tagestabelle!B53,"") ->  | L34: =IF(D34<>"",AnzSpieler*Tagestabelle!$N$3,"") -> 
D35: =IF(+Tagestabelle!E69>0,+Tagestabelle!E69,"") ->  | F35: =IF(+Tagestabelle!M78>1999,"",ROUND(+Tagestabelle!M78,0)) ->  | H35: =IF(+Tagestabelle!E69>0,+Tagestabelle!B69,"") ->  | L35: =IF(D35<>"",AnzSpieler*Tagestabelle!$N$3,"") -> 
D36: =IF(+Tagestabelle!E85>0,+Tagestabelle!E85,"") ->  | F36: =IF(+Tagestabelle!M94>1999,"",ROUND(+Tagestabelle!M94,0)) ->  | H36: =IF(+Tagestabelle!E85>0,+Tagestabelle!B85,"") ->  | L36: =IF(D36<>"",AnzSpieler*Tagestabelle!$N$3,"") -> 
D37: =IF(+Tagestabelle!E101>0,+Tagestabelle!E101,"") ->  | F37: =IF(+Tagestabelle!M110>1999,"",ROUND(+Tagestabelle!M110,0)) ->  | H37: =IF(+Tagestabelle!E101>0,+Tagestabelle!B101,"") ->  | L37: =IF(D37<>"",AnzSpieler*Tagestabelle!$N$3,"") -> 
D39: Tabelle nach dem | F39: =F19 -> 0 | G39: . Spieltag
B40: Rang | D40: Mannschaft | F40: Schläge | G40: Schnitt | H40: Punkte
B41: =IF(F41="","","1") ->  | I41: =IF(H41="",-900,H41) -> -900 | L41: =IF(+Eing.Mannsch.aufstellung!BD4<>"",+L31+L21,"") -> 
B42: =IF(F42="","","2") ->  | I42: -900 | L42: =IF(+Eing.Mannsch.aufstellung!BD5<>"",+L32+L22,"") -> 
B43: =IF(F43="","","3") ->  | I43: -900 | L43: =IF(+Eing.Mannsch.aufstellung!BD6<>"",+L33+L23,"") -> 
B44: =IF(F44="","","4") ->  | I44: -900 | L44: =IF(+Eing.Mannsch.aufstellung!BD7<>"",+L34+L24,"") -> 
B45: =IF(F45="","","5") ->  | I45: -900 | L45: =IF(+Eing.Mannsch.aufstellung!BD8<>"",+L35+L25,"") -> 
B46: =IF(F46="","","6") ->  | I46: -900 | L46: =IF(+Eing.Mannsch.aufstellung!BD9<>"",+L36+L26,"") -> 
B47: =IF(F47="","","7") ->  | I47: -900 | L47: =IF(+Eing.Mannsch.aufstellung!BD10<>"",+L37+L27,"") -> 
B49: Besondere Vorkommnisse:
B50: keine
F57: =D7 ->  | G57: , den | H57: =H5 -> 
A59: =IF(C5>0,+A65,"") -> Turnierprogramm für Punkspiele ( 4er, 5er od. 6er Mannschaften mit Streichergebnis). Bis zu 7 teilnehmende Mannschaften möglich. Das Programm wird ständig aktualisiert. Nutzung nur mit Einverständnis des Erstellers. Die Nutzung ist bis auf Widerruf kostenfrei. Eine Spende zu Gunsten der Jugendkasse des HBSV ist angemessen und wird gerne angenommen.
A60: =IF(C5>0,+A66,"") -> Ersteller: Günter Arnold, Tel: 06434 9336528, Mobil 0172 5779716, email: medienwart@minigolf-hessen.de
A65: Turnierprogramm für Punkspiele ( 4er, 5er od. 6er Mannschaften mit Streichergebnis). Bis zu 7 teilnehmende Mannschaften möglich. Das Programm wird ständig aktualisiert. Nutzung nur mit Einverständnis des Erstellers. Die Nutzung ist bis auf Widerruf kostenfrei. Eine Spende zu Gunsten der Jugendkasse des HBSV ist angemessen und wird gerne angenommen.
A66: Ersteller: Günter Arnold, Tel: 06434 9336528, Mobil 0172 5779716, email: medienwart@minigolf-hessen.de

Sheet Tagestabelle
A2: =IF(+Eing.Allg..Daten!D2>0,+Eing.Allg..Daten!D2,"") ->  | H2: =+Seite1!C5 ->  | I2: =+Seite1!D5 -> . Spieltag | L2: =+Seite1!E5 -> Saison | M2: =+Seite1!F5 -> 
E3: Spieler pro Team in der Wertung: | F3: =AnzSpieler -> 5 | H3: Einzelspieler in der Wertung : | I3: =COUNTIF(O6:O114,"FIN") -> 63 | M3: Runden in der Wertung : | N3: =MAX(O14,O30,O46,O62,O78,O94,O110) -> 0
Q4: =$M14 -> 2001 | R4: 1.01 | AM4: =$M14 -> 2001 | AN4: 1.01
A5: 1. | B5: =IF(AND(AnzMa>0,M14>0),2*AnzMa-2+AD14,0) -> 0 | C5: Pkt. | E5: =+'Ma1'!$D$1 -> 0 | H5: Kat | I5: R1 | J5: R2 | K5: R3 | L5: R4 | M5: Ges | N5: Schnitt | Q5: =$M14 -> 2001 | R5: 1.02 | AM5: =$M14 -> 2001 | AN5: 1.02
A6: 8e-05 | E6: =IF(M1S1p>0,M1S1p,"") ->  | G6: =IF(M1S1p>0,M1S1,"") ->  | H6: =IF(M1S1p>0,M1S1Kat,"") ->  | I6: =$A6+'Ma1'!$D$25 -> 999.00008 | J6: =$A6+'Ma1'!$E$25 -> 999.00008 | K6: =$A6+'Ma1'!$F$25 -> 999.00008 | L6: =$A6+'Ma1'!$G$25 -> 999.00008 | M6: =IF(L6<>(999+$A6),SUM(I6:L6),IF(K6<>(999+$A6),SUM(I6:K6),IF(J6<>(999+$A6),SUM(I6:J6),IF(I6<>(999+$A6),I6,"0")))) -> 0 | N6: =IF(I6>=999,"",IF(M6>0,M6/COUNTIF(I6:L6,"<999"),"")) ->  | O6: ='Ma1'!$H$27 -> FIN | Q6: =$M14 -> 2001 | R6: 1.03 | AM6: =$M14 -> 2001 | AN6: 1.03
A7: 7e-05 | E7: =IF(M1S2p>0,M1S2p,"") ->  | G7: =IF(M1S2p>0,M1S2,"") ->  | H7: =IF(M1S2p>0,M1S2Kat,"") ->  | I7: =$A7+'Ma1'!$J$25 -> 999.00007 | J7: =$A7+'Ma1'!$K$25 -> 999.00007 | K7: =$A7+'Ma1'!$L$25 -> 999.00007 | L7: =$A7+'Ma1'!$M$25 -> 999.00007 | M7: 0 | O7: ='Ma1'!$N$27 -> FIN | Q7: =$M14 -> 2001 | R7: 1.04 | AM7: =$M14 -> 2001 | AN7: 1.04
A8: 6e-05 | E8: =IF(M1S3p>0,M1S3p,"") ->  | G8: =IF(M1S3p>0,M1S3,"") ->  | H8: =IF(M1S3p>0,M1S3Kat,"") ->  | I8: =$A8+'Ma1'!$P$25 -> 999.00006 | J8: =$A8+'Ma1'!$Q$25 -> 999.00006 | K8: =$A8+'Ma1'!$R$25 -> 999.00006 | L8: =$A8+'Ma1'!$S$25 -> 999.00006 | M8: 0 | O8: ='Ma1'!$T$27 -> FIN | Q8: =$M14 -> 2001 | R8: 1.05 | AM8: =$M14 -> 2001 | AN8: 1.05
A9: 5e-05 | E9: =IF(M1S4p>0,M1S4p,"") ->  | G9: =IF(M1S4p>0,M1S4,"") ->  | H9: =IF(M1S4p>0,M1S4Kat,"") ->  | I9: =$A9+'Ma1'!$V$25 -> 999.00005 | J9: =$A9+'Ma1'!$W$25 -> 999.00005 | K9: =$A9+'Ma1'!$X$25 -> 999.00005 | L9: =$A9+'Ma1'!$Y$25 -> 999.00005 | M9: 0 | O9: ='Ma1'!$Z$27 -> FIN | Q9: =$M14 -> 2001 | R9: 1.06 | AM9: =$M14 -> 2001 | AN9: 1.06
A10: 4e-05 | E10: =IF(M1S5p>0,M1S5p,"") ->  | G10: =IF(M1S5p>0,M1S5,"") ->  | H10: =IF(M1S5p>0,M1S5Kat,"") ->  | I10: =$A10+'Ma1'!$D$51 -> 999.00004 | J10: =$A10+'Ma1'!$E$51 -> 999.00004 | K10: =$A10+'Ma1'!$F$51 -> 999.00004 | L10: =$A10+'Ma1'!$G$51 -> 999.00004 | M10: 0 | O10: ='Ma1'!$H$53 -> FIN | Q10: =$M14 -> 2001 | R10: 1.07 | AM10: =$M14 -> 2001 | AN10: 1.07
A11: 3e-05 | E11: =IF(M1S6p>0,M1S6p,"") ->  | G11: =IF(M1S6p>0,M1S6,"") ->  | H11: =IF(M1S6p>0,M1S6Kat,"") ->  | I11: =$A11+'Ma1'!$J$51 -> 999.00003 | J11: =$A11+'Ma1'!$K$51 -> 999.00003 | K11: =$A11+'Ma1'!$L$51 -> 999.00003 | L11: =$A11+'Ma1'!$M$51 -> 999.00003 | M11: 0 | O11: ='Ma1'!$N$53 -> FIN | Q11: =$M14 -> 2001 | R11: 1.08 | AM11: =$M14 -> 2001 | AN11: 1.08
A12: 2e-05 | E12: =IF(M1S7p>0,M1S7p,"") ->  | G12: =IF(M1S7p>0,M1S7,"") ->  | H12: =IF(M1S7p>0,M1S7Kat,"") ->  | I12: =$A12+'Ma1'!$P$51 -> 999.00002 | J12: =$A12+'Ma1'!$Q$51 -> 999.00002 | K12: =$A12+'Ma1'!$R$51 -> 999.00002 | L12: =$A12+'Ma1'!$S$51 -> 999.00002 | M12: 0 | O12: ='Ma1'!$T$53 -> FIN | Q12: =$M14 -> 2001 | R12: 1.09 | AM12: =$M14 -> 2001 | AN12: 1.09
A13: 1e-05 | E13: =IF(M1S8p>0,M1S8p,"") ->  | G13: =IF(M1S8p>0,M1S8,"") ->  | H13: =IF(M1S8p>0,M1S8Kat,"") ->  | I13: =A13+'Ma1'!$V$51 -> 999.00001 | J13: =A13+'Ma1'!$W$51 -> 999.00001 | K13: =A13+'Ma1'!$X$51 -> 999.00001 | L13: =A13+'Ma1'!$Y$51 -> 999.00001 | M13: 0 | O13: ='Ma1'!$Z$53 -> FIN | Q13: =$M14 -> 2001 | R13: 1.1 | AM13: =$M14 -> 2001 | AN13: 1.1
I14: =IF($F$3=4,I15,IF($F$3=5,I16,IF($F$3=6,I17,"F2 ist falsch"))) -> 4995.00015 | J14: =IF($F$3=4,J15,IF($F$3=5,J16,IF($F$3=6,J17,"F2 ist falsch"))) -> 4995.00015 | K14: =IF($F$3=4,K15,IF($F$3=5,K16,IF($F$3=6,K17,"F2 ist falsch"))) -> 4995.00015 | L14: =IF($F$3=4,L15,IF($F$3=5,L16,IF($F$3=6,L17,"F2 ist falsch"))) -> 4995.00015 | M14: =IF(L14<999,SUM(I14:L14),IF(K14<999,SUM(I14:K14),IF(J14<999,SUM(I14:J14),IF(I14<999,SUM(I14),2001)))) -> 2001 | N14: =IF(M14<999,M14/(COUNTIF(I14:L14,"<999")*$F$3),"") ->  | O14: =IF(L14<3995,4,IF(K14<3995,3,IF(J14<3995,2,IF(I14<3995,1,0)))) -> 0 | Q14: =$M14 -> 2001 | R14: 1.11 | U14: =IF(AND(M14>0,M14=M30),1,0) -> 0 | AD14: =SUM(AE14:AI14) -> 0 | AE14: =IF(INT(M14)=INT(M30),-1,0) -> 0 | AG14: =IF(AND(INT(M14)=INT(M30),INT(M30)=INT(M46)),-1,0) -> 0 | AM14: =$M14 -> 2001 | AN14: 1.11
E15: KKLEINSTE 1 - 4 | I15: =SUM(SMALL(I6:I13,1),SMALL(I6:I13,2),SMALL(I6:I13,3),SMALL(I6:I13,4)) -> 3996.0001 | J15: =SUM(SMALL(J6:J13,1),SMALL(J6:J13,2),SMALL(J6:J13,3),SMALL(J6:J13,4)) -> 3996.0001 | K15: =SUM(SMALL(K6:K13,1),SMALL(K6:K13,2),SMALL(K6:K13,3),SMALL(K6:K13,4)) -> 3996.0001 | L15: =SUM(SMALL(L6:L13,1),SMALL(L6:L13,2),SMALL(L6:L13,3),SMALL(L6:L13,4)) -> 3996.0001 | Q15: =$M14 -> 2001 | R15: 1.12 | AM15: =$M14 -> 2001 | AN15: 1.12
E16: KKLEINSTE 1 - 5 | I16: =SUM(I15,SMALL(I6:I13,5)) -> 4995.00015 | J16: =SUM(J15,SMALL(J6:J13,5)) -> 4995.00015 | K16: =SUM(K15,SMALL(K6:K13,5)) -> 4995.00015 | L16: =SUM(L15,SMALL(L6:L13,5)) -> 4995.00015 | Q16: =$M14 -> 2001 | R16: 1.13 | AM16: =$M14 -> 2001 | AN16: 1.13
E17: KKLEINSTE 1 - 6 | I17: =SUM(I16,SMALL(I6:I13,6)) -> 5994.00021 | J17: =SUM(J16,SMALL(J6:J13,6)) -> 5994.00021 | K17: =SUM(K16,SMALL(K6:K13,6)) -> 5994.00021 | L17: =SUM(L16,SMALL(L6:L13,6)) -> 5994.00021 | Q17: =$M14 -> 2001 | R17: 1.14 | AM17: =$M14 -> 2001 | AN17: 1.14
C18: AK | E18: =IF(M1SAKp>0,M1SAKp,"") ->  | G18: =IF(M1SAKp>0,M1SAK,"") ->  | H18: =IF(M1SAKp>0,M1SAKKat,"") ->  | I18: =+'Ma1'!$AB$51 -> 999 | J18: =+'Ma1'!$AC$51 -> 999 | K18: =+'Ma1'!$AD$51 -> 999 | L18: =+'Ma1'!$AE$51 -> 999 | M18: =IF(L18<999,SUM(I18:L18),IF(K18<999,SUM(I18:K18),IF(J18<999,SUM(I18:J18),IF(I18<999,SUM(I18),"")))) ->  | N18: =IF(M18<>"",M18/COUNTIF(I18:L18,"<>999"),"") ->  | O18: ='Ma1'!$AF$53 -> FIN | Q18: =$M14 -> 2001 | R18: 1.15 | AM18: =$M14 -> 2001 | AN18: 1.15
Q19: =$M14 -> 2001 | R19: 1.16 | AM19: =$M14 -> 2001 | AN19: 1.16
Q20: =$M30 -> 2002 | R20: 2.01 | AM20: =$M30 -> 2002 | AN20: 2.01
A21: 2. | B21: =IF(AND(AnzMa>0,M30>0),2*AnzMa-4+AD30,0) -> 0 | C21: Pkt. | E21: =+'Ma2'!$D$1 -> 0 | H21: Kat | I21: R1 | J21: R2 | K21: R3 | L21: R4 | M21: Ges | N21: Schnitt | Q21: =$M30 -> 2002 | R21: 2.02 | AM21: =$M30 -> 2002 | AN21: 2.02
A22: 8e-05 | E22: =IF(M2S1p>0,M2S1p,"") ->  | G22: =IF(M2S1p>0,M2S1,"") ->  | H22: =IF(M2S1p>0,M2S1Kat,"") ->  | I22: =$A22+'Ma2'!$D$25 -> 999.00008 | J22: =$A22+'Ma2'!$E$25 -> 999.00008 | K22: =$A22+'Ma2'!$F$25 -> 999.00008 | L22: =$A22+'Ma2'!$G$25 -> 999.00008 | M22: =IF(L22<>(999+$A22),SUM(I22:L22),IF(K22<>(999+$A22),SUM(I22:K22),IF(J22<>(999+$A22),SUM(I22:J22),IF(I22<>(999+$A22),I22,"0")))) -> 0 | N22: =IF(I22>=999,"",IF(M22>0,M22/COUNTIF(I22:L22,"<999"),"")) ->  | O22: ='Ma2'!$H$27 -> Fin | Q22: =$M30 -> 2002 | R22: 2.03 | AM22: =$M30 -> 2002 | AN22: 2.03
A23: 7e-05 | E23: =IF(M2S2p>0,M2S2p,"") ->  | G23: =IF(M2S2p>0,M2S2,"") ->  | H23: =IF(M2S2p>0,M2S2Kat,"") ->  | I23: =$A23+'Ma2'!$J$25 -> 999.00007 | J23: =$A23+'Ma2'!$K$25 -> 999.00007 | K23: =$A23+'Ma2'!$L$25 -> 999.00007 | L23: =$A23+'Ma2'!$M$25 -> 999.00007 | M23: 0 | O23: ='Ma2'!$N$27 -> Fin | Q23: =$M30 -> 2002 | R23: 2.04 | AM23: =$M30 -> 2002 | AN23: 2.04
A24: 6e-05 | E24: =IF(M2S3p>0,M2S3p,"") ->  | G24: =IF(M2S3p>0,M2S3,"") ->  | H24: =IF(M2S3p>0,M2S3Kat,"") ->  | I24: =$A24+'Ma2'!$P$25 -> 999.00006 | J24: =$A24+'Ma2'!$Q$25 -> 999.00006 | K24: =$A24+'Ma2'!$R$25 -> 999.00006 | L24: =$A24+'Ma2'!$S$25 -> 999.00006 | M24: 0 | O24: ='Ma2'!$T$27 -> Fin | Q24: =$M30 -> 2002 | R24: 2.05 | AM24: =$M30 -> 2002 | AN24: 2.05
A25: 5e-05 | E25: =IF(M2S4p>0,M2S4p,"") ->  | G25: =IF(M2S4p>0,M2S4,"") ->  | H25: =IF(M2S4p>0,M2S4Kat,"") ->  | I25: =$A25+'Ma2'!$V$25 -> 999.00005 | J25: =$A25+'Ma2'!$W$25 -> 999.00005 | K25: =$A25+'Ma2'!$X$25 -> 999.00005 | L25: =$A25+'Ma2'!$Y$25 -> 999.00005 | M25: 0 | O25: ='Ma2'!$Z$27 -> Fin | Q25: =$M30 -> 2002 | R25: 2.06 | AM25: =$M30 -> 2002 | AN25: 2.06
A26: 4e-05 | E26: =IF(M2S5p>0,M2S5p,"") ->  | G26: =IF(M2S5p>0,M2S5,"") ->  | H26: =IF(M2S5p>0,M2S5Kat,"") ->  | I26: =$A26+'Ma2'!$D$51 -> 999.00004 | J26: =$A26+'Ma2'!$E$51 -> 999.00004 | K26: =$A26+'Ma2'!$F$51 -> 999.00004 | L26: =$A26+'Ma2'!$G$51 -> 999.00004 | M26: 0 | O26: ='Ma2'!$H$53 -> Fin | Q26: =$M30 -> 2002 | R26: 2.07 | AM26: =$M30 -> 2002 | AN26: 2.07
A27: 3e-05 | E27: =IF(M2S6p>0,M2S6p,"") ->  | G27: =IF(M2S6p>0,M2S6,"") ->  | H27: =IF(M2S6p>0,M2S6Kat,"") ->  | I27: =$A27+'Ma2'!$J$51 -> 999.00003 | J27: =$A27+'Ma2'!$K$51 -> 999.00003 | K27: =$A27+'Ma2'!$L$51 -> 999.00003 | L27: =$A27+'Ma2'!$M$51 -> 999.00003 | M27: 0 | O27: ='Ma2'!$N$53 -> Fin | Q27: =$M30 -> 2002 | R27: 2.08 | AM27: =$M30 -> 2002 | AN27: 2.08
A28: 2e-05 | E28: =IF(M2S7p>0,M2S7p,"") ->  | G28: =IF(M2S7p>0,M2S7,"") ->  | H28: =IF(M2S7p>0,M2S7Kat,"") ->  | I28: =$A28+'Ma2'!$P$51 -> 999.00002 | J28: =$A28+'Ma2'!$Q$51 -> 999.00002 | K28: =$A28+'Ma2'!$R$51 -> 999.00002 | L28: =$A28+'Ma2'!$S$51 -> 999.00002 | M28: 0 | O28: ='Ma2'!$T$53 -> Fin | Q28: =$M30 -> 2002 | R28: 2.09 | AM28: =$M30 -> 2002 | AN28: 2.09
A29: 1e-05 | E29: =IF(M2S8p>0,M2S8p,"") ->  | G29: =IF(M2S8p>0,M2S8,"") ->  | H29: =IF(M2S8p>0,M2S8Kat,"") ->  | I29: =A29+'Ma2'!$V$51 -> 999.00001 | J29: =A29+'Ma2'!$W$51 -> 999.00001 | K29: =A29+'Ma2'!$X$51 -> 999.00001 | L29: =A29+'Ma2'!$Y$51 -> 999.00001 | M29: 0 | O29: ='Ma2'!$Z$53 -> Fin | Q29: =$M30 -> 2002 | R29: 2.1 | AM29: =$M30 -> 2002 | AN29: 2.1
I30: =IF($F$3=4,I31,IF($F$3=5,I32,IF($F$3=6,I33,"F2 ist falsch"))) -> 4995.00015 | J30: =IF($F$3=4,J31,IF($F$3=5,J32,IF($F$3=6,J33,"F2 ist falsch"))) -> 4995.00015 | K30: =IF($F$3=4,K31,IF($F$3=5,K32,IF($F$3=6,K33,"F2 ist falsch"))) -> 4995.00015 | L30: =IF($F$3=4,L31,IF($F$3=5,L32,IF($F$3=6,L33,"F2 ist falsch"))) -> 4995.00015 | M30: =IF(L30<999,SUM(I30:L30),IF(K30<999,SUM(I30:K30),IF(J30<999,SUM(I30:J30),IF(I30<999,SUM(I30),2002)))) -> 2002 | N30: =IF(M30<999,M30/(COUNTIF(I30:L30,"<999")*$F$3),"") ->  | O30: =IF(L30<3995,4,IF(K30<3995,3,IF(J30<3995,2,IF(I30<3995,1,0)))) -> 0 | Q30: =$M30 -> 2002 | R30: 2.11 | U30: =IF(AND(M30>0,M30=M46),1,0) -> 0 | AD30: =SUM(AE30:AI30) -> 0 | AE30: =IF(INT(M14)=INT(M30),1,0) -> 0 | AF30: =IF(INT(M30)=INT(M46),-1,0) -> 0 | AG30: =IF(AND(INT(M14)=INT(M30),INT(M30)=INT(M46)),0,0) -> 0 | AH30: =IF(AND(INT(M30)=INT(M46),INT(M46)=INT(M62)),-1,0) -> 0 | AM30: =$M30 -> 2002 | AN30: 2.11
E31: KKLEINSTE 1 - 4 | I31: =SUM(SMALL(I22:I29,1),SMALL(I22:I29,2),SMALL(I22:I29,3),SMALL(I22:I29,4)) -> 3996.0001 | J31: =SUM(SMALL(J22:J29,1),SMALL(J22:J29,2),SMALL(J22:J29,3),SMALL(J22:J29,4)) -> 3996.0001 | K31: =SUM(SMALL(K22:K29,1),SMALL(K22:K29,2),SMALL(K22:K29,3),SMALL(K22:K29,4)) -> 3996.0001 | L31: =SUM(SMALL(L22:L29,1),SMALL(L22:L29,2),SMALL(L22:L29,3),SMALL(L22:L29,4)) -> 3996.0001 | Q31: =$M30 -> 2002 | R31: 2.12 | AM31: =$M30 -> 2002 | AN31: 2.12
E32: KKLEINSTE 1 - 5 | I32: =SUM(I31,SMALL(I22:I29,5)) -> 4995.00015 | J32: =SUM(J31,SMALL(J22:J29,5)) -> 4995.00015 | K32: =SUM(K31,SMALL(K22:K29,5)) -> 4995.00015 | L32: =SUM(L31,SMALL(L22:L29,5)) -> 4995.00015 | Q32: =$M30 -> 2002 | R32: 2.13 | AM32: =$M30 -> 2002 | AN32: 2.13
E33: KKLEINSTE 1 - 6 | I33: =SUM(I32,SMALL(I22:I29,6)) -> 5994.00021 | J33: =SUM(J32,SMALL(J22:J29,6)) -> 5994.00021 | K33: =SUM(K32,SMALL(K22:K29,6)) -> 5994.00021 | L33: =SUM(L32,SMALL(L22:L29,6)) -> 5994.00021 | Q33: =$M30 -> 2002 | R33: 2.14 | AM33: =$M30 -> 2002 | AN33: 2.14
C34: AK | E34: =IF(M2SAKp>0,M2SAKp,"") ->  | G34: =IF(M2SAKp>0,M2SAK,"") ->  | H34: =IF(M2SAKp>0,M2SAKKat,"") ->  | I34: =+'Ma2'!$AB$51 -> 999 | J34: =+'Ma2'!$AC$51 -> 999 | K34: =+'Ma2'!$AD$51 -> 999 | L34: =+'Ma2'!$AE$51 -> 999 | M34: =IF(L34<999,SUM(I34:L34),IF(K34<999,SUM(I34:K34),IF(J34<999,SUM(I34:J34),IF(I34<999,SUM(I34),"")))) ->  | N34: =IF(M34<>"",M34/COUNTIF(I34:L34,"<>999"),"") ->  | O34: ='Ma2'!$AF$53 -> Fin | Q34: =$M30 -> 2002 | R34: 2.15 | AM34: =$M30 -> 2002 | AN34: 2.15
Q35: =$M30 -> 2002 | R35: 2.16 | AM35: =$M30 -> 2002 | AN35: 2.16
Q36: =$M46 -> 2003 | R36: 3.01 | AM36: =$M46 -> 2003 | AN36: 3.01
A37: 3. | B37: =IF(AND(AnzMa>0,M46>0),2*AnzMa-6+AD46,0) -> 0 | C37: Pkt. | E37: =+'Ma3'!$D$1 -> 0 | H37: Kat | I37: R1 | J37: R2 | K37: R3 | L37: R4 | M37: Ges | N37: Schnitt | Q37: =$M46 -> 2003 | R37: 3.02 | AM37: =$M46 -> 2003 | AN37: 3.02
A38: 8e-05 | E38: =IF(M3S1p>0,M3S1p,"") ->  | G38: =IF(M3S1p>0,M3S1,"") ->  | H38: =IF(M3S1p>0,M3S1Kat,"") ->  | I38: =$A38+'Ma3'!$D$25 -> 999.00008 | J38: =$A38+'Ma3'!$E$25 -> 999.00008 | K38: =$A38+'Ma3'!$F$25 -> 999.00008 | L38: =$A38+'Ma3'!$G$25 -> 999.00008 | M38: =IF(L38<>(999+$A38),SUM(I38:L38),IF(K38<>(999+$A38),SUM(I38:K38),IF(J38<>(999+$A38),SUM(I38:J38),IF(I38<>(999+$A38),I38,"0")))) -> 0 | N38: =IF(I38>=999,"",IF(M38>0,M38/COUNTIF(I38:L38,"<999"),"")) ->  | O38: ='Ma3'!$H$27 -> FIN | Q38: =$M46 -> 2003 | R38: 3.03 | AM38: =$M46 -> 2003 | AN38: 3.03
A39: 7e-05 | E39: =IF(M3S2p>0,M3S2p,"") ->  | G39: =IF(M3S2p>0,M3S2,"") ->  | H39: =IF(M3S2p>0,M3S2Kat,"") ->  | I39: =$A39+'Ma3'!$J$25 -> 999.00007 | J39: =$A39+'Ma3'!$K$25 -> 999.00007 | K39: =$A39+'Ma3'!$L$25 -> 999.00007 | L39: =$A39+'Ma3'!$M$25 -> 999.00007 | M39: 0 | O39: ='Ma3'!$N$27 -> FIN | Q39: =$M46 -> 2003 | R39: 3.04 | AM39: =$M46 -> 2003 | AN39: 3.04
A40: 6e-05 | E40: =IF(M3S3p>0,M3S3p,"") ->  | G40: =IF(M3S3p>0,M3S3,"") ->  | H40: =IF(M3S3p>0,M3S3Kat,"") ->  | I40: =$A40+'Ma3'!$P$25 -> 999.00006 | J40: =$A40+'Ma3'!$Q$25 -> 999.00006 | K40: =$A40+'Ma3'!$R$25 -> 999.00006 | L40: =$A40+'Ma3'!$S$25 -> 999.00006 | M40: 0 | O40: ='Ma3'!$T$27 -> FIN | Q40: =$M46 -> 2003 | R40: 3.05 | AM40: =$M46 -> 2003 | AN40: 3.05
A41: 5e-05 | E41: =IF(M3S4p>0,M3S4p,"") ->  | G41: =IF(M3S4p>0,M3S4,"") ->  | H41: =IF(M3S4p>0,M3S4Kat,"") ->  | I41: =$A41+'Ma3'!$V$25 -> 999.00005 | J41: =$A41+'Ma3'!$W$25 -> 999.00005 | K41: =$A41+'Ma3'!$X$25 -> 999.00005 | L41: =$A41+'Ma3'!$Y$25 -> 999.00005 | M41: 0 | O41: ='Ma3'!$Z$27 -> FIN | Q41: =$M46 -> 2003 | R41: 3.06 | AM41: =$M46 -> 2003 | AN41: 3.06
A42: 4e-05 | E42: =IF(M3S5p>0,M3S5p,"") ->  | G42: =IF(M3S5p>0,M3S5,"") ->  | H42: =IF(M3S5p>0,M3S5Kat,"") ->  | I42: =$A42+'Ma3'!$D$51 -> 999.00004 | J42: =$A42+'Ma3'!$E$51 -> 999.00004 | K42: =$A42+'Ma3'!$F$51 -> 999.00004 | L42: =$A42+'Ma3'!$G$51 -> 999.00004 | M42: 0 | O42: ='Ma3'!$H$53 -> FIN | Q42: =$M46 -> 2003 | R42: 3.07 | AM42: =$M46 -> 2003 | AN42: 3.07
A43: 3e-05 | E43: =IF(M3S6p>0,M3S6p,"") ->  | G43: =IF(M3S6p>0,M3S6,"") ->  | H43: =IF(M3S6p>0,M3S6Kat,"") ->  | I43: =$A43+'Ma3'!$J$51 -> 999.00003 | J43: =$A43+'Ma3'!$K$51 -> 999.00003 | K43: =$A43+'Ma3'!$L$51 -> 999.00003 | L43: =$A43+'Ma3'!$M$51 -> 999.00003 | M43: 0 | O43: ='Ma3'!$N$53 -> FIN | Q43: =$M46 -> 2003 | R43: 3.08 | AM43: =$M46 -> 2003 | AN43: 3.08
A44: 2e-05 | E44: =IF(M3S7p>0,M3S7p,"") ->  | G44: =IF(M3S7p>0,M3S7,"") ->  | H44: =IF(M3S7p>0,M3S7Kat,"") ->  | I44: =$A44+'Ma3'!$P$51 -> 999.00002 | J44: =$A44+'Ma3'!$Q$51 -> 999.00002 | K44: =$A44+'Ma3'!$R$51 -> 999.00002 | L44: =$A44+'Ma3'!$S$51 -> 999.00002 | M44: 0 | O44: ='Ma3'!$T$53 -> FIN | Q44: =$M46 -> 2003 | R44: 3.09 | AM44: =$M46 -> 2003 | AN44: 3.09
A45: 1e-05 | E45: =IF(M3S8p>0,M3S8p,"") ->  | G45: =IF(M3S8p>0,M3S8,"") ->  | H45: =IF(M3S8p>0,M3S8Kat,"") ->  | I45: =A45+'Ma3'!$V$51 -> 999.00001 | J45: =A45+'Ma3'!$W$51 -> 999.00001 | K45: =A45+'Ma3'!$X$51 -> 999.00001 | L45: =A45+'Ma3'!$Y$51 -> 999.00001 | M45: 0 | O45: ='Ma3'!$Z$53 -> FIN | Q45: =$M46 -> 2003 | R45: 3.1 | AM45: =$M46 -> 2003 | AN45: 3.1
I46: =IF($F$3=4,I47,IF($F$3=5,I48,IF($F$3=6,I49,"F2 ist falsch"))) -> 4995.00015 | J46: =IF($F$3=4,J47,IF($F$3=5,J48,IF($F$3=6,J49,"F2 ist falsch"))) -> 4995.00015 | K46: =IF($F$3=4,K47,IF($F$3=5,K48,IF($F$3=6,K49,"F2 ist falsch"))) -> 4995.00015 | L46: =IF($F$3=4,L47,IF($F$3=5,L48,IF($F$3=6,L49,"F2 ist falsch"))) -> 4995.00015 | M46: =IF(L46<999,SUM(I46:L46),IF(K46<999,SUM(I46:K46),IF(J46<999,SUM(I46:J46),IF(I46<999,SUM(I46),2003)))) -> 2003 | N46: =IF(M46<999,M46/(COUNTIF(I46:L46,"<999")*$F$3),"") ->  | O46: =IF(L46<3995,4,IF(K46<3995,3,IF(J46<3995,2,IF(I46<3995,1,0)))) -> 0 | Q46: =$M46 -> 2003 | R46: 3.11 | U46: =IF(AND(M46>0,M46=M62),1,0) -> 0 | AD46: =SUM(AE46:AI46) -> 0 | AE46: =IF(INT(M46)=INT(M62),-1,0) -> 0 | AF46: =IF(INT(M30)=INT(M46),1,0) -> 0 | AG46: =IF(AND(INT(M14)=INT(M30),INT(M30)=INT(M46)),1,0) -> 0 | AH46: =IF(AND(INT(M30)=INT(M46),INT(M46)=INT(M62)),0,0) -> 0 | AI46: =IF(AND(INT(M46)=INT(M62),INT(M62)=INT(M78)),-1,0) -> 0 | AM46: =$M46 -> 2003 | AN46: 3.11
E47: KKLEINSTE 1 - 4 | I47: =SUM(SMALL(I38:I45,1),SMALL(I38:I45,2),SMALL(I38:I45,3),SMALL(I38:I45,4)) -> 3996.0001 | J47: =SUM(SMALL(J38:J45,1),SMALL(J38:J45,2),SMALL(J38:J45,3),SMALL(J38:J45,4)) -> 3996.0001 | K47: =SUM(SMALL(K38:K45,1),SMALL(K38:K45,2),SMALL(K38:K45,3),SMALL(K38:K45,4)) -> 3996.0001 | L47: =SUM(SMALL(L38:L45,1),SMALL(L38:L45,2),SMALL(L38:L45,3),SMALL(L38:L45,4)) -> 3996.0001 | Q47: =$M46 -> 2003 | R47: 3.12 | AM47: =$M46 -> 2003 | AN47: 3.12
E48: KKLEINSTE 1 - 5 | I48: =SUM(I47,SMALL(I38:I45,5)) -> 4995.00015 | J48: =SUM(J47,SMALL(J38:J45,5)) -> 4995.00015 | K48: =SUM(K47,SMALL(K38:K45,5)) -> 4995.00015 | L48: =SUM(L47,SMALL(L38:L45,5)) -> 4995.00015 | Q48: =$M46 -> 2003 | R48: 3.13 | AM48: =$M46 -> 2003 | AN48: 3.13
E49: KKLEINSTE 1 - 6 | I49: =SUM(I48,SMALL(I38:I45,6)) -> 5994.00021 | J49: =SUM(J48,SMALL(J38:J45,6)) -> 5994.00021 | K49: =SUM(K48,SMALL(K38:K45,6)) -> 5994.00021 | L49: =SUM(L48,SMALL(L38:L45,6)) -> 5994.00021 | Q49: =$M46 -> 2003 | R49: 3.14 | AM49: =$M46 -> 2003 | AN49: 3.14
C50: AK | E50: =IF(M3SAKp>0,M3SAKp,"") ->  | G50: =IF(M3SAKp>0,M3SAK,"") ->  | H50: =IF(M3SAKp>0,M3SAKKat,"") ->  | I50: =+'Ma3'!$AB$51 -> 999 | J50: =+'Ma3'!$AC$51 -> 999 | K50: =+'Ma3'!$AD$51 -> 999 | L50: =+'Ma3'!$AE$51 -> 999 | M50: =IF(L50<999,SUM(I50:L50),IF(K50<999,SUM(I50:K50),IF(J50<999,SUM(I50:J50),IF(I50<999,SUM(I50),"")))) ->  | N50: =IF(M50<>"",M50/COUNTIF(I50:L50,"<>999"),"") ->  | O50: ='Ma3'!$AF$53 -> FIN | Q50: =$M46 -> 2003 | R50: 3.15 | AM50: =$M46 -> 2003 | AN50: 3.15
Q51: =$M46 -> 2003 | R51: 3.16 | AM51: =$M46 -> 2003 | AN51: 3.16
Q52: =$M62 -> 2004 | R52: 4.01 | AM52: =$M62 -> 2004 | AN52: 4.01
A53: 4. | B53: =IF(AND(AnzMa>0,M62>0),2*AnzMa-8+AD62,0) -> 0 | C53: Pkt. | E53: =+'Ma4'!$D$1 -> 0 | H53: Kat | I53: R1 | J53: R2 | K53: R3 | L53: R4 | M53: Ges | N53: Schnitt | Q53: =$M62 -> 2004 | R53: 4.02 | AM53: =$M62 -> 2004 | AN53: 4.02
A54: 8e-05 | E54: =IF(M4S1p>0,M4S1p,"") ->  | G54: =IF(M4S1p>0,M4S1,"") ->  | H54: =IF(M4S1p>0,M4S1Kat,"") ->  | I54: =$A54+'Ma4'!$D$25 -> 999.00008 | J54: =$A54+'Ma4'!$E$25 -> 999.00008 | K54: =$A54+'Ma4'!$F$25 -> 999.00008 | L54: =$A54+'Ma4'!$G$25 -> 999.00008 | M54: =IF(L54<>(999+$A54),SUM(I54:L54),IF(K54<>(999+$A54),SUM(I54:K54),IF(J54<>(999+$A54),SUM(I54:J54),IF(I54<>(999+$A54),I54,"0")))) -> 0 | N54: =IF(I54>=999,"",IF(M54>0,M54/COUNTIF(I54:L54,"<999"),"")) ->  | O54: ='Ma4'!$H$27 -> FIN | Q54: =$M62 -> 2004 | R54: 4.03 | AM54: =$M62 -> 2004 | AN54: 4.03
A55: 7e-05 | E55: =IF(M4S2p>0,M4S2p,"") ->  | G55: =IF(M4S2p>0,M4S2,"") ->  | H55: =IF(M4S2p>0,M4S2Kat,"") ->  | I55: =$A55+'Ma4'!$J$25 -> 999.00007 | J55: =$A55+'Ma4'!$K$25 -> 999.00007 | K55: =$A55+'Ma4'!$L$25 -> 999.00007 | L55: =$A55+'Ma4'!$M$25 -> 999.00007 | M55: 0 | O55: ='Ma4'!$N$27 -> FIN | Q55: =$M62 -> 2004 | R55: 4.04 | AM55: =$M62 -> 2004 | AN55: 4.04
A56: 6e-05 | E56: =IF(M4S3p>0,M4S3p,"") ->  | G56: =IF(M4S3p>0,M4S3,"") ->  | H56: =IF(M4S3p>0,M4S3Kat,"") ->  | I56: =$A56+'Ma4'!$P$25 -> 999.00006 | J56: =$A56+'Ma4'!$Q$25 -> 999.00006 | K56: =$A56+'Ma4'!$R$25 -> 999.00006 | L56: =$A56+'Ma4'!$S$25 -> 999.00006 | M56: 0 | O56: ='Ma4'!$T$27 -> FIN | Q56: =$M62 -> 2004 | R56: 4.05 | AM56: =$M62 -> 2004 | AN56: 4.05
A57: 5e-05 | E57: =IF(M4S4p>0,M4S4p,"") ->  | G57: =IF(M4S4p>0,M4S4,"") ->  | H57: =IF(M4S4p>0,M4S4Kat,"") ->  | I57: =$A57+'Ma4'!$V$25 -> 999.00005 | J57: =$A57+'Ma4'!$W$25 -> 999.00005 | K57: =$A57+'Ma4'!$X$25 -> 999.00005 | L57: =$A57+'Ma4'!$Y$25 -> 999.00005 | M57: 0 | O57: ='Ma4'!$Z$27 -> FIN | Q57: =$M62 -> 2004 | R57: 4.06 | AM57: =$M62 -> 2004 | AN57: 4.06
A58: 4e-05 | E58: =IF(M4S5p>0,M4S5p,"") ->  | G58: =IF(M4S5p>0,M4S5,"") ->  | H58: =IF(M4S5p>0,M4S5Kat,"") ->  | I58: =$A58+'Ma4'!$D$51 -> 999.00004 | J58: =$A58+'Ma4'!$E$51 -> 999.00004 | K58: =$A58+'Ma4'!$F$51 -> 999.00004 | L58: =$A58+'Ma4'!$G$51 -> 999.00004 | M58: 0 | O58: ='Ma4'!$H$53 -> FIN | Q58: =$M62 -> 2004 | R58: 4.07 | AM58: =$M62 -> 2004 | AN58: 4.07
A59: 3e-05 | E59: =IF(M4S6p>0,M4S6p,"") ->  | G59: =IF(M4S6p>0,M4S6,"") ->  | H59: =IF(M4S6p>0,M4S6Kat,"") ->  | I59: =$A59+'Ma4'!$J$51 -> 999.00003 | J59: =$A59+'Ma4'!$K$51 -> 999.00003 | K59: =$A59+'Ma4'!$L$51 -> 999.00003 | L59: =$A59+'Ma4'!$M$51 -> 999.00003 | M59: 0 | O59: ='Ma4'!$N$53 -> FIN | Q59: =$M62 -> 2004 | R59: 4.08 | AM59: =$M62 -> 2004 | AN59: 4.08
A60: 2e-05 | E60: =IF(M4S7p>0,M4S7p,"") ->  | G60: =IF(M4S7p>0,M4S7,"") ->  | H60: =IF(M4S7p>0,M4S7Kat,"") ->  | I60: =$A60+'Ma4'!$P$51 -> 999.00002 | J60: =$A60+'Ma4'!$Q$51 -> 999.00002 | K60: =$A60+'Ma4'!$R$51 -> 999.00002 | L60: =$A60+'Ma4'!$S$51 -> 999.00002 | M60: 0 | O60: ='Ma4'!$T$53 -> FIN | Q60: =$M62 -> 2004 | R60: 4.09 | AM60: =$M62 -> 2004 | AN60: 4.09
A61: 1e-05 | E61: =IF(M4S8p>0,M4S8p,"") ->  | G61: =IF(M4S8p>0,M4S8,"") ->  | H61: =IF(M4S8p>0,M4S8Kat,"") ->  | I61: =A61+'Ma4'!$V$51 -> 999.00001 | J61: =A61+'Ma4'!$W$51 -> 999.00001 | K61: =A61+'Ma4'!$X$51 -> 999.00001 | L61: =A61+'Ma4'!$Y$51 -> 999.00001 | M61: 0 | O61: ='Ma4'!$Z$53 -> FIN | Q61: =$M62 -> 2004 | R61: 4.1 | AM61: =$M62 -> 2004 | AN61: 4.1
I62: =IF($F$3=4,I63,IF($F$3=5,I64,IF($F$3=6,I65,"F2 ist falsch"))) -> 4995.00015 | J62: =IF($F$3=4,J63,IF($F$3=5,J64,IF($F$3=6,J65,"F2 ist falsch"))) -> 4995.00015 | K62: =IF($F$3=4,K63,IF($F$3=5,K64,IF($F$3=6,K65,"F2 ist falsch"))) -> 4995.00015 | L62: =IF($F$3=4,L63,IF($F$3=5,L64,IF($F$3=6,L65,"F2 ist falsch"))) -> 4995.00015 | M62: =IF(L62<999,SUM(I62:L62),IF(K62<999,SUM(I62:K62),IF(J62<999,SUM(I62:J62),IF(I62<999,SUM(I62),2004)))) -> 2004 | N62: =IF(M62<999,M62/(COUNTIF(I62:L62,"<999")*$F$3),"") ->  | O62: =IF(L62<3995,4,IF(K62<3995,3,IF(J62<3995,2,IF(I62<3995,1,0)))) -> 0 | Q62: =$M62 -> 2004 | R62: 4.11 | U62: =IF(AND(M62>0,M62=M79),1,0) -> 0 | AD62: =SUM(AE62:AI62) -> 0 | AE62: =IF(INT(M46)=INT(M62),1,0) -> 0 | AF62: =IF(INT(M62)=INT(M78),-1,0) -> 0 | AG62: =IF(AND(INT(M62)=INT(M78),INT(M78)=INT(M94)),-1,0) -> 0 | AH62: =IF(AND(INT(M30)=INT(M46),INT(M46)=INT(M62)),1,0) -> 0 | AI62: =IF(AND(INT(M46)=INT(M62),INT(M62)=INT(M78)),0,0) -> 0 | AM62: =$M62 -> 2004 | AN62: 4.11
E63: KKLEINSTE 1 - 4 | I63: =SUM(SMALL(I54:I61,1),SMALL(I54:I61,2),SMALL(I54:I61,3),SMALL(I54:I61,4)) -> 3996.0001 | J63: =SUM(SMALL(J54:J61,1),SMALL(J54:J61,2),SMALL(J54:J61,3),SMALL(J54:J61,4)) -> 3996.0001 | K63: =SUM(SMALL(K54:K61,1),SMALL(K54:K61,2),SMALL(K54:K61,3),SMALL(K54:K61,4)) -> 3996.0001 | L63: =SUM(SMALL(L54:L61,1),SMALL(L54:L61,2),SMALL(L54:L61,3),SMALL(L54:L61,4)) -> 3996.0001 | Q63: =$M62 -> 2004 | R63: 4.12 | AM63: =$M62 -> 2004 | AN63: 4.12
E64: KKLEINSTE 1 - 5 | I64: =SUM(I63,SMALL(I54:I61,5)) -> 4995.00015 | J64: =SUM(J63,SMALL(J54:J61,5)) -> 4995.00015 | K64: =SUM(K63,SMALL(K54:K61,5)) -> 4995.00015 | L64: =SUM(L63,SMALL(L54:L61,5)) -> 4995.00015 | Q64: =$M62 -> 2004 | R64: 4.13 | AM64: =$M62 -> 2004 | AN64: 4.13
E65: KKLEINSTE 1 - 6 | I65: =SUM(I64,SMALL(I54:I61,6)) -> 5994.00021 | J65: =SUM(J64,SMALL(J54:J61,6)) -> 5994.00021 | K65: =SUM(K64,SMALL(K54:K61,6)) -> 5994.00021 | L65: =SUM(L64,SMALL(L54:L61,6)) -> 5994.00021 | Q65: =$M62 -> 2004 | R65: 4.14 | AM65: =$M62 -> 2004 | AN65: 4.14
C66: AK | E66: =IF(M4SAKp>0,M4SAKp,"") ->  | G66: =IF(M4SAKp>0,M4SAK,"") ->  | H66: =IF(M4SAKp>0,M4SAKKat,"") ->  | I66: =+'Ma4'!$AB$51 -> 999 | J66: =+'Ma4'!$AC$51 -> 999 | K66: =+'Ma4'!$AD$51 -> 999 | L66: =+'Ma4'!$AE$51 -> 999 | M66: =IF(L66<999,SUM(I66:L66),IF(K66<999,SUM(I66:K66),IF(J66<999,SUM(I66:J66),IF(I66<999,SUM(I66),"")))) ->  | N66: =IF(M66<>"",M66/COUNTIF(I66:L66,"<>999"),"") ->  | O66: ='Ma4'!$AF$53 -> FIN | Q66: =$M62 -> 2004 | R66: 4.15 | AM66: =$M62 -> 2004 | AN66: 4.15
Q67: =$M62 -> 2004 | R67: 4.16 | AM67: =$M62 -> 2004 | AN67: 4.16
Q68: =$M78 -> 2005 | R68: 5.01 | AM68: =$M78 -> 2005 | AN68: 5.01
A69: 5. | B69: =IF(AND(AnzMa>0,M78>0),2*AnzMa-10+AD78,0) -> 0 | C69: Pkt. | E69: =+'Ma5'!$D$1 -> 0 | H69: Kat | I69: R1 | J69: R2 | K69: R3 | L69: R4 | M69: Ges | N69: Schnitt | Q69: =$M78 -> 2005 | R69: 5.02 | AM69: =$M78 -> 2005 | AN69: 5.02
A70: 8e-05 | E70: =IF(M5S1p>0,M5S1p,"") ->  | G70: =IF(M5S1p>0,M5S1,"") ->  | H70: =IF(M5S1p>0,M5S1Kat,"") ->  | I70: =$A70+'Ma5'!$D$25 -> 999.00008 | J70: =$A70+'Ma5'!$E$25 -> 999.00008 | K70: =$A70+'Ma5'!$F$25 -> 999.00008 | L70: =$A70+'Ma5'!$G$25 -> 999.00008 | M70: =IF(L70<>(999+$A70),SUM(I70:L70),IF(K70<>(999+$A70),SUM(I70:K70),IF(J70<>(999+$A70),SUM(I70:J70),IF(I70<>(999+$A70),I70,"0")))) -> 0 | N70: =IF(I70>=999,"",IF(M70>0,M70/COUNTIF(I70:L70,"<999"),"")) ->  | O70: ='Ma5'!$H$27 -> FIN | Q70: =$M78 -> 2005 | R70: 5.03 | AM70: =$M78 -> 2005 | AN70: 5.03
A71: 7e-05 | E71: =IF(M5S2p>0,M5S2p,"") ->  | G71: =IF(M5S2p>0,M5S2,"") ->  | H71: =IF(M5S2p>0,M5S2Kat,"") ->  | I71: =$A71+'Ma5'!$J$25 -> 999.00007 | J71: =$A71+'Ma5'!$K$25 -> 999.00007 | K71: =$A71+'Ma5'!$L$25 -> 999.00007 | L71: =$A71+'Ma5'!$M$25 -> 999.00007 | M71: 0 | O71: ='Ma5'!$N$27 -> FIN | Q71: =$M78 -> 2005 | R71: 5.04 | AM71: =$M78 -> 2005 | AN71: 5.04
A72: 6e-05 | E72: =IF(M5S3p>0,M5S3p,"") ->  | G72: =IF(M5S3p>0,M5S3,"") ->  | H72: =IF(M5S3p>0,M5S3Kat,"") ->  | I72: =$A72+'Ma5'!$P$25 -> 999.00006 | J72: =$A72+'Ma5'!$Q$25 -> 999.00006 | K72: =$A72+'Ma5'!$R$25 -> 999.00006 | L72: =$A72+'Ma5'!$S$25 -> 999.00006 | M72: 0 | O72: ='Ma5'!$T$27 -> FIN | Q72: =$M78 -> 2005 | R72: 5.05 | AM72: =$M78 -> 2005 | AN72: 5.05
A73: 5e-05 | E73: =IF(M5S4p>0,M5S4p,"") ->  | G73: =IF(M5S4p>0,M5S4,"") ->  | H73: =IF(M5S4p>0,M5S4Kat,"") ->  | I73: =$A73+'Ma5'!$V$25 -> 999.00005 | J73: =$A73+'Ma5'!$W$25 -> 999.00005 | K73: =$A73+'Ma5'!$X$25 -> 999.00005 | L73: =$A73+'Ma5'!$Y$25 -> 999.00005 | M73: 0 | O73: ='Ma5'!$Z$27 -> FIN | Q73: =$M78 -> 2005 | R73: 5.06 | AM73: =$M78 -> 2005 | AN73: 5.06
A74: 4e-05 | E74: =IF(M5S5p>0,M5S5p,"") ->  | G74: =IF(M5S5p>0,M5S5,"") ->  | H74: =IF(M5S5p>0,M5S5Kat,"") ->  | I74: =$A74+'Ma5'!$D$51 -> 999.00004 | J74: =$A74+'Ma5'!$E$51 -> 999.00004 | K74: =$A74+'Ma5'!$F$51 -> 999.00004 | L74: =$A74+'Ma5'!$G$51 -> 999.00004 | M74: 0 | O74: ='Ma5'!$H$53 -> FIN | Q74: =$M78 -> 2005 | R74: 5.07 | AM74: =$M78 -> 2005 | AN74: 5.07
A75: 3e-05 | E75: =IF(M5S6p>0,M5S6p,"") ->  | G75: =IF(M5S6p>0,M5S6,"") ->  | H75: =IF(M5S6p>0,M5S6Kat,"") ->  | I75: =$A75+'Ma5'!$J$51 -> 999.00003 | J75: =$A75+'Ma5'!$K$51 -> 999.00003 | K75: =$A75+'Ma5'!$L$51 -> 999.00003 | L75: =$A75+'Ma5'!$M$51 -> 999.00003 | M75: 0 | O75: ='Ma5'!$N$53 -> FIN | Q75: =$M78 -> 2005 | R75: 5.08 | AM75: =$M78 -> 2005 | AN75: 5.08
A76: 2e-05 | E76: =IF(M5S7p>0,M5S7p,"") ->  | G76: =IF(M5S7p>0,M5S7,"") ->  | H76: =IF(M5S7p>0,M5S7Kat,"") ->  | I76: =$A76+'Ma5'!$P$51 -> 999.00002 | J76: =$A76+'Ma5'!$Q$51 -> 999.00002 | K76: =$A76+'Ma5'!$R$51 -> 999.00002 | L76: =$A76+'Ma5'!$S$51 -> 999.00002 | M76: 0 | O76: ='Ma5'!$T$53 -> FIN | Q76: =$M78 -> 2005 | R76: 5.09 | AM76: =$M78 -> 2005 | AN76: 5.09
A77: 1e-05 | E77: =IF(M5S8p>0,M5S8p,"") ->  | G77: =IF(M5S8p>0,M5S8,"") ->  | H77: =IF(M5S8p>0,M5S8Kat,"") ->  | I77: =A77+'Ma5'!$V$51 -> 999.00001 | J77: =A77+'Ma5'!$W$51 -> 999.00001 | K77: =A77+'Ma5'!$X$51 -> 999.00001 | L77: =A77+'Ma5'!$Y$51 -> 999.00001 | M77: 0 | O77: ='Ma5'!$Z$53 -> FIN | Q77: =$M78 -> 2005 | R77: 5.1 | AM77: =$M78 -> 2005 | AN77: 5.1
I78: =IF($F$3=4,I79,IF($F$3=5,I80,IF($F$3=6,I81,"F2 ist falsch"))) -> 4995.00015 | J78: =IF($F$3=4,J79,IF($F$3=5,J80,IF($F$3=6,J81,"F2 ist falsch"))) -> 4995.00015 | K78: =IF($F$3=4,K79,IF($F$3=5,K80,IF($F$3=6,K81,"F2 ist falsch"))) -> 4995.00015 | L78: =IF($F$3=4,L79,IF($F$3=5,L80,IF($F$3=6,L81,"F2 ist falsch"))) -> 4995.00015 | M78: =IF(L78<999,SUM(I78:L78),IF(K78<999,SUM(I78:K78),IF(J78<999,SUM(I78:J78),IF(I78<999,SUM(I78),2005)))) -> 2005 | N78: =IF(M78<999,M78/(COUNTIF(I78:L78,"<999")*$F$3),"") ->  | O78: =IF(L78<3995,4,IF(K78<3995,3,IF(J78<3995,2,IF(I78<3995,1,0)))) -> 0 | Q78: =$M78 -> 2005 | R78: 5.11 | U78: =IF(AND(M78>0,M78=M94),1,0) -> 0 | AD78: =SUM(AE78:AI78) -> 0 | AE78: =IF(INT(M62)=INT(M78),1,0) -> 0 | AF78: =IF(INT(M78)=INT(M94),-1,0) -> 0 | AG78: =IF(AND(INT(M78)=INT(M94),INT(M94)=INT(M110)),-1,0) -> 0 | AH78: =IF(AND(INT(M46)=INT(M62),INT(M62)=INT(M78)),1,0) -> 0 | AI78: =IF(AND(INT(M62)=INT(M78),INT(M78)=INT(M94)),0,0) -> 0 | AM78: =$M78 -> 2005 | AN78: 5.11
E79: KKLEINSTE 1 - 4 | I79: =SUM(SMALL(I70:I77,1),SMALL(I70:I77,2),SMALL(I70:I77,3),SMALL(I70:I77,4)) -> 3996.0001 | J79: =SUM(SMALL(J70:J77,1),SMALL(J70:J77,2),SMALL(J70:J77,3),SMALL(J70:J77,4)) -> 3996.0001 | K79: =SUM(SMALL(K70:K77,1),SMALL(K70:K77,2),SMALL(K70:K77,3),SMALL(K70:K77,4)) -> 3996.0001 | L79: =SUM(SMALL(L70:L77,1),SMALL(L70:L77,2),SMALL(L70:L77,3),SMALL(L70:L77,4)) -> 3996.0001 | Q79: =$M78 -> 2005 | R79: 5.12 | AM79: =$M78 -> 2005 | AN79: 5.12
E80: KKLEINSTE 1 - 5 | I80: =SUM(I79,SMALL(I70:I77,5)) -> 4995.00015 | J80: =SUM(J79,SMALL(J70:J77,5)) -> 4995.00015 | K80: =SUM(K79,SMALL(K70:K77,5)) -> 4995.00015 | L80: =SUM(L79,SMALL(L70:L77,5)) -> 4995.00015 | Q80: =$M78 -> 2005 | R80: 5.13 | AM80: =$M78 -> 2005 | AN80: 5.13
E81: KKLEINSTE 1 - 6 | I81: =SUM(I80,SMALL(I70:I77,6)) -> 5994.00021 | J81: =SUM(J80,SMALL(J70:J77,6)) -> 5994.00021 | K81: =SUM(K80,SMALL(K70:K77,6)) -> 5994.00021 | L81: =SUM(L80,SMALL(L70:L77,6)) -> 5994.00021 | Q81: =$M78 -> 2005 | R81: 5.14 | AM81: =$M78 -> 2005 | AN81: 5.14
C82: AK | E82: =IF(M5SAKp>0,M5SAKp,"") ->  | G82: =IF(M5SAKp>0,M5SAK,"") ->  | H82: =IF(M5SAKp>0,M5SAKKat,"") ->  | I82: =+'Ma5'!$AB$51 -> 999 | J82: =+'Ma5'!$AC$51 -> 999 | K82: =+'Ma5'!$AD$51 -> 999 | L82: =+'Ma5'!$AE$51 -> 999 | M82: =IF(L82<999,SUM(I82:L82),IF(K82<999,SUM(I82:K82),IF(J82<999,SUM(I82:J82),IF(I82<999,SUM(I82),"")))) ->  | N82: =IF(M82<>"",M82/COUNTIF(I82:L82,"<>999"),"") ->  | O82: ='Ma5'!$AF$53 -> FIN | Q82: =$M78 -> 2005 | R82: 5.15 | AM82: =$M78 -> 2005 | AN82: 5.15
Q83: =$M78 -> 2005 | R83: 5.16 | AM83: =$M78 -> 2005 | AN83: 5.16
Q84: =$M94 -> 2006 | R84: 6.01 | AM84: =$M94 -> 2006 | AN84: 6.01
A85: 6. | B85: =IF(AND(AnzMa>0,M94>0),2*AnzMa-12+AD94,0) -> 0 | C85: Pkt. | E85: =+'Ma6'!$D$1 -> 0 | H85: Kat | I85: R1 | J85: R2 | K85: R3 | L85: R4 | M85: Ges | N85: Schnitt | Q85: =$M94 -> 2006 | R85: 6.02 | AM85: =$M94 -> 2006 | AN85: 6.02
A86: 8e-05 | E86: =IF(M6S1p>0,M6S1p,"") ->  | G86: =IF(M6S1p>0,M6S1,"") ->  | H86: =IF(M6S1p>0,M6S1Kat,"") ->  | I86: =$A86+'Ma6'!$D$25 -> 999.00008 | J86: =$A86+'Ma6'!$E$25 -> 999.00008 | K86: =$A86+'Ma6'!$F$25 -> 999.00008 | L86: =$A86+'Ma6'!$G$25 -> 999.00008 | M86: =IF(L86<>(999+$A86),SUM(I86:L86),IF(K86<>(999+$A86),SUM(I86:K86),IF(J86<>(999+$A86),SUM(I86:J86),IF(I86<>(999+$A86),I86,"0")))) -> 0 | N86: =IF(I86>=999,"",IF(M86>0,M86/COUNTIF(I86:L86,"<999"),"")) ->  | O86: ='Ma6'!$H$27 -> FIN | Q86: =$M94 -> 2006 | R86: 6.03 | AM86: =$M94 -> 2006 | AN86: 6.03
A87: 7e-05 | E87: =IF(M6S2p>0,M6S2p,"") ->  | G87: =IF(M6S2p>0,M6S2,"") ->  | H87: =IF(M6S2p>0,M6S2Kat,"") ->  | I87: =$A87+'Ma6'!$J$25 -> 999.00007 | J87: =$A87+'Ma6'!$K$25 -> 999.00007 | K87: =$A87+'Ma6'!$L$25 -> 999.00007 | L87: =$A87+'Ma6'!$M$25 -> 999.00007 | M87: 0 | O87: ='Ma6'!$N$27 -> FIN | Q87: =$M94 -> 2006 | R87: 6.04 | AM87: =$M94 -> 2006 | AN87: 6.04
A88: 6e-05 | E88: =IF(M6S3p>0,M6S3p,"") ->  | G88: =IF(M6S3p>0,M6S3,"") ->  | H88: =IF(M6S3p>0,M6S3Kat,"") ->  | I88: =$A88+'Ma6'!$P$25 -> 999.00006 | J88: =$A88+'Ma6'!$Q$25 -> 999.00006 | K88: =$A88+'Ma6'!$R$25 -> 999.00006 | L88: =$A88+'Ma6'!$S$25 -> 999.00006 | M88: 0 | O88: ='Ma6'!$T$27 -> FIN | Q88: =$M94 -> 2006 | R88: 6.05 | AM88: =$M94 -> 2006 | AN88: 6.05
A89: 5e-05 | E89: =IF(M6S4p>0,M6S4p,"") ->  | G89: =IF(M6S4p>0,M6S4,"") ->  | H89: =IF(M6S4p>0,M6S4Kat,"") ->  | I89: =$A89+'Ma6'!$V$25 -> 999.00005 | J89: =$A89+'Ma6'!$W$25 -> 999.00005 | K89: =$A89+'Ma6'!$X$25 -> 999.00005 | L89: =$A89+'Ma6'!$Y$25 -> 999.00005 | M89: 0 | O89: ='Ma6'!$Z$27 -> FIN | Q89: =$M94 -> 2006 | R89: 6.06 | AM89: =$M94 -> 2006 | AN89: 6.06
A90: 4e-05 | E90: =IF(M6S5p>0,M6S5p,"") ->  | G90: =IF(M6S5p>0,M6S5,"") ->  | H90: =IF(M6S5p>0,M6S5Kat,"") ->  | I90: =$A90+'Ma6'!$D$51 -> 999.00004 | J90: =$A90+'Ma6'!$E$51 -> 999.00004 | K90: =$A90+'Ma6'!$F$51 -> 999.00004 | L90: =$A90+'Ma6'!$G$51 -> 999.00004 | M90: 0 | O90: ='Ma6'!$H$53 -> FIN | Q90: =$M94 -> 2006 | R90: 6.07 | AM90: =$M94 -> 2006 | AN90: 6.07
A91: 3e-05 | E91: =IF(M6S6p>0,M6S6p,"") ->  | G91: =IF(M6S6p>0,M6S6,"") ->  | H91: =IF(M6S6p>0,M6S6Kat,"") ->  | I91: =$A91+'Ma6'!$J$51 -> 999.00003 | J91: =$A91+'Ma6'!$K$51 -> 999.00003 | K91: =$A91+'Ma6'!$L$51 -> 999.00003 | L91: =$A91+'Ma6'!$M$51 -> 999.00003 | M91: 0 | O91: ='Ma6'!$N$53 -> FIN | Q91: =$M94 -> 2006 | R91: 6.08 | AM91: =$M94 -> 2006 | AN91: 6.08
A92: 2e-05 | E92: =IF(M6S7p>0,M6S7p,"") ->  | G92: =IF(M6S7p>0,M6S7,"") ->  | H92: =IF(M6S7p>0,M6S7Kat,"") ->  | I92: =$A92+'Ma6'!$P$51 -> 999.00002 | J92: =$A92+'Ma6'!$Q$51 -> 999.00002 | K92: =$A92+'Ma6'!$R$51 -> 999.00002 | L92: =$A92+'Ma6'!$S$51 -> 999.00002 | M92: 0 | O92: ='Ma6'!$T$53 -> FIN | Q92: =$M94 -> 2006 | R92: 6.09 | AM92: =$M94 -> 2006 | AN92: 6.09
A93: 1e-05 | E93: =IF(M6S8p>0,M6S8p,"") ->  | G93: =IF(M6S8p>0,M6S8,"") ->  | H93: =IF(M6S8p>0,M6S8Kat,"") ->  | I93: =A93+'Ma6'!$V$51 -> 999.00001 | J93: =A93+'Ma6'!$W$51 -> 999.00001 | K93: =A93+'Ma6'!$X$51 -> 999.00001 | L93: =A93+'Ma6'!$Y$51 -> 999.00001 | M93: 0 | O93: ='Ma6'!$Z$53 -> FIN | Q93: =$M94 -> 2006 | R93: 6.1 | AM93: =$M94 -> 2006 | AN93: 6.1
I94: =IF($F$3=4,I95,IF($F$3=5,I96,IF($F$3=6,I97,"F2 ist falsch"))) -> 4995.00015 | J94: =IF($F$3=4,J95,IF($F$3=5,J96,IF($F$3=6,J97,"F2 ist falsch"))) -> 4995.00015 | K94: =IF($F$3=4,K95,IF($F$3=5,K96,IF($F$3=6,K97,"F2 ist falsch"))) -> 4995.00015 | L94: =IF($F$3=4,L95,IF($F$3=5,L96,IF($F$3=6,L97,"F2 ist falsch"))) -> 4995.00015 | M94: =IF(L94<999,SUM(I94:L94),IF(K94<999,SUM(I94:K94),IF(J94<999,SUM(I94:J94),IF(I94<999,SUM(I94),2006)))) -> 2006 | N94: =IF(M94<999,M94/(COUNTIF(I94:L94,"<999")*$F$3),"") ->  | O94: =IF(L94<3995,4,IF(K94<3995,3,IF(J94<3995,2,IF(I94<3995,1,0)))) -> 0 | Q94: =$M94 -> 2006 | R94: 6.11 | U94: =IF(AND(M94>0,M94=M110),1,0) -> 0 | AD94: =SUM(AE94:AI94) -> 0 | AE94: =IF(INT(M78)=INT(M94),1,0) -> 0 | AF94: =IF(INT(M94)=INT(M110),-1,0) -> 0 | AH94: =IF(AND(INT(M62)=INT(M78),INT(M78)=INT(M94)),1,0) -> 0 | AI94: =IF(AND(INT(M78)=INT(M94),INT(M94)=INT(M110)),0,0) -> 0 | AM94: =$M94 -> 2006 | AN94: 6.11
E95: KKLEINSTE 1 - 4 | I95: =SUM(SMALL(I86:I93,1),SMALL(I86:I93,2),SMALL(I86:I93,3),SMALL(I86:I93,4)) -> 3996.0001 | J95: =SUM(SMALL(J86:J93,1),SMALL(J86:J93,2),SMALL(J86:J93,3),SMALL(J86:J93,4)) -> 3996.0001 | K95: =SUM(SMALL(K86:K93,1),SMALL(K86:K93,2),SMALL(K86:K93,3),SMALL(K86:K93,4)) -> 3996.0001 | L95: =SUM(SMALL(L86:L93,1),SMALL(L86:L93,2),SMALL(L86:L93,3),SMALL(L86:L93,4)) -> 3996.0001 | Q95: =$M94 -> 2006 | R95: 6.12 | AM95: =$M94 -> 2006 | AN95: 6.12
E96: KKLEINSTE 1 - 5 | I96: =SUM(I95,SMALL(I86:I93,5)) -> 4995.00015 | J96: =SUM(J95,SMALL(J86:J93,5)) -> 4995.00015 | K96: =SUM(K95,SMALL(K86:K93,5)) -> 4995.00015 | L96: =SUM(L95,SMALL(L86:L93,5)) -> 4995.00015 | Q96: =$M94 -> 2006 | R96: 6.13 | AM96: =$M94 -> 2006 | AN96: 6.13
E97: KKLEINSTE 1 - 6 | I97: =SUM(I96,SMALL(I86:I93,6)) -> 5994.00021 | J97: =SUM(J96,SMALL(J86:J93,6)) -> 5994.00021 | K97: =SUM(K96,SMALL(K86:K93,6)) -> 5994.00021 | L97: =SUM(L96,SMALL(L86:L93,6)) -> 5994.00021 | Q97: =$M94 -> 2006 | R97: 6.14 | AM97: =$M94 -> 2006 | AN97: 6.14
C98: AK | E98: =IF(M6SAKp>0,M6SAKp,"") ->  | G98: =IF(M6SAKp>0,M6SAK,"") ->  | H98: =IF(M6SAKp>0,M6SAKKat,"") ->  | I98: =+'Ma6'!$AB$51 -> 999 | J98: =+'Ma6'!$AC$51 -> 999 | K98: =+'Ma6'!$AD$51 -> 999 | L98: =+'Ma6'!$AE$51 -> 999 | M98: =IF(L98<999,SUM(I98:L98),IF(K98<999,SUM(I98:K98),IF(J98<999,SUM(I98:J98),IF(I98<999,SUM(I98),"")))) ->  | N98: =IF(M98<>"",M98/COUNTIF(I98:L98,"<>999"),"") ->  | O98: ='Ma6'!$AF$53 -> FIN | Q98: =$M94 -> 2006 | R98: 6.15 | AM98: =$M94 -> 2006 | AN98: 6.15
Q99: =$M94 -> 2006 | R99: 6.16 | AM99: =$M94 -> 2006 | AN99: 6.16
Q100: =$M110 -> 2007 | R100: 7.01 | AM100: =$M110 -> 2007 | AN100: 7.01
A101: 7. | B101: =IF(AND(AnzMa>0,M110>0),2*AnzMa-14+AD110,0) -> 0 | C101: Pkt. | E101: =+'Ma7'!$D$1 -> 0 | H101: Kat | I101: R1 | J101: R2 | K101: R3 | L101: R4 | M101: Ges | N101: Schnitt | Q101: =$M110 -> 2007 | R101: 7.02 | AM101: =$M110 -> 2007 | AN101: 7.02
A102: 8e-05 | E102: =IF(M7S1p>0,M7S1p,"") ->  | G102: =IF(M7S1p>0,M7S1,"") ->  | H102: =IF(M7S1p>0,M7S1Kat,"") ->  | I102: =$A102+'Ma7'!$D$25 -> 999.00008 | J102: =$A102+'Ma7'!$E$25 -> 999.00008 | K102: =$A102+'Ma7'!$F$25 -> 999.00008 | L102: =$A102+'Ma7'!$G$25 -> 999.00008 | M102: =IF(L102<>(999+$A102),SUM(I102:L102),IF(K102<>(999+$A102),SUM(I102:K102),IF(J102<>(999+$A102),SUM(I102:J102),IF(I102<>(999+$A102),I102,"0")))) -> 0 | N102: =IF(I102>=999,"",IF(M102>0,M102/COUNTIF(I102:L102,"<999"),"")) ->  | O102: ='Ma7'!$H$27 -> FIN | Q102: =$M110 -> 2007 | R102: 7.03 | AM102: =$M110 -> 2007 | AN102: 7.03
A103: 7e-05 | E103: =IF(M7S2p>0,M7S2p,"") ->  | G103: =IF(M7S2p>0,M7S2,"") ->  | H103: =IF(M7S2p>0,M7S2Kat,"") ->  | I103: =$A103+'Ma7'!$J$25 -> 999.00007 | J103: =$A103+'Ma7'!$K$25 -> 999.00007 | K103: =$A103+'Ma7'!$L$25 -> 999.00007 | L103: =$A103+'Ma7'!$M$25 -> 999.00007 | M103: 0 | O103: ='Ma7'!$N$27 -> FIN | Q103: =$M110 -> 2007 | R103: 7.04 | AM103: =$M110 -> 2007 | AN103: 7.04
A104: 6e-05 | E104: =IF(M7S3p>0,M7S3p,"") ->  | G104: =IF(M7S3p>0,M7S3,"") ->  | H104: =IF(M7S3p>0,M7S3Kat,"") ->  | I104: =$A104+'Ma7'!$P$25 -> 999.00006 | J104: =$A104+'Ma7'!$Q$25 -> 999.00006 | K104: =$A104+'Ma7'!$R$25 -> 999.00006 | L104: =$A104+'Ma7'!$S$25 -> 999.00006 | M104: 0 | O104: ='Ma7'!$T$27 -> FIN | Q104: =$M110 -> 2007 | R104: 7.05 | AM104: =$M110 -> 2007 | AN104: 7.05
A105: 5e-05 | E105: =IF(M7S4p>0,M7S4p,"") ->  | G105: =IF(M7S4p>0,M7S4,"") ->  | H105: =IF(M7S4p>0,M7S4Kat,"") ->  | I105: =$A105+'Ma7'!$V$25 -> 999.00005 | J105: =$A105+'Ma7'!$W$25 -> 999.00005 | K105: =$A105+'Ma7'!$X$25 -> 999.00005 | L105: =$A105+'Ma7'!$Y$25 -> 999.00005 | M105: 0 | O105: ='Ma7'!$Z$27 -> FIN | Q105: =$M110 -> 2007 | R105: 7.06 | AM105: =$M110 -> 2007 | AN105: 7.06
A106: 4e-05 | E106: =IF(M7S5p>0,M7S5p,"") ->  | G106: =IF(M7S5p>0,M7S5,"") ->  | H106: =IF(M7S5p>0,M7S5Kat,"") ->  | I106: =$A106+'Ma7'!$D$51 -> 999.00004 | J106: =$A106+'Ma7'!$E$51 -> 999.00004 | K106: =$A106+'Ma7'!$F$51 -> 999.00004 | L106: =$A106+'Ma7'!$G$51 -> 999.00004 | M106: 0 | O106: ='Ma7'!$H$53 -> FIN | Q106: =$M110 -> 2007 | R106: 7.07 | AM106: =$M110 -> 2007 | AN106: 7.07
A107: 3e-05 | E107: =IF(M7S6p>0,M7S6p,"") ->  | G107: =IF(M7S6p>0,M7S6,"") ->  | H107: =IF(M7S6p>0,M7S6Kat,"") ->  | I107: =$A107+'Ma7'!$J$51 -> 999.00003 | J107: =$A107+'Ma7'!$K$51 -> 999.00003 | K107: =$A107+'Ma7'!$L$51 -> 999.00003 | L107: =$A107+'Ma7'!$M$51 -> 999.00003 | M107: 0 | O107: ='Ma7'!$N$53 -> FIN | Q107: =$M110 -> 2007 | R107: 7.08 | AM107: =$M110 -> 2007 | AN107: 7.08
A108: 2e-05 | E108: =IF(M7S7p>0,M7S7p,"") ->  | G108: =IF(M7S7p>0,M7S7,"") ->  | H108: =IF(M7S7p>0,M7S7Kat,"") ->  | I108: =$A108+'Ma7'!$P$51 -> 999.00002 | J108: =$A108+'Ma7'!$Q$51 -> 999.00002 | K108: =$A108+'Ma7'!$R$51 -> 999.00002 | L108: =$A108+'Ma7'!$S$51 -> 999.00002 | M108: 0 | O108: ='Ma7'!$T$53 -> FIN | Q108: =$M110 -> 2007 | R108: 7.09 | AM108: =$M110 -> 2007 | AN108: 7.09
A109: 1e-05 | E109: =IF(M7S8p>0,M7S8p,"") ->  | G109: =IF(M7S8p>0,M7S8,"") ->  | H109: =IF(M7S8p>0,M7S8Kat,"") ->  | I109: =A109+'Ma7'!$V$51 -> 999.00001 | J109: =A109+'Ma7'!$W$51 -> 999.00001 | K109: =A109+'Ma7'!$X$51 -> 999.00001 | L109: =A109+'Ma7'!$Y$51 -> 999.00001 | M109: 0 | O109: ='Ma7'!$Z$53 -> FIN | Q109: =$M110 -> 2007 | R109: 7.1 | AM109: =$M110 -> 2007 | AN109: 7.1
I110: =IF($F$3=4,I111,IF($F$3=5,I112,IF($F$3=6,I113,"F2 ist falsch"))) -> 4995.00015 | J110: =IF($F$3=4,J111,IF($F$3=5,J112,IF($F$3=6,J113,"F2 ist falsch"))) -> 4995.00015 | K110: =IF($F$3=4,K111,IF($F$3=5,K112,IF($F$3=6,K113,"F2 ist falsch"))) -> 4995.00015 | L110: =IF($F$3=4,L111,IF($F$3=5,L112,IF($F$3=6,L113,"F2 ist falsch"))) -> 4995.00015 | M110: =IF(L110<999,SUM(I110:L110),IF(K110<999,SUM(I110:K110),IF(J110<999,SUM(I110:J110),IF(I110<999,SUM(I110),2007)))) -> 2007 | N110: =IF(M110<999,M110/(COUNTIF(I110:L110,"<999")*$F$3),"") ->  | O110: =IF(L110<3995,4,IF(K110<3995,3,IF(J110<3995,2,IF(I110<3995,1,0)))) -> 0 | Q110: =$M110 -> 2007 | R110: 7.11 | U110: =IF(AND(M111>0,M111=M127),1,0) -> 0 | AD110: =SUM(AE110:AI110) -> 0 | AE110: =IF(INT(M94)=INT(M110),1,0) -> 0 | AH110: =IF(AND(INT(M78)=INT(M94),INT(M94)=INT(M110)),1,0) -> 0 | AM110: =$M110 -> 2007 | AN110: 7.11
E111: KKLEINSTE 1 - 4 | I111: =SUM(SMALL(I102:I109,1),SMALL(I102:I109,2),SMALL(I102:I109,3),SMALL(I102:I109,4)) -> 3996.0001 | J111: =SUM(SMALL(J102:J109,1),SMALL(J102:J109,2),SMALL(J102:J109,3),SMALL(J102:J109,4)) -> 3996.0001 | K111: =SUM(SMALL(K102:K109,1),SMALL(K102:K109,2),SMALL(K102:K109,3),SMALL(K102:K109,4)) -> 3996.0001 | L111: =SUM(SMALL(L102:L109,1),SMALL(L102:L109,2),SMALL(L102:L109,3),SMALL(L102:L109,4)) -> 3996.0001 | Q111: =$M110 -> 2007 | R111: 7.12 | AM111: =$M110 -> 2007 | AN111: 7.12
E112: KKLEINSTE 1 - 5 | I112: =SUM(I111,SMALL(I102:I109,5)) -> 4995.00015 | J112: =SUM(J111,SMALL(J102:J109,5)) -> 4995.00015 | K112: =SUM(K111,SMALL(K102:K109,5)) -> 4995.00015 | L112: =SUM(L111,SMALL(L102:L109,5)) -> 4995.00015 | Q112: =$M110 -> 2007 | R112: 7.13 | AM112: =$M110 -> 2007 | AN112: 7.13
E113: KKLEINSTE 1 - 6 | I113: =SUM(I112,SMALL(I102:I109,6)) -> 5994.00021 | J113: =SUM(J112,SMALL(J102:J109,6)) -> 5994.00021 | K113: =SUM(K112,SMALL(K102:K109,6)) -> 5994.00021 | L113: =SUM(L112,SMALL(L102:L109,6)) -> 5994.00021 | Q113: =$M110 -> 2007 | R113: 7.14 | AM113: =$M110 -> 2007 | AN113: 7.14
C114: AK | E114: =IF(M7SAKp>0,M7SAKp,"") ->  | G114: =IF(M7SAKp>0,M7SAK,"") ->  | H114: =IF(M7SAKp>0,M7SAKKat,"") ->  | I114: =+'Ma7'!$AB$51 -> 999 | J114: =+'Ma7'!$AC$51 -> 999 | K114: =+'Ma7'!$AD$51 -> 999 | L114: =+'Ma7'!$AE$51 -> 999 | M114: =IF(L114<999,SUM(I114:L114),IF(K114<999,SUM(I114:K114),IF(J114<999,SUM(I114:J114),IF(I114<999,SUM(I114),"")))) ->  | N114: =IF(M114<>"",M114/COUNTIF(I114:L114,"<>999"),"") ->  | O114: ='Ma7'!$AF$53 -> FIN | Q114: =$M110 -> 2007 | R114: 7.15 | AM114: =$M110 -> 2007 | AN114: 7.15
Q116: =$M110 -> 2007 | R116: 7.16 | AM116: =$M110 -> 2007 | AN116: 7.16
C117: Verein | E117: ='Ergebn-EINGABE Einzel'!E3 -> Einzelspieler | G117: Name | H117: Kat | I117: R1 | J117: R2 | K117: R3 | L117: R4 | M117: Ges | N117: Schnitt
C118: ='Ergebn-EINGABE Einzel'!H5 ->  | D118: =IF(E118="",1,0) -> 1 | E118: ='Ergebn-EINGABE Einzel'!E5 ->  | G118: ='Ergebn-EINGABE Einzel'!G5 ->  | H118: ='Ergebn-EINGABE Einzel'!I5 ->  | I118: ='Ergebn-EINGABE Einzel'!J5 -> 0 | J118: ='Ergebn-EINGABE Einzel'!K5 -> 0 | K118: ='Ergebn-EINGABE Einzel'!L5 -> 0 | L118: ='Ergebn-EINGABE Einzel'!M5 -> 0 | M118: ='Ergebn-EINGABE Einzel'!N5 -> 0 | N118: ='Ergebn-EINGABE Einzel'!O5 -> 
C119: ='Ergebn-EINGABE Einzel'!H6 ->  | D119: 1 | E119: ='Ergebn-EINGABE Einzel'!E6 ->  | G119: ='Ergebn-EINGABE Einzel'!G6 ->  | H119: ='Ergebn-EINGABE Einzel'!I6 ->  | I119: ='Ergebn-EINGABE Einzel'!J6 -> 0 | J119: ='Ergebn-EINGABE Einzel'!K6 -> 0 | K119: ='Ergebn-EINGABE Einzel'!L6 -> 0 | L119: ='Ergebn-EINGABE Einzel'!M6 -> 0 | M119: ='Ergebn-EINGABE Einzel'!N6 -> 0 | N119: ='Ergebn-EINGABE Einzel'!O6 -> 
C120: ='Ergebn-EINGABE Einzel'!H7 ->  | D120: 1 | E120: ='Ergebn-EINGABE Einzel'!E7 ->  | G120: ='Ergebn-EINGABE Einzel'!G7 ->  | H120: ='Ergebn-EINGABE Einzel'!I7 ->  | I120: ='Ergebn-EINGABE Einzel'!J7 -> 0 | J120: ='Ergebn-EINGABE Einzel'!K7 -> 0 | K120: ='Ergebn-EINGABE Einzel'!L7 -> 0 | L120: ='Ergebn-EINGABE Einzel'!M7 -> 0 | M120: ='Ergebn-EINGABE Einzel'!N7 -> 0 | N120: ='Ergebn-EINGABE Einzel'!O7 -> 
C121: ='Ergebn-EINGABE Einzel'!H8 ->  | D121: 1 | E121: ='Ergebn-EINGABE Einzel'!E8 ->  | G121: ='Ergebn-EINGABE Einzel'!G8 ->  | H121: ='Ergebn-EINGABE Einzel'!I8 ->  | I121: ='Ergebn-EINGABE Einzel'!J8 -> 0 | J121: ='Ergebn-EINGABE Einzel'!K8 -> 0 | K121: ='Ergebn-EINGABE Einzel'!L8 -> 0 | L121: ='Ergebn-EINGABE Einzel'!M8 -> 0 | M121: ='Ergebn-EINGABE Einzel'!N8 -> 0 | N121: ='Ergebn-EINGABE Einzel'!O8 -> 0
C122: ='Ergebn-EINGABE Einzel'!H9 ->  | D122: 1 | E122: ='Ergebn-EINGABE Einzel'!E9 ->  | G122: ='Ergebn-EINGABE Einzel'!G9 ->  | H122: ='Ergebn-EINGABE Einzel'!I9 ->  | I122: ='Ergebn-EINGABE Einzel'!J9 -> 0 | J122: ='Ergebn-EINGABE Einzel'!K9 -> 0 | K122: ='Ergebn-EINGABE Einzel'!L9 -> 0 | L122: ='Ergebn-EINGABE Einzel'!M9 -> 0 | M122: ='Ergebn-EINGABE Einzel'!N9 -> 0 | N122: ='Ergebn-EINGABE Einzel'!O9 -> 0
C123: ='Ergebn-EINGABE Einzel'!H10 ->  | D123: 1 | E123: ='Ergebn-EINGABE Einzel'!E10 ->  | G123: ='Ergebn-EINGABE Einzel'!G10 ->  | H123: ='Ergebn-EINGABE Einzel'!I10 ->  | I123: ='Ergebn-EINGABE Einzel'!J10 -> 0 | J123: ='Ergebn-EINGABE Einzel'!K10 -> 0 | K123: ='Ergebn-EINGABE Einzel'!L10 -> 0 | L123: ='Ergebn-EINGABE Einzel'!M10 -> 0 | M123: ='Ergebn-EINGABE Einzel'!N10 -> 0 | N123: ='Ergebn-EINGABE Einzel'!O10 -> 
C124: ='Ergebn-EINGABE Einzel'!H11 ->  | D124: 1 | E124: ='Ergebn-EINGABE Einzel'!E11 ->  | G124: ='Ergebn-EINGABE Einzel'!G11 ->  | H124: ='Ergebn-EINGABE Einzel'!I11 ->  | I124: ='Ergebn-EINGABE Einzel'!J11 -> 0 | J124: ='Ergebn-EINGABE Einzel'!K11 -> 0 | K124: ='Ergebn-EINGABE Einzel'!L11 -> 0 | L124: ='Ergebn-EINGABE Einzel'!M11 -> 0 | M124: ='Ergebn-EINGABE Einzel'!N11 -> 0 | N124: ='Ergebn-EINGABE Einzel'!O11 -> 
C125: ='Ergebn-EINGABE Einzel'!H12 ->  | D125: 1 | E125: ='Ergebn-EINGABE Einzel'!E12 ->  | G125: ='Ergebn-EINGABE Einzel'!G12 ->  | H125: ='Ergebn-EINGABE Einzel'!I12 ->  | I125: ='Ergebn-EINGABE Einzel'!J12 -> 0 | J125: ='Ergebn-EINGABE Einzel'!K12 -> 0 | K125: ='Ergebn-EINGABE Einzel'!L12 -> 0 | L125: ='Ergebn-EINGABE Einzel'!M12 -> 0 | M125: ='Ergebn-EINGABE Einzel'!N12 -> 0 | N125: ='Ergebn-EINGABE Einzel'!O12 -> 
C126: ='Ergebn-EINGABE Einzel'!H13 ->  | D126: 1 | E126: ='Ergebn-EINGABE Einzel'!E13 ->  | G126: ='Ergebn-EINGABE Einzel'!G13 ->  | H126: ='Ergebn-EINGABE Einzel'!I13 ->  | I126: ='Ergebn-EINGABE Einzel'!J13 -> 0 | J126: ='Ergebn-EINGABE Einzel'!K13 -> 0 | K126: ='Ergebn-EINGABE Einzel'!L13 -> 0 | L126: ='Ergebn-EINGABE Einzel'!M13 -> 0 | M126: ='Ergebn-EINGABE Einzel'!N13 -> 0 | N126: ='Ergebn-EINGABE Einzel'!O13 -> 
C127: ='Ergebn-EINGABE Einzel'!H14 ->  | D127: 1 | E127: ='Ergebn-EINGABE Einzel'!E14 ->  | G127: ='Ergebn-EINGABE Einzel'!G14 ->  | H127: ='Ergebn-EINGABE Einzel'!I14 ->  | I127: ='Ergebn-EINGABE Einzel'!J14 -> 0 | J127: ='Ergebn-EINGABE Einzel'!K14 -> 0 | K127: ='Ergebn-EINGABE Einzel'!L14 -> 0 | L127: ='Ergebn-EINGABE Einzel'!M14 -> 0 | M127: ='Ergebn-EINGABE Einzel'!N14 -> 0 | N127: ='Ergebn-EINGABE Einzel'!O14 -> 
C128: ='Ergebn-EINGABE Einzel'!H15 ->  | D128: 1 | E128: ='Ergebn-EINGABE Einzel'!E15 ->  | G128: ='Ergebn-EINGABE Einzel'!G15 ->  | H128: ='Ergebn-EINGABE Einzel'!I15 ->  | I128: ='Ergebn-EINGABE Einzel'!J15 -> 0 | J128: ='Ergebn-EINGABE Einzel'!K15 -> 0 | K128: ='Ergebn-EINGABE Einzel'!L15 -> 0 | L128: ='Ergebn-EINGABE Einzel'!M15 -> 0 | M128: ='Ergebn-EINGABE Einzel'!N15 -> 0 | N128: ='Ergebn-EINGABE Einzel'!O15 -> 
C129: ='Ergebn-EINGABE Einzel'!H16 ->  | D129: 1 | E129: ='Ergebn-EINGABE Einzel'!E16 ->  | G129: ='Ergebn-EINGABE Einzel'!G16 ->  | H129: ='Ergebn-EINGABE Einzel'!I16 ->  | I129: ='Ergebn-EINGABE Einzel'!J16 -> 0 | J129: ='Ergebn-EINGABE Einzel'!K16 -> 0 | K129: ='Ergebn-EINGABE Einzel'!L16 -> 0 | L129: ='Ergebn-EINGABE Einzel'!M16 -> 0 | M129: ='Ergebn-EINGABE Einzel'!N16 -> 0 | N129: ='Ergebn-EINGABE Einzel'!O16 -> 
C130: ='Ergebn-EINGABE Einzel'!H17 ->  | D130: 1 | E130: ='Ergebn-EINGABE Einzel'!E17 ->  | G130: ='Ergebn-EINGABE Einzel'!G17 ->  | H130: ='Ergebn-EINGABE Einzel'!I17 ->  | I130: ='Ergebn-EINGABE Einzel'!J17 -> 0 | J130: ='Ergebn-EINGABE Einzel'!K17 -> 0 | K130: ='Ergebn-EINGABE Einzel'!L17 -> 0 | L130: ='Ergebn-EINGABE Einzel'!M17 -> 0 | M130: ='Ergebn-EINGABE Einzel'!N17 -> 0 | N130: ='Ergebn-EINGABE Einzel'!O17 -> 

Sheet Bahnstatistik
A2: =+Seite1!B3 ->  | E2: =+Seite1!C5 ->  | F2: =+Seite1!D5 -> . Spieltag
A3: Bahn | C3: =IF(Ma1_Eing>0,Ma1_Eing,"X") -> X | D3: =IF(Ma2_Eing>0,Ma2_Eing,"X") -> X | E3: =IF(Ma3_Eing>0,Ma3_Eing,"X") -> X | F3: =IF(Ma4_Eing>0,Ma4_Eing,"X") -> X | G3: =IF(Ma5_Eing>0,Ma5_Eing,"X") -> X | H3: =IF(Ma6_Eing>0,Ma6_Eing,"X") -> X | I3: =IF(Ma7_Eing>0,Ma7_Eing,"X") -> X | J3: Bahnenschnitt am Spieltag
A4: Nr. | B4: Bezeichnung | J4: =COUNTIF(C5:I5,">6") -> 0
A5: 1 | B5: =IF(+Eing.Allg..Daten!$D$8<>"",+VLOOKUP(A5,Bahnen!$A$52:$B$144,2,0),"") ->  | C5: =IF('Ma1'!$AB6>0,'Ma1'!$AB6,"X") -> X | D5: =IF('Ma2'!$AB6>0,'Ma2'!$AB6,"X") -> X | E5: =IF('Ma3'!$AB6>0,'Ma3'!$AB6,"X") -> X | F5: =IF('Ma4'!$AB6>0,'Ma4'!$AB6,"X") -> X | G5: =IF('Ma5'!$AB6>0,'Ma5'!$AB6,"X") -> X | H5: =IF('Ma6'!$AB6>0,'Ma6'!$AB6,"X") -> X | I5: =IF('Ma7'!$AB6>0,'Ma7'!$AB6,"X") -> X
C6: =IF(C5="X","",C5/(Tagestabelle!$N$3*AnzSpieler)) ->  | D6: =IF(D5="X","",D5/(Tagestabelle!$N$3*AnzSpieler)) ->  | E6: =IF(E5="X","",E5/(Tagestabelle!$N$3*AnzSpieler)) ->  | F6: =IF(F5="X","",F5/(Tagestabelle!$N$3*AnzSpieler)) ->  | G6: =IF(G5="X","",G5/(Tagestabelle!$N$3*AnzSpieler)) ->  | H6: =IF(H5="X","",H5/(Tagestabelle!$N$3*AnzSpieler)) ->  | I6: =IF(I5="X","",I5/(Tagestabelle!$N$3*AnzSpieler)) ->  | J6: =IF(C5="X","",(SUM(C5:I5))/(Tagestabelle!$N$3*AnzSpieler*$J$4)) -> 
A7: 2 | B7: =IF(+Eing.Allg..Daten!$D$8<>"",+VLOOKUP(A7,Bahnen!$A$52:$B$144,2,0),"") ->  | C7: =IF('Ma1'!$AB7>0,'Ma1'!$AB7,"X") -> X | D7: =IF('Ma2'!$AB7>0,'Ma2'!$AB7,"X") -> X | E7: =IF('Ma3'!$AB7>0,'Ma3'!$AB7,"X") -> X | F7: =IF('Ma4'!$AB7>0,'Ma4'!$AB7,"X") -> X | G7: =IF('Ma5'!$AB7>0,'Ma5'!$AB7,"X") -> X | H7: =IF('Ma6'!$AB7>0,'Ma6'!$AB7,"X") -> X | I7: =IF('Ma7'!$AB7>0,'Ma7'!$AB7,"X") -> X
C8: =IF(C7="X","",C7/(Tagestabelle!$N$3*AnzSpieler)) ->  | D8: =IF(D7="X","",D7/(Tagestabelle!$N$3*AnzSpieler)) ->  | E8: =IF(E7="X","",E7/(Tagestabelle!$N$3*AnzSpieler)) ->  | F8: =IF(F7="X","",F7/(Tagestabelle!$N$3*AnzSpieler)) ->  | G8: =IF(G7="X","",G7/(Tagestabelle!$N$3*AnzSpieler)) ->  | H8: =IF(H7="X","",H7/(Tagestabelle!$N$3*AnzSpieler)) ->  | I8: =IF(I7="X","",I7/(Tagestabelle!$N$3*AnzSpieler)) ->  | J8: =IF(C7="X","",(SUM(C7:I7))/(Tagestabelle!$N$3*AnzSpieler*$J$4)) -> 
A9: 3 | B9: =IF(+Eing.Allg..Daten!$D$8<>"",+VLOOKUP(A9,Bahnen!$A$52:$B$144,2,0),"") ->  | C9: =IF('Ma1'!$AB8>0,'Ma1'!$AB8,"X") -> X | D9: =IF('Ma2'!$AB8>0,'Ma2'!$AB8,"X") -> X | E9: =IF('Ma3'!$AB8>0,'Ma3'!$AB8,"X") -> X | F9: =IF('Ma4'!$AB8>0,'Ma4'!$AB8,"X") -> X | G9: =IF('Ma5'!$AB8>0,'Ma5'!$AB8,"X") -> X | H9: =IF('Ma6'!$AB8>0,'Ma6'!$AB8,"X") -> X | I9: =IF('Ma7'!$AB8>0,'Ma7'!$AB8,"X") -> X
C10: =IF(C9="X","",C9/(Tagestabelle!$N$3*AnzSpieler)) ->  | D10: =IF(D9="X","",D9/(Tagestabelle!$N$3*AnzSpieler)) ->  | E10: =IF(E9="X","",E9/(Tagestabelle!$N$3*AnzSpieler)) ->  | F10: =IF(F9="X","",F9/(Tagestabelle!$N$3*AnzSpieler)) ->  | G10: =IF(G9="X","",G9/(Tagestabelle!$N$3*AnzSpieler)) ->  | H10: =IF(H9="X","",H9/(Tagestabelle!$N$3*AnzSpieler)) ->  | I10: =IF(I9="X","",I9/(Tagestabelle!$N$3*AnzSpieler)) ->  | J10: =IF(C9="X","",(SUM(C9:I9))/(Tagestabelle!$N$3*AnzSpieler*$J$4)) -> 
A11: 4 | B11: =IF(+Eing.Allg..Daten!$D$8<>"",+VLOOKUP(A11,Bahnen!$A$52:$B$144,2,0),"") ->  | C11: =IF('Ma1'!$AB9>0,'Ma1'!$AB9,"X") -> X | D11: =IF('Ma2'!$AB9>0,'Ma2'!$AB9,"X") -> X | E11: =IF('Ma3'!$AB9>0,'Ma3'!$AB9,"X") -> X | F11: =IF('Ma4'!$AB9>0,'Ma4'!$AB9,"X") -> X | G11: =IF('Ma5'!$AB9>0,'Ma5'!$AB9,"X") -> X | H11: =IF('Ma6'!$AB9>0,'Ma6'!$AB9,"X") -> X | I11: =IF('Ma7'!$AB9>0,'Ma7'!$AB9,"X") -> X
C12: =IF(C11="X","",C11/(Tagestabelle!$N$3*AnzSpieler)) ->  | D12: =IF(D11="X","",D11/(Tagestabelle!$N$3*AnzSpieler)) ->  | E12: =IF(E11="X","",E11/(Tagestabelle!$N$3*AnzSpieler)) ->  | F12: =IF(F11="X","",F11/(Tagestabelle!$N$3*AnzSpieler)) ->  | G12: =IF(G11="X","",G11/(Tagestabelle!$N$3*AnzSpieler)) ->  | H12: =IF(H11="X","",H11/(Tagestabelle!$N$3*AnzSpieler)) ->  | I12: =IF(I11="X","",I11/(Tagestabelle!$N$3*AnzSpieler)) ->  | J12: =IF(C11="X","",(SUM(C11:I11))/(Tagestabelle!$N$3*AnzSpieler*$J$4)) -> 
A13: 5 | B13: =IF(+Eing.Allg..Daten!$D$8<>"",+VLOOKUP(A13,Bahnen!$A$52:$B$144,2,0),"") ->  | C13: =IF('Ma1'!$AB10>0,'Ma1'!$AB10,"X") -> X | D13: =IF('Ma2'!$AB10>0,'Ma2'!$AB10,"X") -> X | E13: =IF('Ma3'!$AB10>0,'Ma3'!$AB10,"X") -> X | F13: =IF('Ma4'!$AB10>0,'Ma4'!$AB10,"X") -> X | G13: =IF('Ma5'!$AB10>0,'Ma5'!$AB10,"X") -> X | H13: =IF('Ma6'!$AB10>0,'Ma6'!$AB10,"X") -> X | I13: =IF('Ma7'!$AB10>0,'Ma7'!$AB10,"X") -> X
C14: =IF(C13="X","",C13/(Tagestabelle!$N$3*AnzSpieler)) ->  | D14: =IF(D13="X","",D13/(Tagestabelle!$N$3*AnzSpieler)) ->  | E14: =IF(E13="X","",E13/(Tagestabelle!$N$3*AnzSpieler)) ->  | F14: =IF(F13="X","",F13/(Tagestabelle!$N$3*AnzSpieler)) ->  | G14: =IF(G13="X","",G13/(Tagestabelle!$N$3*AnzSpieler)) ->  | H14: =IF(H13="X","",H13/(Tagestabelle!$N$3*AnzSpieler)) ->  | I14: =IF(I13="X","",I13/(Tagestabelle!$N$3*AnzSpieler)) ->  | J14: =IF(C13="X","",(SUM(C13:I13))/(Tagestabelle!$N$3*AnzSpieler*$J$4)) -> 
A15: 6 | B15: =IF(+Eing.Allg..Daten!$D$8<>"",+VLOOKUP(A15,Bahnen!$A$52:$B$144,2,0),"") ->  | C15: =IF('Ma1'!$AB11>0,'Ma1'!$AB11,"X") -> X | D15: =IF('Ma2'!$AB11>0,'Ma2'!$AB11,"X") -> X | E15: =IF('Ma3'!$AB11>0,'Ma3'!$AB11,"X") -> X | F15: =IF('Ma4'!$AB11>0,'Ma4'!$AB11,"X") -> X | G15: =IF('Ma5'!$AB11>0,'Ma5'!$AB11,"X") -> X | H15: =IF('Ma6'!$AB11>0,'Ma6'!$AB11,"X") -> X | I15: =IF('Ma7'!$AB11>0,'Ma7'!$AB11,"X") -> X
C16: =IF(C15="X","",C15/(Tagestabelle!$N$3*AnzSpieler)) ->  | D16: =IF(D15="X","",D15/(Tagestabelle!$N$3*AnzSpieler)) ->  | E16: =IF(E15="X","",E15/(Tagestabelle!$N$3*AnzSpieler)) ->  | F16: =IF(F15="X","",F15/(Tagestabelle!$N$3*AnzSpieler)) ->  | G16: =IF(G15="X","",G15/(Tagestabelle!$N$3*AnzSpieler)) ->  | H16: =IF(H15="X","",H15/(Tagestabelle!$N$3*AnzSpieler)) ->  | I16: =IF(I15="X","",I15/(Tagestabelle!$N$3*AnzSpieler)) ->  | J16: =IF(C15="X","",(SUM(C15:I15))/(Tagestabelle!$N$3*AnzSpieler*$J$4)) -> 
A17: 7 | B17: =IF(+Eing.Allg..Daten!$D$8<>"",+VLOOKUP(A17,Bahnen!$A$52:$B$144,2,0),"") ->  | C17: =IF('Ma1'!$AB12>0,'Ma1'!$AB12,"X") -> X | D17: =IF('Ma2'!$AB12>0,'Ma2'!$AB12,"X") -> X | E17: =IF('Ma3'!$AB12>0,'Ma3'!$AB12,"X") -> X | F17: =IF('Ma4'!$AB12>0,'Ma4'!$AB12,"X") -> X | G17: =IF('Ma5'!$AB12>0,'Ma5'!$AB12,"X") -> X | H17: =IF('Ma6'!$AB12>0,'Ma6'!$AB12,"X") -> X | I17: =IF('Ma7'!$AB12>0,'Ma7'!$AB12,"X") -> X
C18: =IF(C17="X","",C17/(Tagestabelle!$N$3*AnzSpieler)) ->  | D18: =IF(D17="X","",D17/(Tagestabelle!$N$3*AnzSpieler)) ->  | E18: =IF(E17="X","",E17/(Tagestabelle!$N$3*AnzSpieler)) ->  | F18: =IF(F17="X","",F17/(Tagestabelle!$N$3*AnzSpieler)) ->  | G18: =IF(G17="X","",G17/(Tagestabelle!$N$3*AnzSpieler)) ->  | H18: =IF(H17="X","",H17/(Tagestabelle!$N$3*AnzSpieler)) ->  | I18: =IF(I17="X","",I17/(Tagestabelle!$N$3*AnzSpieler)) ->  | J18: =IF(C17="X","",(SUM(C17:I17))/(Tagestabelle!$N$3*AnzSpieler*$J$4)) -> 
A19: 8 | B19: =IF(+Eing.Allg..Daten!$D$8<>"",+VLOOKUP(A19,Bahnen!$A$52:$B$144,2,0),"") ->  | C19: =IF('Ma1'!$AB13>0,'Ma1'!$AB13,"X") -> X | D19: =IF('Ma2'!$AB13>0,'Ma2'!$AB13,"X") -> X | E19: =IF('Ma3'!$AB13>0,'Ma3'!$AB13,"X") -> X | F19: =IF('Ma4'!$AB13>0,'Ma4'!$AB13,"X") -> X | G19: =IF('Ma5'!$AB13>0,'Ma5'!$AB13,"X") -> X | H19: =IF('Ma6'!$AB13>0,'Ma6'!$AB13,"X") -> X | I19: =IF('Ma7'!$AB13>0,'Ma7'!$AB13,"X") -> X
C20: =IF(C19="X","",C19/(Tagestabelle!$N$3*AnzSpieler)) ->  | D20: =IF(D19="X","",D19/(Tagestabelle!$N$3*AnzSpieler)) ->  | E20: =IF(E19="X","",E19/(Tagestabelle!$N$3*AnzSpieler)) ->  | F20: =IF(F19="X","",F19/(Tagestabelle!$N$3*AnzSpieler)) ->  | G20: =IF(G19="X","",G19/(Tagestabelle!$N$3*AnzSpieler)) ->  | H20: =IF(H19="X","",H19/(Tagestabelle!$N$3*AnzSpieler)) ->  | I20: =IF(I19="X","",I19/(Tagestabelle!$N$3*AnzSpieler)) ->  | J20: =IF(C19="X","",(SUM(C19:I19))/(Tagestabelle!$N$3*AnzSpieler*$J$4)) -> 
A21: 9 | B21: =IF(+Eing.Allg..Daten!$D$8<>"",+VLOOKUP(A21,Bahnen!$A$52:$B$144,2,0),"") ->  | C21: =IF('Ma1'!$AB14>0,'Ma1'!$AB14,"X") -> X | D21: =IF('Ma2'!$AB14>0,'Ma2'!$AB14,"X") -> X | E21: =IF('Ma3'!$AB14>0,'Ma3'!$AB14,"X") -> X | F21: =IF('Ma4'!$AB14>0,'Ma4'!$AB14,"X") -> X | G21: =IF('Ma5'!$AB14>0,'Ma5'!$AB14,"X") -> X | H21: =IF('Ma6'!$AB14>0,'Ma6'!$AB14,"X") -> X | I21: =IF('Ma7'!$AB14>0,'Ma7'!$AB14,"X") -> X
C22: =IF(C21="X","",C21/(Tagestabelle!$N$3*AnzSpieler)) ->  | D22: =IF(D21="X","",D21/(Tagestabelle!$N$3*AnzSpieler)) ->  | E22: =IF(E21="X","",E21/(Tagestabelle!$N$3*AnzSpieler)) ->  | F22: =IF(F21="X","",F21/(Tagestabelle!$N$3*AnzSpieler)) ->  | G22: =IF(G21="X","",G21/(Tagestabelle!$N$3*AnzSpieler)) ->  | H22: =IF(H21="X","",H21/(Tagestabelle!$N$3*AnzSpieler)) ->  | I22: =IF(I21="X","",I21/(Tagestabelle!$N$3*AnzSpieler)) ->  | J22: =IF(C21="X","",(SUM(C21:I21))/(Tagestabelle!$N$3*AnzSpieler*$J$4)) -> 
A23: 10 | B23: =IF(+Eing.Allg..Daten!$D$8<>"",+VLOOKUP(A23,Bahnen!$A$52:$B$144,2,0),"") ->  | C23: =IF('Ma1'!$AB15>0,'Ma1'!$AB15,"X") -> X | D23: =IF('Ma2'!$AB15>0,'Ma2'!$AB15,"X") -> X | E23: =IF('Ma3'!$AB15>0,'Ma3'!$AB15,"X") -> X | F23: =IF('Ma4'!$AB15>0,'Ma4'!$AB15,"X") -> X | G23: =IF('Ma5'!$AB15>0,'Ma5'!$AB15,"X") -> X | H23: =IF('Ma6'!$AB15>0,'Ma6'!$AB15,"X") -> X | I23: =IF('Ma7'!$AB15>0,'Ma7'!$AB15,"X") -> X
C24: =IF(C23="X","",C23/(Tagestabelle!$N$3*AnzSpieler)) ->  | D24: =IF(D23="X","",D23/(Tagestabelle!$N$3*AnzSpieler)) ->  | E24: =IF(E23="X","",E23/(Tagestabelle!$N$3*AnzSpieler)) ->  | F24: =IF(F23="X","",F23/(Tagestabelle!$N$3*AnzSpieler)) ->  | G24: =IF(G23="X","",G23/(Tagestabelle!$N$3*AnzSpieler)) ->  | H24: =IF(H23="X","",H23/(Tagestabelle!$N$3*AnzSpieler)) ->  | I24: =IF(I23="X","",I23/(Tagestabelle!$N$3*AnzSpieler)) ->  | J24: =IF(C23="X","",(SUM(C23:I23))/(Tagestabelle!$N$3*AnzSpieler*$J$4)) -> 
A25: 11 | B25: =IF(+Eing.Allg..Daten!$D$8<>"",+VLOOKUP(A25,Bahnen!$A$52:$B$144,2,0),"") ->  | C25: =IF('Ma1'!$AB16>0,'Ma1'!$AB16,"X") -> X | D25: =IF('Ma2'!$AB16>0,'Ma2'!$AB16,"X") -> X | E25: =IF('Ma3'!$AB16>0,'Ma3'!$AB16,"X") -> X | F25: =IF('Ma4'!$AB16>0,'Ma4'!$AB16,"X") -> X | G25: =IF('Ma5'!$AB16>0,'Ma5'!$AB16,"X") -> X | H25: =IF('Ma6'!$AB16>0,'Ma6'!$AB16,"X") -> X | I25: =IF('Ma7'!$AB16>0,'Ma7'!$AB16,"X") -> X
C26: =IF(C25="X","",C25/(Tagestabelle!$N$3*AnzSpieler)) ->  | D26: =IF(D25="X","",D25/(Tagestabelle!$N$3*AnzSpieler)) ->  | E26: =IF(E25="X","",E25/(Tagestabelle!$N$3*AnzSpieler)) ->  | F26: =IF(F25="X","",F25/(Tagestabelle!$N$3*AnzSpieler)) ->  | G26: =IF(G25="X","",G25/(Tagestabelle!$N$3*AnzSpieler)) ->  | H26: =IF(H25="X","",H25/(Tagestabelle!$N$3*AnzSpieler)) ->  | I26: =IF(I25="X","",I25/(Tagestabelle!$N$3*AnzSpieler)) ->  | J26: =IF(C25="X","",(SUM(C25:I25))/(Tagestabelle!$N$3*AnzSpieler*$J$4)) -> 
A27: 12 | B27: =IF(+Eing.Allg..Daten!$D$8<>"",+VLOOKUP(A27,Bahnen!$A$52:$B$144,2,0),"") ->  | C27: =IF('Ma1'!$AB17>0,'Ma1'!$AB17,"X") -> X | D27: =IF('Ma2'!$AB17>0,'Ma2'!$AB17,"X") -> X | E27: =IF('Ma3'!$AB17>0,'Ma3'!$AB17,"X") -> X | F27: =IF('Ma4'!$AB17>0,'Ma4'!$AB17,"X") -> X | G27: =IF('Ma5'!$AB17>0,'Ma5'!$AB17,"X") -> X | H27: =IF('Ma6'!$AB17>0,'Ma6'!$AB17,"X") -> X | I27: =IF('Ma7'!$AB17>0,'Ma7'!$AB17,"X") -> X
C28: =IF(C27="X","",C27/(Tagestabelle!$N$3*AnzSpieler)) ->  | D28: =IF(D27="X","",D27/(Tagestabelle!$N$3*AnzSpieler)) ->  | E28: =IF(E27="X","",E27/(Tagestabelle!$N$3*AnzSpieler)) ->  | F28: =IF(F27="X","",F27/(Tagestabelle!$N$3*AnzSpieler)) ->  | G28: =IF(G27="X","",G27/(Tagestabelle!$N$3*AnzSpieler)) ->  | H28: =IF(H27="X","",H27/(Tagestabelle!$N$3*AnzSpieler)) ->  | I28: =IF(I27="X","",I27/(Tagestabelle!$N$3*AnzSpieler)) ->  | J28: =IF(C27="X","",(SUM(C27:I27))/(Tagestabelle!$N$3*AnzSpieler*$J$4)) -> 
A29: 13 | B29: =IF(+Eing.Allg..Daten!$D$8<>"",+VLOOKUP(A29,Bahnen!$A$52:$B$144,2,0),"") ->  | C29: =IF('Ma1'!$AB18>0,'Ma1'!$AB18,"X") -> X | D29: =IF('Ma2'!$AB18>0,'Ma2'!$AB18,"X") -> X | E29: =IF('Ma3'!$AB18>0,'Ma3'!$AB18,"X") -> X | F29: =IF('Ma4'!$AB18>0,'Ma4'!$AB18,"X") -> X | G29: =IF('Ma5'!$AB18>0,'Ma5'!$AB18,"X") -> X | H29: =IF('Ma6'!$AB18>0,'Ma6'!$AB18,"X") -> X | I29: =IF('Ma7'!$AB18>0,'Ma7'!$AB18,"X") -> X
C30: =IF(C29="X","",C29/(Tagestabelle!$N$3*AnzSpieler)) ->  | D30: =IF(D29="X","",D29/(Tagestabelle!$N$3*AnzSpieler)) ->  | E30: =IF(E29="X","",E29/(Tagestabelle!$N$3*AnzSpieler)) ->  | F30: =IF(F29="X","",F29/(Tagestabelle!$N$3*AnzSpieler)) ->  | G30: =IF(G29="X","",G29/(Tagestabelle!$N$3*AnzSpieler)) ->  | H30: =IF(H29="X","",H29/(Tagestabelle!$N$3*AnzSpieler)) ->  | I30: =IF(I29="X","",I29/(Tagestabelle!$N$3*AnzSpieler)) ->  | J30: =IF(C29="X","",(SUM(C29:I29))/(Tagestabelle!$N$3*AnzSpieler*$J$4)) -> 
A31: 14 | B31: =IF(+Eing.Allg..Daten!$D$8<>"",+VLOOKUP(A31,Bahnen!$A$52:$B$144,2,0),"") ->  | C31: =IF('Ma1'!$AB19>0,'Ma1'!$AB19,"X") -> X | D31: =IF('Ma2'!$AB19>0,'Ma2'!$AB19,"X") -> X | E31: =IF('Ma3'!$AB19>0,'Ma3'!$AB19,"X") -> X | F31: =IF('Ma4'!$AB19>0,'Ma4'!$AB19,"X") -> X | G31: =IF('Ma5'!$AB19>0,'Ma5'!$AB19,"X") -> X | H31: =IF('Ma6'!$AB19>0,'Ma6'!$AB19,"X") -> X | I31: =IF('Ma7'!$AB19>0,'Ma7'!$AB19,"X") -> X
C32: =IF(C31="X","",C31/(Tagestabelle!$N$3*AnzSpieler)) ->  | D32: =IF(D31="X","",D31/(Tagestabelle!$N$3*AnzSpieler)) ->  | E32: =IF(E31="X","",E31/(Tagestabelle!$N$3*AnzSpieler)) ->  | F32: =IF(F31="X","",F31/(Tagestabelle!$N$3*AnzSpieler)) ->  | G32: =IF(G31="X","",G31/(Tagestabelle!$N$3*AnzSpieler)) ->  | H32: =IF(H31="X","",H31/(Tagestabelle!$N$3*AnzSpieler)) ->  | I32: =IF(I31="X","",I31/(Tagestabelle!$N$3*AnzSpieler)) ->  | J32: =IF(C31="X","",(SUM(C31:I31))/(Tagestabelle!$N$3*AnzSpieler*$J$4)) -> 
A33: 15 | B33: =IF(+Eing.Allg..Daten!$D$8<>"",+VLOOKUP(A33,Bahnen!$A$52:$B$144,2,0),"") ->  | C33: =IF('Ma1'!$AB20>0,'Ma1'!$AB20,"X") -> X | D33: =IF('Ma2'!$AB20>0,'Ma2'!$AB20,"X") -> X | E33: =IF('Ma3'!$AB20>0,'Ma3'!$AB20,"X") -> X | F33: =IF('Ma4'!$AB20>0,'Ma4'!$AB20,"X") -> X | G33: =IF('Ma5'!$AB20>0,'Ma5'!$AB20,"X") -> X | H33: =IF('Ma6'!$AB20>0,'Ma6'!$AB20,"X") -> X | I33: =IF('Ma7'!$AB20>0,'Ma7'!$AB20,"X") -> X
C34: =IF(C33="X","",C33/(Tagestabelle!$N$3*AnzSpieler)) ->  | D34: =IF(D33="X","",D33/(Tagestabelle!$N$3*AnzSpieler)) ->  | E34: =IF(E33="X","",E33/(Tagestabelle!$N$3*AnzSpieler)) ->  | F34: =IF(F33="X","",F33/(Tagestabelle!$N$3*AnzSpieler)) ->  | G34: =IF(G33="X","",G33/(Tagestabelle!$N$3*AnzSpieler)) ->  | H34: =IF(H33="X","",H33/(Tagestabelle!$N$3*AnzSpieler)) ->  | I34: =IF(I33="X","",I33/(Tagestabelle!$N$3*AnzSpieler)) ->  | J34: =IF(C33="X","",(SUM(C33:I33))/(Tagestabelle!$N$3*AnzSpieler*$J$4)) -> 
A35: 16 | B35: =IF(+Eing.Allg..Daten!$D$8<>"",+VLOOKUP(A35,Bahnen!$A$52:$B$144,2,0),"") ->  | C35: =IF('Ma1'!$AB21>0,'Ma1'!$AB21,"X") -> X | D35: =IF('Ma2'!$AB21>0,'Ma2'!$AB21,"X") -> X | E35: =IF('Ma3'!$AB21>0,'Ma3'!$AB21,"X") -> X | F35: =IF('Ma4'!$AB21>0,'Ma4'!$AB21,"X") -> X | G35: =IF('Ma5'!$AB21>0,'Ma5'!$AB21,"X") -> X | H35: =IF('Ma6'!$AB21>0,'Ma6'!$AB21,"X") -> X | I35: =IF('Ma7'!$AB21>0,'Ma7'!$AB21,"X") -> X
C36: =IF(C35="X","",C35/(Tagestabelle!$N$3*AnzSpieler)) ->  | D36: =IF(D35="X","",D35/(Tagestabelle!$N$3*AnzSpieler)) ->  | E36: =IF(E35="X","",E35/(Tagestabelle!$N$3*AnzSpieler)) ->  | F36: =IF(F35="X","",F35/(Tagestabelle!$N$3*AnzSpieler)) ->  | G36: =IF(G35="X","",G35/(Tagestabelle!$N$3*AnzSpieler)) ->  | H36: =IF(H35="X","",H35/(Tagestabelle!$N$3*AnzSpieler)) ->  | I36: =IF(I35="X","",I35/(Tagestabelle!$N$3*AnzSpieler)) ->  | J36: =IF(C35="X","",(SUM(C35:I35))/(Tagestabelle!$N$3*AnzSpieler*$J$4)) -> 
A37: 17 | B37: =IF(+Eing.Allg..Daten!$D$8<>"",+VLOOKUP(A37,Bahnen!$A$52:$B$144,2,0),"") ->  | C37: =IF('Ma1'!$AB22>0,'Ma1'!$AB22,"X") -> X | D37: =IF('Ma2'!$AB22>0,'Ma2'!$AB22,"X") -> X | E37: =IF('Ma3'!$AB22>0,'Ma3'!$AB22,"X") -> X | F37: =IF('Ma4'!$AB22>0,'Ma4'!$AB22,"X") -> X | G37: =IF('Ma5'!$AB22>0,'Ma5'!$AB22,"X") -> X | H37: =IF('Ma6'!$AB22>0,'Ma6'!$AB22,"X") -> X | I37: =IF('Ma7'!$AB22>0,'Ma7'!$AB22,"X") -> X
C38: =IF(C37="X","",C37/(Tagestabelle!$N$3*AnzSpieler)) ->  | D38: =IF(D37="X","",D37/(Tagestabelle!$N$3*AnzSpieler)) ->  | E38: =IF(E37="X","",E37/(Tagestabelle!$N$3*AnzSpieler)) ->  | F38: =IF(F37="X","",F37/(Tagestabelle!$N$3*AnzSpieler)) ->  | G38: =IF(G37="X","",G37/(Tagestabelle!$N$3*AnzSpieler)) ->  | H38: =IF(H37="X","",H37/(Tagestabelle!$N$3*AnzSpieler)) ->  | I38: =IF(I37="X","",I37/(Tagestabelle!$N$3*AnzSpieler)) ->  | J38: =IF(C37="X","",(SUM(C37:I37))/(Tagestabelle!$N$3*AnzSpieler*$J$4)) -> 
A39: 18 | B39: =IF(+Eing.Allg..Daten!$D$8<>"",+VLOOKUP(A39,Bahnen!$A$52:$B$144,2,0),"") ->  | C39: =IF('Ma1'!$AB23>0,'Ma1'!$AB23,"X") -> X | D39: =IF('Ma2'!$AB23>0,'Ma2'!$AB23,"X") -> X | E39: =IF('Ma3'!$AB23>0,'Ma3'!$AB23,"X") -> X | F39: =IF('Ma4'!$AB23>0,'Ma4'!$AB23,"X") -> X | G39: =IF('Ma5'!$AB23>0,'Ma5'!$AB23,"X") -> X | H39: =IF('Ma6'!$AB23>0,'Ma6'!$AB23,"X") -> X | I39: =IF('Ma7'!$AB23>0,'Ma7'!$AB23,"X") -> X
C40: =IF(C39="X","",C39/(Tagestabelle!$N$3*AnzSpieler)) ->  | D40: =IF(D39="X","",D39/(Tagestabelle!$N$3*AnzSpieler)) ->  | E40: =IF(E39="X","",E39/(Tagestabelle!$N$3*AnzSpieler)) ->  | F40: =IF(F39="X","",F39/(Tagestabelle!$N$3*AnzSpieler)) ->  | G40: =IF(G39="X","",G39/(Tagestabelle!$N$3*AnzSpieler)) ->  | H40: =IF(H39="X","",H39/(Tagestabelle!$N$3*AnzSpieler)) ->  | I40: =IF(I39="X","",I39/(Tagestabelle!$N$3*AnzSpieler)) ->  | J40: =IF(C39="X","",(SUM(C39:I39))/(Tagestabelle!$N$3*AnzSpieler*$J$4)) -> 
C41: =IF(C5="X",0,C5+C7+C9+C11+C13+C15+C17+C19+C21+C23+C25+C27+C29+C31+C33+C35+C37+C39) -> 0 | D41: 0 | E41: 0 | F41: 0 | G41: 0 | H41: 0 | I41: 0
C42: =IF(C41=0,"",C41/(Tagestabelle!$N$3*AnzSpieler)) ->  | D42: =IF(D41=0,"",D41/(Tagestabelle!$N$3*AnzSpieler)) ->  | E42: =IF(E41=0,"",E41/(Tagestabelle!$N$3*AnzSpieler)) ->  | F42: =IF(F41=0,"",F41/(Tagestabelle!$N$3*AnzSpieler)) ->  | G42: =IF(G41=0,"",G41/(Tagestabelle!$N$3*AnzSpieler)) ->  | H42: =IF(H41=0,"",H41/(Tagestabelle!$N$3*AnzSpieler)) ->  | I42: =IF(I41=0,"",I41/(Tagestabelle!$N$3*AnzSpieler)) ->  | J42: =IF(C41=0,"",(C41+D41+E41+F41+G41+H41)/(Tagestabelle!$N$3*AnzSpieler*$J$4)) -> 
C43: =IF(C41>0,1,2.01) -> 2.01 | D43: =IF(D41>0,1,2.02) -> 2.02 | E43: =IF(E41>0,1,2.03) -> 2.03 | F43: =IF(F41>0,1,2.04) -> 2.04 | G43: =IF(G41>0,1,2.05) -> 2.05 | H43: =IF(H41>0,1,2.06) -> 2.06 | I43: =IF(I41>0,1,2.07) -> 2.07

Sheet Ma_d_Tages
A1: =AnzSpieler -> 5
A2: =Eing.Allg..Daten!D2 -> 0 | M2: =Eing.Allg..Daten!D3 -> 0 | Q2: =Eing.Allg..Daten!D4 -> 0 | R2: . Spieltag
D4: =D101 -> 0 | H4: Kat. | J4: =I101 -> 0 | N4: Kat. | P4: =N101 -> 0 | T4: Kat.
A5: Bahn | H5: =G102 ->  | N5: =L102 ->  | T5: =Q102 -> 
A6: Nr. | B6: Bez. | D6: 0 | J6: 0 | P6: 0
A7: 1 | B7: ='Ma1'!B6 ->  | D7: 0 | E7: =E104 -> 0 | F7: 0 | G7: 0 | H7: =SUM(D7:G7) -> 0 | J7: 0 | K7: =J104 -> 0 | L7: 0 | M7: 0 | N7: =SUM(J7:M7) -> 0 | P7: 0 | Q7: =O104 -> 0 | R7: =P104 -> 0 | S7: =Q104 -> 0 | T7: =SUM(P7:S7) -> 0
A8: 2 | B8: ='Ma1'!B7 ->  | D8: 0 | E8: 0 | F8: 0 | G8: 0 | H8: 0 | J8: 0 | K8: 0 | L8: 0 | M8: 0 | N8: 0 | P8: 0 | Q8: 0 | R8: 0 | S8: 0 | T8: 0
A9: 3 | B9: ='Ma1'!B8 ->  | D9: 0 | E9: 0 | F9: 0 | G9: 0 | H9: 0 | J9: 0 | K9: 0 | L9: 0 | M9: 0 | N9: 0 | P9: 0 | Q9: 0 | R9: 0 | S9: 0 | T9: 0
A10: 4 | B10: ='Ma1'!B9 ->  | D10: 0 | E10: 0 | F10: 0 | G10: 0 | H10: 0 | J10: 0 | K10: 0 | L10: 0 | M10: 0 | N10: 0 | P10: 0 | Q10: 0 | R10: 0 | S10: 0 | T10: 0
A11: 5 | B11: ='Ma1'!B10 ->  | D11: 0 | E11: 0 | F11: 0 | G11: 0 | H11: 0 | J11: 0 | K11: 0 | L11: 0 | M11: 0 | N11: 0 | P11: 0 | Q11: 0 | R11: 0 | S11: 0 | T11: 0
A12: 6 | B12: ='Ma1'!B11 ->  | D12: 0 | E12: 0 | F12: 0 | G12: 0 | H12: 0 | J12: 0 | K12: 0 | L12: 0 | M12: 0 | N12: 0 | P12: 0 | Q12: 0 | R12: 0 | S12: 0 | T12: 0
A13: 7 | B13: ='Ma1'!B12 ->  | D13: 0 | E13: 0 | F13: 0 | G13: 0 | H13: 0 | J13: 0 | K13: 0 | L13: 0 | M13: 0 | N13: 0 | P13: 0 | Q13: 0 | R13: 0 | S13: 0 | T13: 0
A14: 8 | B14: ='Ma1'!B13 ->  | D14: 0 | E14: 0 | F14: 0 | G14: 0 | H14: 0 | J14: 0 | K14: 0 | L14: 0 | M14: 0 | N14: 0 | P14: 0 | Q14: 0 | R14: 0 | S14: 0 | T14: 0
A15: 9 | B15: ='Ma1'!B14 ->  | D15: 0 | E15: 0 | F15: 0 | G15: 0 | H15: 0 | J15: 0 | K15: 0 | L15: 0 | M15: 0 | N15: 0 | P15: 0 | Q15: 0 | R15: 0 | S15: 0 | T15: 0
A16: 10 | B16: ='Ma1'!B15 ->  | D16: 0 | E16: 0 | F16: 0 | G16: 0 | H16: 0 | J16: 0 | K16: 0 | L16: 0 | M16: 0 | N16: 0 | P16: 0 | Q16: 0 | R16: 0 | S16: 0 | T16: 0
A17: 11 | B17: ='Ma1'!B16 ->  | D17: 0 | E17: 0 | F17: 0 | G17: 0 | H17: 0 | J17: 0 | K17: 0 | L17: 0 | M17: 0 | N17: 0 | P17: 0 | Q17: 0 | R17: 0 | S17: 0 | T17: 0
A18: 12 | B18: ='Ma1'!B17 ->  | D18: 0 | E18: 0 | F18: 0 | G18: 0 | H18: 0 | J18: 0 | K18: 0 | L18: 0 | M18: 0 | N18: 0 | P18: 0 | Q18: 0 | R18: 0 | S18: 0 | T18: 0
A19: 13 | B19: ='Ma1'!B18 ->  | D19: 0 | E19: 0 | F19: 0 | G19: 0 | H19: 0 | J19: 0 | K19: 0 | L19: 0 | M19: 0 | N19: 0 | P19: 0 | Q19: 0 | R19: 0 | S19: 0 | T19: 0
A20: 14 | B20: ='Ma1'!B19 ->  | D20: 0 | E20: 0 | F20: 0 | G20: 0 | H20: 0 | J20: 0 | K20: 0 | L20: 0 | M20: 0 | N20: 0 | P20: 0 | Q20: 0 | R20: 0 | S20: 0 | T20: 0
A21: 15 | B21: ='Ma1'!B20 ->  | D21: 0 | E21: 0 | F21: 0 | G21: 0 | H21: 0 | J21: 0 | K21: 0 | L21: 0 | M21: 0 | N21: 0 | P21: 0 | Q21: 0 | R21: 0 | S21: 0 | T21: 0
A22: 16 | B22: ='Ma1'!B21 ->  | D22: 0 | E22: 0 | F22: 0 | G22: 0 | H22: 0 | J22: 0 | K22: 0 | L22: 0 | M22: 0 | N22: 0 | P22: 0 | Q22: 0 | R22: 0 | S22: 0 | T22: 0
A23: 17 | B23: ='Ma1'!B22 ->  | D23: 0 | E23: 0 | F23: 0 | G23: 0 | H23: 0 | J23: 0 | K23: 0 | L23: 0 | M23: 0 | N23: 0 | P23: 0 | Q23: 0 | R23: 0 | S23: 0 | T23: 0
A24: 18 | B24: ='Ma1'!B23 ->  | D24: 0 | E24: 0 | F24: 0 | G24: 0 | H24: 0 | J24: 0 | K24: 0 | L24: 0 | M24: 0 | N24: 0 | P24: 0 | Q24: 0 | R24: 0 | S24: 0 | T24: 0
B25: Strafpunkte | D25: 0 | E25: 0 | F25: 0 | G25: 0 | H25: 0 | J25: 0 | K25: 0 | L25: 0 | M25: 0 | N25: 0 | P25: 0 | Q25: 0 | R25: 0 | S25: 0 | T25: 0
D26: =SUM(D7:D25) -> 0 | E26: =SUM(E7:E25) -> 0 | F26: =SUM(F7:F25) -> 0 | G26: =SUM(G7:G25) -> 0 | H26: =SUM(H7:H25) -> 0 | J26: =SUM(J7:J25) -> 0 | K26: =SUM(K7:K25) -> 0 | L26: =SUM(L7:L25) -> 0 | M26: =SUM(M7:M25) -> 0 | N26: =SUM(N7:N25) -> 0 | P26: =SUM(P7:P25) -> 0 | Q26: =SUM(Q7:Q25) -> 0 | R26: =SUM(R7:R25) -> 0 | S26: =SUM(S7:S25) -> 0 | T26: =SUM(T7:T25) -> 0
D27: =SUM(D26:G26) -> 0 | J27: =SUM(J26:M26) -> 0 | P27: =SUM(P26:S26) -> 0
D29: =S101 -> 0 | H29: Kat. | J29: =X101 -> 0 | N29: Kat. | P29: =AC101 -> 0 | T29: Kat.
A30: Bahn | H30: =V102 ->  | N30: =AA102 ->  | T30: =AF102 -> 
A31: Nr. | B31: Bez. | D31: 0 | J31: 0 | P31: 0
A32: 1 | B32: =B7 ->  | D32: 0 | E32: =T104 -> 0 | F32: =U104 -> 0 | G32: =V104 -> 0 | H32: =SUM(D32:G32) -> 0 | J32: 0 | K32: =Y104 -> 0 | L32: =Z104 -> 0 | M32: =AA104 -> 0 | N32: =SUM(J32:M32) -> 0 | P32: 0 | Q32: =AD104 -> 0 | R32: =AE104 -> 0 | S32: =AF104 -> 0 | T32: =SUM(P32:S32) -> 0
A33: 2 | B33: =B8 ->  | D33: 0 | E33: 0 | F33: 0 | G33: 0 | H33: 0 | J33: 0 | K33: 0 | L33: 0 | M33: 0 | N33: 0 | P33: 0 | Q33: 0 | R33: 0 | S33: 0 | T33: 0
A34: 3 | B34: =B9 ->  | D34: 0 | E34: 0 | F34: 0 | G34: 0 | H34: 0 | J34: 0 | K34: 0 | L34: 0 | M34: 0 | N34: 0 | P34: 0 | Q34: 0 | R34: 0 | S34: 0 | T34: 0
A35: 4 | D35: 0 | E35: 0 | F35: 0 | G35: 0 | H35: 0 | J35: 0 | K35: 0 | L35: 0 | M35: 0 | N35: 0 | P35: 0 | Q35: 0 | R35: 0 | S35: 0 | T35: 0
A36: 5 | D36: 0 | E36: 0 | F36: 0 | G36: 0 | H36: 0 | J36: 0 | K36: 0 | L36: 0 | M36: 0 | N36: 0 | P36: 0 | Q36: 0 | R36: 0 | S36: 0 | T36: 0
A37: 6 | D37: 0 | E37: 0 | F37: 0 | G37: 0 | H37: 0 | J37: 0 | K37: 0 | L37: 0 | M37: 0 | N37: 0 | P37: 0 | Q37: 0 | R37: 0 | S37: 0 | T37: 0
A38: 7 | D38: 0 | E38: 0 | F38: 0 | G38: 0 | H38: 0 | J38: 0 | K38: 0 | L38: 0 | M38: 0 | N38: 0 | P38: 0 | Q38: 0 | R38: 0 | S38: 0 | T38: 0
A39: 8 | D39: 0 | E39: 0 | F39: 0 | G39: 0 | H39: 0 | J39: 0 | K39: 0 | L39: 0 | M39: 0 | N39: 0 | P39: 0 | Q39: 0 | R39: 0 | S39: 0 | T39: 0
A40: 9 | D40: 0 | E40: 0 | F40: 0 | G40: 0 | H40: 0 | J40: 0 | K40: 0 | L40: 0 | M40: 0 | N40: 0 | P40: 0 | Q40: 0 | R40: 0 | S40: 0 | T40: 0
A41: 10 | D41: 0 | E41: 0 | F41: 0 | G41: 0 | H41: 0 | J41: 0 | K41: 0 | L41: 0 | M41: 0 | N41: 0 | P41: 0 | Q41: 0 | R41: 0 | S41: 0 | T41: 0
A42: 11 | D42: 0 | E42: 0 | F42: 0 | G42: 0 | H42: 0 | J42: 0 | K42: 0 | L42: 0 | M42: 0 | N42: 0 | P42: 0 | Q42: 0 | R42: 0 | S42: 0 | T42: 0
A43: 12 | D43: 0 | E43: 0 | F43: 0 | G43: 0 | H43: 0 | J43: 0 | K43: 0 | L43: 0 | M43: 0 | N43: 0 | P43: 0 | Q43: 0 | R43: 0 | S43: 0 | T43: 0
A44: 13 | D44: 0 | E44: 0 | F44: 0 | G44: 0 | H44: 0 | J44: 0 | K44: 0 | L44: 0 | M44: 0 | N44: 0 | P44: 0 | Q44: 0 | R44: 0 | S44: 0 | T44: 0
A45: 14 | D45: 0 | E45: 0 | F45: 0 | G45: 0 | H45: 0 | J45: 0 | K45: 0 | L45: 0 | M45: 0 | N45: 0 | P45: 0 | Q45: 0 | R45: 0 | S45: 0 | T45: 0
A46: 15 | D46: 0 | E46: 0 | F46: 0 | G46: 0 | H46: 0 | J46: 0 | K46: 0 | L46: 0 | M46: 0 | N46: 0 | P46: 0 | Q46: 0 | R46: 0 | S46: 0 | T46: 0
A47: 16 | D47: 0 | E47: 0 | F47: 0 | G47: 0 | H47: 0 | J47: 0 | K47: 0 | L47: 0 | M47: 0 | N47: 0 | P47: 0 | Q47: 0 | R47: 0 | S47: 0 | T47: 0
A48: 17 | D48: 0 | E48: 0 | F48: 0 | G48: 0 | H48: 0 | J48: 0 | K48: 0 | L48: 0 | M48: 0 | N48: 0 | P48: 0 | Q48: 0 | R48: 0 | S48: 0 | T48: 0
A49: 18 | D49: 0 | E49: 0 | F49: 0 | G49: 0 | H49: 0 | J49: 0 | K49: 0 | L49: 0 | M49: 0 | N49: 0 | P49: 0 | Q49: 0 | R49: 0 | S49: 0 | T49: 0
B50: Strafpunkte | D50: 0 | E50: 0 | F50: 0 | G50: 0 | H50: 0 | J50: 0 | K50: 0 | L50: 0 | M50: 0 | N50: 0 | P50: 0 | Q50: 0 | R50: 0 | S50: 0 | T50: 0
D51: =SUM(D32:D50) -> 0 | E51: =SUM(E32:E50) -> 0 | F51: =SUM(F32:F50) -> 0 | G51: =SUM(G32:G50) -> 0 | H51: =SUM(H32:H50) -> 0 | J51: =SUM(J32:J50) -> 0 | K51: =SUM(K32:K50) -> 0 | L51: =SUM(L32:L50) -> 0 | M51: =SUM(M32:M50) -> 0 | N51: =SUM(N32:N50) -> 0 | P51: =SUM(P32:P50) -> 0 | Q51: =SUM(Q32:Q50) -> 0 | R51: =SUM(R32:R50) -> 0 | S51: =SUM(S32:S50) -> 0 | T51: =SUM(T32:T50) -> 0
D52: =SUM(D51:G51) -> 0 | J52: =SUM(J51:M51) -> 0 | P52: =SUM(P51:S51) -> 0
C99: =Tagestabelle!N3 -> 0
D100: Ma1.11 | E100: Ma1.12 | F100: Ma1.13 | G100: Ma1.14 | H100: Ma1.15 | I100: Ma1.21 | J100: Ma1.22 | K100: Ma1.23 | L100: Ma1.24 | M100: Ma1.25 | N100: Ma1.31 | O100: Ma1.32 | P100: Ma1.33 | Q100: Ma1.34 | R100: Ma1.35 | S100: Ma1.41 | T100: Ma1.42 | U100: Ma1.43 | V100: Ma1.44 | W100: Ma1.45 | X100: Ma1.51 | Y100: Ma1.52 | Z100: Ma1.53 | AA100: Ma1.54 | AB100: Ma1.55 | AC100: Ma1.61 | AD100: Ma1.62 | AE100: Ma1.63 | AF100: Ma1.64 | AG100: Ma1.65 | AH100: Ma1.71 | AI100: Ma1.72 | AJ100: Ma1.73 | AK100: Ma1.74 | AL100: Ma1.75 | AM100: Ma1.81 | AN100: Ma1.82 | AO100: Ma1.83 | AP100: Ma1.84 | AQ100: Ma1.85 | AR100: Ma2.11 | AS100: Ma2.12 | AT100: Ma2.13 | AU100: Ma2.14 | AV100: Ma2.15 | AW100: Ma2.21 | AX100: Ma2.22 | AY100: Ma2.23 | AZ100: Ma2.24 | BA100: Ma2.25 | BB100: Ma2.31 | BC100: Ma2.32 | BD100: Ma2.33 | BE100: Ma2.34 | BF100: Ma2.35 | BG100: Ma2.41 | BH100: Ma2.42 | BI100: Ma2.43 | BJ100: Ma2.44 | BK100: Ma2.45 | BL100: Ma2.51 | BM100: Ma2.52 | BN100: Ma2.53 | BO100: Ma2.54 | BP100: Ma2.55 | BQ100: Ma2.61 | BR100: Ma2.62 | BS100: Ma2.63 | BT100: Ma2.64 | BU100: Ma2.65 | BV100: Ma2.71 | BW100: Ma2.72 | BX100: Ma2.73 | BY100: Ma2.74 | BZ100: Ma2.75 | CA100: Ma2.81 | CB100: Ma2.82 | CC100: Ma2.83 | CD100: Ma2.84 | CE100: Ma2.85 | CF100: Ma3.11 | CG100: Ma3.12 | CH100: Ma3.13 | CI100: Ma3.14 | CJ100: Ma3.15 | CK100: Ma3.21 | CL100: Ma3.22 | CM100: Ma3.23 | CN100: Ma3.24 | CO100: Ma3.25 | CP100: Ma3.31 | CQ100: Ma3.32 | CR100: Ma3.33 | CS100: Ma3.34 | CT100: Ma3.35 | CU100: Ma3.41 | CV100: Ma3.42 | CW100: Ma3.43 | CX100: Ma3.44 | CY100: Ma3.45 | CZ100: Ma3.51 | DA100: Ma3.52 | DB100: Ma3.53 | DC100: Ma3.54 | DD100: Ma3.55 | DE100: Ma3.61 | DF100: Ma3.62 | DG100: Ma3.63 | DH100: Ma3.64 | DI100: Ma3.65 | DJ100: Ma3.71 | DK100: Ma3.72 | DL100: Ma3.73 | DM100: Ma3.74 | DN100: Ma3.75 | DO100: Ma3.81 | DP100: Ma3.82 | DQ100: Ma3.83 | DR100: Ma3.84 | DS100: Ma3.85 | DT100: Ma4.11 | DU100: Ma4.12 | DV100: Ma4.13 | DW100: Ma4.14 | DX100: Ma4.15 | DY100: Ma4.21 | DZ100: Ma4.22 | EA100: Ma4.23 | EB100: Ma4.24 | EC100: Ma4.25 | ED100: Ma4.31 | EE100: Ma4.32 | EF100: Ma4.33 | EG100: Ma4.34 | EH100: Ma4.35 | EI100: Ma4.41 | EJ100: Ma4.42 | EK100: Ma4.43 | EL100: Ma4.44 | EM100: Ma4.45 | EN100: Ma4.51 | EO100: Ma4.52 | EP100: Ma4.53 | EQ100: Ma4.54 | ER100: Ma4.55 | ES100: Ma4.61 | ET100: Ma4.62 | EU100: Ma4.63 | EV100: Ma4.64 | EW100: Ma4.65 | EX100: Ma4.71 | EY100: Ma4.72 | EZ100: Ma4.73 | FA100: Ma4.74 | FB100: Ma4.75 | FC100: Ma4.81 | FD100: Ma4.82 | FE100: Ma4.83 | FF100: Ma4.84 | FG100: Ma4.85 | FH100: Ma5.11 | FI100: Ma5.12 | FJ100: Ma5.13 | FK100: Ma5.14 | FL100: Ma5.15 | FM100: Ma5.21 | FN100: Ma5.22 | FO100: Ma5.23 | FP100: Ma5.24 | FQ100: Ma5.25 | FR100: Ma5.31 | FS100: Ma5.32 | FT100: Ma5.33 | FU100: Ma5.34 | FV100: Ma5.35 | FW100: Ma5.41 | FX100: Ma5.42 | FY100: Ma5.43 | FZ100: Ma5.44 | GA100: Ma5.45 | GB100: Ma5.51 | GC100: Ma5.52 | GD100: Ma5.53 | GE100: Ma5.54 | GF100: Ma5.55 | GG100: Ma5.61 | GH100: Ma5.62 | GI100: Ma5.63 | GJ100: Ma5.64 | GK100: Ma5.65 | GL100: Ma5.71 | GM100: Ma5.72 | GN100: Ma5.73 | GO100: Ma5.74 | GP100: Ma5.75 | GQ100: Ma5.81 | GR100: Ma5.82 | GS100: Ma5.83 | GT100: Ma5.84 | GU100: Ma5.85 | GV100: Ma6.11 | GW100: Ma6.12 | GX100: Ma6.13 | GY100: Ma6.14 | GZ100: Ma6.15 | HA100: Ma6.21 | HB100: Ma6.22 | HC100: Ma6.23 | HD100: Ma6.24 | HE100: Ma6.25 | HF100: Ma6.31 | HG100: Ma6.32 | HH100: Ma6.33 | HI100: Ma6.34 | HJ100: Ma6.35 | HK100: Ma6.41 | HL100: Ma6.42 | HM100: Ma6.43 | HN100: Ma6.44 | HO100: Ma6.45 | HP100: Ma6.51 | HQ100: Ma6.52 | HR100: Ma6.53 | HS100: Ma6.54 | HT100: Ma6.55 | HU100: Ma6.61 | HV100: Ma6.62 | HW100: Ma6.63 | HX100: Ma6.64 | HY100: Ma6.65 | HZ100: Ma6.71 | IA100: Ma6.72 | IB100: Ma6.73 | IC100: Ma6.74 | ID100: Ma6.75 | IE100: Ma6.81 | IF100: Ma6.82 | IG100: Ma6.83 | IH100: Ma6.84 | II100: Ma6.85 | IJ100: Ma7.11 | IK100: Ma7.12 | IL100: Ma7.13 | IM100: Ma7.14 | IN100: Ma7.15 | IO100: Ma7.21 | IP100: Ma7.22 | IQ100: Ma7.23 | IR100: Ma7.24 | IS100: Ma7.25 | IT100: Ma7.31 | IU100: Ma7.32 | IV100: Ma7.33 | IW100: Ma7.34 | IX100: Ma7.35 | IY100: Ma7.41 | IZ100: Ma7.42 | JA100: Ma7.43 | JB100: Ma7.44 | JC100: Ma7.45 | JD100: Ma7.51 | JE100: Ma7.52 | JF100: Ma7.53 | JG100: Ma7.54 | JH100: Ma7.55 | JI100: Ma7.61 | JJ100: Ma7.62 | JK100: Ma7.63 | JL100: Ma7.64 | JM100: Ma7.65 | JN100: Ma7.71 | JO100: Ma7.72 | JP100: Ma7.73 | JQ100: Ma7.74 | JR100: Ma7.75 | JS100: Ma7.81 | JT100: Ma7.82 | JU100: Ma7.83 | JV100: Ma7.84 | JW100: Ma7.85
D101: ='Ma1'!$D$1 -> 0 | I101: ='Ma1'!$D$1 -> 0 | N101: ='Ma1'!$D$1 -> 0 | S101: ='Ma1'!$D$1 -> 0 | X101: ='Ma1'!$D$1 -> 0 | AC101: ='Ma1'!$D$1 -> 0 | AH101: ='Ma1'!$D$1 -> 0 | AM101: ='Ma1'!$D$1 -> 0 | AR101: ='Ma2'!$D$1 -> 0 | AW101: ='Ma2'!$D$1 -> 0 | BB101: ='Ma2'!$D$1 -> 0 | BG101: ='Ma2'!$D$1 -> 0 | BL101: ='Ma2'!$D$1 -> 0 | BQ101: ='Ma2'!$D$1 -> 0 | BV101: ='Ma2'!$D$1 -> 0 | CA101: ='Ma2'!$D$1 -> 0 | CF101: ='Ma3'!$D$1 -> 0 | CK101: ='Ma3'!$D$1 -> 0 | CP101: ='Ma3'!$D$1 -> 0 | CU101: ='Ma3'!$D$1 -> 0 | CZ101: ='Ma3'!$D$1 -> 0 | DE101: ='Ma3'!$D$1 -> 0 | DJ101: ='Ma3'!$D$1 -> 0 | DO101: ='Ma3'!$D$1 -> 0 | DT101: ='Ma4'!$D$1 -> 0 | DY101: ='Ma4'!$D$1 -> 0 | ED101: ='Ma4'!$D$1 -> 0 | EI101: ='Ma4'!$D$1 -> 0 | EN101: ='Ma4'!$D$1 -> 0 | ES101: ='Ma4'!$D$1 -> 0 | EX101: ='Ma4'!$D$1 -> 0 | FC101: ='Ma4'!$D$1 -> 0 | FH101: ='Ma5'!$D$1 -> 0 | FM101: ='Ma5'!$D$1 -> 0 | FR101: ='Ma5'!$D$1 -> 0 | FW101: ='Ma5'!$D$1 -> 0 | GB101: ='Ma5'!$D$1 -> 0 | GG101: ='Ma5'!$D$1 -> 0 | GL101: ='Ma5'!$D$1 -> 0 | GQ101: ='Ma5'!$D$1 -> 0 | GV101: ='Ma6'!$D$1 -> 0 | HA101: ='Ma6'!$D$1 -> 0 | HF101: ='Ma6'!$D$1 -> 0 | HK101: ='Ma6'!$D$1 -> 0 | HP101: ='Ma6'!$D$1 -> 0 | HU101: ='Ma6'!$D$1 -> 0 | HZ101: ='Ma6'!$D$1 -> 0 | IE101: ='Ma6'!$D$1 -> 0 | IJ101: ='Ma7'!$D$1 -> 0 | IO101: ='Ma7'!$D$1 -> 0 | IT101: ='Ma7'!$D$1 -> 0 | IY101: ='Ma7'!$D$1 -> 0 | JD101: ='Ma7'!$D$1 -> 0 | JI101: ='Ma7'!$D$1 -> 0 | JN101: ='Ma7'!$D$1 -> 0 | JS101: ='Ma7'!$D$1 -> 0
D102: ='Ma1'!$D$4 ->  | G102: ='Ma1'!$H$4 ->  | I102: ='Ma1'!$J$4 ->  | L102: ='Ma1'!$N$4 ->  | N102: ='Ma1'!$P$4 ->  | Q102: ='Ma1'!$T$4 ->  | S102: ='Ma1'!$V$4 ->  | V102: ='Ma1'!$Z$4 ->  | X102: ='Ma1'!$D$30 ->  | AA102: ='Ma1'!$H$30 ->  | AC102: ='Ma1'!$J$30 ->  | AF102: ='Ma1'!$N$30 ->  | AH102: ='Ma1'!$P$30 ->  | AK102: ='Ma1'!$T$30 ->  | AM102: ='Ma1'!$V$30 ->  | AP102: ='Ma1'!$Z$30 ->  | AR102: ='Ma2'!$D$4 ->  | AU102: ='Ma2'!$H$4 ->  | AW102: ='Ma2'!$J$4 ->  | AZ102: ='Ma2'!$N$4 ->  | BB102: ='Ma2'!$P$4 ->  | BE102: ='Ma2'!$T$4 ->  | BG102: ='Ma2'!$V$4 ->  | BJ102: ='Ma2'!$Z$4 ->  | BL102: ='Ma2'!$D$30 ->  | BO102: ='Ma2'!$H$30 ->  | BQ102: ='Ma2'!$J$30 ->  | BT102: ='Ma2'!$N$30 ->  | BV102: ='Ma2'!$P$30 ->  | BY102: ='Ma2'!$T$30 ->  | CA102: ='Ma2'!$V$30 ->  | CD102: ='Ma2'!$Z$30 ->  | CF102: ='Ma3'!$D$4 ->  | CI102: ='Ma3'!$H$4 ->  | CK102: ='Ma3'!$J$4 ->  | CN102: ='Ma3'!$N$4 ->  | CP102: ='Ma3'!$P$4 ->  | CS102: ='Ma3'!$T$4 ->  | CU102: ='Ma3'!$V$4 ->  | CX102: ='Ma3'!$Z$4 ->  | CZ102: ='Ma3'!$D$30 ->  | DC102: ='Ma3'!$H$30 ->  | DE102: ='Ma3'!$J$30 ->  | DH102: ='Ma3'!$N$30 ->  | DJ102: ='Ma3'!$P$30 ->  | DM102: ='Ma3'!$T$30 ->  | DO102: ='Ma3'!$V$30 ->  | DR102: ='Ma3'!$Z$30 ->  | DT102: ='Ma4'!$D$4 ->  | DW102: ='Ma4'!$H$4 ->  | DY102: ='Ma4'!$J$4 ->  | EB102: ='Ma4'!$N$4 ->  | ED102: ='Ma4'!$P$4 ->  | EG102: ='Ma4'!$T$4 ->  | EI102: ='Ma4'!$V$4 ->  | EL102: ='Ma4'!$Z$4 ->  | EN102: ='Ma4'!$D$30 ->  | EQ102: ='Ma4'!$H$30 ->  | ES102: ='Ma4'!$J$30 ->  | EV102: ='Ma4'!$N$30 ->  | EX102: ='Ma4'!$P$30 ->  | FA102: ='Ma4'!$T$30 ->  | FC102: ='Ma4'!$V$30 ->  | FF102: ='Ma4'!$Z$30 ->  | FH102: ='Ma5'!$D$4 ->  | FK102: ='Ma5'!$H$4 ->  | FM102: ='Ma5'!$J$4 ->  | FP102: ='Ma5'!$N$4 ->  | FR102: ='Ma5'!$P$4 ->  | FU102: ='Ma5'!$T$4 ->  | FW102: ='Ma5'!$V$4 ->  | FZ102: ='Ma5'!$Z$4 ->  | GB102: ='Ma5'!$D$30 ->  | GE102: ='Ma5'!$H$30 ->  | GG102: ='Ma5'!$J$30 ->  | GJ102: ='Ma5'!$N$30 ->  | GL102: ='Ma5'!$P$30 ->  | GO102: ='Ma5'!$T$30 ->  | GQ102: ='Ma5'!$V$30 ->  | GT102: ='Ma5'!$Z$30 ->  | GV102: ='Ma6'!$D$4 ->  | GY102: ='Ma6'!$H$4 ->  | HA102: ='Ma6'!$J$4 ->  | HD102: ='Ma6'!$N$4 ->  | HF102: ='Ma6'!$P$4 ->  | HI102: ='Ma6'!$T$4 ->  | HK102: ='Ma6'!$V$4 ->  | HN102: ='Ma6'!$Z$4 ->  | HP102: ='Ma6'!$D$30 ->  | HS102: ='Ma6'!$H$30 ->  | HU102: ='Ma6'!$J$30 ->  | HX102: ='Ma6'!$N$30 ->  | HZ102: ='Ma6'!$P$30 ->  | IC102: ='Ma6'!$T$30 ->  | IE102: ='Ma6'!$V$30 ->  | IH102: ='Ma6'!$Z$30 ->  | IJ102: ='Ma7'!$D$4 ->  | IM102: ='Ma7'!$H$4 ->  | IO102: ='Ma7'!$J$4 ->  | IR102: ='Ma7'!$N$4 ->  | IT102: ='Ma7'!$P$4 ->  | IW102: ='Ma7'!$T$4 ->  | IY102: ='Ma7'!$V$4 ->  | JB102: ='Ma7'!$Z$4 ->  | JD102: ='Ma7'!$D$30 ->  | JG102: ='Ma7'!$H$30 ->  | JI102: ='Ma7'!$J$30 ->  | JL102: ='Ma7'!$N$30 ->  | JN102: ='Ma7'!$P$30 ->  | JQ102: ='Ma7'!$T$30 ->  | JS102: ='Ma7'!$V$30 ->  | JV102: ='Ma7'!$Z$30 -> 
D103: ='Ma1'!$D$5 -> 0 | I103: ='Ma1'!$J$5 -> 0 | N103: ='Ma1'!$P$5 -> 0 | S103: ='Ma1'!$V$5 -> 0 | X103: ='Ma1'!$D$31 -> 0 | AC103: ='Ma1'!$J$31 -> 0 | AH103: ='Ma1'!$P$31 -> 0 | AM103: ='Ma1'!$P$31 -> 0 | AR103: ='Ma2'!$D$5 -> 0 | AW103: ='Ma2'!$J$5 -> 0 | BB103: ='Ma2'!$P$5 -> 0 | BG103: ='Ma2'!$V$5 -> 0 | BL103: ='Ma2'!$D$31 -> 0 | BQ103: ='Ma2'!$J$31 -> 0 | BV103: ='Ma2'!$P$31 -> 0 | CA103: ='Ma2'!$V$31 -> 0 | CF103: ='Ma3'!$D$5 -> 0 | CK103: ='Ma3'!$J$5 -> 0 | CP103: ='Ma3'!$P$5 -> 0 | CU103: ='Ma3'!$V$5 -> 0 | CZ103: ='Ma3'!$D$31 -> 0 | DE103: ='Ma3'!$J$31 -> 0 | DJ103: ='Ma3'!$P$31 -> 0 | DO103: ='Ma3'!$V$31 -> 0 | DT103: ='Ma4'!$D$5 -> 0 | DY103: ='Ma4'!$J$5 -> 0 | ED103: ='Ma4'!$P$5 -> 0 | EI103: ='Ma4'!$V$5 -> 0 | EN103: ='Ma4'!$D$31 -> 0 | ES103: ='Ma4'!$J$31 -> 0 | EX103: ='Ma4'!$P$31 -> 0 | FC103: ='Ma4'!$V$31 -> 0 | FH103: ='Ma5'!$D$5 -> 0 | FM103: ='Ma5'!$J$5 -> 0 | FR103: ='Ma5'!$P$5 -> 0 | FW103: ='Ma5'!$V$5 -> 0 | GB103: ='Ma5'!$D$31 -> 0 | GG103: ='Ma5'!$J$31 -> 0 | GL103: ='Ma5'!$P$31 -> 0 | GQ103: ='Ma5'!$V$31 -> 0 | GV103: ='Ma6'!$D$5 -> 0 | HA103: ='Ma6'!$J$5 -> 0 | HF103: ='Ma6'!$P$5 -> 0 | HK103: ='Ma6'!$V$5 -> 0 | HP103: ='Ma6'!$D$31 -> 0 | HU103: ='Ma6'!$J$31 -> 0 | HZ103: ='Ma6'!$P$31 -> 0 | IE103: ='Ma6'!$V$31 -> 0 | IJ103: ='Ma7'!$D$5 -> 0 | IO103: ='Ma7'!$J$5 -> 0 | IT103: ='Ma7'!$P$5 -> 0 | IY103: ='Ma7'!$V$5 -> 0 | JD103: ='Ma7'!$D$31 -> 0 | JI103: ='Ma7'!$J$31 -> 0 | JN103: ='Ma7'!$P$31 -> 0 | JS103: ='Ma7'!$V$31 -> 0
B104: =B32 ->  | D104: ='Ma1'!$D$6 -> 0 | E104: ='Ma1'!$E$6 -> 0 | F104: ='Ma1'!$F$6 -> 0 | G104: ='Ma1'!$G$6 -> 0 | I104: ='Ma1'!$J$6 -> 0 | J104: ='Ma1'!$K$6 -> 0 | K104: ='Ma1'!$L$6 -> 0 | L104: ='Ma1'!$M$6 -> 0 | N104: ='Ma1'!$P$6 -> 0 | O104: ='Ma1'!$Q$6 -> 0 | P104: ='Ma1'!$R$6 -> 0 | Q104: ='Ma1'!$S$6 -> 0 | S104: ='Ma1'!$V$6 -> 0 | T104: ='Ma1'!$W$6 -> 0 | U104: ='Ma1'!$X$6 -> 0 | V104: ='Ma1'!$Y$6 -> 0 | X104: ='Ma1'!$D$32 -> 0 | Y104: ='Ma1'!$E$32 -> 0 | Z104: ='Ma1'!$F$32 -> 0 | AA104: ='Ma1'!$G$32 -> 0 | AC104: ='Ma1'!$J$32 -> 0 | AD104: ='Ma1'!$K$32 -> 0 | AE104: ='Ma1'!$L$32 -> 0 | AF104: ='Ma1'!$M$32 -> 0 | AH104: ='Ma1'!$P$32 -> 0 | AI104: ='Ma1'!$Q$32 -> 0 | AJ104: ='Ma1'!$R$32 -> 0 | AK104: ='Ma1'!$S$32 -> 0 | AM104: ='Ma1'!$V$32 -> 0 | AN104: ='Ma1'!$W$32 -> 0 | AO104: ='Ma1'!$X$32 -> 0 | AP104: ='Ma1'!$Y$32 -> 0 | AR104: ='Ma2'!$D$6 -> 0 | AS104: ='Ma2'!$E$6 -> 0 | AT104: ='Ma2'!$F$6 -> 0 | AU104: ='Ma2'!$G$6 -> 0 | AW104: ='Ma2'!$J$6 -> 0 | AX104: ='Ma2'!$K$6 -> 0 | AY104: ='Ma2'!$L$6 -> 0 | AZ104: ='Ma2'!$M$6 -> 0 | BB104: ='Ma2'!$P$6 -> 0 | BC104: ='Ma2'!$Q$6 -> 0 | BD104: ='Ma2'!$R$6 -> 0 | BE104: ='Ma2'!$S$6 -> 0 | BG104: ='Ma2'!$V$6 -> 0 | BH104: ='Ma2'!$W$6 -> 0 | BI104: ='Ma2'!$X$6 -> 0 | BJ104: ='Ma2'!$Y$6 -> 0 | BL104: ='Ma2'!$D$32 -> 0 | BM104: ='Ma2'!$E$32 -> 0 | BN104: ='Ma2'!$F$32 -> 0 | BO104: ='Ma2'!$G$32 -> 0 | BQ104: ='Ma2'!$J$32 -> 0 | BR104: ='Ma2'!$K$32 -> 0 | BS104: ='Ma2'!$L$32 -> 0 | BT104: ='Ma2'!$M$32 -> 0 | BV104: ='Ma2'!$P$32 -> 0 | BW104: ='Ma2'!$Q$32 -> 0 | BX104: ='Ma2'!$R$32 -> 0 | BY104: ='Ma2'!$S$32 -> 0 | CA104: ='Ma2'!$V$32 -> 0 | CB104: ='Ma2'!$W$32 -> 0 | CC104: ='Ma2'!$X$32 -> 0 | CD104: ='Ma2'!$Y$32 -> 0 | CF104: ='Ma3'!$D$6 -> 0 | CG104: ='Ma3'!$E$6 -> 0 | CH104: ='Ma3'!$F$6 -> 0 | CI104: ='Ma3'!$G$6 -> 0 | CK104: ='Ma3'!$J$6 -> 0 | CL104: ='Ma3'!$K$6 -> 0 | CM104: ='Ma3'!$L$6 -> 0 | CN104: ='Ma3'!$M$6 -> 0 | CP104: ='Ma3'!$P$6 -> 0 | CQ104: ='Ma3'!$Q$6 -> 0 | CR104: ='Ma3'!$R$6 -> 0 | CS104: ='Ma3'!$S$6 -> 0 | CU104: ='Ma3'!$V$6 -> 0 | CV104: ='Ma3'!$W$6 -> 0 | CW104: ='Ma3'!$X$6 -> 0 | CX104: ='Ma3'!$Y$6 -> 0 | CZ104: ='Ma3'!$D$32 -> 0 | DA104: ='Ma3'!$E$32 -> 0 | DB104: ='Ma3'!$F$32 -> 0 | DC104: ='Ma3'!$G$32 -> 0 | DE104: ='Ma3'!$J$32 -> 0 | DF104: ='Ma3'!$K$32 -> 0 | DG104: ='Ma3'!$L$32 -> 0 | DH104: ='Ma3'!$M$32 -> 0 | DJ104: ='Ma3'!$P$32 -> 0 | DK104: ='Ma3'!$Q$32 -> 0 | DL104: ='Ma3'!$R$32 -> 0 | DM104: ='Ma3'!$S$32 -> 0 | DO104: ='Ma3'!$V$32 -> 0 | DP104: ='Ma3'!$W$32 -> 0 | DQ104: ='Ma3'!$X$32 -> 0 | DR104: ='Ma3'!$Y$32 -> 0 | DT104: ='Ma4'!$D$6 -> 0 | DU104: ='Ma4'!$E$6 -> 0 | DV104: ='Ma4'!$F$6 -> 0 | DW104: ='Ma4'!$G$6 -> 0 | DY104: ='Ma4'!$J$6 -> 0 | DZ104: ='Ma4'!$K$6 -> 0 | EA104: ='Ma4'!$L$6 -> 0 | EB104: ='Ma4'!$M$6 -> 0 | ED104: ='Ma4'!$P$6 -> 0 | EE104: ='Ma4'!$Q$6 -> 0 | EF104: ='Ma4'!$R$6 -> 0 | EG104: ='Ma4'!$S$6 -> 0 | EI104: ='Ma4'!$V$6 -> 0 | EJ104: ='Ma4'!$W$6 -> 0 | EK104: ='Ma4'!$X$6 -> 0 | EL104: ='Ma4'!$Y$6 -> 0 | EN104: ='Ma4'!$D$32 -> 0 | EO104: ='Ma4'!$E$32 -> 0 | EP104: ='Ma4'!$F$32 -> 0 | EQ104: ='Ma4'!$G$32 -> 0 | ES104: ='Ma4'!$J$32 -> 0 | ET104: ='Ma4'!$K$32 -> 0 | EU104: ='Ma4'!$L$32 -> 0 | EV104: ='Ma4'!$M$32 -> 0 | EX104: ='Ma4'!$P$32 -> 0 | EY104: ='Ma4'!$Q$32 -> 0 | EZ104: ='Ma4'!$R$32 -> 0 | FA104: ='Ma4'!$S$32 -> 0 | FC104: ='Ma4'!$V$32 -> 0 | FD104: ='Ma4'!$W$32 -> 0 | FE104: ='Ma4'!$X$32 -> 0 | FF104: ='Ma4'!$Y$32 -> 0 | FH104: ='Ma5'!$D$6 -> 0 | FI104: ='Ma5'!$E$6 -> 0 | FJ104: ='Ma5'!$F$6 -> 0 | FK104: ='Ma5'!$G$6 -> 0 | FM104: ='Ma5'!$J$6 -> 0 | FN104: ='Ma5'!$K$6 -> 0 | FO104: ='Ma5'!$L$6 -> 0 | FP104: ='Ma5'!$M$6 -> 0 | FR104: ='Ma5'!$P$6 -> 0 | FS104: ='Ma5'!$Q$6 -> 0 | FT104: ='Ma5'!$R$6 -> 0 | FU104: ='Ma5'!$S$6 -> 0 | FW104: ='Ma5'!$V$6 -> 0 | FX104: ='Ma5'!$W$6 -> 0 | FY104: ='Ma5'!$X$6 -> 0 | FZ104: ='Ma5'!$Y$6 -> 0 | GB104: ='Ma5'!$D$32 -> 0 | GC104: ='Ma5'!$E$32 -> 0 | GD104: ='Ma5'!$F$32 -> 0 | GE104: ='Ma5'!$G$32 -> 0 | GG104: ='Ma5'!$J$32 -> 0 | GH104: ='Ma5'!$K$32 -> 0 | GI104: ='Ma5'!$L$32 -> 0 | GJ104: ='Ma5'!$M$32 -> 0 | GL104: ='Ma5'!$P$32 -> 0 | GM104: ='Ma5'!$Q$32 -> 0 | GN104: ='Ma5'!$R$32 -> 0 | GO104: ='Ma5'!$S$32 -> 0 | GQ104: ='Ma5'!$V$32 -> 0 | GR104: ='Ma5'!$W$32 -> 0 | GS104: ='Ma5'!$X$32 -> 0 | GT104: ='Ma5'!$Y$32 -> 0 | GV104: ='Ma6'!$D$6 -> 0 | GW104: ='Ma6'!$E$6 -> 0 | GX104: ='Ma6'!$F$6 -> 0 | GY104: ='Ma6'!$G$6 -> 0 | HA104: ='Ma6'!$J$6 -> 0 | HB104: ='Ma6'!$K$6 -> 0 | HC104: ='Ma6'!$L$6 -> 0 | HD104: ='Ma6'!$M$6 -> 0 | HF104: ='Ma6'!$P$6 -> 0 | HG104: ='Ma6'!$Q$6 -> 0 | HH104: ='Ma6'!$R$6 -> 0 | HI104: ='Ma6'!$S$6 -> 0 | HK104: ='Ma6'!$V$6 -> 0 | HL104: ='Ma6'!$W$6 -> 0 | HM104: ='Ma6'!$X$6 -> 0 | HN104: ='Ma6'!$Y$6 -> 0 | HP104: ='Ma6'!$D$32 -> 0 | HQ104: ='Ma6'!$E$32 -> 0 | HR104: ='Ma6'!$F$32 -> 0 | HS104: ='Ma6'!$G$32 -> 0 | HU104: ='Ma6'!$J$32 -> 0 | HV104: ='Ma6'!$K$32 -> 0 | HW104: ='Ma6'!$L$32 -> 0 | HX104: ='Ma6'!$M$32 -> 0 | HZ104: ='Ma6'!$P$32 -> 0 | IA104: ='Ma6'!$Q$32 -> 0 | IB104: ='Ma6'!$R$32 -> 0 | IC104: ='Ma6'!$S$32 -> 0 | IE104: ='Ma6'!$V$32 -> 0 | IF104: ='Ma6'!$W$32 -> 0 | IG104: ='Ma6'!$X$32 -> 0 | IH104: ='Ma6'!$Y$32 -> 0 | IJ104: ='Ma7'!$D$6 -> 0 | IK104: ='Ma7'!$E$6 -> 0 | IL104: ='Ma7'!$F$6 -> 0 | IM104: ='Ma7'!$G$6 -> 0 | IO104: ='Ma7'!$J$6 -> 0 | IP104: ='Ma7'!$K$6 -> 0 | IQ104: ='Ma7'!$L$6 -> 0 | IR104: ='Ma7'!$M$6 -> 0 | IT104: ='Ma7'!$P$6 -> 0 | IU104: ='Ma7'!$Q$6 -> 0 | IV104: ='Ma7'!$R$6 -> 0 | IW104: ='Ma7'!$S$6 -> 0 | IY104: ='Ma7'!$V$6 -> 0 | IZ104: ='Ma7'!$W$6 -> 0 | JA104: ='Ma7'!$X$6 -> 0 | JB104: ='Ma7'!$Y$6 -> 0 | JD104: ='Ma7'!$D$32 -> 0 | JE104: ='Ma7'!$E$32 -> 0 | JF104: ='Ma7'!$F$32 -> 0 | JG104: ='Ma7'!$G$32 -> 0 | JI104: ='Ma7'!$J$32 -> 0 | JJ104: ='Ma7'!$K$32 -> 0 | JK104: ='Ma7'!$L$32 -> 0 | JL104: ='Ma7'!$M$32 -> 0 | JN104: ='Ma7'!$P$32 -> 0 | JO104: ='Ma7'!$Q$32 -> 0 | JP104: ='Ma7'!$R$32 -> 0 | JQ104: ='Ma7'!$S$32 -> 0 | JS104: ='Ma7'!$V$32 -> 0 | JT104: ='Ma7'!$W$32 -> 0 | JU104: ='Ma7'!$X$32 -> 0 | JV104: ='Ma7'!$Y$32 -> 0
D105: ='Ma1'!$D$7 -> 0 | E105: ='Ma1'!$E$7 -> 0 | F105: ='Ma1'!$F$7 -> 0 | G105: ='Ma1'!$G$7 -> 0 | I105: ='Ma1'!$J$7 -> 0 | J105: ='Ma1'!$K$7 -> 0 | K105: ='Ma1'!$L$7 -> 0 | L105: ='Ma1'!$M$7 -> 0 | N105: ='Ma1'!$P$7 -> 0 | O105: ='Ma1'!$Q$7 -> 0 | P105: ='Ma1'!$R$7 -> 0 | Q105: ='Ma1'!$S$7 -> 0 | S105: ='Ma1'!$V$7 -> 0 | T105: ='Ma1'!$W$7 -> 0 | U105: ='Ma1'!$X$7 -> 0 | V105: ='Ma1'!$Y$7 -> 0 | X105: ='Ma1'!$D$33 -> 0 | Y105: ='Ma1'!$E$33 -> 0 | Z105: ='Ma1'!$F$33 -> 0 | AA105: ='Ma1'!$G$33 -> 0 | AC105: ='Ma1'!$J$33 -> 0 | AD105: ='Ma1'!$K$33 -> 0 | AE105: ='Ma1'!$L$33 -> 0 | AF105: ='Ma1'!$M$33 -> 0 | AH105: ='Ma1'!$P$33 -> 0 | AI105: ='Ma1'!$Q$33 -> 0 | AJ105: ='Ma1'!$R$33 -> 0 | AK105: ='Ma1'!$S$33 -> 0 | AM105: ='Ma1'!$V$33 -> 0 | AN105: ='Ma1'!$W$33 -> 0 | AO105: ='Ma1'!$X$33 -> 0 | AP105: ='Ma1'!$Y$33 -> 0 | AR105: ='Ma2'!$D$7 -> 0 | AS105: ='Ma2'!$E$7 -> 0 | AT105: ='Ma2'!$F$7 -> 0 | AU105: ='Ma2'!$G$7 -> 0 | AW105: ='Ma2'!$J$7 -> 0 | AX105: ='Ma2'!$K$7 -> 0 | AY105: ='Ma2'!$L$7 -> 0 | AZ105: ='Ma2'!$M$7 -> 0 | BB105: ='Ma2'!$P$7 -> 0 | BC105: ='Ma2'!$Q$7 -> 0 | BD105: ='Ma2'!$R$7 -> 0 | BE105: ='Ma2'!$S$7 -> 0 | BG105: ='Ma2'!$V$7 -> 0 | BH105: ='Ma2'!$W$7 -> 0 | BI105: ='Ma2'!$X$7 -> 0 | BJ105: ='Ma2'!$Y$7 -> 0 | BL105: ='Ma2'!$D$33 -> 0 | BM105: ='Ma2'!$E$33 -> 0 | BN105: ='Ma2'!$F$33 -> 0 | BO105: ='Ma2'!$G$33 -> 0 | BQ105: ='Ma2'!$J$33 -> 0 | BR105: ='Ma2'!$K$33 -> 0 | BS105: ='Ma2'!$L$33 -> 0 | BT105: ='Ma2'!$M$33 -> 0 | BV105: ='Ma2'!$P$33 -> 0 | BW105: ='Ma2'!$Q$33 -> 0 | BX105: ='Ma2'!$R$33 -> 0 | BY105: ='Ma2'!$S$33 -> 0 | CA105: ='Ma2'!$V$33 -> 0 | CB105: ='Ma2'!$W$33 -> 0 | CC105: ='Ma2'!$X$33 -> 0 | CD105: ='Ma2'!$Y$33 -> 0 | CF105: ='Ma3'!$D$7 -> 0 | CG105: ='Ma3'!$E$7 -> 0 | CH105: ='Ma3'!$F$7 -> 0 | CI105: ='Ma3'!$G$7 -> 0 | CK105: ='Ma3'!$J$7 -> 0 | CL105: ='Ma3'!$K$7 -> 0 | CM105: ='Ma3'!$L$7 -> 0 | CN105: ='Ma3'!$M$7 -> 0 | CP105: ='Ma3'!$P$7 -> 0 | CQ105: ='Ma3'!$Q$7 -> 0 | CR105: ='Ma3'!$R$7 -> 0 | CS105: ='Ma3'!$S$7 -> 0 | CU105: ='Ma3'!$V$7 -> 0 | CV105: ='Ma3'!$W$7 -> 0 | CW105: ='Ma3'!$X$7 -> 0 | CX105: ='Ma3'!$Y$7 -> 0 | CZ105: ='Ma3'!$D$33 -> 0 | DA105: ='Ma3'!$E$33 -> 0 | DB105: ='Ma3'!$F$33 -> 0 | DC105: ='Ma3'!$G$33 -> 0 | DE105: ='Ma3'!$J$33 -> 0 | DF105: ='Ma3'!$K$33 -> 0 | DG105: ='Ma3'!$L$33 -> 0 | DH105: ='Ma3'!$M$33 -> 0 | DJ105: ='Ma3'!$P$33 -> 0 | DK105: ='Ma3'!$Q$33 -> 0 | DL105: ='Ma3'!$R$33 -> 0 | DM105: ='Ma3'!$S$33 -> 0 | DO105: ='Ma3'!$V$33 -> 0 | DP105: ='Ma3'!$W$33 -> 0 | DQ105: ='Ma3'!$X$33 -> 0 | DR105: ='Ma3'!$Y$33 -> 0 | DT105: ='Ma4'!$D$7 -> 0 | DU105: ='Ma4'!$E$7 -> 0 | DV105: ='Ma4'!$F$7 -> 0 | DW105: ='Ma4'!$G$7 -> 0 | DY105: ='Ma4'!$J$7 -> 0 | DZ105: ='Ma4'!$K$7 -> 0 | EA105: ='Ma4'!$L$7 -> 0 | EB105: ='Ma4'!$M$7 -> 0 | ED105: ='Ma4'!$P$7 -> 0 | EE105: ='Ma4'!$Q$7 -> 0 | EF105: ='Ma4'!$R$7 -> 0 | EG105: ='Ma4'!$S$7 -> 0 | EI105: ='Ma4'!$V$7 -> 0 | EJ105: ='Ma4'!$W$7 -> 0 | EK105: ='Ma4'!$X$7 -> 0 | EL105: ='Ma4'!$Y$7 -> 0 | EN105: ='Ma4'!$D$33 -> 0 | EO105: ='Ma4'!$E$33 -> 0 | EP105: ='Ma4'!$F$33 -> 0 | EQ105: ='Ma4'!$G$33 -> 0 | ES105: ='Ma4'!$J$33 -> 0 | ET105: ='Ma4'!$K$33 -> 0 | EU105: ='Ma4'!$L$33 -> 0 | EV105: ='Ma4'!$M$33 -> 0 | EX105: ='Ma4'!$P$33 -> 0 | EY105: ='Ma4'!$Q$33 -> 0 | EZ105: ='Ma4'!$R$33 -> 0 | FA105: ='Ma4'!$S$33 -> 0 | FC105: ='Ma4'!$V$33 -> 0 | FD105: ='Ma4'!$W$33 -> 0 | FE105: ='Ma4'!$X$33 -> 0 | FF105: ='Ma4'!$Y$33 -> 0 | FH105: ='Ma5'!$D$7 -> 0 | FI105: ='Ma5'!$E$7 -> 0 | FJ105: ='Ma5'!$F$7 -> 0 | FK105: ='Ma5'!$G$7 -> 0 | FM105: ='Ma5'!$J$7 -> 0 | FN105: ='Ma5'!$K$7 -> 0 | FO105: ='Ma5'!$L$7 -> 0 | FP105: ='Ma5'!$M$7 -> 0 | FR105: ='Ma5'!$P$7 -> 0 | FS105: ='Ma5'!$Q$7 -> 0 | FT105: ='Ma5'!$R$7 -> 0 | FU105: ='Ma5'!$S$7 -> 0 | FW105: ='Ma5'!$V$7 -> 0 | FX105: ='Ma5'!$W$7 -> 0 | FY105: ='Ma5'!$X$7 -> 0 | FZ105: ='Ma5'!$Y$7 -> 0 | GB105: ='Ma5'!$D$33 -> 0 | GC105: ='Ma5'!$E$33 -> 0 | GD105: ='Ma5'!$F$33 -> 0 | GE105: ='Ma5'!$G$33 -> 0 | GG105: ='Ma5'!$J$33 -> 0 | GH105: ='Ma5'!$K$33 -> 0 | GI105: ='Ma5'!$L$33 -> 0 | GJ105: ='Ma5'!$M$33 -> 0 | GL105: ='Ma5'!$P$33 -> 0 | GM105: ='Ma5'!$Q$33 -> 0 | GN105: ='Ma5'!$R$33 -> 0 | GO105: ='Ma5'!$S$33 -> 0 | GQ105: ='Ma5'!$V$33 -> 0 | GR105: ='Ma5'!$W$33 -> 0 | GS105: ='Ma5'!$X$33 -> 0 | GT105: ='Ma5'!$Y$33 -> 0 | GV105: ='Ma6'!$D$7 -> 0 | GW105: ='Ma6'!$E$7 -> 0 | GX105: ='Ma6'!$F$7 -> 0 | GY105: ='Ma6'!$G$7 -> 0 | HA105: ='Ma6'!$J$7 -> 0 | HB105: ='Ma6'!$K$7 -> 0 | HC105: ='Ma6'!$L$7 -> 0 | HD105: ='Ma6'!$M$7 -> 0 | HF105: ='Ma6'!$P$7 -> 0 | HG105: ='Ma6'!$Q$7 -> 0 | HH105: ='Ma6'!$R$7 -> 0 | HI105: ='Ma6'!$S$7 -> 0 | HK105: ='Ma6'!$V$7 -> 0 | HL105: ='Ma6'!$W$7 -> 0 | HM105: ='Ma6'!$X$7 -> 0 | HN105: ='Ma6'!$Y$7 -> 0 | HP105: ='Ma6'!$D$33 -> 0 | HQ105: ='Ma6'!$E$33 -> 0 | HR105: ='Ma6'!$F$33 -> 0 | HS105: ='Ma6'!$G$33 -> 0 | HU105: ='Ma6'!$J$33 -> 0 | HV105: ='Ma6'!$K$33 -> 0 | HW105: ='Ma6'!$L$33 -> 0 | HX105: ='Ma6'!$M$33 -> 0 | HZ105: ='Ma6'!$P$33 -> 0 | IA105: ='Ma6'!$Q$33 -> 0 | IB105: ='Ma6'!$R$33 -> 0 | IC105: ='Ma6'!$S$33 -> 0 | IE105: ='Ma6'!$V$33 -> 0 | IF105: ='Ma6'!$W$33 -> 0 | IG105: ='Ma6'!$X$33 -> 0 | IH105: ='Ma6'!$Y$33 -> 0 | IJ105: ='Ma7'!$D$7 -> 0 | IK105: ='Ma7'!$E$7 -> 0 | IL105: ='Ma7'!$F$7 -> 0 | IM105: ='Ma7'!$G$7 -> 0 | IO105: ='Ma7'!$J$7 -> 0 | IP105: ='Ma7'!$K$7 -> 0 | IQ105: ='Ma7'!$L$7 -> 0 | IR105: ='Ma7'!$M$7 -> 0 | IT105: ='Ma7'!$P$7 -> 0 | IU105: ='Ma7'!$Q$7 -> 0 | IV105: ='Ma7'!$R$7 -> 0 | IW105: ='Ma7'!$S$7 -> 0 | IY105: ='Ma7'!$V$7 -> 0 | IZ105: ='Ma7'!$W$7 -> 0 | JA105: ='Ma7'!$X$7 -> 0 | JB105: ='Ma7'!$Y$7 -> 0 | JD105: ='Ma7'!$D$33 -> 0 | JE105: ='Ma7'!$E$33 -> 0 | JF105: ='Ma7'!$F$33 -> 0 | JG105: ='Ma7'!$G$33 -> 0 | JI105: ='Ma7'!$J$33 -> 0 | JJ105: ='Ma7'!$K$33 -> 0 | JK105: ='Ma7'!$L$33 -> 0 | JL105: ='Ma7'!$M$33 -> 0 | JN105: ='Ma7'!$P$33 -> 0 | JO105: ='Ma7'!$Q$33 -> 0 | JP105: ='Ma7'!$R$33 -> 0 | JQ105: ='Ma7'!$S$33 -> 0 | JS105: ='Ma7'!$V$33 -> 0 | JT105: ='Ma7'!$W$33 -> 0 | JU105: ='Ma7'!$X$33 -> 0 | JV105: ='Ma7'!$Y$33 -> 0
D106: ='Ma1'!$D$8 -> 0 | E106: ='Ma1'!$E$8 -> 0 | F106: ='Ma1'!$F$8 -> 0 | G106: ='Ma1'!$G$8 -> 0 | I106: ='Ma1'!$J$8 -> 0 | J106: ='Ma1'!$K$8 -> 0 | K106: ='Ma1'!$L$8 -> 0 | L106: ='Ma1'!$M$8 -> 0 | N106: ='Ma1'!$P$8 -> 0 | O106: ='Ma1'!$Q$8 -> 0 | P106: ='Ma1'!$R$8 -> 0 | Q106: ='Ma1'!$S$8 -> 0 | S106: ='Ma1'!$V$8 -> 0 | T106: ='Ma1'!$W$8 -> 0 | U106: ='Ma1'!$X$8 -> 0 | V106: ='Ma1'!$Y$8 -> 0 | X106: ='Ma1'!$D$34 -> 0 | Y106: ='Ma1'!$E$34 -> 0 | Z106: ='Ma1'!$F$34 -> 0 | AA106: ='Ma1'!$G$34 -> 0 | AC106: ='Ma1'!$J$34 -> 0 | AD106: ='Ma1'!$K$34 -> 0 | AE106: ='Ma1'!$L$34 -> 0 | AF106: ='Ma1'!$M$34 -> 0 | AH106: ='Ma1'!$P$34 -> 0 | AI106: ='Ma1'!$Q$34 -> 0 | AJ106: ='Ma1'!$R$34 -> 0 | AK106: ='Ma1'!$S$34 -> 0 | AM106: ='Ma1'!$V$34 -> 0 | AN106: ='Ma1'!$W$34 -> 0 | AO106: ='Ma1'!$X$34 -> 0 | AP106: ='Ma1'!$Y$34 -> 0 | AR106: ='Ma2'!$D$8 -> 0 | AS106: ='Ma2'!$E$8 -> 0 | AT106: ='Ma2'!$F$8 -> 0 | AU106: ='Ma2'!$G$8 -> 0 | AW106: ='Ma2'!$J$8 -> 0 | AX106: ='Ma2'!$K$8 -> 0 | AY106: ='Ma2'!$L$8 -> 0 | AZ106: ='Ma2'!$M$8 -> 0 | BB106: ='Ma2'!$P$8 -> 0 | BC106: ='Ma2'!$Q$8 -> 0 | BD106: ='Ma2'!$R$8 -> 0 | BE106: ='Ma2'!$S$8 -> 0 | BG106: ='Ma2'!$V$8 -> 0 | BH106: ='Ma2'!$W$8 -> 0 | BI106: ='Ma2'!$X$8 -> 0 | BJ106: ='Ma2'!$Y$8 -> 0 | BL106: ='Ma2'!$D$34 -> 0 | BM106: ='Ma2'!$E$34 -> 0 | BN106: ='Ma2'!$F$34 -> 0 | BO106: ='Ma2'!$G$34 -> 0 | BQ106: ='Ma2'!$J$34 -> 0 | BR106: ='Ma2'!$K$34 -> 0 | BS106: ='Ma2'!$L$34 -> 0 | BT106: ='Ma2'!$M$34 -> 0 | BV106: ='Ma2'!$P$34 -> 0 | BW106: ='Ma2'!$Q$34 -> 0 | BX106: ='Ma2'!$R$34 -> 0 | BY106: ='Ma2'!$S$34 -> 0 | CA106: ='Ma2'!$V$34 -> 0 | CB106: ='Ma2'!$W$34 -> 0 | CC106: ='Ma2'!$X$34 -> 0 | CD106: ='Ma2'!$Y$34 -> 0 | CF106: ='Ma3'!$D$8 -> 0 | CG106: ='Ma3'!$E$8 -> 0 | CH106: ='Ma3'!$F$8 -> 0 | CI106: ='Ma3'!$G$8 -> 0 | CK106: ='Ma3'!$J$8 -> 0 | CL106: ='Ma3'!$K$8 -> 0 | CM106: ='Ma3'!$L$8 -> 0 | CN106: ='Ma3'!$M$8 -> 0 | CP106: ='Ma3'!$P$8 -> 0 | CQ106: ='Ma3'!$Q$8 -> 0 | CR106: ='Ma3'!$R$8 -> 0 | CS106: ='Ma3'!$S$8 -> 0 | CU106: ='Ma3'!$V$8 -> 0 | CV106: ='Ma3'!$W$8 -> 0 | CW106: ='Ma3'!$X$8 -> 0 | CX106: ='Ma3'!$Y$8 -> 0 | CZ106: ='Ma3'!$D$34 -> 0 | DA106: ='Ma3'!$E$34 -> 0 | DB106: ='Ma3'!$F$34 -> 0 | DC106: ='Ma3'!$G$34 -> 0 | DE106: ='Ma3'!$J$34 -> 0 | DF106: ='Ma3'!$K$34 -> 0 | DG106: ='Ma3'!$L$34 -> 0 | DH106: ='Ma3'!$M$34 -> 0 | DJ106: ='Ma3'!$P$34 -> 0 | DK106: ='Ma3'!$Q$34 -> 0 | DL106: ='Ma3'!$R$34 -> 0 | DM106: ='Ma3'!$S$34 -> 0 | DO106: ='Ma3'!$V$34 -> 0 | DP106: ='Ma3'!$W$34 -> 0 | DQ106: ='Ma3'!$X$34 -> 0 | DR106: ='Ma3'!$Y$34 -> 0 | DT106: ='Ma4'!$D$8 -> 0 | DU106: ='Ma4'!$E$8 -> 0 | DV106: ='Ma4'!$F$8 -> 0 | DW106: ='Ma4'!$G$8 -> 0 | DY106: ='Ma4'!$J$8 -> 0 | DZ106: ='Ma4'!$K$8 -> 0 | EA106: ='Ma4'!$L$8 -> 0 | EB106: ='Ma4'!$M$8 -> 0 | ED106: ='Ma4'!$P$8 -> 0 | EE106: ='Ma4'!$Q$8 -> 0 | EF106: ='Ma4'!$R$8 -> 0 | EG106: ='Ma4'!$S$8 -> 0 | EI106: ='Ma4'!$V$8 -> 0 | EJ106: ='Ma4'!$W$8 -> 0 | EK106: ='Ma4'!$X$8 -> 0 | EL106: ='Ma4'!$Y$8 -> 0 | EN106: ='Ma4'!$D$34 -> 0 | EO106: ='Ma4'!$E$34 -> 0 | EP106: ='Ma4'!$F$34 -> 0 | EQ106: ='Ma4'!$G$34 -> 0 | ES106: ='Ma4'!$J$34 -> 0 | ET106: ='Ma4'!$K$34 -> 0 | EU106: ='Ma4'!$L$34 -> 0 | EV106: ='Ma4'!$M$34 -> 0 | EX106: ='Ma4'!$P$34 -> 0 | EY106: ='Ma4'!$Q$34 -> 0 | EZ106: ='Ma4'!$R$34 -> 0 | FA106: ='Ma4'!$S$34 -> 0 | FC106: ='Ma4'!$V$34 -> 0 | FD106: ='Ma4'!$W$34 -> 0 | FE106: ='Ma4'!$X$34 -> 0 | FF106: ='Ma4'!$Y$34 -> 0 | FH106: ='Ma5'!$D$8 -> 0 | FI106: ='Ma5'!$E$8 -> 0 | FJ106: ='Ma5'!$F$8 -> 0 | FK106: ='Ma5'!$G$8 -> 0 | FM106: ='Ma5'!$J$8 -> 0 | FN106: ='Ma5'!$K$8 -> 0 | FO106: ='Ma5'!$L$8 -> 0 | FP106: ='Ma5'!$M$8 -> 0 | FR106: ='Ma5'!$P$8 -> 0 | FS106: ='Ma5'!$Q$8 -> 0 | FT106: ='Ma5'!$R$8 -> 0 | FU106: ='Ma5'!$S$8 -> 0 | FW106: ='Ma5'!$V$8 -> 0 | FX106: ='Ma5'!$W$8 -> 0 | FY106: ='Ma5'!$X$8 -> 0 | FZ106: ='Ma5'!$Y$8 -> 0 | GB106: ='Ma5'!$D$34 -> 0 | GC106: ='Ma5'!$E$34 -> 0 | GD106: ='Ma5'!$F$34 -> 0 | GE106: ='Ma5'!$G$34 -> 0 | GG106: ='Ma5'!$J$34 -> 0 | GH106: ='Ma5'!$K$34 -> 0 | GI106: ='Ma5'!$L$34 -> 0 | GJ106: ='Ma5'!$M$34 -> 0 | GL106: ='Ma5'!$P$34 -> 0 | GM106: ='Ma5'!$Q$34 -> 0 | GN106: ='Ma5'!$R$34 -> 0 | GO106: ='Ma5'!$S$34 -> 0 | GQ106: ='Ma5'!$V$34 -> 0 | GR106: ='Ma5'!$W$34 -> 0 | GS106: ='Ma5'!$X$34 -> 0 | GT106: ='Ma5'!$Y$34 -> 0 | GV106: ='Ma6'!$D$8 -> 0 | GW106: ='Ma6'!$E$8 -> 0 | GX106: ='Ma6'!$F$8 -> 0 | GY106: ='Ma6'!$G$8 -> 0 | HA106: ='Ma6'!$J$8 -> 0 | HB106: ='Ma6'!$K$8 -> 0 | HC106: ='Ma6'!$L$8 -> 0 | HD106: ='Ma6'!$M$8 -> 0 | HF106: ='Ma6'!$P$8 -> 0 | HG106: ='Ma6'!$Q$8 -> 0 | HH106: ='Ma6'!$R$8 -> 0 | HI106: ='Ma6'!$S$8 -> 0 | HK106: ='Ma6'!$V$8 -> 0 | HL106: ='Ma6'!$W$8 -> 0 | HM106: ='Ma6'!$X$8 -> 0 | HN106: ='Ma6'!$Y$8 -> 0 | HP106: ='Ma6'!$D$34 -> 0 | HQ106: ='Ma6'!$E$34 -> 0 | HR106: ='Ma6'!$F$34 -> 0 | HS106: ='Ma6'!$G$34 -> 0 | HU106: ='Ma6'!$J$34 -> 0 | HV106: ='Ma6'!$K$34 -> 0 | HW106: ='Ma6'!$L$34 -> 0 | HX106: ='Ma6'!$M$34 -> 0 | HZ106: ='Ma6'!$P$34 -> 0 | IA106: ='Ma6'!$Q$34 -> 0 | IB106: ='Ma6'!$R$34 -> 0 | IC106: ='Ma6'!$S$34 -> 0 | IE106: ='Ma6'!$V$34 -> 0 | IF106: ='Ma6'!$W$34 -> 0 | IG106: ='Ma6'!$X$34 -> 0 | IH106: ='Ma6'!$Y$34 -> 0 | IJ106: ='Ma7'!$D$8 -> 0 | IK106: ='Ma7'!$E$8 -> 0 | IL106: ='Ma7'!$F$8 -> 0 | IM106: ='Ma7'!$G$8 -> 0 | IO106: ='Ma7'!$J$8 -> 0 | IP106: ='Ma7'!$K$8 -> 0 | IQ106: ='Ma7'!$L$8 -> 0 | IR106: ='Ma7'!$M$8 -> 0 | IT106: ='Ma7'!$P$8 -> 0 | IU106: ='Ma7'!$Q$8 -> 0 | IV106: ='Ma7'!$R$8 -> 0 | IW106: ='Ma7'!$S$8 -> 0 | IY106: ='Ma7'!$V$8 -> 0 | IZ106: ='Ma7'!$W$8 -> 0 | JA106: ='Ma7'!$X$8 -> 0 | JB106: ='Ma7'!$Y$8 -> 0 | JD106: ='Ma7'!$D$34 -> 0 | JE106: ='Ma7'!$E$34 -> 0 | JF106: ='Ma7'!$F$34 -> 0 | JG106: ='Ma7'!$G$34 -> 0 | JI106: ='Ma7'!$J$34 -> 0 | JJ106: ='Ma7'!$K$34 -> 0 | JK106: ='Ma7'!$L$34 -> 0 | JL106: ='Ma7'!$M$34 -> 0 | JN106: ='Ma7'!$P$34 -> 0 | JO106: ='Ma7'!$Q$34 -> 0 | JP106: ='Ma7'!$R$34 -> 0 | JQ106: ='Ma7'!$S$34 -> 0 | JS106: ='Ma7'!$V$34 -> 0 | JT106: ='Ma7'!$W$34 -> 0 | JU106: ='Ma7'!$X$34 -> 0 | JV106: ='Ma7'!$Y$34 -> 0
D107: ='Ma1'!$D$9 -> 0 | E107: ='Ma1'!$E$9 -> 0 | F107: ='Ma1'!$F$9 -> 0 | G107: ='Ma1'!$G$9 -> 0 | I107: ='Ma1'!$J$9 -> 0 | J107: ='Ma1'!$K$9 -> 0 | K107: ='Ma1'!$L$9 -> 0 | L107: ='Ma1'!$M$9 -> 0 | N107: ='Ma1'!$P$9 -> 0 | O107: ='Ma1'!$Q$9 -> 0 | P107: ='Ma1'!$R$9 -> 0 | Q107: ='Ma1'!$S$9 -> 0 | S107: ='Ma1'!$V$9 -> 0 | T107: ='Ma1'!$W$9 -> 0 | U107: ='Ma1'!$X$9 -> 0 | V107: ='Ma1'!$Y$9 -> 0 | X107: ='Ma1'!$D$35 -> 0 | Y107: ='Ma1'!$E$35 -> 0 | Z107: ='Ma1'!$F$35 -> 0 | AA107: ='Ma1'!$G$35 -> 0 | AC107: ='Ma1'!$J$35 -> 0 | AD107: ='Ma1'!$K$35 -> 0 | AE107: ='Ma1'!$L$35 -> 0 | AF107: ='Ma1'!$M$35 -> 0 | AH107: ='Ma1'!$P$35 -> 0 | AI107: ='Ma1'!$Q$35 -> 0 | AJ107: ='Ma1'!$R$35 -> 0 | AK107: ='Ma1'!$S$35 -> 0 | AM107: ='Ma1'!$V$35 -> 0 | AN107: ='Ma1'!$W$35 -> 0 | AO107: ='Ma1'!$X$35 -> 0 | AP107: ='Ma1'!$Y$35 -> 0 | AR107: ='Ma2'!$D$9 -> 0 | AS107: ='Ma2'!$E$9 -> 0 | AT107: ='Ma2'!$F$9 -> 0 | AU107: ='Ma2'!$G$9 -> 0 | AW107: ='Ma2'!$J$9 -> 0 | AX107: ='Ma2'!$K$9 -> 0 | AY107: ='Ma2'!$L$9 -> 0 | AZ107: ='Ma2'!$M$9 -> 0 | BB107: ='Ma2'!$P$9 -> 0 | BC107: ='Ma2'!$Q$9 -> 0 | BD107: ='Ma2'!$R$9 -> 0 | BE107: ='Ma2'!$S$9 -> 0 | BG107: ='Ma2'!$V$9 -> 0 | BH107: ='Ma2'!$W$9 -> 0 | BI107: ='Ma2'!$X$9 -> 0 | BJ107: ='Ma2'!$Y$9 -> 0 | BL107: ='Ma2'!$D$35 -> 0 | BM107: ='Ma2'!$E$35 -> 0 | BN107: ='Ma2'!$F$35 -> 0 | BO107: ='Ma2'!$G$35 -> 0 | BQ107: ='Ma2'!$J$35 -> 0 | BR107: ='Ma2'!$K$35 -> 0 | BS107: ='Ma2'!$L$35 -> 0 | BT107: ='Ma2'!$M$35 -> 0 | BV107: ='Ma2'!$P$35 -> 0 | BW107: ='Ma2'!$Q$35 -> 0 | BX107: ='Ma2'!$R$35 -> 0 | BY107: ='Ma2'!$S$35 -> 0 | CA107: ='Ma2'!$V$35 -> 0 | CB107: ='Ma2'!$W$35 -> 0 | CC107: ='Ma2'!$X$35 -> 0 | CD107: ='Ma2'!$Y$35 -> 0 | CF107: ='Ma3'!$D$9 -> 0 | CG107: ='Ma3'!$E$9 -> 0 | CH107: ='Ma3'!$F$9 -> 0 | CI107: ='Ma3'!$G$9 -> 0 | CK107: ='Ma3'!$J$9 -> 0 | CL107: ='Ma3'!$K$9 -> 0 | CM107: ='Ma3'!$L$9 -> 0 | CN107: ='Ma3'!$M$9 -> 0 | CP107: ='Ma3'!$P$9 -> 0 | CQ107: ='Ma3'!$Q$9 -> 0 | CR107: ='Ma3'!$R$9 -> 0 | CS107: ='Ma3'!$S$9 -> 0 | CU107: ='Ma3'!$V$9 -> 0 | CV107: ='Ma3'!$W$9 -> 0 | CW107: ='Ma3'!$X$9 -> 0 | CX107: ='Ma3'!$Y$9 -> 0 | CZ107: ='Ma3'!$D$35 -> 0 | DA107: ='Ma3'!$E$35 -> 0 | DB107: ='Ma3'!$F$35 -> 0 | DC107: ='Ma3'!$G$35 -> 0 | DE107: ='Ma3'!$J$35 -> 0 | DF107: ='Ma3'!$K$35 -> 0 | DG107: ='Ma3'!$L$35 -> 0 | DH107: ='Ma3'!$M$35 -> 0 | DJ107: ='Ma3'!$P$35 -> 0 | DK107: ='Ma3'!$Q$35 -> 0 | DL107: ='Ma3'!$R$35 -> 0 | DM107: ='Ma3'!$S$35 -> 0 | DO107: ='Ma3'!$V$35 -> 0 | DP107: ='Ma3'!$W$35 -> 0 | DQ107: ='Ma3'!$X$35 -> 0 | DR107: ='Ma3'!$Y$35 -> 0 | DT107: ='Ma4'!$D$9 -> 0 | DU107: ='Ma4'!$E$9 -> 0 | DV107: ='Ma4'!$F$9 -> 0 | DW107: ='Ma4'!$G$9 -> 0 | DY107: ='Ma4'!$J$9 -> 0 | DZ107: ='Ma4'!$K$9 -> 0 | EA107: ='Ma4'!$L$9 -> 0 | EB107: ='Ma4'!$M$9 -> 0 | ED107: ='Ma4'!$P$9 -> 0 | EE107: ='Ma4'!$Q$9 -> 0 | EF107: ='Ma4'!$R$9 -> 0 | EG107: ='Ma4'!$S$9 -> 0 | EI107: ='Ma4'!$V$9 -> 0 | EJ107: ='Ma4'!$W$9 -> 0 | EK107: ='Ma4'!$X$9 -> 0 | EL107: ='Ma4'!$Y$9 -> 0 | EN107: ='Ma4'!$D$35 -> 0 | EO107: ='Ma4'!$E$35 -> 0 | EP107: ='Ma4'!$F$35 -> 0 | EQ107: ='Ma4'!$G$35 -> 0 | ES107: ='Ma4'!$J$35 -> 0 | ET107: ='Ma4'!$K$35 -> 0 | EU107: ='Ma4'!$L$35 -> 0 | EV107: ='Ma4'!$M$35 -> 0 | EX107: ='Ma4'!$P$35 -> 0 | EY107: ='Ma4'!$Q$35 -> 0 | EZ107: ='Ma4'!$R$35 -> 0 | FA107: ='Ma4'!$S$35 -> 0 | FC107: ='Ma4'!$V$35 -> 0 | FD107: ='Ma4'!$W$35 -> 0 | FE107: ='Ma4'!$X$35 -> 0 | FF107: ='Ma4'!$Y$35 -> 0 | FH107: ='Ma5'!$D$9 -> 0 | FI107: ='Ma5'!$E$9 -> 0 | FJ107: ='Ma5'!$F$9 -> 0 | FK107: ='Ma5'!$G$9 -> 0 | FM107: ='Ma5'!$J$9 -> 0 | FN107: ='Ma5'!$K$9 -> 0 | FO107: ='Ma5'!$L$9 -> 0 | FP107: ='Ma5'!$M$9 -> 0 | FR107: ='Ma5'!$P$9 -> 0 | FS107: ='Ma5'!$Q$9 -> 0 | FT107: ='Ma5'!$R$9 -> 0 | FU107: ='Ma5'!$S$9 -> 0 | FW107: ='Ma5'!$V$9 -> 0 | FX107: ='Ma5'!$W$9 -> 0 | FY107: ='Ma5'!$X$9 -> 0 | FZ107: ='Ma5'!$Y$9 -> 0 | GB107: ='Ma5'!$D$35 -> 0 | GC107: ='Ma5'!$E$35 -> 0 | GD107: ='Ma5'!$F$35 -> 0 | GE107: ='Ma5'!$G$35 -> 0 | GG107: ='Ma5'!$J$35 -> 0 | GH107: ='Ma5'!$K$35 -> 0 | GI107: ='Ma5'!$L$35 -> 0 | GJ107: ='Ma5'!$M$35 -> 0 | GL107: ='Ma5'!$P$35 -> 0 | GM107: ='Ma5'!$Q$35 -> 0 | GN107: ='Ma5'!$R$35 -> 0 | GO107: ='Ma5'!$S$35 -> 0 | GQ107: ='Ma5'!$V$35 -> 0 | GR107: ='Ma5'!$W$35 -> 0 | GS107: ='Ma5'!$X$35 -> 0 | GT107: ='Ma5'!$Y$35 -> 0 | GV107: ='Ma6'!$D$9 -> 0 | GW107: ='Ma6'!$E$9 -> 0 | GX107: ='Ma6'!$F$9 -> 0 | GY107: ='Ma6'!$G$9 -> 0 | HA107: ='Ma6'!$J$9 -> 0 | HB107: ='Ma6'!$K$9 -> 0 | HC107: ='Ma6'!$L$9 -> 0 | HD107: ='Ma6'!$M$9 -> 0 | HF107: ='Ma6'!$P$9 -> 0 | HG107: ='Ma6'!$Q$9 -> 0 | HH107: ='Ma6'!$R$9 -> 0 | HI107: ='Ma6'!$S$9 -> 0 | HK107: ='Ma6'!$V$9 -> 0 | HL107: ='Ma6'!$W$9 -> 0 | HM107: ='Ma6'!$X$9 -> 0 | HN107: ='Ma6'!$Y$9 -> 0 | HP107: ='Ma6'!$D$35 -> 0 | HQ107: ='Ma6'!$E$35 -> 0 | HR107: ='Ma6'!$F$35 -> 0 | HS107: ='Ma6'!$G$35 -> 0 | HU107: ='Ma6'!$J$35 -> 0 | HV107: ='Ma6'!$K$35 -> 0 | HW107: ='Ma6'!$L$35 -> 0 | HX107: ='Ma6'!$M$35 -> 0 | HZ107: ='Ma6'!$P$35 -> 0 | IA107: ='Ma6'!$Q$35 -> 0 | IB107: ='Ma6'!$R$35 -> 0 | IC107: ='Ma6'!$S$35 -> 0 | IE107: ='Ma6'!$V$35 -> 0 | IF107: ='Ma6'!$W$35 -> 0 | IG107: ='Ma6'!$X$35 -> 0 | IH107: ='Ma6'!$Y$35 -> 0 | IJ107: ='Ma7'!$D$9 -> 0 | IK107: ='Ma7'!$E$9 -> 0 | IL107: ='Ma7'!$F$9 -> 0 | IM107: ='Ma7'!$G$9 -> 0 | IO107: ='Ma7'!$J$9 -> 0 | IP107: ='Ma7'!$K$9 -> 0 | IQ107: ='Ma7'!$L$9 -> 0 | IR107: ='Ma7'!$M$9 -> 0 | IT107: ='Ma7'!$P$9 -> 0 | IU107: ='Ma7'!$Q$9 -> 0 | IV107: ='Ma7'!$R$9 -> 0 | IW107: ='Ma7'!$S$9 -> 0 | IY107: ='Ma7'!$V$9 -> 0 | IZ107: ='Ma7'!$W$9 -> 0 | JA107: ='Ma7'!$X$9 -> 0 | JB107: ='Ma7'!$Y$9 -> 0 | JD107: ='Ma7'!$D$35 -> 0 | JE107: ='Ma7'!$E$35 -> 0 | JF107: ='Ma7'!$F$35 -> 0 | JG107: ='Ma7'!$G$35 -> 0 | JI107: ='Ma7'!$J$35 -> 0 | JJ107: ='Ma7'!$K$35 -> 0 | JK107: ='Ma7'!$L$35 -> 0 | JL107: ='Ma7'!$M$35 -> 0 | JN107: ='Ma7'!$P$35 -> 0 | JO107: ='Ma7'!$Q$35 -> 0 | JP107: ='Ma7'!$R$35 -> 0 | JQ107: ='Ma7'!$S$35 -> 0 | JS107: ='Ma7'!$V$35 -> 0 | JT107: ='Ma7'!$W$35 -> 0 | JU107: ='Ma7'!$X$35 -> 0 | JV107: ='Ma7'!$Y$35 -> 0
D108: ='Ma1'!$D$10 -> 0 | E108: ='Ma1'!$E$10 -> 0 | F108: ='Ma1'!$F$10 -> 0 | G108: ='Ma1'!$G$10 -> 0 | I108: ='Ma1'!$J$10 -> 0 | J108: ='Ma1'!$K$10 -> 0 | K108: ='Ma1'!$L$10 -> 0 | L108: ='Ma1'!$M$10 -> 0 | N108: ='Ma1'!$P$10 -> 0 | O108: ='Ma1'!$Q$10 -> 0 | P108: ='Ma1'!$R$10 -> 0 | Q108: ='Ma1'!$S$10 -> 0 | S108: ='Ma1'!$V$10 -> 0 | T108: ='Ma1'!$W$10 -> 0 | U108: ='Ma1'!$X$10 -> 0 | V108: ='Ma1'!$Y$10 -> 0 | X108: ='Ma1'!$D$36 -> 0 | Y108: ='Ma1'!$E$36 -> 0 | Z108: ='Ma1'!$F$36 -> 0 | AA108: ='Ma1'!$G$36 -> 0 | AC108: ='Ma1'!$J$36 -> 0 | AD108: ='Ma1'!$K$36 -> 0 | AE108: ='Ma1'!$L$36 -> 0 | AF108: ='Ma1'!$M$36 -> 0 | AH108: ='Ma1'!$P$36 -> 0 | AI108: ='Ma1'!$Q$36 -> 0 | AJ108: ='Ma1'!$R$36 -> 0 | AK108: ='Ma1'!$S$36 -> 0 | AM108: ='Ma1'!$V$36 -> 0 | AN108: ='Ma1'!$W$36 -> 0 | AO108: ='Ma1'!$X$36 -> 0 | AP108: ='Ma1'!$Y$36 -> 0 | AR108: ='Ma2'!$D$10 -> 0 | AS108: ='Ma2'!$E$10 -> 0 | AT108: ='Ma2'!$F$10 -> 0 | AU108: ='Ma2'!$G$10 -> 0 | AW108: ='Ma2'!$J$10 -> 0 | AX108: ='Ma2'!$K$10 -> 0 | AY108: ='Ma2'!$L$10 -> 0 | AZ108: ='Ma2'!$M$10 -> 0 | BB108: ='Ma2'!$P$10 -> 0 | BC108: ='Ma2'!$Q$10 -> 0 | BD108: ='Ma2'!$R$10 -> 0 | BE108: ='Ma2'!$S$10 -> 0 | BG108: ='Ma2'!$V$10 -> 0 | BH108: ='Ma2'!$W$10 -> 0 | BI108: ='Ma2'!$X$10 -> 0 | BJ108: ='Ma2'!$Y$10 -> 0 | BL108: ='Ma2'!$D$36 -> 0 | BM108: ='Ma2'!$E$36 -> 0 | BN108: ='Ma2'!$F$36 -> 0 | BO108: ='Ma2'!$G$36 -> 0 | BQ108: ='Ma2'!$J$36 -> 0 | BR108: ='Ma2'!$K$36 -> 0 | BS108: ='Ma2'!$L$36 -> 0 | BT108: ='Ma2'!$M$36 -> 0 | BV108: ='Ma2'!$P$36 -> 0 | BW108: ='Ma2'!$Q$36 -> 0 | BX108: ='Ma2'!$R$36 -> 0 | BY108: ='Ma2'!$S$36 -> 0 | CA108: ='Ma2'!$V$36 -> 0 | CB108: ='Ma2'!$W$36 -> 0 | CC108: ='Ma2'!$X$36 -> 0 | CD108: ='Ma2'!$Y$36 -> 0 | CF108: ='Ma3'!$D$10 -> 0 | CG108: ='Ma3'!$E$10 -> 0 | CH108: ='Ma3'!$F$10 -> 0 | CI108: ='Ma3'!$G$10 -> 0 | CK108: ='Ma3'!$J$10 -> 0 | CL108: ='Ma3'!$K$10 -> 0 | CM108: ='Ma3'!$L$10 -> 0 | CN108: ='Ma3'!$M$10 -> 0 | CP108: ='Ma3'!$P$10 -> 0 | CQ108: ='Ma3'!$Q$10 -> 0 | CR108: ='Ma3'!$R$10 -> 0 | CS108: ='Ma3'!$S$10 -> 0 | CU108: ='Ma3'!$V$10 -> 0 | CV108: ='Ma3'!$W$10 -> 0 | CW108: ='Ma3'!$X$10 -> 0 | CX108: ='Ma3'!$Y$10 -> 0 | CZ108: ='Ma3'!$D$36 -> 0 | DA108: ='Ma3'!$E$36 -> 0 | DB108: ='Ma3'!$F$36 -> 0 | DC108: ='Ma3'!$G$36 -> 0 | DE108: ='Ma3'!$J$36 -> 0 | DF108: ='Ma3'!$K$36 -> 0 | DG108: ='Ma3'!$L$36 -> 0 | DH108: ='Ma3'!$M$36 -> 0 | DJ108: ='Ma3'!$P$36 -> 0 | DK108: ='Ma3'!$Q$36 -> 0 | DL108: ='Ma3'!$R$36 -> 0 | DM108: ='Ma3'!$S$36 -> 0 | DO108: ='Ma3'!$V$36 -> 0 | DP108: ='Ma3'!$W$36 -> 0 | DQ108: ='Ma3'!$X$36 -> 0 | DR108: ='Ma3'!$Y$36 -> 0 | DT108: ='Ma4'!$D$10 -> 0 | DU108: ='Ma4'!$E$10 -> 0 | DV108: ='Ma4'!$F$10 -> 0 | DW108: ='Ma4'!$G$10 -> 0 | DY108: ='Ma4'!$J$10 -> 0 | DZ108: ='Ma4'!$K$10 -> 0 | EA108: ='Ma4'!$L$10 -> 0 | EB108: ='Ma4'!$M$10 -> 0 | ED108: ='Ma4'!$P$10 -> 0 | EE108: ='Ma4'!$Q$10 -> 0 | EF108: ='Ma4'!$R$10 -> 0 | EG108: ='Ma4'!$S$10 -> 0 | EI108: ='Ma4'!$V$10 -> 0 | EJ108: ='Ma4'!$W$10 -> 0 | EK108: ='Ma4'!$X$10 -> 0 | EL108: ='Ma4'!$Y$10 -> 0 | EN108: ='Ma4'!$D$36 -> 0 | EO108: ='Ma4'!$E$36 -> 0 | EP108: ='Ma4'!$F$36 -> 0 | EQ108: ='Ma4'!$G$36 -> 0 | ES108: ='Ma4'!$J$36 -> 0 | ET108: ='Ma4'!$K$36 -> 0 | EU108: ='Ma4'!$L$36 -> 0 | EV108: ='Ma4'!$M$36 -> 0 | EX108: ='Ma4'!$P$36 -> 0 | EY108: ='Ma4'!$Q$36 -> 0 | EZ108: ='Ma4'!$R$36 -> 0 | FA108: ='Ma4'!$S$36 -> 0 | FC108: ='Ma4'!$V$36 -> 0 | FD108: ='Ma4'!$W$36 -> 0 | FE108: ='Ma4'!$X$36 -> 0 | FF108: ='Ma4'!$Y$36 -> 0 | FH108: ='Ma5'!$D$10 -> 0 | FI108: ='Ma5'!$E$10 -> 0 | FJ108: ='Ma5'!$F$10 -> 0 | FK108: ='Ma5'!$G$10 -> 0 | FM108: ='Ma5'!$J$10 -> 0 | FN108: ='Ma5'!$K$10 -> 0 | FO108: ='Ma5'!$L$10 -> 0 | FP108: ='Ma5'!$M$10 -> 0 | FR108: ='Ma5'!$P$10 -> 0 | FS108: ='Ma5'!$Q$10 -> 0 | FT108: ='Ma5'!$R$10 -> 0 | FU108: ='Ma5'!$S$10 -> 0 | FW108: ='Ma5'!$V$10 -> 0 | FX108: ='Ma5'!$W$10 -> 0 | FY108: ='Ma5'!$X$10 -> 0 | FZ108: ='Ma5'!$Y$10 -> 0 | GB108: ='Ma5'!$D$36 -> 0 | GC108: ='Ma5'!$E$36 -> 0 | GD108: ='Ma5'!$F$36 -> 0 | GE108: ='Ma5'!$G$36 -> 0 | GG108: ='Ma5'!$J$36 -> 0 | GH108: ='Ma5'!$K$36 -> 0 | GI108: ='Ma5'!$L$36 -> 0 | GJ108: ='Ma5'!$M$36 -> 0 | GL108: ='Ma5'!$P$36 -> 0 | GM108: ='Ma5'!$Q$36 -> 0 | GN108: ='Ma5'!$R$36 -> 0 | GO108: ='Ma5'!$S$36 -> 0 | GQ108: ='Ma5'!$V$36 -> 0 | GR108: ='Ma5'!$W$36 -> 0 | GS108: ='Ma5'!$X$36 -> 0 | GT108: ='Ma5'!$Y$36 -> 0 | GV108: ='Ma6'!$D$10 -> 0 | GW108: ='Ma6'!$E$10 -> 0 | GX108: ='Ma6'!$F$10 -> 0 | GY108: ='Ma6'!$G$10 -> 0 | HA108: ='Ma6'!$J$10 -> 0 | HB108: ='Ma6'!$K$10 -> 0 | HC108: ='Ma6'!$L$10 -> 0 | HD108: ='Ma6'!$M$10 -> 0 | HF108: ='Ma6'!$P$10 -> 0 | HG108: ='Ma6'!$Q$10 -> 0 | HH108: ='Ma6'!$R$10 -> 0 | HI108: ='Ma6'!$S$10 -> 0 | HK108: ='Ma6'!$V$10 -> 0 | HL108: ='Ma6'!$W$10 -> 0 | HM108: ='Ma6'!$X$10 -> 0 | HN108: ='Ma6'!$Y$10 -> 0 | HP108: ='Ma6'!$D$36 -> 0 | HQ108: ='Ma6'!$E$36 -> 0 | HR108: ='Ma6'!$F$36 -> 0 | HS108: ='Ma6'!$G$36 -> 0 | HU108: ='Ma6'!$J$36 -> 0 | HV108: ='Ma6'!$K$36 -> 0 | HW108: ='Ma6'!$L$36 -> 0 | HX108: ='Ma6'!$M$36 -> 0 | HZ108: ='Ma6'!$P$36 -> 0 | IA108: ='Ma6'!$Q$36 -> 0 | IB108: ='Ma6'!$R$36 -> 0 | IC108: ='Ma6'!$S$36 -> 0 | IE108: ='Ma6'!$V$36 -> 0 | IF108: ='Ma6'!$W$36 -> 0 | IG108: ='Ma6'!$X$36 -> 0 | IH108: ='Ma6'!$Y$36 -> 0 | IJ108: ='Ma7'!$D$10 -> 0 | IK108: ='Ma7'!$E$10 -> 0 | IL108: ='Ma7'!$F$10 -> 0 | IM108: ='Ma7'!$G$10 -> 0 | IO108: ='Ma7'!$J$10 -> 0 | IP108: ='Ma7'!$K$10 -> 0 | IQ108: ='Ma7'!$L$10 -> 0 | IR108: ='Ma7'!$M$10 -> 0 | IT108: ='Ma7'!$P$10 -> 0 | IU108: ='Ma7'!$Q$10 -> 0 | IV108: ='Ma7'!$R$10 -> 0 | IW108: ='Ma7'!$S$10 -> 0 | IY108: ='Ma7'!$V$10 -> 0 | IZ108: ='Ma7'!$W$10 -> 0 | JA108: ='Ma7'!$X$10 -> 0 | JB108: ='Ma7'!$Y$10 -> 0 | JD108: ='Ma7'!$D$36 -> 0 | JE108: ='Ma7'!$E$36 -> 0 | JF108: ='Ma7'!$F$36 -> 0 | JG108: ='Ma7'!$G$36 -> 0 | JI108: ='Ma7'!$J$36 -> 0 | JJ108: ='Ma7'!$K$36 -> 0 | JK108: ='Ma7'!$L$36 -> 0 | JL108: ='Ma7'!$M$36 -> 0 | JN108: ='Ma7'!$P$36 -> 0 | JO108: ='Ma7'!$Q$36 -> 0 | JP108: ='Ma7'!$R$36 -> 0 | JQ108: ='Ma7'!$S$36 -> 0 | JS108: ='Ma7'!$V$36 -> 0 | JT108: ='Ma7'!$W$36 -> 0 | JU108: ='Ma7'!$X$36 -> 0 | JV108: ='Ma7'!$Y$36 -> 0
D109: ='Ma1'!$D$11 -> 0 | E109: ='Ma1'!$E$11 -> 0 | F109: ='Ma1'!$F$11 -> 0 | G109: ='Ma1'!$G$11 -> 0 | I109: ='Ma1'!$J$11 -> 0 | J109: ='Ma1'!$K$11 -> 0 | K109: ='Ma1'!$L$11 -> 0 | L109: ='Ma1'!$M$11 -> 0 | N109: ='Ma1'!$P$11 -> 0 | O109: ='Ma1'!$Q$11 -> 0 | P109: ='Ma1'!$R$11 -> 0 | Q109: ='Ma1'!$S$11 -> 0 | S109: ='Ma1'!$V$11 -> 0 | T109: ='Ma1'!$W$11 -> 0 | U109: ='Ma1'!$X$11 -> 0 | V109: ='Ma1'!$Y$11 -> 0 | X109: ='Ma1'!$D$37 -> 0 | Y109: ='Ma1'!$E$37 -> 0 | Z109: ='Ma1'!$F$37 -> 0 | AA109: ='Ma1'!$G$37 -> 0 | AC109: ='Ma1'!$J$37 -> 0 | AD109: ='Ma1'!$K$37 -> 0 | AE109: ='Ma1'!$L$37 -> 0 | AF109: ='Ma1'!$M$37 -> 0 | AH109: ='Ma1'!$P$37 -> 0 | AI109: ='Ma1'!$Q$37 -> 0 | AJ109: ='Ma1'!$R$37 -> 0 | AK109: ='Ma1'!$S$37 -> 0 | AM109: ='Ma1'!$V$37 -> 0 | AN109: ='Ma1'!$W$37 -> 0 | AO109: ='Ma1'!$X$37 -> 0 | AP109: ='Ma1'!$Y$37 -> 0 | AR109: ='Ma2'!$D$11 -> 0 | AS109: ='Ma2'!$E$11 -> 0 | AT109: ='Ma2'!$F$11 -> 0 | AU109: ='Ma2'!$G$11 -> 0 | AW109: ='Ma2'!$J$11 -> 0 | AX109: ='Ma2'!$K$11 -> 0 | AY109: ='Ma2'!$L$11 -> 0 | AZ109: ='Ma2'!$M$11 -> 0 | BB109: ='Ma2'!$P$11 -> 0 | BC109: ='Ma2'!$Q$11 -> 0 | BD109: ='Ma2'!$R$11 -> 0 | BE109: ='Ma2'!$S$11 -> 0 | BG109: ='Ma2'!$V$11 -> 0 | BH109: ='Ma2'!$W$11 -> 0 | BI109: ='Ma2'!$X$11 -> 0 | BJ109: ='Ma2'!$Y$11 -> 0 | BL109: ='Ma2'!$D$37 -> 0 | BM109: ='Ma2'!$E$37 -> 0 | BN109: ='Ma2'!$F$37 -> 0 | BO109: ='Ma2'!$G$37 -> 0 | BQ109: ='Ma2'!$J$37 -> 0 | BR109: ='Ma2'!$K$37 -> 0 | BS109: ='Ma2'!$L$37 -> 0 | BT109: ='Ma2'!$M$37 -> 0 | BV109: ='Ma2'!$P$37 -> 0 | BW109: ='Ma2'!$Q$37 -> 0 | BX109: ='Ma2'!$R$37 -> 0 | BY109: ='Ma2'!$S$37 -> 0 | CA109: ='Ma2'!$V$37 -> 0 | CB109: ='Ma2'!$W$37 -> 0 | CC109: ='Ma2'!$X$37 -> 0 | CD109: ='Ma2'!$Y$37 -> 0 | CF109: ='Ma3'!$D$11 -> 0 | CG109: ='Ma3'!$E$11 -> 0 | CH109: ='Ma3'!$F$11 -> 0 | CI109: ='Ma3'!$G$11 -> 0 | CK109: ='Ma3'!$J$11 -> 0 | CL109: ='Ma3'!$K$11 -> 0 | CM109: ='Ma3'!$L$11 -> 0 | CN109: ='Ma3'!$M$11 -> 0 | CP109: ='Ma3'!$P$11 -> 0 | CQ109: ='Ma3'!$Q$11 -> 0 | CR109: ='Ma3'!$R$11 -> 0 | CS109: ='Ma3'!$S$11 -> 0 | CU109: ='Ma3'!$V$11 -> 0 | CV109: ='Ma3'!$W$11 -> 0 | CW109: ='Ma3'!$X$11 -> 0 | CX109: ='Ma3'!$Y$11 -> 0 | CZ109: ='Ma3'!$D$37 -> 0 | DA109: ='Ma3'!$E$37 -> 0 | DB109: ='Ma3'!$F$37 -> 0 | DC109: ='Ma3'!$G$37 -> 0 | DE109: ='Ma3'!$J$37 -> 0 | DF109: ='Ma3'!$K$37 -> 0 | DG109: ='Ma3'!$L$37 -> 0 | DH109: ='Ma3'!$M$37 -> 0 | DJ109: ='Ma3'!$P$37 -> 0 | DK109: ='Ma3'!$Q$37 -> 0 | DL109: ='Ma3'!$R$37 -> 0 | DM109: ='Ma3'!$S$37 -> 0 | DO109: ='Ma3'!$V$37 -> 0 | DP109: ='Ma3'!$W$37 -> 0 | DQ109: ='Ma3'!$X$37 -> 0 | DR109: ='Ma3'!$Y$37 -> 0 | DT109: ='Ma4'!$D$11 -> 0 | DU109: ='Ma4'!$E$11 -> 0 | DV109: ='Ma4'!$F$11 -> 0 | DW109: ='Ma4'!$G$11 -> 0 | DY109: ='Ma4'!$J$11 -> 0 | DZ109: ='Ma4'!$K$11 -> 0 | EA109: ='Ma4'!$L$11 -> 0 | EB109: ='Ma4'!$M$11 -> 0 | ED109: ='Ma4'!$P$11 -> 0 | EE109: ='Ma4'!$Q$11 -> 0 | EF109: ='Ma4'!$R$11 -> 0 | EG109: ='Ma4'!$S$11 -> 0 | EI109: ='Ma4'!$V$11 -> 0 | EJ109: ='Ma4'!$W$11 -> 0 | EK109: ='Ma4'!$X$11 -> 0 | EL109: ='Ma4'!$Y$11 -> 0 | EN109: ='Ma4'!$D$37 -> 0 | EO109: ='Ma4'!$E$37 -> 0 | EP109: ='Ma4'!$F$37 -> 0 | EQ109: ='Ma4'!$G$37 -> 0 | ES109: ='Ma4'!$J$37 -> 0 | ET109: ='Ma4'!$K$37 -> 0 | EU109: ='Ma4'!$L$37 -> 0 | EV109: ='Ma4'!$M$37 -> 0 | EX109: ='Ma4'!$P$37 -> 0 | EY109: ='Ma4'!$Q$37 -> 0 | EZ109: ='Ma4'!$R$37 -> 0 | FA109: ='Ma4'!$S$37 -> 0 | FC109: ='Ma4'!$V$37 -> 0 | FD109: ='Ma4'!$W$37 -> 0 | FE109: ='Ma4'!$X$37 -> 0 | FF109: ='Ma4'!$Y$37 -> 0 | FH109: ='Ma5'!$D$11 -> 0 | FI109: ='Ma5'!$E$11 -> 0 | FJ109: ='Ma5'!$F$11 -> 0 | FK109: ='Ma5'!$G$11 -> 0 | FM109: ='Ma5'!$J$11 -> 0 | FN109: ='Ma5'!$K$11 -> 0 | FO109: ='Ma5'!$L$11 -> 0 | FP109: ='Ma5'!$M$11 -> 0 | FR109: ='Ma5'!$P$11 -> 0 | FS109: ='Ma5'!$Q$11 -> 0 | FT109: ='Ma5'!$R$11 -> 0 | FU109: ='Ma5'!$S$11 -> 0 | FW109: ='Ma5'!$V$11 -> 0 | FX109: ='Ma5'!$W$11 -> 0 | FY109: ='Ma5'!$X$11 -> 0 | FZ109: ='Ma5'!$Y$11 -> 0 | GB109: ='Ma5'!$D$37 -> 0 | GC109: ='Ma5'!$E$37 -> 0 | GD109: ='Ma5'!$F$37 -> 0 | GE109: ='Ma5'!$G$37 -> 0 | GG109: ='Ma5'!$J$37 -> 0 | GH109: ='Ma5'!$K$37 -> 0 | GI109: ='Ma5'!$L$37 -> 0 | GJ109: ='Ma5'!$M$37 -> 0 | GL109: ='Ma5'!$P$37 -> 0 | GM109: ='Ma5'!$Q$37 -> 0 | GN109: ='Ma5'!$R$37 -> 0 | GO109: ='Ma5'!$S$37 -> 0 | GQ109: ='Ma5'!$V$37 -> 0 | GR109: ='Ma5'!$W$37 -> 0 | GS109: ='Ma5'!$X$37 -> 0 | GT109: ='Ma5'!$Y$37 -> 0 | GV109: ='Ma6'!$D$11 -> 0 | GW109: ='Ma6'!$E$11 -> 0 | GX109: ='Ma6'!$F$11 -> 0 | GY109: ='Ma6'!$G$11 -> 0 | HA109: ='Ma6'!$J$11 -> 0 | HB109: ='Ma6'!$K$11 -> 0 | HC109: ='Ma6'!$L$11 -> 0 | HD109: ='Ma6'!$M$11 -> 0 | HF109: ='Ma6'!$P$11 -> 0 | HG109: ='Ma6'!$Q$11 -> 0 | HH109: ='Ma6'!$R$11 -> 0 | HI109: ='Ma6'!$S$11 -> 0 | HK109: ='Ma6'!$V$11 -> 0 | HL109: ='Ma6'!$W$11 -> 0 | HM109: ='Ma6'!$X$11 -> 0 | HN109: ='Ma6'!$Y$11 -> 0 | HP109: ='Ma6'!$D$37 -> 0 | HQ109: ='Ma6'!$E$37 -> 0 | HR109: ='Ma6'!$F$37 -> 0 | HS109: ='Ma6'!$G$37 -> 0 | HU109: ='Ma6'!$J$37 -> 0 | HV109: ='Ma6'!$K$37 -> 0 | HW109: ='Ma6'!$L$37 -> 0 | HX109: ='Ma6'!$M$37 -> 0 | HZ109: ='Ma6'!$P$37 -> 0 | IA109: ='Ma6'!$Q$37 -> 0 | IB109: ='Ma6'!$R$37 -> 0 | IC109: ='Ma6'!$S$37 -> 0 | IE109: ='Ma6'!$V$37 -> 0 | IF109: ='Ma6'!$W$37 -> 0 | IG109: ='Ma6'!$X$37 -> 0 | IH109: ='Ma6'!$Y$37 -> 0 | IJ109: ='Ma7'!$D$11 -> 0 | IK109: ='Ma7'!$E$11 -> 0 | IL109: ='Ma7'!$F$11 -> 0 | IM109: ='Ma7'!$G$11 -> 0 | IO109: ='Ma7'!$J$11 -> 0 | IP109: ='Ma7'!$K$11 -> 0 | IQ109: ='Ma7'!$L$11 -> 0 | IR109: ='Ma7'!$M$11 -> 0 | IT109: ='Ma7'!$P$11 -> 0 | IU109: ='Ma7'!$Q$11 -> 0 | IV109: ='Ma7'!$R$11 -> 0 | IW109: ='Ma7'!$S$11 -> 0 | IY109: ='Ma7'!$V$11 -> 0 | IZ109: ='Ma7'!$W$11 -> 0 | JA109: ='Ma7'!$X$11 -> 0 | JB109: ='Ma7'!$Y$11 -> 0 | JD109: ='Ma7'!$D$37 -> 0 | JE109: ='Ma7'!$E$37 -> 0 | JF109: ='Ma7'!$F$37 -> 0 | JG109: ='Ma7'!$G$37 -> 0 | JI109: ='Ma7'!$J$37 -> 0 | JJ109: ='Ma7'!$K$37 -> 0 | JK109: ='Ma7'!$L$37 -> 0 | JL109: ='Ma7'!$M$37 -> 0 | JN109: ='Ma7'!$P$37 -> 0 | JO109: ='Ma7'!$Q$37 -> 0 | JP109: ='Ma7'!$R$37 -> 0 | JQ109: ='Ma7'!$S$37 -> 0 | JS109: ='Ma7'!$V$37 -> 0 | JT109: ='Ma7'!$W$37 -> 0 | JU109: ='Ma7'!$X$37 -> 0 | JV109: ='Ma7'!$Y$37 -> 0
D110: ='Ma1'!$D$12 -> 0 | E110: ='Ma1'!$E$12 -> 0 | F110: ='Ma1'!$F$12 -> 0 | G110: ='Ma1'!$G$12 -> 0 | I110: ='Ma1'!$J$12 -> 0 | J110: ='Ma1'!$K$12 -> 0 | K110: ='Ma1'!$L$12 -> 0 | L110: ='Ma1'!$M$12 -> 0 | N110: ='Ma1'!$P$12 -> 0 | O110: ='Ma1'!$Q$12 -> 0 | P110: ='Ma1'!$R$12 -> 0 | Q110: ='Ma1'!$S$12 -> 0 | S110: ='Ma1'!$V$12 -> 0 | T110: ='Ma1'!$W$12 -> 0 | U110: ='Ma1'!$X$12 -> 0 | V110: ='Ma1'!$Y$12 -> 0 | X110: ='Ma1'!$D$38 -> 0 | Y110: ='Ma1'!$E$38 -> 0 | Z110: ='Ma1'!$F$38 -> 0 | AA110: ='Ma1'!$G$38 -> 0 | AC110: ='Ma1'!$J$38 -> 0 | AD110: ='Ma1'!$K$38 -> 0 | AE110: ='Ma1'!$L$38 -> 0 | AF110: ='Ma1'!$M$38 -> 0 | AH110: ='Ma1'!$P$38 -> 0 | AI110: ='Ma1'!$Q$38 -> 0 | AJ110: ='Ma1'!$R$38 -> 0 | AK110: ='Ma1'!$S$38 -> 0 | AM110: ='Ma1'!$V$38 -> 0 | AN110: ='Ma1'!$W$38 -> 0 | AO110: ='Ma1'!$X$38 -> 0 | AP110: ='Ma1'!$Y$38 -> 0 | AR110: ='Ma2'!$D$12 -> 0 | AS110: ='Ma2'!$E$12 -> 0 | AT110: ='Ma2'!$F$12 -> 0 | AU110: ='Ma2'!$G$12 -> 0 | AW110: ='Ma2'!$J$12 -> 0 | AX110: ='Ma2'!$K$12 -> 0 | AY110: ='Ma2'!$L$12 -> 0 | AZ110: ='Ma2'!$M$12 -> 0 | BB110: ='Ma2'!$P$12 -> 0 | BC110: ='Ma2'!$Q$12 -> 0 | BD110: ='Ma2'!$R$12 -> 0 | BE110: ='Ma2'!$S$12 -> 0 | BG110: ='Ma2'!$V$12 -> 0 | BH110: ='Ma2'!$W$12 -> 0 | BI110: ='Ma2'!$X$12 -> 0 | BJ110: ='Ma2'!$Y$12 -> 0 | BL110: ='Ma2'!$D$38 -> 0 | BM110: ='Ma2'!$E$38 -> 0 | BN110: ='Ma2'!$F$38 -> 0 | BO110: ='Ma2'!$G$38 -> 0 | BQ110: ='Ma2'!$J$38 -> 0 | BR110: ='Ma2'!$K$38 -> 0 | BS110: ='Ma2'!$L$38 -> 0 | BT110: ='Ma2'!$M$38 -> 0 | BV110: ='Ma2'!$P$38 -> 0 | BW110: ='Ma2'!$Q$38 -> 0 | BX110: ='Ma2'!$R$38 -> 0 | BY110: ='Ma2'!$S$38 -> 0 | CA110: ='Ma2'!$V$38 -> 0 | CB110: ='Ma2'!$W$38 -> 0 | CC110: ='Ma2'!$X$38 -> 0 | CD110: ='Ma2'!$Y$38 -> 0 | CF110: ='Ma3'!$D$12 -> 0 | CG110: ='Ma3'!$E$12 -> 0 | CH110: ='Ma3'!$F$12 -> 0 | CI110: ='Ma3'!$G$12 -> 0 | CK110: ='Ma3'!$J$12 -> 0 | CL110: ='Ma3'!$K$12 -> 0 | CM110: ='Ma3'!$L$12 -> 0 | CN110: ='Ma3'!$M$12 -> 0 | CP110: ='Ma3'!$P$12 -> 0 | CQ110: ='Ma3'!$Q$12 -> 0 | CR110: ='Ma3'!$R$12 -> 0 | CS110: ='Ma3'!$S$12 -> 0 | CU110: ='Ma3'!$V$12 -> 0 | CV110: ='Ma3'!$W$12 -> 0 | CW110: ='Ma3'!$X$12 -> 0 | CX110: ='Ma3'!$Y$12 -> 0 | CZ110: ='Ma3'!$D$38 -> 0 | DA110: ='Ma3'!$E$38 -> 0 | DB110: ='Ma3'!$F$38 -> 0 | DC110: ='Ma3'!$G$38 -> 0 | DE110: ='Ma3'!$J$38 -> 0 | DF110: ='Ma3'!$K$38 -> 0 | DG110: ='Ma3'!$L$38 -> 0 | DH110: ='Ma3'!$M$38 -> 0 | DJ110: ='Ma3'!$P$38 -> 0 | DK110: ='Ma3'!$Q$38 -> 0 | DL110: ='Ma3'!$R$38 -> 0 | DM110: ='Ma3'!$S$38 -> 0 | DO110: ='Ma3'!$V$38 -> 0 | DP110: ='Ma3'!$W$38 -> 0 | DQ110: ='Ma3'!$X$38 -> 0 | DR110: ='Ma3'!$Y$38 -> 0 | DT110: ='Ma4'!$D$12 -> 0 | DU110: ='Ma4'!$E$12 -> 0 | DV110: ='Ma4'!$F$12 -> 0 | DW110: ='Ma4'!$G$12 -> 0 | DY110: ='Ma4'!$J$12 -> 0 | DZ110: ='Ma4'!$K$12 -> 0 | EA110: ='Ma4'!$L$12 -> 0 | EB110: ='Ma4'!$M$12 -> 0 | ED110: ='Ma4'!$P$12 -> 0 | EE110: ='Ma4'!$Q$12 -> 0 | EF110: ='Ma4'!$R$12 -> 0 | EG110: ='Ma4'!$S$12 -> 0 | EI110: ='Ma4'!$V$12 -> 0 | EJ110: ='Ma4'!$W$12 -> 0 | EK110: ='Ma4'!$X$12 -> 0 | EL110: ='Ma4'!$Y$12 -> 0 | EN110: ='Ma4'!$D$38 -> 0 | EO110: ='Ma4'!$E$38 -> 0 | EP110: ='Ma4'!$F$38 -> 0 | EQ110: ='Ma4'!$G$38 -> 0 | ES110: ='Ma4'!$J$38 -> 0 | ET110: ='Ma4'!$K$38 -> 0 | EU110: ='Ma4'!$L$38 -> 0 | EV110: ='Ma4'!$M$38 -> 0 | EX110: ='Ma4'!$P$38 -> 0 | EY110: ='Ma4'!$Q$38 -> 0 | EZ110: ='Ma4'!$R$38 -> 0 | FA110: ='Ma4'!$S$38 -> 0 | FC110: ='Ma4'!$V$38 -> 0 | FD110: ='Ma4'!$W$38 -> 0 | FE110: ='Ma4'!$X$38 -> 0 | FF110: ='Ma4'!$Y$38 -> 0 | FH110: ='Ma5'!$D$12 -> 0 | FI110: ='Ma5'!$E$12 -> 0 | FJ110: ='Ma5'!$F$12 -> 0 | FK110: ='Ma5'!$G$12 -> 0 | FM110: ='Ma5'!$J$12 -> 0 | FN110: ='Ma5'!$K$12 -> 0 | FO110: ='Ma5'!$L$12 -> 0 | FP110: ='Ma5'!$M$12 -> 0 | FR110: ='Ma5'!$P$12 -> 0 | FS110: ='Ma5'!$Q$12 -> 0 | FT110: ='Ma5'!$R$12 -> 0 | FU110: ='Ma5'!$S$12 -> 0 | FW110: ='Ma5'!$V$12 -> 0 | FX110: ='Ma5'!$W$12 -> 0 | FY110: ='Ma5'!$X$12 -> 0 | FZ110: ='Ma5'!$Y$12 -> 0 | GB110: ='Ma5'!$D$38 -> 0 | GC110: ='Ma5'!$E$38 -> 0 | GD110: ='Ma5'!$F$38 -> 0 | GE110: ='Ma5'!$G$38 -> 0 | GG110: ='Ma5'!$J$38 -> 0 | GH110: ='Ma5'!$K$38 -> 0 | GI110: ='Ma5'!$L$38 -> 0 | GJ110: ='Ma5'!$M$38 -> 0 | GL110: ='Ma5'!$P$38 -> 0 | GM110: ='Ma5'!$Q$38 -> 0 | GN110: ='Ma5'!$R$38 -> 0 | GO110: ='Ma5'!$S$38 -> 0 | GQ110: ='Ma5'!$V$38 -> 0 | GR110: ='Ma5'!$W$38 -> 0 | GS110: ='Ma5'!$X$38 -> 0 | GT110: ='Ma5'!$Y$38 -> 0 | GV110: ='Ma6'!$D$12 -> 0 | GW110: ='Ma6'!$E$12 -> 0 | GX110: ='Ma6'!$F$12 -> 0 | GY110: ='Ma6'!$G$12 -> 0 | HA110: ='Ma6'!$J$12 -> 0 | HB110: ='Ma6'!$K$12 -> 0 | HC110: ='Ma6'!$L$12 -> 0 | HD110: ='Ma6'!$M$12 -> 0 | HF110: ='Ma6'!$P$12 -> 0 | HG110: ='Ma6'!$Q$12 -> 0 | HH110: ='Ma6'!$R$12 -> 0 | HI110: ='Ma6'!$S$12 -> 0 | HK110: ='Ma6'!$V$12 -> 0 | HL110: ='Ma6'!$W$12 -> 0 | HM110: ='Ma6'!$X$12 -> 0 | HN110: ='Ma6'!$Y$12 -> 0 | HP110: ='Ma6'!$D$38 -> 0 | HQ110: ='Ma6'!$E$38 -> 0 | HR110: ='Ma6'!$F$38 -> 0 | HS110: ='Ma6'!$G$38 -> 0 | HU110: ='Ma6'!$J$38 -> 0 | HV110: ='Ma6'!$K$38 -> 0 | HW110: ='Ma6'!$L$38 -> 0 | HX110: ='Ma6'!$M$38 -> 0 | HZ110: ='Ma6'!$P$38 -> 0 | IA110: ='Ma6'!$Q$38 -> 0 | IB110: ='Ma6'!$R$38 -> 0 | IC110: ='Ma6'!$S$38 -> 0 | IE110: ='Ma6'!$V$38 -> 0 | IF110: ='Ma6'!$W$38 -> 0 | IG110: ='Ma6'!$X$38 -> 0 | IH110: ='Ma6'!$Y$38 -> 0 | IJ110: ='Ma7'!$D$12 -> 0 | IK110: ='Ma7'!$E$12 -> 0 | IL110: ='Ma7'!$F$12 -> 0 | IM110: ='Ma7'!$G$12 -> 0 | IO110: ='Ma7'!$J$12 -> 0 | IP110: ='Ma7'!$K$12 -> 0 | IQ110: ='Ma7'!$L$12 -> 0 | IR110: ='Ma7'!$M$12 -> 0 | IT110: ='Ma7'!$P$12 -> 0 | IU110: ='Ma7'!$Q$12 -> 0 | IV110: ='Ma7'!$R$12 -> 0 | IW110: ='Ma7'!$S$12 -> 0 | IY110: ='Ma7'!$V$12 -> 0 | IZ110: ='Ma7'!$W$12 -> 0 | JA110: ='Ma7'!$X$12 -> 0 | JB110: ='Ma7'!$Y$12 -> 0 | JD110: ='Ma7'!$D$38 -> 0 | JE110: ='Ma7'!$E$38 -> 0 | JF110: ='Ma7'!$F$38 -> 0 | JG110: ='Ma7'!$G$38 -> 0 | JI110: ='Ma7'!$J$38 -> 0 | JJ110: ='Ma7'!$K$38 -> 0 | JK110: ='Ma7'!$L$38 -> 0 | JL110: ='Ma7'!$M$38 -> 0 | JN110: ='Ma7'!$P$38 -> 0 | JO110: ='Ma7'!$Q$38 -> 0 | JP110: ='Ma7'!$R$38 -> 0 | JQ110: ='Ma7'!$S$38 -> 0 | JS110: ='Ma7'!$V$38 -> 0 | JT110: ='Ma7'!$W$38 -> 0 | JU110: ='Ma7'!$X$38 -> 0 | JV110: ='Ma7'!$Y$38 -> 0
D111: ='Ma1'!$D$13 -> 0 | E111: ='Ma1'!$E$13 -> 0 | F111: ='Ma1'!$F$13 -> 0 | G111: ='Ma1'!$G$13 -> 0 | I111: ='Ma1'!$J$13 -> 0 | J111: ='Ma1'!$K$13 -> 0 | K111: ='Ma1'!$L$13 -> 0 | L111: ='Ma1'!$M$13 -> 0 | N111: ='Ma1'!$P$13 -> 0 | O111: ='Ma1'!$Q$13 -> 0 | P111: ='Ma1'!$R$13 -> 0 | Q111: ='Ma1'!$S$13 -> 0 | S111: ='Ma1'!$V$13 -> 0 | T111: ='Ma1'!$W$13 -> 0 | U111: ='Ma1'!$X$13 -> 0 | V111: ='Ma1'!$Y$13 -> 0 | X111: ='Ma1'!$D$39 -> 0 | Y111: ='Ma1'!$E$39 -> 0 | Z111: ='Ma1'!$F$39 -> 0 | AA111: ='Ma1'!$G$39 -> 0 | AC111: ='Ma1'!$J$39 -> 0 | AD111: ='Ma1'!$K$39 -> 0 | AE111: ='Ma1'!$L$39 -> 0 | AF111: ='Ma1'!$M$39 -> 0 | AH111: ='Ma1'!$P$39 -> 0 | AI111: ='Ma1'!$Q$39 -> 0 | AJ111: ='Ma1'!$R$39 -> 0 | AK111: ='Ma1'!$S$39 -> 0 | AM111: ='Ma1'!$V$39 -> 0 | AN111: ='Ma1'!$W$39 -> 0 | AO111: ='Ma1'!$X$39 -> 0 | AP111: ='Ma1'!$Y$39 -> 0 | AR111: ='Ma2'!$D$13 -> 0 | AS111: ='Ma2'!$E$13 -> 0 | AT111: ='Ma2'!$F$13 -> 0 | AU111: ='Ma2'!$G$13 -> 0 | AW111: ='Ma2'!$J$13 -> 0 | AX111: ='Ma2'!$K$13 -> 0 | AY111: ='Ma2'!$L$13 -> 0 | AZ111: ='Ma2'!$M$13 -> 0 | BB111: ='Ma2'!$P$13 -> 0 | BC111: ='Ma2'!$Q$13 -> 0 | BD111: ='Ma2'!$R$13 -> 0 | BE111: ='Ma2'!$S$13 -> 0 | BG111: ='Ma2'!$V$13 -> 0 | BH111: ='Ma2'!$W$13 -> 0 | BI111: ='Ma2'!$X$13 -> 0 | BJ111: ='Ma2'!$Y$13 -> 0 | BL111: ='Ma2'!$D$39 -> 0 | BM111: ='Ma2'!$E$39 -> 0 | BN111: ='Ma2'!$F$39 -> 0 | BO111: ='Ma2'!$G$39 -> 0 | BQ111: ='Ma2'!$J$39 -> 0 | BR111: ='Ma2'!$K$39 -> 0 | BS111: ='Ma2'!$L$39 -> 0 | BT111: ='Ma2'!$M$39 -> 0 | BV111: ='Ma2'!$P$39 -> 0 | BW111: ='Ma2'!$Q$39 -> 0 | BX111: ='Ma2'!$R$39 -> 0 | BY111: ='Ma2'!$S$39 -> 0 | CA111: ='Ma2'!$V$39 -> 0 | CB111: ='Ma2'!$W$39 -> 0 | CC111: ='Ma2'!$X$39 -> 0 | CD111: ='Ma2'!$Y$39 -> 0 | CF111: ='Ma3'!$D$13 -> 0 | CG111: ='Ma3'!$E$13 -> 0 | CH111: ='Ma3'!$F$13 -> 0 | CI111: ='Ma3'!$G$13 -> 0 | CK111: ='Ma3'!$J$13 -> 0 | CL111: ='Ma3'!$K$13 -> 0 | CM111: ='Ma3'!$L$13 -> 0 | CN111: ='Ma3'!$M$13 -> 0 | CP111: ='Ma3'!$P$13 -> 0 | CQ111: ='Ma3'!$Q$13 -> 0 | CR111: ='Ma3'!$R$13 -> 0 | CS111: ='Ma3'!$S$13 -> 0 | CU111: ='Ma3'!$V$13 -> 0 | CV111: ='Ma3'!$W$13 -> 0 | CW111: ='Ma3'!$X$13 -> 0 | CX111: ='Ma3'!$Y$13 -> 0 | CZ111: ='Ma3'!$D$39 -> 0 | DA111: ='Ma3'!$E$39 -> 0 | DB111: ='Ma3'!$F$39 -> 0 | DC111: ='Ma3'!$G$39 -> 0 | DE111: ='Ma3'!$J$39 -> 0 | DF111: ='Ma3'!$K$39 -> 0 | DG111: ='Ma3'!$L$39 -> 0 | DH111: ='Ma3'!$M$39 -> 0 | DJ111: ='Ma3'!$P$39 -> 0 | DK111: ='Ma3'!$Q$39 -> 0 | DL111: ='Ma3'!$R$39 -> 0 | DM111: ='Ma3'!$S$39 -> 0 | DO111: ='Ma3'!$V$39 -> 0 | DP111: ='Ma3'!$W$39 -> 0 | DQ111: ='Ma3'!$X$39 -> 0 | DR111: ='Ma3'!$Y$39 -> 0 | DT111: ='Ma4'!$D$13 -> 0 | DU111: ='Ma4'!$E$13 -> 0 | DV111: ='Ma4'!$F$13 -> 0 | DW111: ='Ma4'!$G$13 -> 0 | DY111: ='Ma4'!$J$13 -> 0 | DZ111: ='Ma4'!$K$13 -> 0 | EA111: ='Ma4'!$L$13 -> 0 | EB111: ='Ma4'!$M$13 -> 0 | ED111: ='Ma4'!$P$13 -> 0 | EE111: ='Ma4'!$Q$13 -> 0 | EF111: ='Ma4'!$R$13 -> 0 | EG111: ='Ma4'!$S$13 -> 0 | EI111: ='Ma4'!$V$13 -> 0 | EJ111: ='Ma4'!$W$13 -> 0 | EK111: ='Ma4'!$X$13 -> 0 | EL111: ='Ma4'!$Y$13 -> 0 | EN111: ='Ma4'!$D$39 -> 0 | EO111: ='Ma4'!$E$39 -> 0 | EP111: ='Ma4'!$F$39 -> 0 | EQ111: ='Ma4'!$G$39 -> 0 | ES111: ='Ma4'!$J$39 -> 0 | ET111: ='Ma4'!$K$39 -> 0 | EU111: ='Ma4'!$L$39 -> 0 | EV111: ='Ma4'!$M$39 -> 0 | EX111: ='Ma4'!$P$39 -> 0 | EY111: ='Ma4'!$Q$39 -> 0 | EZ111: ='Ma4'!$R$39 -> 0 | FA111: ='Ma4'!$S$39 -> 0 | FC111: ='Ma4'!$V$39 -> 0 | FD111: ='Ma4'!$W$39 -> 0 | FE111: ='Ma4'!$X$39 -> 0 | FF111: ='Ma4'!$Y$39 -> 0 | FH111: ='Ma5'!$D$13 -> 0 | FI111: ='Ma5'!$E$13 -> 0 | FJ111: ='Ma5'!$F$13 -> 0 | FK111: ='Ma5'!$G$13 -> 0 | FM111: ='Ma5'!$J$13 -> 0 | FN111: ='Ma5'!$K$13 -> 0 | FO111: ='Ma5'!$L$13 -> 0 | FP111: ='Ma5'!$M$13 -> 0 | FR111: ='Ma5'!$P$13 -> 0 | FS111: ='Ma5'!$Q$13 -> 0 | FT111: ='Ma5'!$R$13 -> 0 | FU111: ='Ma5'!$S$13 -> 0 | FW111: ='Ma5'!$V$13 -> 0 | FX111: ='Ma5'!$W$13 -> 0 | FY111: ='Ma5'!$X$13 -> 0 | FZ111: ='Ma5'!$Y$13 -> 0 | GB111: ='Ma5'!$D$39 -> 0 | GC111: ='Ma5'!$E$39 -> 0 | GD111: ='Ma5'!$F$39 -> 0 | GE111: ='Ma5'!$G$39 -> 0 | GG111: ='Ma5'!$J$39 -> 0 | GH111: ='Ma5'!$K$39 -> 0 | GI111: ='Ma5'!$L$39 -> 0 | GJ111: ='Ma5'!$M$39 -> 0 | GL111: ='Ma5'!$P$39 -> 0 | GM111: ='Ma5'!$Q$39 -> 0 | GN111: ='Ma5'!$R$39 -> 0 | GO111: ='Ma5'!$S$39 -> 0 | GQ111: ='Ma5'!$V$39 -> 0 | GR111: ='Ma5'!$W$39 -> 0 | GS111: ='Ma5'!$X$39 -> 0 | GT111: ='Ma5'!$Y$39 -> 0 | GV111: ='Ma6'!$D$13 -> 0 | GW111: ='Ma6'!$E$13 -> 0 | GX111: ='Ma6'!$F$13 -> 0 | GY111: ='Ma6'!$G$13 -> 0 | HA111: ='Ma6'!$J$13 -> 0 | HB111: ='Ma6'!$K$13 -> 0 | HC111: ='Ma6'!$L$13 -> 0 | HD111: ='Ma6'!$M$13 -> 0 | HF111: ='Ma6'!$P$13 -> 0 | HG111: ='Ma6'!$Q$13 -> 0 | HH111: ='Ma6'!$R$13 -> 0 | HI111: ='Ma6'!$S$13 -> 0 | HK111: ='Ma6'!$V$13 -> 0 | HL111: ='Ma6'!$W$13 -> 0 | HM111: ='Ma6'!$X$13 -> 0 | HN111: ='Ma6'!$Y$13 -> 0 | HP111: ='Ma6'!$D$39 -> 0 | HQ111: ='Ma6'!$E$39 -> 0 | HR111: ='Ma6'!$F$39 -> 0 | HS111: ='Ma6'!$G$39 -> 0 | HU111: ='Ma6'!$J$39 -> 0 | HV111: ='Ma6'!$K$39 -> 0 | HW111: ='Ma6'!$L$39 -> 0 | HX111: ='Ma6'!$M$39 -> 0 | HZ111: ='Ma6'!$P$39 -> 0 | IA111: ='Ma6'!$Q$39 -> 0 | IB111: ='Ma6'!$R$39 -> 0 | IC111: ='Ma6'!$S$39 -> 0 | IE111: ='Ma6'!$V$39 -> 0 | IF111: ='Ma6'!$W$39 -> 0 | IG111: ='Ma6'!$X$39 -> 0 | IH111: ='Ma6'!$Y$39 -> 0 | IJ111: ='Ma7'!$D$13 -> 0 | IK111: ='Ma7'!$E$13 -> 0 | IL111: ='Ma7'!$F$13 -> 0 | IM111: ='Ma7'!$G$13 -> 0 | IO111: ='Ma7'!$J$13 -> 0 | IP111: ='Ma7'!$K$13 -> 0 | IQ111: ='Ma7'!$L$13 -> 0 | IR111: ='Ma7'!$M$13 -> 0 | IT111: ='Ma7'!$P$13 -> 0 | IU111: ='Ma7'!$Q$13 -> 0 | IV111: ='Ma7'!$R$13 -> 0 | IW111: ='Ma7'!$S$13 -> 0 | IY111: ='Ma7'!$V$13 -> 0 | IZ111: ='Ma7'!$W$13 -> 0 | JA111: ='Ma7'!$X$13 -> 0 | JB111: ='Ma7'!$Y$13 -> 0 | JD111: ='Ma7'!$D$39 -> 0 | JE111: ='Ma7'!$E$39 -> 0 | JF111: ='Ma7'!$F$39 -> 0 | JG111: ='Ma7'!$G$39 -> 0 | JI111: ='Ma7'!$J$39 -> 0 | JJ111: ='Ma7'!$K$39 -> 0 | JK111: ='Ma7'!$L$39 -> 0 | JL111: ='Ma7'!$M$39 -> 0 | JN111: ='Ma7'!$P$39 -> 0 | JO111: ='Ma7'!$Q$39 -> 0 | JP111: ='Ma7'!$R$39 -> 0 | JQ111: ='Ma7'!$S$39 -> 0 | JS111: ='Ma7'!$V$39 -> 0 | JT111: ='Ma7'!$W$39 -> 0 | JU111: ='Ma7'!$X$39 -> 0 | JV111: ='Ma7'!$Y$39 -> 0
D112: ='Ma1'!$D$14 -> 0 | E112: ='Ma1'!$E$14 -> 0 | F112: ='Ma1'!$F$14 -> 0 | G112: ='Ma1'!$G$14 -> 0 | I112: ='Ma1'!$J$14 -> 0 | J112: ='Ma1'!$K$14 -> 0 | K112: ='Ma1'!$L$14 -> 0 | L112: ='Ma1'!$M$14 -> 0 | N112: ='Ma1'!$P$14 -> 0 | O112: ='Ma1'!$Q$14 -> 0 | P112: ='Ma1'!$R$14 -> 0 | Q112: ='Ma1'!$S$14 -> 0 | S112: ='Ma1'!$V$14 -> 0 | T112: ='Ma1'!$W$14 -> 0 | U112: ='Ma1'!$X$14 -> 0 | V112: ='Ma1'!$Y$14 -> 0 | X112: ='Ma1'!$D$40 -> 0 | Y112: ='Ma1'!$E$40 -> 0 | Z112: ='Ma1'!$F$40 -> 0 | AA112: ='Ma1'!$G$40 -> 0 | AC112: ='Ma1'!$J$40 -> 0 | AD112: ='Ma1'!$K$40 -> 0 | AE112: ='Ma1'!$L$40 -> 0 | AF112: ='Ma1'!$M$40 -> 0 | AH112: ='Ma1'!$P$40 -> 0 | AI112: ='Ma1'!$Q$40 -> 0 | AJ112: ='Ma1'!$R$40 -> 0 | AK112: ='Ma1'!$S$40 -> 0 | AM112: ='Ma1'!$V$40 -> 0 | AN112: ='Ma1'!$W$40 -> 0 | AO112: ='Ma1'!$X$40 -> 0 | AP112: ='Ma1'!$Y$40 -> 0 | AR112: ='Ma2'!$D$14 -> 0 | AS112: ='Ma2'!$E$14 -> 0 | AT112: ='Ma2'!$F$14 -> 0 | AU112: ='Ma2'!$G$14 -> 0 | AW112: ='Ma2'!$J$14 -> 0 | AX112: ='Ma2'!$K$14 -> 0 | AY112: ='Ma2'!$L$14 -> 0 | AZ112: ='Ma2'!$M$14 -> 0 | BB112: ='Ma2'!$P$14 -> 0 | BC112: ='Ma2'!$Q$14 -> 0 | BD112: ='Ma2'!$R$14 -> 0 | BE112: ='Ma2'!$S$14 -> 0 | BG112: ='Ma2'!$V$14 -> 0 | BH112: ='Ma2'!$W$14 -> 0 | BI112: ='Ma2'!$X$14 -> 0 | BJ112: ='Ma2'!$Y$14 -> 0 | BL112: ='Ma2'!$D$40 -> 0 | BM112: ='Ma2'!$E$40 -> 0 | BN112: ='Ma2'!$F$40 -> 0 | BO112: ='Ma2'!$G$40 -> 0 | BQ112: ='Ma2'!$J$40 -> 0 | BR112: ='Ma2'!$K$40 -> 0 | BS112: ='Ma2'!$L$40 -> 0 | BT112: ='Ma2'!$M$40 -> 0 | BV112: ='Ma2'!$P$40 -> 0 | BW112: ='Ma2'!$Q$40 -> 0 | BX112: ='Ma2'!$R$40 -> 0 | BY112: ='Ma2'!$S$40 -> 0 | CA112: ='Ma2'!$V$40 -> 0 | CB112: ='Ma2'!$W$40 -> 0 | CC112: ='Ma2'!$X$40 -> 0 | CD112: ='Ma2'!$Y$40 -> 0 | CF112: ='Ma3'!$D$14 -> 0 | CG112: ='Ma3'!$E$14 -> 0 | CH112: ='Ma3'!$F$14 -> 0 | CI112: ='Ma3'!$G$14 -> 0 | CK112: ='Ma3'!$J$14 -> 0 | CL112: ='Ma3'!$K$14 -> 0 | CM112: ='Ma3'!$L$14 -> 0 | CN112: ='Ma3'!$M$14 -> 0 | CP112: ='Ma3'!$P$14 -> 0 | CQ112: ='Ma3'!$Q$14 -> 0 | CR112: ='Ma3'!$R$14 -> 0 | CS112: ='Ma3'!$S$14 -> 0 | CU112: ='Ma3'!$V$14 -> 0 | CV112: ='Ma3'!$W$14 -> 0 | CW112: ='Ma3'!$X$14 -> 0 | CX112: ='Ma3'!$Y$14 -> 0 | CZ112: ='Ma3'!$D$40 -> 0 | DA112: ='Ma3'!$E$40 -> 0 | DB112: ='Ma3'!$F$40 -> 0 | DC112: ='Ma3'!$G$40 -> 0 | DE112: ='Ma3'!$J$40 -> 0 | DF112: ='Ma3'!$K$40 -> 0 | DG112: ='Ma3'!$L$40 -> 0 | DH112: ='Ma3'!$M$40 -> 0 | DJ112: ='Ma3'!$P$40 -> 0 | DK112: ='Ma3'!$Q$40 -> 0 | DL112: ='Ma3'!$R$40 -> 0 | DM112: ='Ma3'!$S$40 -> 0 | DO112: ='Ma3'!$V$40 -> 0 | DP112: ='Ma3'!$W$40 -> 0 | DQ112: ='Ma3'!$X$40 -> 0 | DR112: ='Ma3'!$Y$40 -> 0 | DT112: ='Ma4'!$D$14 -> 0 | DU112: ='Ma4'!$E$14 -> 0 | DV112: ='Ma4'!$F$14 -> 0 | DW112: ='Ma4'!$G$14 -> 0 | DY112: ='Ma4'!$J$14 -> 0 | DZ112: ='Ma4'!$K$14 -> 0 | EA112: ='Ma4'!$L$14 -> 0 | EB112: ='Ma4'!$M$14 -> 0 | ED112: ='Ma4'!$P$14 -> 0 | EE112: ='Ma4'!$Q$14 -> 0 | EF112: ='Ma4'!$R$14 -> 0 | EG112: ='Ma4'!$S$14 -> 0 | EI112: ='Ma4'!$V$14 -> 0 | EJ112: ='Ma4'!$W$14 -> 0 | EK112: ='Ma4'!$X$14 -> 0 | EL112: ='Ma4'!$Y$14 -> 0 | EN112: ='Ma4'!$D$40 -> 0 | EO112: ='Ma4'!$E$40 -> 0 | EP112: ='Ma4'!$F$40 -> 0 | EQ112: ='Ma4'!$G$40 -> 0 | ES112: ='Ma4'!$J$40 -> 0 | ET112: ='Ma4'!$K$40 -> 0 | EU112: ='Ma4'!$L$40 -> 0 | EV112: ='Ma4'!$M$40 -> 0 | EX112: ='Ma4'!$P$40 -> 0 | EY112: ='Ma4'!$Q$40 -> 0 | EZ112: ='Ma4'!$R$40 -> 0 | FA112: ='Ma4'!$S$40 -> 0 | FC112: ='Ma4'!$V$40 -> 0 | FD112: ='Ma4'!$W$40 -> 0 | FE112: ='Ma4'!$X$40 -> 0 | FF112: ='Ma4'!$Y$40 -> 0 | FH112: ='Ma5'!$D$14 -> 0 | FI112: ='Ma5'!$E$14 -> 0 | FJ112: ='Ma5'!$F$14 -> 0 | FK112: ='Ma5'!$G$14 -> 0 | FM112: ='Ma5'!$J$14 -> 0 | FN112: ='Ma5'!$K$14 -> 0 | FO112: ='Ma5'!$L$14 -> 0 | FP112: ='Ma5'!$M$14 -> 0 | FR112: ='Ma5'!$P$14 -> 0 | FS112: ='Ma5'!$Q$14 -> 0 | FT112: ='Ma5'!$R$14 -> 0 | FU112: ='Ma5'!$S$14 -> 0 | FW112: ='Ma5'!$V$14 -> 0 | FX112: ='Ma5'!$W$14 -> 0 | FY112: ='Ma5'!$X$14 -> 0 | FZ112: ='Ma5'!$Y$14 -> 0 | GB112: ='Ma5'!$D$40 -> 0 | GC112: ='Ma5'!$E$40 -> 0 | GD112: ='Ma5'!$F$40 -> 0 | GE112: ='Ma5'!$G$40 -> 0 | GG112: ='Ma5'!$J$40 -> 0 | GH112: ='Ma5'!$K$40 -> 0 | GI112: ='Ma5'!$L$40 -> 0 | GJ112: ='Ma5'!$M$40 -> 0 | GL112: ='Ma5'!$P$40 -> 0 | GM112: ='Ma5'!$Q$40 -> 0 | GN112: ='Ma5'!$R$40 -> 0 | GO112: ='Ma5'!$S$40 -> 0 | GQ112: ='Ma5'!$V$40 -> 0 | GR112: ='Ma5'!$W$40 -> 0 | GS112: ='Ma5'!$X$40 -> 0 | GT112: ='Ma5'!$Y$40 -> 0 | GV112: ='Ma6'!$D$14 -> 0 | GW112: ='Ma6'!$E$14 -> 0 | GX112: ='Ma6'!$F$14 -> 0 | GY112: ='Ma6'!$G$14 -> 0 | HA112: ='Ma6'!$J$14 -> 0 | HB112: ='Ma6'!$K$14 -> 0 | HC112: ='Ma6'!$L$14 -> 0 | HD112: ='Ma6'!$M$14 -> 0 | HF112: ='Ma6'!$P$14 -> 0 | HG112: ='Ma6'!$Q$14 -> 0 | HH112: ='Ma6'!$R$14 -> 0 | HI112: ='Ma6'!$S$14 -> 0 | HK112: ='Ma6'!$V$14 -> 0 | HL112: ='Ma6'!$W$14 -> 0 | HM112: ='Ma6'!$X$14 -> 0 | HN112: ='Ma6'!$Y$14 -> 0 | HP112: ='Ma6'!$D$40 -> 0 | HQ112: ='Ma6'!$E$40 -> 0 | HR112: ='Ma6'!$F$40 -> 0 | HS112: ='Ma6'!$G$40 -> 0 | HU112: ='Ma6'!$J$40 -> 0 | HV112: ='Ma6'!$K$40 -> 0 | HW112: ='Ma6'!$L$40 -> 0 | HX112: ='Ma6'!$M$40 -> 0 | HZ112: ='Ma6'!$P$40 -> 0 | IA112: ='Ma6'!$Q$40 -> 0 | IB112: ='Ma6'!$R$40 -> 0 | IC112: ='Ma6'!$S$40 -> 0 | IE112: ='Ma6'!$V$40 -> 0 | IF112: ='Ma6'!$W$40 -> 0 | IG112: ='Ma6'!$X$40 -> 0 | IH112: ='Ma6'!$Y$40 -> 0 | IJ112: ='Ma7'!$D$14 -> 0 | IK112: ='Ma7'!$E$14 -> 0 | IL112: ='Ma7'!$F$14 -> 0 | IM112: ='Ma7'!$G$14 -> 0 | IO112: ='Ma7'!$J$14 -> 0 | IP112: ='Ma7'!$K$14 -> 0 | IQ112: ='Ma7'!$L$14 -> 0 | IR112: ='Ma7'!$M$14 -> 0 | IT112: ='Ma7'!$P$14 -> 0 | IU112: ='Ma7'!$Q$14 -> 0 | IV112: ='Ma7'!$R$14 -> 0 | IW112: ='Ma7'!$S$14 -> 0 | IY112: ='Ma7'!$V$14 -> 0 | IZ112: ='Ma7'!$W$14 -> 0 | JA112: ='Ma7'!$X$14 -> 0 | JB112: ='Ma7'!$Y$14 -> 0 | JD112: ='Ma7'!$D$40 -> 0 | JE112: ='Ma7'!$E$40 -> 0 | JF112: ='Ma7'!$F$40 -> 0 | JG112: ='Ma7'!$G$40 -> 0 | JI112: ='Ma7'!$J$40 -> 0 | JJ112: ='Ma7'!$K$40 -> 0 | JK112: ='Ma7'!$L$40 -> 0 | JL112: ='Ma7'!$M$40 -> 0 | JN112: ='Ma7'!$P$40 -> 0 | JO112: ='Ma7'!$Q$40 -> 0 | JP112: ='Ma7'!$R$40 -> 0 | JQ112: ='Ma7'!$S$40 -> 0 | JS112: ='Ma7'!$V$40 -> 0 | JT112: ='Ma7'!$W$40 -> 0 | JU112: ='Ma7'!$X$40 -> 0 | JV112: ='Ma7'!$Y$40 -> 0
D113: ='Ma1'!$D$15 -> 0 | E113: ='Ma1'!$E$15 -> 0 | F113: ='Ma1'!$F$15 -> 0 | G113: ='Ma1'!$G$15 -> 0 | I113: ='Ma1'!$J$15 -> 0 | J113: ='Ma1'!$K$15 -> 0 | K113: ='Ma1'!$L$15 -> 0 | L113: ='Ma1'!$M$15 -> 0 | N113: ='Ma1'!$P$15 -> 0 | O113: ='Ma1'!$Q$15 -> 0 | P113: ='Ma1'!$R$15 -> 0 | Q113: ='Ma1'!$S$15 -> 0 | S113: ='Ma1'!$V$15 -> 0 | T113: ='Ma1'!$W$15 -> 0 | U113: ='Ma1'!$X$15 -> 0 | V113: ='Ma1'!$Y$15 -> 0 | X113: ='Ma1'!$D$41 -> 0 | Y113: ='Ma1'!$E$41 -> 0 | Z113: ='Ma1'!$F$41 -> 0 | AA113: ='Ma1'!$G$41 -> 0 | AC113: ='Ma1'!$J$41 -> 0 | AD113: ='Ma1'!$K$41 -> 0 | AE113: ='Ma1'!$L$41 -> 0 | AF113: ='Ma1'!$M$41 -> 0 | AH113: ='Ma1'!$P$41 -> 0 | AI113: ='Ma1'!$Q$41 -> 0 | AJ113: ='Ma1'!$R$41 -> 0 | AK113: ='Ma1'!$S$41 -> 0 | AM113: ='Ma1'!$V$41 -> 0 | AN113: ='Ma1'!$W$41 -> 0 | AO113: ='Ma1'!$X$41 -> 0 | AP113: ='Ma1'!$Y$41 -> 0 | AR113: ='Ma2'!$D$15 -> 0 | AS113: ='Ma2'!$E$15 -> 0 | AT113: ='Ma2'!$F$15 -> 0 | AU113: ='Ma2'!$G$15 -> 0 | AW113: ='Ma2'!$J$15 -> 0 | AX113: ='Ma2'!$K$15 -> 0 | AY113: ='Ma2'!$L$15 -> 0 | AZ113: ='Ma2'!$M$15 -> 0 | BB113: ='Ma2'!$P$15 -> 0 | BC113: ='Ma2'!$Q$15 -> 0 | BD113: ='Ma2'!$R$15 -> 0 | BE113: ='Ma2'!$S$15 -> 0 | BG113: ='Ma2'!$V$15 -> 0 | BH113: ='Ma2'!$W$15 -> 0 | BI113: ='Ma2'!$X$15 -> 0 | BJ113: ='Ma2'!$Y$15 -> 0 | BL113: ='Ma2'!$D$41 -> 0 | BM113: ='Ma2'!$E$41 -> 0 | BN113: ='Ma2'!$F$41 -> 0 | BO113: ='Ma2'!$G$41 -> 0 | BQ113: ='Ma2'!$J$41 -> 0 | BR113: ='Ma2'!$K$41 -> 0 | BS113: ='Ma2'!$L$41 -> 0 | BT113: ='Ma2'!$M$41 -> 0 | BV113: ='Ma2'!$P$41 -> 0 | BW113: ='Ma2'!$Q$41 -> 0 | BX113: ='Ma2'!$R$41 -> 0 | BY113: ='Ma2'!$S$41 -> 0 | CA113: ='Ma2'!$V$41 -> 0 | CB113: ='Ma2'!$W$41 -> 0 | CC113: ='Ma2'!$X$41 -> 0 | CD113: ='Ma2'!$Y$41 -> 0 | CF113: ='Ma3'!$D$15 -> 0 | CG113: ='Ma3'!$E$15 -> 0 | CH113: ='Ma3'!$F$15 -> 0 | CI113: ='Ma3'!$G$15 -> 0 | CK113: ='Ma3'!$J$15 -> 0 | CL113: ='Ma3'!$K$15 -> 0 | CM113: ='Ma3'!$L$15 -> 0 | CN113: ='Ma3'!$M$15 -> 0 | CP113: ='Ma3'!$P$15 -> 0 | CQ113: ='Ma3'!$Q$15 -> 0 | CR113: ='Ma3'!$R$15 -> 0 | CS113: ='Ma3'!$S$15 -> 0 | CU113: ='Ma3'!$V$15 -> 0 | CV113: ='Ma3'!$W$15 -> 0 | CW113: ='Ma3'!$X$15 -> 0 | CX113: ='Ma3'!$Y$15 -> 0 | CZ113: ='Ma3'!$D$41 -> 0 | DA113: ='Ma3'!$E$41 -> 0 | DB113: ='Ma3'!$F$41 -> 0 | DC113: ='Ma3'!$G$41 -> 0 | DE113: ='Ma3'!$J$41 -> 0 | DF113: ='Ma3'!$K$41 -> 0 | DG113: ='Ma3'!$L$41 -> 0 | DH113: ='Ma3'!$M$41 -> 0 | DJ113: ='Ma3'!$P$41 -> 0 | DK113: ='Ma3'!$Q$41 -> 0 | DL113: ='Ma3'!$R$41 -> 0 | DM113: ='Ma3'!$S$41 -> 0 | DO113: ='Ma3'!$V$41 -> 0 | DP113: ='Ma3'!$W$41 -> 0 | DQ113: ='Ma3'!$X$41 -> 0 | DR113: ='Ma3'!$Y$41 -> 0 | DT113: ='Ma4'!$D$15 -> 0 | DU113: ='Ma4'!$E$15 -> 0 | DV113: ='Ma4'!$F$15 -> 0 | DW113: ='Ma4'!$G$15 -> 0 | DY113: ='Ma4'!$J$15 -> 0 | DZ113: ='Ma4'!$K$15 -> 0 | EA113: ='Ma4'!$L$15 -> 0 | EB113: ='Ma4'!$M$15 -> 0 | ED113: ='Ma4'!$P$15 -> 0 | EE113: ='Ma4'!$Q$15 -> 0 | EF113: ='Ma4'!$R$15 -> 0 | EG113: ='Ma4'!$S$15 -> 0 | EI113: ='Ma4'!$V$15 -> 0 | EJ113: ='Ma4'!$W$15 -> 0 | EK113: ='Ma4'!$X$15 -> 0 | EL113: ='Ma4'!$Y$15 -> 0 | EN113: ='Ma4'!$D$41 -> 0 | EO113: ='Ma4'!$E$41 -> 0 | EP113: ='Ma4'!$F$41 -> 0 | EQ113: ='Ma4'!$G$41 -> 0 | ES113: ='Ma4'!$J$41 -> 0 | ET113: ='Ma4'!$K$41 -> 0 | EU113: ='Ma4'!$L$41 -> 0 | EV113: ='Ma4'!$M$41 -> 0 | EX113: ='Ma4'!$P$41 -> 0 | EY113: ='Ma4'!$Q$41 -> 0 | EZ113: ='Ma4'!$R$41 -> 0 | FA113: ='Ma4'!$S$41 -> 0 | FC113: ='Ma4'!$V$41 -> 0 | FD113: ='Ma4'!$W$41 -> 0 | FE113: ='Ma4'!$X$41 -> 0 | FF113: ='Ma4'!$Y$41 -> 0 | FH113: ='Ma5'!$D$15 -> 0 | FI113: ='Ma5'!$E$15 -> 0 | FJ113: ='Ma5'!$F$15 -> 0 | FK113: ='Ma5'!$G$15 -> 0 | FM113: ='Ma5'!$J$15 -> 0 | FN113: ='Ma5'!$K$15 -> 0 | FO113: ='Ma5'!$L$15 -> 0 | FP113: ='Ma5'!$M$15 -> 0 | FR113: ='Ma5'!$P$15 -> 0 | FS113: ='Ma5'!$Q$15 -> 0 | FT113: ='Ma5'!$R$15 -> 0 | FU113: ='Ma5'!$S$15 -> 0 | FW113: ='Ma5'!$V$15 -> 0 | FX113: ='Ma5'!$W$15 -> 0 | FY113: ='Ma5'!$X$15 -> 0 | FZ113: ='Ma5'!$Y$15 -> 0 | GB113: ='Ma5'!$D$41 -> 0 | GC113: ='Ma5'!$E$41 -> 0 | GD113: ='Ma5'!$F$41 -> 0 | GE113: ='Ma5'!$G$41 -> 0 | GG113: ='Ma5'!$J$41 -> 0 | GH113: ='Ma5'!$K$41 -> 0 | GI113: ='Ma5'!$L$41 -> 0 | GJ113: ='Ma5'!$M$41 -> 0 | GL113: ='Ma5'!$P$41 -> 0 | GM113: ='Ma5'!$Q$41 -> 0 | GN113: ='Ma5'!$R$41 -> 0 | GO113: ='Ma5'!$S$41 -> 0 | GQ113: ='Ma5'!$V$41 -> 0 | GR113: ='Ma5'!$W$41 -> 0 | GS113: ='Ma5'!$X$41 -> 0 | GT113: ='Ma5'!$Y$41 -> 0 | GV113: ='Ma6'!$D$15 -> 0 | GW113: ='Ma6'!$E$15 -> 0 | GX113: ='Ma6'!$F$15 -> 0 | GY113: ='Ma6'!$G$15 -> 0 | HA113: ='Ma6'!$J$15 -> 0 | HB113: ='Ma6'!$K$15 -> 0 | HC113: ='Ma6'!$L$15 -> 0 | HD113: ='Ma6'!$M$15 -> 0 | HF113: ='Ma6'!$P$15 -> 0 | HG113: ='Ma6'!$Q$15 -> 0 | HH113: ='Ma6'!$R$15 -> 0 | HI113: ='Ma6'!$S$15 -> 0 | HK113: ='Ma6'!$V$15 -> 0 | HL113: ='Ma6'!$W$15 -> 0 | HM113: ='Ma6'!$X$15 -> 0 | HN113: ='Ma6'!$Y$15 -> 0 | HP113: ='Ma6'!$D$41 -> 0 | HQ113: ='Ma6'!$E$41 -> 0 | HR113: ='Ma6'!$F$41 -> 0 | HS113: ='Ma6'!$G$41 -> 0 | HU113: ='Ma6'!$J$41 -> 0 | HV113: ='Ma6'!$K$41 -> 0 | HW113: ='Ma6'!$L$41 -> 0 | HX113: ='Ma6'!$M$41 -> 0 | HZ113: ='Ma6'!$P$41 -> 0 | IA113: ='Ma6'!$Q$41 -> 0 | IB113: ='Ma6'!$R$41 -> 0 | IC113: ='Ma6'!$S$41 -> 0 | IE113: ='Ma6'!$V$41 -> 0 | IF113: ='Ma6'!$W$41 -> 0 | IG113: ='Ma6'!$X$41 -> 0 | IH113: ='Ma6'!$Y$41 -> 0 | IJ113: ='Ma7'!$D$15 -> 0 | IK113: ='Ma7'!$E$15 -> 0 | IL113: ='Ma7'!$F$15 -> 0 | IM113: ='Ma7'!$G$15 -> 0 | IO113: ='Ma7'!$J$15 -> 0 | IP113: ='Ma7'!$K$15 -> 0 | IQ113: ='Ma7'!$L$15 -> 0 | IR113: ='Ma7'!$M$15 -> 0 | IT113: ='Ma7'!$P$15 -> 0 | IU113: ='Ma7'!$Q$15 -> 0 | IV113: ='Ma7'!$R$15 -> 0 | IW113: ='Ma7'!$S$15 -> 0 | IY113: ='Ma7'!$V$15 -> 0 | IZ113: ='Ma7'!$W$15 -> 0 | JA113: ='Ma7'!$X$15 -> 0 | JB113: ='Ma7'!$Y$15 -> 0 | JD113: ='Ma7'!$D$41 -> 0 | JE113: ='Ma7'!$E$41 -> 0 | JF113: ='Ma7'!$F$41 -> 0 | JG113: ='Ma7'!$G$41 -> 0 | JI113: ='Ma7'!$J$41 -> 0 | JJ113: ='Ma7'!$K$41 -> 0 | JK113: ='Ma7'!$L$41 -> 0 | JL113: ='Ma7'!$M$41 -> 0 | JN113: ='Ma7'!$P$41 -> 0 | JO113: ='Ma7'!$Q$41 -> 0 | JP113: ='Ma7'!$R$41 -> 0 | JQ113: ='Ma7'!$S$41 -> 0 | JS113: ='Ma7'!$V$41 -> 0 | JT113: ='Ma7'!$W$41 -> 0 | JU113: ='Ma7'!$X$41 -> 0 | JV113: ='Ma7'!$Y$41 -> 0
D114: ='Ma1'!$D$16 -> 0 | E114: ='Ma1'!$E$16 -> 0 | F114: ='Ma1'!$F$16 -> 0 | G114: ='Ma1'!$G$16 -> 0 | I114: ='Ma1'!$J$16 -> 0 | J114: ='Ma1'!$K$16 -> 0 | K114: ='Ma1'!$L$16 -> 0 | L114: ='Ma1'!$M$16 -> 0 | N114: ='Ma1'!$P$16 -> 0 | O114: ='Ma1'!$Q$16 -> 0 | P114: ='Ma1'!$R$16 -> 0 | Q114: ='Ma1'!$S$16 -> 0 | S114: ='Ma1'!$V$16 -> 0 | T114: ='Ma1'!$W$16 -> 0 | U114: ='Ma1'!$X$16 -> 0 | V114: ='Ma1'!$Y$16 -> 0 | X114: ='Ma1'!$D$42 -> 0 | Y114: ='Ma1'!$E$42 -> 0 | Z114: ='Ma1'!$F$42 -> 0 | AA114: ='Ma1'!$G$42 -> 0 | AC114: ='Ma1'!$J$42 -> 0 | AD114: ='Ma1'!$K$42 -> 0 | AE114: ='Ma1'!$L$42 -> 0 | AF114: ='Ma1'!$M$42 -> 0 | AH114: ='Ma1'!$P$42 -> 0 | AI114: ='Ma1'!$Q$42 -> 0 | AJ114: ='Ma1'!$R$42 -> 0 | AK114: ='Ma1'!$S$42 -> 0 | AM114: ='Ma1'!$V$42 -> 0 | AN114: ='Ma1'!$W$42 -> 0 | AO114: ='Ma1'!$X$42 -> 0 | AP114: ='Ma1'!$Y$42 -> 0 | AR114: ='Ma2'!$D$16 -> 0 | AS114: ='Ma2'!$E$16 -> 0 | AT114: ='Ma2'!$F$16 -> 0 | AU114: ='Ma2'!$G$16 -> 0 | AW114: ='Ma2'!$J$16 -> 0 | AX114: ='Ma2'!$K$16 -> 0 | AY114: ='Ma2'!$L$16 -> 0 | AZ114: ='Ma2'!$M$16 -> 0 | BB114: ='Ma2'!$P$16 -> 0 | BC114: ='Ma2'!$Q$16 -> 0 | BD114: ='Ma2'!$R$16 -> 0 | BE114: ='Ma2'!$S$16 -> 0 | BG114: ='Ma2'!$V$16 -> 0 | BH114: ='Ma2'!$W$16 -> 0 | BI114: ='Ma2'!$X$16 -> 0 | BJ114: ='Ma2'!$Y$16 -> 0 | BL114: ='Ma2'!$D$42 -> 0 | BM114: ='Ma2'!$E$42 -> 0 | BN114: ='Ma2'!$F$42 -> 0 | BO114: ='Ma2'!$G$42 -> 0 | BQ114: ='Ma2'!$J$42 -> 0 | BR114: ='Ma2'!$K$42 -> 0 | BS114: ='Ma2'!$L$42 -> 0 | BT114: ='Ma2'!$M$42 -> 0 | BV114: ='Ma2'!$P$42 -> 0 | BW114: ='Ma2'!$Q$42 -> 0 | BX114: ='Ma2'!$R$42 -> 0 | BY114: ='Ma2'!$S$42 -> 0 | CA114: ='Ma2'!$V$42 -> 0 | CB114: ='Ma2'!$W$42 -> 0 | CC114: ='Ma2'!$X$42 -> 0 | CD114: ='Ma2'!$Y$42 -> 0 | CF114: ='Ma3'!$D$16 -> 0 | CG114: ='Ma3'!$E$16 -> 0 | CH114: ='Ma3'!$F$16 -> 0 | CI114: ='Ma3'!$G$16 -> 0 | CK114: ='Ma3'!$J$16 -> 0 | CL114: ='Ma3'!$K$16 -> 0 | CM114: ='Ma3'!$L$16 -> 0 | CN114: ='Ma3'!$M$16 -> 0 | CP114: ='Ma3'!$P$16 -> 0 | CQ114: ='Ma3'!$Q$16 -> 0 | CR114: ='Ma3'!$R$16 -> 0 | CS114: ='Ma3'!$S$16 -> 0 | CU114: ='Ma3'!$V$16 -> 0 | CV114: ='Ma3'!$W$16 -> 0 | CW114: ='Ma3'!$X$16 -> 0 | CX114: ='Ma3'!$Y$16 -> 0 | CZ114: ='Ma3'!$D$42 -> 0 | DA114: ='Ma3'!$E$42 -> 0 | DB114: ='Ma3'!$F$42 -> 0 | DC114: ='Ma3'!$G$42 -> 0 | DE114: ='Ma3'!$J$42 -> 0 | DF114: ='Ma3'!$K$42 -> 0 | DG114: ='Ma3'!$L$42 -> 0 | DH114: ='Ma3'!$M$42 -> 0 | DJ114: ='Ma3'!$P$42 -> 0 | DK114: ='Ma3'!$Q$42 -> 0 | DL114: ='Ma3'!$R$42 -> 0 | DM114: ='Ma3'!$S$42 -> 0 | DO114: ='Ma3'!$V$42 -> 0 | DP114: ='Ma3'!$W$42 -> 0 | DQ114: ='Ma3'!$X$42 -> 0 | DR114: ='Ma3'!$Y$42 -> 0 | DT114: ='Ma4'!$D$16 -> 0 | DU114: ='Ma4'!$E$16 -> 0 | DV114: ='Ma4'!$F$16 -> 0 | DW114: ='Ma4'!$G$16 -> 0 | DY114: ='Ma4'!$J$16 -> 0 | DZ114: ='Ma4'!$K$16 -> 0 | EA114: ='Ma4'!$L$16 -> 0 | EB114: ='Ma4'!$M$16 -> 0 | ED114: ='Ma4'!$P$16 -> 0 | EE114: ='Ma4'!$Q$16 -> 0 | EF114: ='Ma4'!$R$16 -> 0 | EG114: ='Ma4'!$S$16 -> 0 | EI114: ='Ma4'!$V$16 -> 0 | EJ114: ='Ma4'!$W$16 -> 0 | EK114: ='Ma4'!$X$16 -> 0 | EL114: ='Ma4'!$Y$16 -> 0 | EN114: ='Ma4'!$D$42 -> 0 | EO114: ='Ma4'!$E$42 -> 0 | EP114: ='Ma4'!$F$42 -> 0 | EQ114: ='Ma4'!$G$42 -> 0 | ES114: ='Ma4'!$J$42 -> 0 | ET114: ='Ma4'!$K$42 -> 0 | EU114: ='Ma4'!$L$42 -> 0 | EV114: ='Ma4'!$M$42 -> 0 | EX114: ='Ma4'!$P$42 -> 0 | EY114: ='Ma4'!$Q$42 -> 0 | EZ114: ='Ma4'!$R$42 -> 0 | FA114: ='Ma4'!$S$42 -> 0 | FC114: ='Ma4'!$V$42 -> 0 | FD114: ='Ma4'!$W$42 -> 0 | FE114: ='Ma4'!$X$42 -> 0 | FF114: ='Ma4'!$Y$42 -> 0 | FH114: ='Ma5'!$D$16 -> 0 | FI114: ='Ma5'!$E$16 -> 0 | FJ114: ='Ma5'!$F$16 -> 0 | FK114: ='Ma5'!$G$16 -> 0 | FM114: ='Ma5'!$J$16 -> 0 | FN114: ='Ma5'!$K$16 -> 0 | FO114: ='Ma5'!$L$16 -> 0 | FP114: ='Ma5'!$M$16 -> 0 | FR114: ='Ma5'!$P$16 -> 0 | FS114: ='Ma5'!$Q$16 -> 0 | FT114: ='Ma5'!$R$16 -> 0 | FU114: ='Ma5'!$S$16 -> 0 | FW114: ='Ma5'!$V$16 -> 0 | FX114: ='Ma5'!$W$16 -> 0 | FY114: ='Ma5'!$X$16 -> 0 | FZ114: ='Ma5'!$Y$16 -> 0 | GB114: ='Ma5'!$D$42 -> 0 | GC114: ='Ma5'!$E$42 -> 0 | GD114: ='Ma5'!$F$42 -> 0 | GE114: ='Ma5'!$G$42 -> 0 | GG114: ='Ma5'!$J$42 -> 0 | GH114: ='Ma5'!$K$42 -> 0 | GI114: ='Ma5'!$L$42 -> 0 | GJ114: ='Ma5'!$M$42 -> 0 | GL114: ='Ma5'!$P$42 -> 0 | GM114: ='Ma5'!$Q$42 -> 0 | GN114: ='Ma5'!$R$42 -> 0 | GO114: ='Ma5'!$S$42 -> 0 | GQ114: ='Ma5'!$V$42 -> 0 | GR114: ='Ma5'!$W$42 -> 0 | GS114: ='Ma5'!$X$42 -> 0 | GT114: ='Ma5'!$Y$42 -> 0 | GV114: ='Ma6'!$D$16 -> 0 | GW114: ='Ma6'!$E$16 -> 0 | GX114: ='Ma6'!$F$16 -> 0 | GY114: ='Ma6'!$G$16 -> 0 | HA114: ='Ma6'!$J$16 -> 0 | HB114: ='Ma6'!$K$16 -> 0 | HC114: ='Ma6'!$L$16 -> 0 | HD114: ='Ma6'!$M$16 -> 0 | HF114: ='Ma6'!$P$16 -> 0 | HG114: ='Ma6'!$Q$16 -> 0 | HH114: ='Ma6'!$R$16 -> 0 | HI114: ='Ma6'!$S$16 -> 0 | HK114: ='Ma6'!$V$16 -> 0 | HL114: ='Ma6'!$W$16 -> 0 | HM114: ='Ma6'!$X$16 -> 0 | HN114: ='Ma6'!$Y$16 -> 0 | HP114: ='Ma6'!$D$42 -> 0 | HQ114: ='Ma6'!$E$42 -> 0 | HR114: ='Ma6'!$F$42 -> 0 | HS114: ='Ma6'!$G$42 -> 0 | HU114: ='Ma6'!$J$42 -> 0 | HV114: ='Ma6'!$K$42 -> 0 | HW114: ='Ma6'!$L$42 -> 0 | HX114: ='Ma6'!$M$42 -> 0 | HZ114: ='Ma6'!$P$42 -> 0 | IA114: ='Ma6'!$Q$42 -> 0 | IB114: ='Ma6'!$R$42 -> 0 | IC114: ='Ma6'!$S$42 -> 0 | IE114: ='Ma6'!$V$42 -> 0 | IF114: ='Ma6'!$W$42 -> 0 | IG114: ='Ma6'!$X$42 -> 0 | IH114: ='Ma6'!$Y$42 -> 0 | IJ114: ='Ma7'!$D$16 -> 0 | IK114: ='Ma7'!$E$16 -> 0 | IL114: ='Ma7'!$F$16 -> 0 | IM114: ='Ma7'!$G$16 -> 0 | IO114: ='Ma7'!$J$16 -> 0 | IP114: ='Ma7'!$K$16 -> 0 | IQ114: ='Ma7'!$L$16 -> 0 | IR114: ='Ma7'!$M$16 -> 0 | IT114: ='Ma7'!$P$16 -> 0 | IU114: ='Ma7'!$Q$16 -> 0 | IV114: ='Ma7'!$R$16 -> 0 | IW114: ='Ma7'!$S$16 -> 0 | IY114: ='Ma7'!$V$16 -> 0 | IZ114: ='Ma7'!$W$16 -> 0 | JA114: ='Ma7'!$X$16 -> 0 | JB114: ='Ma7'!$Y$16 -> 0 | JD114: ='Ma7'!$D$42 -> 0 | JE114: ='Ma7'!$E$42 -> 0 | JF114: ='Ma7'!$F$42 -> 0 | JG114: ='Ma7'!$G$42 -> 0 | JI114: ='Ma7'!$J$42 -> 0 | JJ114: ='Ma7'!$K$42 -> 0 | JK114: ='Ma7'!$L$42 -> 0 | JL114: ='Ma7'!$M$42 -> 0 | JN114: ='Ma7'!$P$42 -> 0 | JO114: ='Ma7'!$Q$42 -> 0 | JP114: ='Ma7'!$R$42 -> 0 | JQ114: ='Ma7'!$S$42 -> 0 | JS114: ='Ma7'!$V$42 -> 0 | JT114: ='Ma7'!$W$42 -> 0 | JU114: ='Ma7'!$X$42 -> 0 | JV114: ='Ma7'!$Y$42 -> 0
D115: ='Ma1'!$D$17 -> 0 | E115: ='Ma1'!$E$17 -> 0 | F115: ='Ma1'!$F$17 -> 0 | G115: ='Ma1'!$G$17 -> 0 | I115: ='Ma1'!$J$17 -> 0 | J115: ='Ma1'!$K$17 -> 0 | K115: ='Ma1'!$L$17 -> 0 | L115: ='Ma1'!$M$17 -> 0 | N115: ='Ma1'!$P$17 -> 0 | O115: ='Ma1'!$Q$17 -> 0 | P115: ='Ma1'!$R$17 -> 0 | Q115: ='Ma1'!$S$17 -> 0 | S115: ='Ma1'!$V$17 -> 0 | T115: ='Ma1'!$W$17 -> 0 | U115: ='Ma1'!$X$17 -> 0 | V115: ='Ma1'!$Y$17 -> 0 | X115: ='Ma1'!$D$43 -> 0 | Y115: ='Ma1'!$E$43 -> 0 | Z115: ='Ma1'!$F$43 -> 0 | AA115: ='Ma1'!$G$43 -> 0 | AC115: ='Ma1'!$J$43 -> 0 | AD115: ='Ma1'!$K$43 -> 0 | AE115: ='Ma1'!$L$43 -> 0 | AF115: ='Ma1'!$M$43 -> 0 | AH115: ='Ma1'!$P$43 -> 0 | AI115: ='Ma1'!$Q$43 -> 0 | AJ115: ='Ma1'!$R$43 -> 0 | AK115: ='Ma1'!$S$43 -> 0 | AM115: ='Ma1'!$V$43 -> 0 | AN115: ='Ma1'!$W$43 -> 0 | AO115: ='Ma1'!$X$43 -> 0 | AP115: ='Ma1'!$Y$43 -> 0 | AR115: ='Ma2'!$D$17 -> 0 | AS115: ='Ma2'!$E$17 -> 0 | AT115: ='Ma2'!$F$17 -> 0 | AU115: ='Ma2'!$G$17 -> 0 | AW115: ='Ma2'!$J$17 -> 0 | AX115: ='Ma2'!$K$17 -> 0 | AY115: ='Ma2'!$L$17 -> 0 | AZ115: ='Ma2'!$M$17 -> 0 | BB115: ='Ma2'!$P$17 -> 0 | BC115: ='Ma2'!$Q$17 -> 0 | BD115: ='Ma2'!$R$17 -> 0 | BE115: ='Ma2'!$S$17 -> 0 | BG115: ='Ma2'!$V$17 -> 0 | BH115: ='Ma2'!$W$17 -> 0 | BI115: ='Ma2'!$X$17 -> 0 | BJ115: ='Ma2'!$Y$17 -> 0 | BL115: ='Ma2'!$D$43 -> 0 | BM115: ='Ma2'!$E$43 -> 0 | BN115: ='Ma2'!$F$43 -> 0 | BO115: ='Ma2'!$G$43 -> 0 | BQ115: ='Ma2'!$J$43 -> 0 | BR115: ='Ma2'!$K$43 -> 0 | BS115: ='Ma2'!$L$43 -> 0 | BT115: ='Ma2'!$M$43 -> 0 | BV115: ='Ma2'!$P$43 -> 0 | BW115: ='Ma2'!$Q$43 -> 0 | BX115: ='Ma2'!$R$43 -> 0 | BY115: ='Ma2'!$S$43 -> 0 | CA115: ='Ma2'!$V$43 -> 0 | CB115: ='Ma2'!$W$43 -> 0 | CC115: ='Ma2'!$X$43 -> 0 | CD115: ='Ma2'!$Y$43 -> 0 | CF115: ='Ma3'!$D$17 -> 0 | CG115: ='Ma3'!$E$17 -> 0 | CH115: ='Ma3'!$F$17 -> 0 | CI115: ='Ma3'!$G$17 -> 0 | CK115: ='Ma3'!$J$17 -> 0 | CL115: ='Ma3'!$K$17 -> 0 | CM115: ='Ma3'!$L$17 -> 0 | CN115: ='Ma3'!$M$17 -> 0 | CP115: ='Ma3'!$P$17 -> 0 | CQ115: ='Ma3'!$Q$17 -> 0 | CR115: ='Ma3'!$R$17 -> 0 | CS115: ='Ma3'!$S$17 -> 0 | CU115: ='Ma3'!$V$17 -> 0 | CV115: ='Ma3'!$W$17 -> 0 | CW115: ='Ma3'!$X$17 -> 0 | CX115: ='Ma3'!$Y$17 -> 0 | CZ115: ='Ma3'!$D$43 -> 0 | DA115: ='Ma3'!$E$43 -> 0 | DB115: ='Ma3'!$F$43 -> 0 | DC115: ='Ma3'!$G$43 -> 0 | DE115: ='Ma3'!$J$43 -> 0 | DF115: ='Ma3'!$K$43 -> 0 | DG115: ='Ma3'!$L$43 -> 0 | DH115: ='Ma3'!$M$43 -> 0 | DJ115: ='Ma3'!$P$43 -> 0 | DK115: ='Ma3'!$Q$43 -> 0 | DL115: ='Ma3'!$R$43 -> 0 | DM115: ='Ma3'!$S$43 -> 0 | DO115: ='Ma3'!$V$43 -> 0 | DP115: ='Ma3'!$W$43 -> 0 | DQ115: ='Ma3'!$X$43 -> 0 | DR115: ='Ma3'!$Y$43 -> 0 | DT115: ='Ma4'!$D$17 -> 0 | DU115: ='Ma4'!$E$17 -> 0 | DV115: ='Ma4'!$F$17 -> 0 | DW115: ='Ma4'!$G$17 -> 0 | DY115: ='Ma4'!$J$17 -> 0 | DZ115: ='Ma4'!$K$17 -> 0 | EA115: ='Ma4'!$L$17 -> 0 | EB115: ='Ma4'!$M$17 -> 0 | ED115: ='Ma4'!$P$17 -> 0 | EE115: ='Ma4'!$Q$17 -> 0 | EF115: ='Ma4'!$R$17 -> 0 | EG115: ='Ma4'!$S$17 -> 0 | EI115: ='Ma4'!$V$17 -> 0 | EJ115: ='Ma4'!$W$17 -> 0 | EK115: ='Ma4'!$X$17 -> 0 | EL115: ='Ma4'!$Y$17 -> 0 | EN115: ='Ma4'!$D$43 -> 0 | EO115: ='Ma4'!$E$43 -> 0 | EP115: ='Ma4'!$F$43 -> 0 | EQ115: ='Ma4'!$G$43 -> 0 | ES115: ='Ma4'!$J$43 -> 0 | ET115: ='Ma4'!$K$43 -> 0 | EU115: ='Ma4'!$L$43 -> 0 | EV115: ='Ma4'!$M$43 -> 0 | EX115: ='Ma4'!$P$43 -> 0 | EY115: ='Ma4'!$Q$43 -> 0 | EZ115: ='Ma4'!$R$43 -> 0 | FA115: ='Ma4'!$S$43 -> 0 | FC115: ='Ma4'!$V$43 -> 0 | FD115: ='Ma4'!$W$43 -> 0 | FE115: ='Ma4'!$X$43 -> 0 | FF115: ='Ma4'!$Y$43 -> 0 | FH115: ='Ma5'!$D$17 -> 0 | FI115: ='Ma5'!$E$17 -> 0 | FJ115: ='Ma5'!$F$17 -> 0 | FK115: ='Ma5'!$G$17 -> 0 | FM115: ='Ma5'!$J$17 -> 0 | FN115: ='Ma5'!$K$17 -> 0 | FO115: ='Ma5'!$L$17 -> 0 | FP115: ='Ma5'!$M$17 -> 0 | FR115: ='Ma5'!$P$17 -> 0 | FS115: ='Ma5'!$Q$17 -> 0 | FT115: ='Ma5'!$R$17 -> 0 | FU115: ='Ma5'!$S$17 -> 0 | FW115: ='Ma5'!$V$17 -> 0 | FX115: ='Ma5'!$W$17 -> 0 | FY115: ='Ma5'!$X$17 -> 0 | FZ115: ='Ma5'!$Y$17 -> 0 | GB115: ='Ma5'!$D$43 -> 0 | GC115: ='Ma5'!$E$43 -> 0 | GD115: ='Ma5'!$F$43 -> 0 | GE115: ='Ma5'!$G$43 -> 0 | GG115: ='Ma5'!$J$43 -> 0 | GH115: ='Ma5'!$K$43 -> 0 | GI115: ='Ma5'!$L$43 -> 0 | GJ115: ='Ma5'!$M$43 -> 0 | GL115: ='Ma5'!$P$43 -> 0 | GM115: ='Ma5'!$Q$43 -> 0 | GN115: ='Ma5'!$R$43 -> 0 | GO115: ='Ma5'!$S$43 -> 0 | GQ115: ='Ma5'!$V$43 -> 0 | GR115: ='Ma5'!$W$43 -> 0 | GS115: ='Ma5'!$X$43 -> 0 | GT115: ='Ma5'!$Y$43 -> 0 | GV115: ='Ma6'!$D$17 -> 0 | GW115: ='Ma6'!$E$17 -> 0 | GX115: ='Ma6'!$F$17 -> 0 | GY115: ='Ma6'!$G$17 -> 0 | HA115: ='Ma6'!$J$17 -> 0 | HB115: ='Ma6'!$K$17 -> 0 | HC115: ='Ma6'!$L$17 -> 0 | HD115: ='Ma6'!$M$17 -> 0 | HF115: ='Ma6'!$P$17 -> 0 | HG115: ='Ma6'!$Q$17 -> 0 | HH115: ='Ma6'!$R$17 -> 0 | HI115: ='Ma6'!$S$17 -> 0 | HK115: ='Ma6'!$V$17 -> 0 | HL115: ='Ma6'!$W$17 -> 0 | HM115: ='Ma6'!$X$17 -> 0 | HN115: ='Ma6'!$Y$17 -> 0 | HP115: ='Ma6'!$D$43 -> 0 | HQ115: ='Ma6'!$E$43 -> 0 | HR115: ='Ma6'!$F$43 -> 0 | HS115: ='Ma6'!$G$43 -> 0 | HU115: ='Ma6'!$J$43 -> 0 | HV115: ='Ma6'!$K$43 -> 0 | HW115: ='Ma6'!$L$43 -> 0 | HX115: ='Ma6'!$M$43 -> 0 | HZ115: ='Ma6'!$P$43 -> 0 | IA115: ='Ma6'!$Q$43 -> 0 | IB115: ='Ma6'!$R$43 -> 0 | IC115: ='Ma6'!$S$43 -> 0 | IE115: ='Ma6'!$V$43 -> 0 | IF115: ='Ma6'!$W$43 -> 0 | IG115: ='Ma6'!$X$43 -> 0 | IH115: ='Ma6'!$Y$43 -> 0 | IJ115: ='Ma7'!$D$17 -> 0 | IK115: ='Ma7'!$E$17 -> 0 | IL115: ='Ma7'!$F$17 -> 0 | IM115: ='Ma7'!$G$17 -> 0 | IO115: ='Ma7'!$J$17 -> 0 | IP115: ='Ma7'!$K$17 -> 0 | IQ115: ='Ma7'!$L$17 -> 0 | IR115: ='Ma7'!$M$17 -> 0 | IT115: ='Ma7'!$P$17 -> 0 | IU115: ='Ma7'!$Q$17 -> 0 | IV115: ='Ma7'!$R$17 -> 0 | IW115: ='Ma7'!$S$17 -> 0 | IY115: ='Ma7'!$V$17 -> 0 | IZ115: ='Ma7'!$W$17 -> 0 | JA115: ='Ma7'!$X$17 -> 0 | JB115: ='Ma7'!$Y$17 -> 0 | JD115: ='Ma7'!$D$43 -> 0 | JE115: ='Ma7'!$E$43 -> 0 | JF115: ='Ma7'!$F$43 -> 0 | JG115: ='Ma7'!$G$43 -> 0 | JI115: ='Ma7'!$J$43 -> 0 | JJ115: ='Ma7'!$K$43 -> 0 | JK115: ='Ma7'!$L$43 -> 0 | JL115: ='Ma7'!$M$43 -> 0 | JN115: ='Ma7'!$P$43 -> 0 | JO115: ='Ma7'!$Q$43 -> 0 | JP115: ='Ma7'!$R$43 -> 0 | JQ115: ='Ma7'!$S$43 -> 0 | JS115: ='Ma7'!$V$43 -> 0 | JT115: ='Ma7'!$W$43 -> 0 | JU115: ='Ma7'!$X$43 -> 0 | JV115: ='Ma7'!$Y$43 -> 0
D116: ='Ma1'!$D$18 -> 0 | E116: ='Ma1'!$E$18 -> 0 | F116: ='Ma1'!$F$18 -> 0 | G116: ='Ma1'!$G$18 -> 0 | I116: ='Ma1'!$J$18 -> 0 | J116: ='Ma1'!$K$18 -> 0 | K116: ='Ma1'!$L$18 -> 0 | L116: ='Ma1'!$M$18 -> 0 | N116: ='Ma1'!$P$18 -> 0 | O116: ='Ma1'!$Q$18 -> 0 | P116: ='Ma1'!$R$18 -> 0 | Q116: ='Ma1'!$S$18 -> 0 | S116: ='Ma1'!$V$18 -> 0 | T116: ='Ma1'!$W$18 -> 0 | U116: ='Ma1'!$X$18 -> 0 | V116: ='Ma1'!$Y$18 -> 0 | X116: ='Ma1'!$D$44 -> 0 | Y116: ='Ma1'!$E$44 -> 0 | Z116: ='Ma1'!$F$44 -> 0 | AA116: ='Ma1'!$G$44 -> 0 | AC116: ='Ma1'!$J$44 -> 0 | AD116: ='Ma1'!$K$44 -> 0 | AE116: ='Ma1'!$L$44 -> 0 | AF116: ='Ma1'!$M$44 -> 0 | AH116: ='Ma1'!$P$44 -> 0 | AI116: ='Ma1'!$Q$44 -> 0 | AJ116: ='Ma1'!$R$44 -> 0 | AK116: ='Ma1'!$S$44 -> 0 | AM116: ='Ma1'!$V$44 -> 0 | AN116: ='Ma1'!$W$44 -> 0 | AO116: ='Ma1'!$X$44 -> 0 | AP116: ='Ma1'!$Y$44 -> 0 | AR116: ='Ma2'!$D$18 -> 0 | AS116: ='Ma2'!$E$18 -> 0 | AT116: ='Ma2'!$F$18 -> 0 | AU116: ='Ma2'!$G$18 -> 0 | AW116: ='Ma2'!$J$18 -> 0 | AX116: ='Ma2'!$K$18 -> 0 | AY116: ='Ma2'!$L$18 -> 0 | AZ116: ='Ma2'!$M$18 -> 0 | BB116: ='Ma2'!$P$18 -> 0 | BC116: ='Ma2'!$Q$18 -> 0 | BD116: ='Ma2'!$R$18 -> 0 | BE116: ='Ma2'!$S$18 -> 0 | BG116: ='Ma2'!$V$18 -> 0 | BH116: ='Ma2'!$W$18 -> 0 | BI116: ='Ma2'!$X$18 -> 0 | BJ116: ='Ma2'!$Y$18 -> 0 | BL116: ='Ma2'!$D$44 -> 0 | BM116: ='Ma2'!$E$44 -> 0 | BN116: ='Ma2'!$F$44 -> 0 | BO116: ='Ma2'!$G$44 -> 0 | BQ116: ='Ma2'!$J$44 -> 0 | BR116: ='Ma2'!$K$44 -> 0 | BS116: ='Ma2'!$L$44 -> 0 | BT116: ='Ma2'!$M$44 -> 0 | BV116: ='Ma2'!$P$44 -> 0 | BW116: ='Ma2'!$Q$44 -> 0 | BX116: ='Ma2'!$R$44 -> 0 | BY116: ='Ma2'!$S$44 -> 0 | CA116: ='Ma2'!$V$44 -> 0 | CB116: ='Ma2'!$W$44 -> 0 | CC116: ='Ma2'!$X$44 -> 0 | CD116: ='Ma2'!$Y$44 -> 0 | CF116: ='Ma3'!$D$18 -> 0 | CG116: ='Ma3'!$E$18 -> 0 | CH116: ='Ma3'!$F$18 -> 0 | CI116: ='Ma3'!$G$18 -> 0 | CK116: ='Ma3'!$J$18 -> 0 | CL116: ='Ma3'!$K$18 -> 0 | CM116: ='Ma3'!$L$18 -> 0 | CN116: ='Ma3'!$M$18 -> 0 | CP116: ='Ma3'!$P$18 -> 0 | CQ116: ='Ma3'!$Q$18 -> 0 | CR116: ='Ma3'!$R$18 -> 0 | CS116: ='Ma3'!$S$18 -> 0 | CU116: ='Ma3'!$V$18 -> 0 | CV116: ='Ma3'!$W$18 -> 0 | CW116: ='Ma3'!$X$18 -> 0 | CX116: ='Ma3'!$Y$18 -> 0 | CZ116: ='Ma3'!$D$44 -> 0 | DA116: ='Ma3'!$E$44 -> 0 | DB116: ='Ma3'!$F$44 -> 0 | DC116: ='Ma3'!$G$44 -> 0 | DE116: ='Ma3'!$J$44 -> 0 | DF116: ='Ma3'!$K$44 -> 0 | DG116: ='Ma3'!$L$44 -> 0 | DH116: ='Ma3'!$M$44 -> 0 | DJ116: ='Ma3'!$P$44 -> 0 | DK116: ='Ma3'!$Q$44 -> 0 | DL116: ='Ma3'!$R$44 -> 0 | DM116: ='Ma3'!$S$44 -> 0 | DO116: ='Ma3'!$V$44 -> 0 | DP116: ='Ma3'!$W$44 -> 0 | DQ116: ='Ma3'!$X$44 -> 0 | DR116: ='Ma3'!$Y$44 -> 0 | DT116: ='Ma4'!$D$18 -> 0 | DU116: ='Ma4'!$E$18 -> 0 | DV116: ='Ma4'!$F$18 -> 0 | DW116: ='Ma4'!$G$18 -> 0 | DY116: ='Ma4'!$J$18 -> 0 | DZ116: ='Ma4'!$K$18 -> 0 | EA116: ='Ma4'!$L$18 -> 0 | EB116: ='Ma4'!$M$18 -> 0 | ED116: ='Ma4'!$P$18 -> 0 | EE116: ='Ma4'!$Q$18 -> 0 | EF116: ='Ma4'!$R$18 -> 0 | EG116: ='Ma4'!$S$18 -> 0 | EI116: ='Ma4'!$V$18 -> 0 | EJ116: ='Ma4'!$W$18 -> 0 | EK116: ='Ma4'!$X$18 -> 0 | EL116: ='Ma4'!$Y$18 -> 0 | EN116: ='Ma4'!$D$44 -> 0 | EO116: ='Ma4'!$E$44 -> 0 | EP116: ='Ma4'!$F$44 -> 0 | EQ116: ='Ma4'!$G$44 -> 0 | ES116: ='Ma4'!$J$44 -> 0 | ET116: ='Ma4'!$K$44 -> 0 | EU116: ='Ma4'!$L$44 -> 0 | EV116: ='Ma4'!$M$44 -> 0 | EX116: ='Ma4'!$P$44 -> 0 | EY116: ='Ma4'!$Q$44 -> 0 | EZ116: ='Ma4'!$R$44 -> 0 | FA116: ='Ma4'!$S$44 -> 0 | FC116: ='Ma4'!$V$44 -> 0 | FD116: ='Ma4'!$W$44 -> 0 | FE116: ='Ma4'!$X$44 -> 0 | FF116: ='Ma4'!$Y$44 -> 0 | FH116: ='Ma5'!$D$18 -> 0 | FI116: ='Ma5'!$E$18 -> 0 | FJ116: ='Ma5'!$F$18 -> 0 | FK116: ='Ma5'!$G$18 -> 0 | FM116: ='Ma5'!$J$18 -> 0 | FN116: ='Ma5'!$K$18 -> 0 | FO116: ='Ma5'!$L$18 -> 0 | FP116: ='Ma5'!$M$18 -> 0 | FR116: ='Ma5'!$P$18 -> 0 | FS116: ='Ma5'!$Q$18 -> 0 | FT116: ='Ma5'!$R$18 -> 0 | FU116: ='Ma5'!$S$18 -> 0 | FW116: ='Ma5'!$V$18 -> 0 | FX116: ='Ma5'!$W$18 -> 0 | FY116: ='Ma5'!$X$18 -> 0 | FZ116: ='Ma5'!$Y$18 -> 0 | GB116: ='Ma5'!$D$44 -> 0 | GC116: ='Ma5'!$E$44 -> 0 | GD116: ='Ma5'!$F$44 -> 0 | GE116: ='Ma5'!$G$44 -> 0 | GG116: ='Ma5'!$J$44 -> 0 | GH116: ='Ma5'!$K$44 -> 0 | GI116: ='Ma5'!$L$44 -> 0 | GJ116: ='Ma5'!$M$44 -> 0 | GL116: ='Ma5'!$P$44 -> 0 | GM116: ='Ma5'!$Q$44 -> 0 | GN116: ='Ma5'!$R$44 -> 0 | GO116: ='Ma5'!$S$44 -> 0 | GQ116: ='Ma5'!$V$44 -> 0 | GR116: ='Ma5'!$W$44 -> 0 | GS116: ='Ma5'!$X$44 -> 0 | GT116: ='Ma5'!$Y$44 -> 0 | GV116: ='Ma6'!$D$18 -> 0 | GW116: ='Ma6'!$E$18 -> 0 | GX116: ='Ma6'!$F$18 -> 0 | GY116: ='Ma6'!$G$18 -> 0 | HA116: ='Ma6'!$J$18 -> 0 | HB116: ='Ma6'!$K$18 -> 0 | HC116: ='Ma6'!$L$18 -> 0 | HD116: ='Ma6'!$M$18 -> 0 | HF116: ='Ma6'!$P$18 -> 0 | HG116: ='Ma6'!$Q$18 -> 0 | HH116: ='Ma6'!$R$18 -> 0 | HI116: ='Ma6'!$S$18 -> 0 | HK116: ='Ma6'!$V$18 -> 0 | HL116: ='Ma6'!$W$18 -> 0 | HM116: ='Ma6'!$X$18 -> 0 | HN116: ='Ma6'!$Y$18 -> 0 | HP116: ='Ma6'!$D$44 -> 0 | HQ116: ='Ma6'!$E$44 -> 0 | HR116: ='Ma6'!$F$44 -> 0 | HS116: ='Ma6'!$G$44 -> 0 | HU116: ='Ma6'!$J$44 -> 0 | HV116: ='Ma6'!$K$44 -> 0 | HW116: ='Ma6'!$L$44 -> 0 | HX116: ='Ma6'!$M$44 -> 0 | HZ116: ='Ma6'!$P$44 -> 0 | IA116: ='Ma6'!$Q$44 -> 0 | IB116: ='Ma6'!$R$44 -> 0 | IC116: ='Ma6'!$S$44 -> 0 | IE116: ='Ma6'!$V$44 -> 0 | IF116: ='Ma6'!$W$44 -> 0 | IG116: ='Ma6'!$X$44 -> 0 | IH116: ='Ma6'!$Y$44 -> 0 | IJ116: ='Ma7'!$D$18 -> 0 | IK116: ='Ma7'!$E$18 -> 0 | IL116: ='Ma7'!$F$18 -> 0 | IM116: ='Ma7'!$G$18 -> 0 | IO116: ='Ma7'!$J$18 -> 0 | IP116: ='Ma7'!$K$18 -> 0 | IQ116: ='Ma7'!$L$18 -> 0 | IR116: ='Ma7'!$M$18 -> 0 | IT116: ='Ma7'!$P$18 -> 0 | IU116: ='Ma7'!$Q$18 -> 0 | IV116: ='Ma7'!$R$18 -> 0 | IW116: ='Ma7'!$S$18 -> 0 | IY116: ='Ma7'!$V$18 -> 0 | IZ116: ='Ma7'!$W$18 -> 0 | JA116: ='Ma7'!$X$18 -> 0 | JB116: ='Ma7'!$Y$18 -> 0 | JD116: ='Ma7'!$D$44 -> 0 | JE116: ='Ma7'!$E$44 -> 0 | JF116: ='Ma7'!$F$44 -> 0 | JG116: ='Ma7'!$G$44 -> 0 | JI116: ='Ma7'!$J$44 -> 0 | JJ116: ='Ma7'!$K$44 -> 0 | JK116: ='Ma7'!$L$44 -> 0 | JL116: ='Ma7'!$M$44 -> 0 | JN116: ='Ma7'!$P$44 -> 0 | JO116: ='Ma7'!$Q$44 -> 0 | JP116: ='Ma7'!$R$44 -> 0 | JQ116: ='Ma7'!$S$44 -> 0 | JS116: ='Ma7'!$V$44 -> 0 | JT116: ='Ma7'!$W$44 -> 0 | JU116: ='Ma7'!$X$44 -> 0 | JV116: ='Ma7'!$Y$44 -> 0
D117: ='Ma1'!$D$19 -> 0 | E117: ='Ma1'!$E$19 -> 0 | F117: ='Ma1'!$F$19 -> 0 | G117: ='Ma1'!$G$19 -> 0 | I117: ='Ma1'!$J$19 -> 0 | J117: ='Ma1'!$K$19 -> 0 | K117: ='Ma1'!$L$19 -> 0 | L117: ='Ma1'!$M$19 -> 0 | N117: ='Ma1'!$P$19 -> 0 | O117: ='Ma1'!$Q$19 -> 0 | P117: ='Ma1'!$R$19 -> 0 | Q117: ='Ma1'!$S$19 -> 0 | S117: ='Ma1'!$V$19 -> 0 | T117: ='Ma1'!$W$19 -> 0 | U117: ='Ma1'!$X$19 -> 0 | V117: ='Ma1'!$Y$19 -> 0 | X117: ='Ma1'!$D$45 -> 0 | Y117: ='Ma1'!$E$45 -> 0 | Z117: ='Ma1'!$F$45 -> 0 | AA117: ='Ma1'!$G$45 -> 0 | AC117: ='Ma1'!$J$45 -> 0 | AD117: ='Ma1'!$K$45 -> 0 | AE117: ='Ma1'!$L$45 -> 0 | AF117: ='Ma1'!$M$45 -> 0 | AH117: ='Ma1'!$P$45 -> 0 | AI117: ='Ma1'!$Q$45 -> 0 | AJ117: ='Ma1'!$R$45 -> 0 | AK117: ='Ma1'!$S$45 -> 0 | AM117: ='Ma1'!$V$45 -> 0 | AN117: ='Ma1'!$W$45 -> 0 | AO117: ='Ma1'!$X$45 -> 0 | AP117: ='Ma1'!$Y$45 -> 0 | AR117: ='Ma2'!$D$19 -> 0 | AS117: ='Ma2'!$E$19 -> 0 | AT117: ='Ma2'!$F$19 -> 0 | AU117: ='Ma2'!$G$19 -> 0 | AW117: ='Ma2'!$J$19 -> 0 | AX117: ='Ma2'!$K$19 -> 0 | AY117: ='Ma2'!$L$19 -> 0 | AZ117: ='Ma2'!$M$19 -> 0 | BB117: ='Ma2'!$P$19 -> 0 | BC117: ='Ma2'!$Q$19 -> 0 | BD117: ='Ma2'!$R$19 -> 0 | BE117: ='Ma2'!$S$19 -> 0 | BG117: ='Ma2'!$V$19 -> 0 | BH117: ='Ma2'!$W$19 -> 0 | BI117: ='Ma2'!$X$19 -> 0 | BJ117: ='Ma2'!$Y$19 -> 0 | BL117: ='Ma2'!$D$45 -> 0 | BM117: ='Ma2'!$E$45 -> 0 | BN117: ='Ma2'!$F$45 -> 0 | BO117: ='Ma2'!$G$45 -> 0 | BQ117: ='Ma2'!$J$45 -> 0 | BR117: ='Ma2'!$K$45 -> 0 | BS117: ='Ma2'!$L$45 -> 0 | BT117: ='Ma2'!$M$45 -> 0 | BV117: ='Ma2'!$P$45 -> 0 | BW117: ='Ma2'!$Q$45 -> 0 | BX117: ='Ma2'!$R$45 -> 0 | BY117: ='Ma2'!$S$45 -> 0 | CA117: ='Ma2'!$V$45 -> 0 | CB117: ='Ma2'!$W$45 -> 0 | CC117: ='Ma2'!$X$45 -> 0 | CD117: ='Ma2'!$Y$45 -> 0 | CF117: ='Ma3'!$D$19 -> 0 | CG117: ='Ma3'!$E$19 -> 0 | CH117: ='Ma3'!$F$19 -> 0 | CI117: ='Ma3'!$G$19 -> 0 | CK117: ='Ma3'!$J$19 -> 0 | CL117: ='Ma3'!$K$19 -> 0 | CM117: ='Ma3'!$L$19 -> 0 | CN117: ='Ma3'!$M$19 -> 0 | CP117: ='Ma3'!$P$19 -> 0 | CQ117: ='Ma3'!$Q$19 -> 0 | CR117: ='Ma3'!$R$19 -> 0 | CS117: ='Ma3'!$S$19 -> 0 | CU117: ='Ma3'!$V$19 -> 0 | CV117: ='Ma3'!$W$19 -> 0 | CW117: ='Ma3'!$X$19 -> 0 | CX117: ='Ma3'!$Y$19 -> 0 | CZ117: ='Ma3'!$D$45 -> 0 | DA117: ='Ma3'!$E$45 -> 0 | DB117: ='Ma3'!$F$45 -> 0 | DC117: ='Ma3'!$G$45 -> 0 | DE117: ='Ma3'!$J$45 -> 0 | DF117: ='Ma3'!$K$45 -> 0 | DG117: ='Ma3'!$L$45 -> 0 | DH117: ='Ma3'!$M$45 -> 0 | DJ117: ='Ma3'!$P$45 -> 0 | DK117: ='Ma3'!$Q$45 -> 0 | DL117: ='Ma3'!$R$45 -> 0 | DM117: ='Ma3'!$S$45 -> 0 | DO117: ='Ma3'!$V$45 -> 0 | DP117: ='Ma3'!$W$45 -> 0 | DQ117: ='Ma3'!$X$45 -> 0 | DR117: ='Ma3'!$Y$45 -> 0 | DT117: ='Ma4'!$D$19 -> 0 | DU117: ='Ma4'!$E$19 -> 0 | DV117: ='Ma4'!$F$19 -> 0 | DW117: ='Ma4'!$G$19 -> 0 | DY117: ='Ma4'!$J$19 -> 0 | DZ117: ='Ma4'!$K$19 -> 0 | EA117: ='Ma4'!$L$19 -> 0 | EB117: ='Ma4'!$M$19 -> 0 | ED117: ='Ma4'!$P$19 -> 0 | EE117: ='Ma4'!$Q$19 -> 0 | EF117: ='Ma4'!$R$19 -> 0 | EG117: ='Ma4'!$S$19 -> 0 | EI117: ='Ma4'!$V$19 -> 0 | EJ117: ='Ma4'!$W$19 -> 0 | EK117: ='Ma4'!$X$19 -> 0 | EL117: ='Ma4'!$Y$19 -> 0 | EN117: ='Ma4'!$D$45 -> 0 | EO117: ='Ma4'!$E$45 -> 0 | EP117: ='Ma4'!$F$45 -> 0 | EQ117: ='Ma4'!$G$45 -> 0 | ES117: ='Ma4'!$J$45 -> 0 | ET117: ='Ma4'!$K$45 -> 0 | EU117: ='Ma4'!$L$45 -> 0 | EV117: ='Ma4'!$M$45 -> 0 | EX117: ='Ma4'!$P$45 -> 0 | EY117: ='Ma4'!$Q$45 -> 0 | EZ117: ='Ma4'!$R$45 -> 0 | FA117: ='Ma4'!$S$45 -> 0 | FC117: ='Ma4'!$V$45 -> 0 | FD117: ='Ma4'!$W$45 -> 0 | FE117: ='Ma4'!$X$45 -> 0 | FF117: ='Ma4'!$Y$45 -> 0 | FH117: ='Ma5'!$D$19 -> 0 | FI117: ='Ma5'!$E$19 -> 0 | FJ117: ='Ma5'!$F$19 -> 0 | FK117: ='Ma5'!$G$19 -> 0 | FM117: ='Ma5'!$J$19 -> 0 | FN117: ='Ma5'!$K$19 -> 0 | FO117: ='Ma5'!$L$19 -> 0 | FP117: ='Ma5'!$M$19 -> 0 | FR117: ='Ma5'!$P$19 -> 0 | FS117: ='Ma5'!$Q$19 -> 0 | FT117: ='Ma5'!$R$19 -> 0 | FU117: ='Ma5'!$S$19 -> 0 | FW117: ='Ma5'!$V$19 -> 0 | FX117: ='Ma5'!$W$19 -> 0 | FY117: ='Ma5'!$X$19 -> 0 | FZ117: ='Ma5'!$Y$19 -> 0 | GB117: ='Ma5'!$D$45 -> 0 | GC117: ='Ma5'!$E$45 -> 0 | GD117: ='Ma5'!$F$45 -> 0 | GE117: ='Ma5'!$G$45 -> 0 | GG117: ='Ma5'!$J$45 -> 0 | GH117: ='Ma5'!$K$45 -> 0 | GI117: ='Ma5'!$L$45 -> 0 | GJ117: ='Ma5'!$M$45 -> 0 | GL117: ='Ma5'!$P$45 -> 0 | GM117: ='Ma5'!$Q$45 -> 0 | GN117: ='Ma5'!$R$45 -> 0 | GO117: ='Ma5'!$S$45 -> 0 | GQ117: ='Ma5'!$V$45 -> 0 | GR117: ='Ma5'!$W$45 -> 0 | GS117: ='Ma5'!$X$45 -> 0 | GT117: ='Ma5'!$Y$45 -> 0 | GV117: ='Ma6'!$D$19 -> 0 | GW117: ='Ma6'!$E$19 -> 0 | GX117: ='Ma6'!$F$19 -> 0 | GY117: ='Ma6'!$G$19 -> 0 | HA117: ='Ma6'!$J$19 -> 0 | HB117: ='Ma6'!$K$19 -> 0 | HC117: ='Ma6'!$L$19 -> 0 | HD117: ='Ma6'!$M$19 -> 0 | HF117: ='Ma6'!$P$19 -> 0 | HG117: ='Ma6'!$Q$19 -> 0 | HH117: ='Ma6'!$R$19 -> 0 | HI117: ='Ma6'!$S$19 -> 0 | HK117: ='Ma6'!$V$19 -> 0 | HL117: ='Ma6'!$W$19 -> 0 | HM117: ='Ma6'!$X$19 -> 0 | HN117: ='Ma6'!$Y$19 -> 0 | HP117: ='Ma6'!$D$45 -> 0 | HQ117: ='Ma6'!$E$45 -> 0 | HR117: ='Ma6'!$F$45 -> 0 | HS117: ='Ma6'!$G$45 -> 0 | HU117: ='Ma6'!$J$45 -> 0 | HV117: ='Ma6'!$K$45 -> 0 | HW117: ='Ma6'!$L$45 -> 0 | HX117: ='Ma6'!$M$45 -> 0 | HZ117: ='Ma6'!$P$45 -> 0 | IA117: ='Ma6'!$Q$45 -> 0 | IB117: ='Ma6'!$R$45 -> 0 | IC117: ='Ma6'!$S$45 -> 0 | IE117: ='Ma6'!$V$45 -> 0 | IF117: ='Ma6'!$W$45 -> 0 | IG117: ='Ma6'!$X$45 -> 0 | IH117: ='Ma6'!$Y$45 -> 0 | IJ117: ='Ma7'!$D$19 -> 0 | IK117: ='Ma7'!$E$19 -> 0 | IL117: ='Ma7'!$F$19 -> 0 | IM117: ='Ma7'!$G$19 -> 0 | IO117: ='Ma7'!$J$19 -> 0 | IP117: ='Ma7'!$K$19 -> 0 | IQ117: ='Ma7'!$L$19 -> 0 | IR117: ='Ma7'!$M$19 -> 0 | IT117: ='Ma7'!$P$19 -> 0 | IU117: ='Ma7'!$Q$19 -> 0 | IV117: ='Ma7'!$R$19 -> 0 | IW117: ='Ma7'!$S$19 -> 0 | IY117: ='Ma7'!$V$19 -> 0 | IZ117: ='Ma7'!$W$19 -> 0 | JA117: ='Ma7'!$X$19 -> 0 | JB117: ='Ma7'!$Y$19 -> 0 | JD117: ='Ma7'!$D$45 -> 0 | JE117: ='Ma7'!$E$45 -> 0 | JF117: ='Ma7'!$F$45 -> 0 | JG117: ='Ma7'!$G$45 -> 0 | JI117: ='Ma7'!$J$45 -> 0 | JJ117: ='Ma7'!$K$45 -> 0 | JK117: ='Ma7'!$L$45 -> 0 | JL117: ='Ma7'!$M$45 -> 0 | JN117: ='Ma7'!$P$45 -> 0 | JO117: ='Ma7'!$Q$45 -> 0 | JP117: ='Ma7'!$R$45 -> 0 | JQ117: ='Ma7'!$S$45 -> 0 | JS117: ='Ma7'!$V$45 -> 0 | JT117: ='Ma7'!$W$45 -> 0 | JU117: ='Ma7'!$X$45 -> 0 | JV117: ='Ma7'!$Y$45 -> 0
D118: ='Ma1'!$D$20 -> 0 | E118: ='Ma1'!$E$20 -> 0 | F118: ='Ma1'!$F$20 -> 0 | G118: ='Ma1'!$G$20 -> 0 | I118: ='Ma1'!$J$20 -> 0 | J118: ='Ma1'!$K$20 -> 0 | K118: ='Ma1'!$L$20 -> 0 | L118: ='Ma1'!$M$20 -> 0 | N118: ='Ma1'!$P$20 -> 0 | O118: ='Ma1'!$Q$20 -> 0 | P118: ='Ma1'!$R$20 -> 0 | Q118: ='Ma1'!$S$20 -> 0 | S118: ='Ma1'!$V$20 -> 0 | T118: ='Ma1'!$W$20 -> 0 | U118: ='Ma1'!$X$20 -> 0 | V118: ='Ma1'!$Y$20 -> 0 | X118: ='Ma1'!$D$46 -> 0 | Y118: ='Ma1'!$E$46 -> 0 | Z118: ='Ma1'!$F$46 -> 0 | AA118: ='Ma1'!$G$46 -> 0 | AC118: ='Ma1'!$J$46 -> 0 | AD118: ='Ma1'!$K$46 -> 0 | AE118: ='Ma1'!$L$46 -> 0 | AF118: ='Ma1'!$M$46 -> 0 | AH118: ='Ma1'!$P$46 -> 0 | AI118: ='Ma1'!$Q$46 -> 0 | AJ118: ='Ma1'!$R$46 -> 0 | AK118: ='Ma1'!$S$46 -> 0 | AM118: ='Ma1'!$V$46 -> 0 | AN118: ='Ma1'!$W$46 -> 0 | AO118: ='Ma1'!$X$46 -> 0 | AP118: ='Ma1'!$Y$46 -> 0 | AR118: ='Ma2'!$D$20 -> 0 | AS118: ='Ma2'!$E$20 -> 0 | AT118: ='Ma2'!$F$20 -> 0 | AU118: ='Ma2'!$G$20 -> 0 | AW118: ='Ma2'!$J$20 -> 0 | AX118: ='Ma2'!$K$20 -> 0 | AY118: ='Ma2'!$L$20 -> 0 | AZ118: ='Ma2'!$M$20 -> 0 | BB118: ='Ma2'!$P$20 -> 0 | BC118: ='Ma2'!$Q$20 -> 0 | BD118: ='Ma2'!$R$20 -> 0 | BE118: ='Ma2'!$S$20 -> 0 | BG118: ='Ma2'!$V$20 -> 0 | BH118: ='Ma2'!$W$20 -> 0 | BI118: ='Ma2'!$X$20 -> 0 | BJ118: ='Ma2'!$Y$20 -> 0 | BL118: ='Ma2'!$D$46 -> 0 | BM118: ='Ma2'!$E$46 -> 0 | BN118: ='Ma2'!$F$46 -> 0 | BO118: ='Ma2'!$G$46 -> 0 | BQ118: ='Ma2'!$J$46 -> 0 | BR118: ='Ma2'!$K$46 -> 0 | BS118: ='Ma2'!$L$46 -> 0 | BT118: ='Ma2'!$M$46 -> 0 | BV118: ='Ma2'!$P$46 -> 0 | BW118: ='Ma2'!$Q$46 -> 0 | BX118: ='Ma2'!$R$46 -> 0 | BY118: ='Ma2'!$S$46 -> 0 | CA118: ='Ma2'!$V$46 -> 0 | CB118: ='Ma2'!$W$46 -> 0 | CC118: ='Ma2'!$X$46 -> 0 | CD118: ='Ma2'!$Y$46 -> 0 | CF118: ='Ma3'!$D$20 -> 0 | CG118: ='Ma3'!$E$20 -> 0 | CH118: ='Ma3'!$F$20 -> 0 | CI118: ='Ma3'!$G$20 -> 0 | CK118: ='Ma3'!$J$20 -> 0 | CL118: ='Ma3'!$K$20 -> 0 | CM118: ='Ma3'!$L$20 -> 0 | CN118: ='Ma3'!$M$20 -> 0 | CP118: ='Ma3'!$P$20 -> 0 | CQ118: ='Ma3'!$Q$20 -> 0 | CR118: ='Ma3'!$R$20 -> 0 | CS118: ='Ma3'!$S$20 -> 0 | CU118: ='Ma3'!$V$20 -> 0 | CV118: ='Ma3'!$W$20 -> 0 | CW118: ='Ma3'!$X$20 -> 0 | CX118: ='Ma3'!$Y$20 -> 0 | CZ118: ='Ma3'!$D$46 -> 0 | DA118: ='Ma3'!$E$46 -> 0 | DB118: ='Ma3'!$F$46 -> 0 | DC118: ='Ma3'!$G$46 -> 0 | DE118: ='Ma3'!$J$46 -> 0 | DF118: ='Ma3'!$K$46 -> 0 | DG118: ='Ma3'!$L$46 -> 0 | DH118: ='Ma3'!$M$46 -> 0 | DJ118: ='Ma3'!$P$46 -> 0 | DK118: ='Ma3'!$Q$46 -> 0 | DL118: ='Ma3'!$R$46 -> 0 | DM118: ='Ma3'!$S$46 -> 0 | DO118: ='Ma3'!$V$46 -> 0 | DP118: ='Ma3'!$W$46 -> 0 | DQ118: ='Ma3'!$X$46 -> 0 | DR118: ='Ma3'!$Y$46 -> 0 | DT118: ='Ma4'!$D$20 -> 0 | DU118: ='Ma4'!$E$20 -> 0 | DV118: ='Ma4'!$F$20 -> 0 | DW118: ='Ma4'!$G$20 -> 0 | DY118: ='Ma4'!$J$20 -> 0 | DZ118: ='Ma4'!$K$20 -> 0 | EA118: ='Ma4'!$L$20 -> 0 | EB118: ='Ma4'!$M$20 -> 0 | ED118: ='Ma4'!$P$20 -> 0 | EE118: ='Ma4'!$Q$20 -> 0 | EF118: ='Ma4'!$R$20 -> 0 | EG118: ='Ma4'!$S$20 -> 0 | EI118: ='Ma4'!$V$20 -> 0 | EJ118: ='Ma4'!$W$20 -> 0 | EK118: ='Ma4'!$X$20 -> 0 | EL118: ='Ma4'!$Y$20 -> 0 | EN118: ='Ma4'!$D$46 -> 0 | EO118: ='Ma4'!$E$46 -> 0 | EP118: ='Ma4'!$F$46 -> 0 | EQ118: ='Ma4'!$G$46 -> 0 | ES118: ='Ma4'!$J$46 -> 0 | ET118: ='Ma4'!$K$46 -> 0 | EU118: ='Ma4'!$L$46 -> 0 | EV118: ='Ma4'!$M$46 -> 0 | EX118: ='Ma4'!$P$46 -> 0 | EY118: ='Ma4'!$Q$46 -> 0 | EZ118: ='Ma4'!$R$46 -> 0 | FA118: ='Ma4'!$S$46 -> 0 | FC118: ='Ma4'!$V$46 -> 0 | FD118: ='Ma4'!$W$46 -> 0 | FE118: ='Ma4'!$X$46 -> 0 | FF118: ='Ma4'!$Y$46 -> 0 | FH118: ='Ma5'!$D$20 -> 0 | FI118: ='Ma5'!$E$20 -> 0 | FJ118: ='Ma5'!$F$20 -> 0 | FK118: ='Ma5'!$G$20 -> 0 | FM118: ='Ma5'!$J$20 -> 0 | FN118: ='Ma5'!$K$20 -> 0 | FO118: ='Ma5'!$L$20 -> 0 | FP118: ='Ma5'!$M$20 -> 0 | FR118: ='Ma5'!$P$20 -> 0 | FS118: ='Ma5'!$Q$20 -> 0 | FT118: ='Ma5'!$R$20 -> 0 | FU118: ='Ma5'!$S$20 -> 0 | FW118: ='Ma5'!$V$20 -> 0 | FX118: ='Ma5'!$W$20 -> 0 | FY118: ='Ma5'!$X$20 -> 0 | FZ118: ='Ma5'!$Y$20 -> 0 | GB118: ='Ma5'!$D$46 -> 0 | GC118: ='Ma5'!$E$46 -> 0 | GD118: ='Ma5'!$F$46 -> 0 | GE118: ='Ma5'!$G$46 -> 0 | GG118: ='Ma5'!$J$46 -> 0 | GH118: ='Ma5'!$K$46 -> 0 | GI118: ='Ma5'!$L$46 -> 0 | GJ118: ='Ma5'!$M$46 -> 0 | GL118: ='Ma5'!$P$46 -> 0 | GM118: ='Ma5'!$Q$46 -> 0 | GN118: ='Ma5'!$R$46 -> 0 | GO118: ='Ma5'!$S$46 -> 0 | GQ118: ='Ma5'!$V$46 -> 0 | GR118: ='Ma5'!$W$46 -> 0 | GS118: ='Ma5'!$X$46 -> 0 | GT118: ='Ma5'!$Y$46 -> 0 | GV118: ='Ma6'!$D$20 -> 0 | GW118: ='Ma6'!$E$20 -> 0 | GX118: ='Ma6'!$F$20 -> 0 | GY118: ='Ma6'!$G$20 -> 0 | HA118: ='Ma6'!$J$20 -> 0 | HB118: ='Ma6'!$K$20 -> 0 | HC118: ='Ma6'!$L$20 -> 0 | HD118: ='Ma6'!$M$20 -> 0 | HF118: ='Ma6'!$P$20 -> 0 | HG118: ='Ma6'!$Q$20 -> 0 | HH118: ='Ma6'!$R$20 -> 0 | HI118: ='Ma6'!$S$20 -> 0 | HK118: ='Ma6'!$V$20 -> 0 | HL118: ='Ma6'!$W$20 -> 0 | HM118: ='Ma6'!$X$20 -> 0 | HN118: ='Ma6'!$Y$20 -> 0 | HP118: ='Ma6'!$D$46 -> 0 | HQ118: ='Ma6'!$E$46 -> 0 | HR118: ='Ma6'!$F$46 -> 0 | HS118: ='Ma6'!$G$46 -> 0 | HU118: ='Ma6'!$J$46 -> 0 | HV118: ='Ma6'!$K$46 -> 0 | HW118: ='Ma6'!$L$46 -> 0 | HX118: ='Ma6'!$M$46 -> 0 | HZ118: ='Ma6'!$P$46 -> 0 | IA118: ='Ma6'!$Q$46 -> 0 | IB118: ='Ma6'!$R$46 -> 0 | IC118: ='Ma6'!$S$46 -> 0 | IE118: ='Ma6'!$V$46 -> 0 | IF118: ='Ma6'!$W$46 -> 0 | IG118: ='Ma6'!$X$46 -> 0 | IH118: ='Ma6'!$Y$46 -> 0 | IJ118: ='Ma7'!$D$20 -> 0 | IK118: ='Ma7'!$E$20 -> 0 | IL118: ='Ma7'!$F$20 -> 0 | IM118: ='Ma7'!$G$20 -> 0 | IO118: ='Ma7'!$J$20 -> 0 | IP118: ='Ma7'!$K$20 -> 0 | IQ118: ='Ma7'!$L$20 -> 0 | IR118: ='Ma7'!$M$20 -> 0 | IT118: ='Ma7'!$P$20 -> 0 | IU118: ='Ma7'!$Q$20 -> 0 | IV118: ='Ma7'!$R$20 -> 0 | IW118: ='Ma7'!$S$20 -> 0 | IY118: ='Ma7'!$V$20 -> 0 | IZ118: ='Ma7'!$W$20 -> 0 | JA118: ='Ma7'!$X$20 -> 0 | JB118: ='Ma7'!$Y$20 -> 0 | JD118: ='Ma7'!$D$46 -> 0 | JE118: ='Ma7'!$E$46 -> 0 | JF118: ='Ma7'!$F$46 -> 0 | JG118: ='Ma7'!$G$46 -> 0 | JI118: ='Ma7'!$J$46 -> 0 | JJ118: ='Ma7'!$K$46 -> 0 | JK118: ='Ma7'!$L$46 -> 0 | JL118: ='Ma7'!$M$46 -> 0 | JN118: ='Ma7'!$P$46 -> 0 | JO118: ='Ma7'!$Q$46 -> 0 | JP118: ='Ma7'!$R$46 -> 0 | JQ118: ='Ma7'!$S$46 -> 0 | JS118: ='Ma7'!$V$46 -> 0 | JT118: ='Ma7'!$W$46 -> 0 | JU118: ='Ma7'!$X$46 -> 0 | JV118: ='Ma7'!$Y$46 -> 0
D119: ='Ma1'!$D$21 -> 0 | E119: ='Ma1'!$E$21 -> 0 | F119: ='Ma1'!$F$21 -> 0 | G119: ='Ma1'!$G$21 -> 0 | I119: ='Ma1'!$J$21 -> 0 | J119: ='Ma1'!$K$21 -> 0 | K119: ='Ma1'!$L$21 -> 0 | L119: ='Ma1'!$M$21 -> 0 | N119: ='Ma1'!$P$21 -> 0 | O119: ='Ma1'!$Q$21 -> 0 | P119: ='Ma1'!$R$21 -> 0 | Q119: ='Ma1'!$S$21 -> 0 | S119: ='Ma1'!$V$21 -> 0 | T119: ='Ma1'!$W$21 -> 0 | U119: ='Ma1'!$X$21 -> 0 | V119: ='Ma1'!$Y$21 -> 0 | X119: ='Ma1'!$D$47 -> 0 | Y119: ='Ma1'!$E$47 -> 0 | Z119: ='Ma1'!$F$47 -> 0 | AA119: ='Ma1'!$G$47 -> 0 | AC119: ='Ma1'!$J$47 -> 0 | AD119: ='Ma1'!$K$47 -> 0 | AE119: ='Ma1'!$L$47 -> 0 | AF119: ='Ma1'!$M$47 -> 0 | AH119: ='Ma1'!$P$47 -> 0 | AI119: ='Ma1'!$Q$47 -> 0 | AJ119: ='Ma1'!$R$47 -> 0 | AK119: ='Ma1'!$S$47 -> 0 | AM119: ='Ma1'!$V$47 -> 0 | AN119: ='Ma1'!$W$47 -> 0 | AO119: ='Ma1'!$X$47 -> 0 | AP119: ='Ma1'!$Y$47 -> 0 | AR119: ='Ma2'!$D$21 -> 0 | AS119: ='Ma2'!$E$21 -> 0 | AT119: ='Ma2'!$F$21 -> 0 | AU119: ='Ma2'!$G$21 -> 0 | AW119: ='Ma2'!$J$21 -> 0 | AX119: ='Ma2'!$K$21 -> 0 | AY119: ='Ma2'!$L$21 -> 0 | AZ119: ='Ma2'!$M$21 -> 0 | BB119: ='Ma2'!$P$21 -> 0 | BC119: ='Ma2'!$Q$21 -> 0 | BD119: ='Ma2'!$R$21 -> 0 | BE119: ='Ma2'!$S$21 -> 0 | BG119: ='Ma2'!$V$21 -> 0 | BH119: ='Ma2'!$W$21 -> 0 | BI119: ='Ma2'!$X$21 -> 0 | BJ119: ='Ma2'!$Y$21 -> 0 | BL119: ='Ma2'!$D$47 -> 0 | BM119: ='Ma2'!$E$47 -> 0 | BN119: ='Ma2'!$F$47 -> 0 | BO119: ='Ma2'!$G$47 -> 0 | BQ119: ='Ma2'!$J$47 -> 0 | BR119: ='Ma2'!$K$47 -> 0 | BS119: ='Ma2'!$L$47 -> 0 | BT119: ='Ma2'!$M$47 -> 0 | BV119: ='Ma2'!$P$47 -> 0 | BW119: ='Ma2'!$Q$47 -> 0 | BX119: ='Ma2'!$R$47 -> 0 | BY119: ='Ma2'!$S$47 -> 0 | CA119: ='Ma2'!$V$47 -> 0 | CB119: ='Ma2'!$W$47 -> 0 | CC119: ='Ma2'!$X$47 -> 0 | CD119: ='Ma2'!$Y$47 -> 0 | CF119: ='Ma3'!$D$21 -> 0 | CG119: ='Ma3'!$E$21 -> 0 | CH119: ='Ma3'!$F$21 -> 0 | CI119: ='Ma3'!$G$21 -> 0 | CK119: ='Ma3'!$J$21 -> 0 | CL119: ='Ma3'!$K$21 -> 0 | CM119: ='Ma3'!$L$21 -> 0 | CN119: ='Ma3'!$M$21 -> 0 | CP119: ='Ma3'!$P$21 -> 0 | CQ119: ='Ma3'!$Q$21 -> 0 | CR119: ='Ma3'!$R$21 -> 0 | CS119: ='Ma3'!$S$21 -> 0 | CU119: ='Ma3'!$V$21 -> 0 | CV119: ='Ma3'!$W$21 -> 0 | CW119: ='Ma3'!$X$21 -> 0 | CX119: ='Ma3'!$Y$21 -> 0 | CZ119: ='Ma3'!$D$47 -> 0 | DA119: ='Ma3'!$E$47 -> 0 | DB119: ='Ma3'!$F$47 -> 0 | DC119: ='Ma3'!$G$47 -> 0 | DE119: ='Ma3'!$J$47 -> 0 | DF119: ='Ma3'!$K$47 -> 0 | DG119: ='Ma3'!$L$47 -> 0 | DH119: ='Ma3'!$M$47 -> 0 | DJ119: ='Ma3'!$P$47 -> 0 | DK119: ='Ma3'!$Q$47 -> 0 | DL119: ='Ma3'!$R$47 -> 0 | DM119: ='Ma3'!$S$47 -> 0 | DO119: ='Ma3'!$V$47 -> 0 | DP119: ='Ma3'!$W$47 -> 0 | DQ119: ='Ma3'!$X$47 -> 0 | DR119: ='Ma3'!$Y$47 -> 0 | DT119: ='Ma4'!$D$21 -> 0 | DU119: ='Ma4'!$E$21 -> 0 | DV119: ='Ma4'!$F$21 -> 0 | DW119: ='Ma4'!$G$21 -> 0 | DY119: ='Ma4'!$J$21 -> 0 | DZ119: ='Ma4'!$K$21 -> 0 | EA119: ='Ma4'!$L$21 -> 0 | EB119: ='Ma4'!$M$21 -> 0 | ED119: ='Ma4'!$P$21 -> 0 | EE119: ='Ma4'!$Q$21 -> 0 | EF119: ='Ma4'!$R$21 -> 0 | EG119: ='Ma4'!$S$21 -> 0 | EI119: ='Ma4'!$V$21 -> 0 | EJ119: ='Ma4'!$W$21 -> 0 | EK119: ='Ma4'!$X$21 -> 0 | EL119: ='Ma4'!$Y$21 -> 0 | EN119: ='Ma4'!$D$47 -> 0 | EO119: ='Ma4'!$E$47 -> 0 | EP119: ='Ma4'!$F$47 -> 0 | EQ119: ='Ma4'!$G$47 -> 0 | ES119: ='Ma4'!$J$47 -> 0 | ET119: ='Ma4'!$K$47 -> 0 | EU119: ='Ma4'!$L$47 -> 0 | EV119: ='Ma4'!$M$47 -> 0 | EX119: ='Ma4'!$P$47 -> 0 | EY119: ='Ma4'!$Q$47 -> 0 | EZ119: ='Ma4'!$R$47 -> 0 | FA119: ='Ma4'!$S$47 -> 0 | FC119: ='Ma4'!$V$47 -> 0 | FD119: ='Ma4'!$W$47 -> 0 | FE119: ='Ma4'!$X$47 -> 0 | FF119: ='Ma4'!$Y$47 -> 0 | FH119: ='Ma5'!$D$21 -> 0 | FI119: ='Ma5'!$E$21 -> 0 | FJ119: ='Ma5'!$F$21 -> 0 | FK119: ='Ma5'!$G$21 -> 0 | FM119: ='Ma5'!$J$21 -> 0 | FN119: ='Ma5'!$K$21 -> 0 | FO119: ='Ma5'!$L$21 -> 0 | FP119: ='Ma5'!$M$21 -> 0 | FR119: ='Ma5'!$P$21 -> 0 | FS119: ='Ma5'!$Q$21 -> 0 | FT119: ='Ma5'!$R$21 -> 0 | FU119: ='Ma5'!$S$21 -> 0 | FW119: ='Ma5'!$V$21 -> 0 | FX119: ='Ma5'!$W$21 -> 0 | FY119: ='Ma5'!$X$21 -> 0 | FZ119: ='Ma5'!$Y$21 -> 0 | GB119: ='Ma5'!$D$47 -> 0 | GC119: ='Ma5'!$E$47 -> 0 | GD119: ='Ma5'!$F$47 -> 0 | GE119: ='Ma5'!$G$47 -> 0 | GG119: ='Ma5'!$J$47 -> 0 | GH119: ='Ma5'!$K$47 -> 0 | GI119: ='Ma5'!$L$47 -> 0 | GJ119: ='Ma5'!$M$47 -> 0 | GL119: ='Ma5'!$P$47 -> 0 | GM119: ='Ma5'!$Q$47 -> 0 | GN119: ='Ma5'!$R$47 -> 0 | GO119: ='Ma5'!$S$47 -> 0 | GQ119: ='Ma5'!$V$47 -> 0 | GR119: ='Ma5'!$W$47 -> 0 | GS119: ='Ma5'!$X$47 -> 0 | GT119: ='Ma5'!$Y$47 -> 0 | GV119: ='Ma6'!$D$21 -> 0 | GW119: ='Ma6'!$E$21 -> 0 | GX119: ='Ma6'!$F$21 -> 0 | GY119: ='Ma6'!$G$21 -> 0 | HA119: ='Ma6'!$J$21 -> 0 | HB119: ='Ma6'!$K$21 -> 0 | HC119: ='Ma6'!$L$21 -> 0 | HD119: ='Ma6'!$M$21 -> 0 | HF119: ='Ma6'!$P$21 -> 0 | HG119: ='Ma6'!$Q$21 -> 0 | HH119: ='Ma6'!$R$21 -> 0 | HI119: ='Ma6'!$S$21 -> 0 | HK119: ='Ma6'!$V$21 -> 0 | HL119: ='Ma6'!$W$21 -> 0 | HM119: ='Ma6'!$X$21 -> 0 | HN119: ='Ma6'!$Y$21 -> 0 | HP119: ='Ma6'!$D$47 -> 0 | HQ119: ='Ma6'!$E$47 -> 0 | HR119: ='Ma6'!$F$47 -> 0 | HS119: ='Ma6'!$G$47 -> 0 | HU119: ='Ma6'!$J$47 -> 0 | HV119: ='Ma6'!$K$47 -> 0 | HW119: ='Ma6'!$L$47 -> 0 | HX119: ='Ma6'!$M$47 -> 0 | HZ119: ='Ma6'!$P$47 -> 0 | IA119: ='Ma6'!$Q$47 -> 0 | IB119: ='Ma6'!$R$47 -> 0 | IC119: ='Ma6'!$S$47 -> 0 | IE119: ='Ma6'!$V$47 -> 0 | IF119: ='Ma6'!$W$47 -> 0 | IG119: ='Ma6'!$X$47 -> 0 | IH119: ='Ma6'!$Y$47 -> 0 | IJ119: ='Ma7'!$D$21 -> 0 | IK119: ='Ma7'!$E$21 -> 0 | IL119: ='Ma7'!$F$21 -> 0 | IM119: ='Ma7'!$G$21 -> 0 | IO119: ='Ma7'!$J$21 -> 0 | IP119: ='Ma7'!$K$21 -> 0 | IQ119: ='Ma7'!$L$21 -> 0 | IR119: ='Ma7'!$M$21 -> 0 | IT119: ='Ma7'!$P$21 -> 0 | IU119: ='Ma7'!$Q$21 -> 0 | IV119: ='Ma7'!$R$21 -> 0 | IW119: ='Ma7'!$S$21 -> 0 | IY119: ='Ma7'!$V$21 -> 0 | IZ119: ='Ma7'!$W$21 -> 0 | JA119: ='Ma7'!$X$21 -> 0 | JB119: ='Ma7'!$Y$21 -> 0 | JD119: ='Ma7'!$D$47 -> 0 | JE119: ='Ma7'!$E$47 -> 0 | JF119: ='Ma7'!$F$47 -> 0 | JG119: ='Ma7'!$G$47 -> 0 | JI119: ='Ma7'!$J$47 -> 0 | JJ119: ='Ma7'!$K$47 -> 0 | JK119: ='Ma7'!$L$47 -> 0 | JL119: ='Ma7'!$M$47 -> 0 | JN119: ='Ma7'!$P$47 -> 0 | JO119: ='Ma7'!$Q$47 -> 0 | JP119: ='Ma7'!$R$47 -> 0 | JQ119: ='Ma7'!$S$47 -> 0 | JS119: ='Ma7'!$V$47 -> 0 | JT119: ='Ma7'!$W$47 -> 0 | JU119: ='Ma7'!$X$47 -> 0 | JV119: ='Ma7'!$Y$47 -> 0
D120: ='Ma1'!$D$22 -> 0 | E120: ='Ma1'!$E$22 -> 0 | F120: ='Ma1'!$F$22 -> 0 | G120: ='Ma1'!$G$22 -> 0 | I120: ='Ma1'!$J$22 -> 0 | J120: ='Ma1'!$K$22 -> 0 | K120: ='Ma1'!$L$22 -> 0 | L120: ='Ma1'!$M$22 -> 0 | N120: ='Ma1'!$P$22 -> 0 | O120: ='Ma1'!$Q$22 -> 0 | P120: ='Ma1'!$R$22 -> 0 | Q120: ='Ma1'!$S$22 -> 0 | S120: ='Ma1'!$V$22 -> 0 | T120: ='Ma1'!$W$22 -> 0 | U120: ='Ma1'!$X$22 -> 0 | V120: ='Ma1'!$Y$22 -> 0 | X120: ='Ma1'!$D$48 -> 0 | Y120: ='Ma1'!$E$48 -> 0 | Z120: ='Ma1'!$F$48 -> 0 | AA120: ='Ma1'!$G$48 -> 0 | AC120: ='Ma1'!$J$48 -> 0 | AD120: ='Ma1'!$K$48 -> 0 | AE120: ='Ma1'!$L$48 -> 0 | AF120: ='Ma1'!$M$48 -> 0 | AH120: ='Ma1'!$P$48 -> 0 | AI120: ='Ma1'!$Q$48 -> 0 | AJ120: ='Ma1'!$R$48 -> 0 | AK120: ='Ma1'!$S$48 -> 0 | AM120: ='Ma1'!$V$48 -> 0 | AN120: ='Ma1'!$W$48 -> 0 | AO120: ='Ma1'!$X$48 -> 0 | AP120: ='Ma1'!$Y$48 -> 0 | AR120: ='Ma2'!$D$22 -> 0 | AS120: ='Ma2'!$E$22 -> 0 | AT120: ='Ma2'!$F$22 -> 0 | AU120: ='Ma2'!$G$22 -> 0 | AW120: ='Ma2'!$J$22 -> 0 | AX120: ='Ma2'!$K$22 -> 0 | AY120: ='Ma2'!$L$22 -> 0 | AZ120: ='Ma2'!$M$22 -> 0 | BB120: ='Ma2'!$P$22 -> 0 | BC120: ='Ma2'!$Q$22 -> 0 | BD120: ='Ma2'!$R$22 -> 0 | BE120: ='Ma2'!$S$22 -> 0 | BG120: ='Ma2'!$V$22 -> 0 | BH120: ='Ma2'!$W$22 -> 0 | BI120: ='Ma2'!$X$22 -> 0 | BJ120: ='Ma2'!$Y$22 -> 0 | BL120: ='Ma2'!$D$48 -> 0 | BM120: ='Ma2'!$E$48 -> 0 | BN120: ='Ma2'!$F$48 -> 0 | BO120: ='Ma2'!$G$48 -> 0 | BQ120: ='Ma2'!$J$48 -> 0 | BR120: ='Ma2'!$K$48 -> 0 | BS120: ='Ma2'!$L$48 -> 0 | BT120: ='Ma2'!$M$48 -> 0 | BV120: ='Ma2'!$P$48 -> 0 | BW120: ='Ma2'!$Q$48 -> 0 | BX120: ='Ma2'!$R$48 -> 0 | BY120: ='Ma2'!$S$48 -> 0 | CA120: ='Ma2'!$V$48 -> 0 | CB120: ='Ma2'!$W$48 -> 0 | CC120: ='Ma2'!$X$48 -> 0 | CD120: ='Ma2'!$Y$48 -> 0 | CF120: ='Ma3'!$D$22 -> 0 | CG120: ='Ma3'!$E$22 -> 0 | CH120: ='Ma3'!$F$22 -> 0 | CI120: ='Ma3'!$G$22 -> 0 | CK120: ='Ma3'!$J$22 -> 0 | CL120: ='Ma3'!$K$22 -> 0 | CM120: ='Ma3'!$L$22 -> 0 | CN120: ='Ma3'!$M$22 -> 0 | CP120: ='Ma3'!$P$22 -> 0 | CQ120: ='Ma3'!$Q$22 -> 0 | CR120: ='Ma3'!$R$22 -> 0 | CS120: ='Ma3'!$S$22 -> 0 | CU120: ='Ma3'!$V$22 -> 0 | CV120: ='Ma3'!$W$22 -> 0 | CW120: ='Ma3'!$X$22 -> 0 | CX120: ='Ma3'!$Y$22 -> 0 | CZ120: ='Ma3'!$D$48 -> 0 | DA120: ='Ma3'!$E$48 -> 0 | DB120: ='Ma3'!$F$48 -> 0 | DC120: ='Ma3'!$G$48 -> 0 | DE120: ='Ma3'!$J$48 -> 0 | DF120: ='Ma3'!$K$48 -> 0 | DG120: ='Ma3'!$L$48 -> 0 | DH120: ='Ma3'!$M$48 -> 0 | DJ120: ='Ma3'!$P$48 -> 0 | DK120: ='Ma3'!$Q$48 -> 0 | DL120: ='Ma3'!$R$48 -> 0 | DM120: ='Ma3'!$S$48 -> 0 | DO120: ='Ma3'!$V$48 -> 0 | DP120: ='Ma3'!$W$48 -> 0 | DQ120: ='Ma3'!$X$48 -> 0 | DR120: ='Ma3'!$Y$48 -> 0 | DT120: ='Ma4'!$D$22 -> 0 | DU120: ='Ma4'!$E$22 -> 0 | DV120: ='Ma4'!$F$22 -> 0 | DW120: ='Ma4'!$G$22 -> 0 | DY120: ='Ma4'!$J$22 -> 0 | DZ120: ='Ma4'!$K$22 -> 0 | EA120: ='Ma4'!$L$22 -> 0 | EB120: ='Ma4'!$M$22 -> 0 | ED120: ='Ma4'!$P$22 -> 0 | EE120: ='Ma4'!$Q$22 -> 0 | EF120: ='Ma4'!$R$22 -> 0 | EG120: ='Ma4'!$S$22 -> 0 | EI120: ='Ma4'!$V$22 -> 0 | EJ120: ='Ma4'!$W$22 -> 0 | EK120: ='Ma4'!$X$22 -> 0 | EL120: ='Ma4'!$Y$22 -> 0 | EN120: ='Ma4'!$D$48 -> 0 | EO120: ='Ma4'!$E$48 -> 0 | EP120: ='Ma4'!$F$48 -> 0 | EQ120: ='Ma4'!$G$48 -> 0 | ES120: ='Ma4'!$J$48 -> 0 | ET120: ='Ma4'!$K$48 -> 0 | EU120: ='Ma4'!$L$48 -> 0 | EV120: ='Ma4'!$M$48 -> 0 | EX120: ='Ma4'!$P$48 -> 0 | EY120: ='Ma4'!$Q$48 -> 0 | EZ120: ='Ma4'!$R$48 -> 0 | FA120: ='Ma4'!$S$48 -> 0 | FC120: ='Ma4'!$V$48 -> 0 | FD120: ='Ma4'!$W$48 -> 0 | FE120: ='Ma4'!$X$48 -> 0 | FF120: ='Ma4'!$Y$48 -> 0 | FH120: ='Ma5'!$D$22 -> 0 | FI120: ='Ma5'!$E$22 -> 0 | FJ120: ='Ma5'!$F$22 -> 0 | FK120: ='Ma5'!$G$22 -> 0 | FM120: ='Ma5'!$J$22 -> 0 | FN120: ='Ma5'!$K$22 -> 0 | FO120: ='Ma5'!$L$22 -> 0 | FP120: ='Ma5'!$M$22 -> 0 | FR120: ='Ma5'!$P$22 -> 0 | FS120: ='Ma5'!$Q$22 -> 0 | FT120: ='Ma5'!$R$22 -> 0 | FU120: ='Ma5'!$S$22 -> 0 | FW120: ='Ma5'!$V$22 -> 0 | FX120: ='Ma5'!$W$22 -> 0 | FY120: ='Ma5'!$X$22 -> 0 | FZ120: ='Ma5'!$Y$22 -> 0 | GB120: ='Ma5'!$D$48 -> 0 | GC120: ='Ma5'!$E$48 -> 0 | GD120: ='Ma5'!$F$48 -> 0 | GE120: ='Ma5'!$G$48 -> 0 | GG120: ='Ma5'!$J$48 -> 0 | GH120: ='Ma5'!$K$48 -> 0 | GI120: ='Ma5'!$L$48 -> 0 | GJ120: ='Ma5'!$M$48 -> 0 | GL120: ='Ma5'!$P$48 -> 0 | GM120: ='Ma5'!$Q$48 -> 0 | GN120: ='Ma5'!$R$48 -> 0 | GO120: ='Ma5'!$S$48 -> 0 | GQ120: ='Ma5'!$V$48 -> 0 | GR120: ='Ma5'!$W$48 -> 0 | GS120: ='Ma5'!$X$48 -> 0 | GT120: ='Ma5'!$Y$48 -> 0 | GV120: ='Ma6'!$D$22 -> 0 | GW120: ='Ma6'!$E$22 -> 0 | GX120: ='Ma6'!$F$22 -> 0 | GY120: ='Ma6'!$G$22 -> 0 | HA120: ='Ma6'!$J$22 -> 0 | HB120: ='Ma6'!$K$22 -> 0 | HC120: ='Ma6'!$L$22 -> 0 | HD120: ='Ma6'!$M$22 -> 0 | HF120: ='Ma6'!$P$22 -> 0 | HG120: ='Ma6'!$Q$22 -> 0 | HH120: ='Ma6'!$R$22 -> 0 | HI120: ='Ma6'!$S$22 -> 0 | HK120: ='Ma6'!$V$22 -> 0 | HL120: ='Ma6'!$W$22 -> 0 | HM120: ='Ma6'!$X$22 -> 0 | HN120: ='Ma6'!$Y$22 -> 0 | HP120: ='Ma6'!$D$48 -> 0 | HQ120: ='Ma6'!$E$48 -> 0 | HR120: ='Ma6'!$F$48 -> 0 | HS120: ='Ma6'!$G$48 -> 0 | HU120: ='Ma6'!$J$48 -> 0 | HV120: ='Ma6'!$K$48 -> 0 | HW120: ='Ma6'!$L$48 -> 0 | HX120: ='Ma6'!$M$48 -> 0 | HZ120: ='Ma6'!$P$48 -> 0 | IA120: ='Ma6'!$Q$48 -> 0 | IB120: ='Ma6'!$R$48 -> 0 | IC120: ='Ma6'!$S$48 -> 0 | IE120: ='Ma6'!$V$48 -> 0 | IF120: ='Ma6'!$W$48 -> 0 | IG120: ='Ma6'!$X$48 -> 0 | IH120: ='Ma6'!$Y$48 -> 0 | IJ120: ='Ma7'!$D$22 -> 0 | IK120: ='Ma7'!$E$22 -> 0 | IL120: ='Ma7'!$F$22 -> 0 | IM120: ='Ma7'!$G$22 -> 0 | IO120: ='Ma7'!$J$22 -> 0 | IP120: ='Ma7'!$K$22 -> 0 | IQ120: ='Ma7'!$L$22 -> 0 | IR120: ='Ma7'!$M$22 -> 0 | IT120: ='Ma7'!$P$22 -> 0 | IU120: ='Ma7'!$Q$22 -> 0 | IV120: ='Ma7'!$R$22 -> 0 | IW120: ='Ma7'!$S$22 -> 0 | IY120: ='Ma7'!$V$22 -> 0 | IZ120: ='Ma7'!$W$22 -> 0 | JA120: ='Ma7'!$X$22 -> 0 | JB120: ='Ma7'!$Y$22 -> 0 | JD120: ='Ma7'!$D$48 -> 0 | JE120: ='Ma7'!$E$48 -> 0 | JF120: ='Ma7'!$F$48 -> 0 | JG120: ='Ma7'!$G$48 -> 0 | JI120: ='Ma7'!$J$48 -> 0 | JJ120: ='Ma7'!$K$48 -> 0 | JK120: ='Ma7'!$L$48 -> 0 | JL120: ='Ma7'!$M$48 -> 0 | JN120: ='Ma7'!$P$48 -> 0 | JO120: ='Ma7'!$Q$48 -> 0 | JP120: ='Ma7'!$R$48 -> 0 | JQ120: ='Ma7'!$S$48 -> 0 | JS120: ='Ma7'!$V$48 -> 0 | JT120: ='Ma7'!$W$48 -> 0 | JU120: ='Ma7'!$X$48 -> 0 | JV120: ='Ma7'!$Y$48 -> 0
D121: ='Ma1'!$D$23 -> 0 | E121: ='Ma1'!$E$23 -> 0 | F121: ='Ma1'!$F$23 -> 0 | G121: ='Ma1'!$G$23 -> 0 | I121: ='Ma1'!$J$23 -> 0 | J121: ='Ma1'!$K$23 -> 0 | K121: ='Ma1'!$L$23 -> 0 | L121: ='Ma1'!$M$23 -> 0 | N121: ='Ma1'!$P$23 -> 0 | O121: ='Ma1'!$Q$23 -> 0 | P121: ='Ma1'!$R$23 -> 0 | Q121: ='Ma1'!$S$23 -> 0 | S121: ='Ma1'!$V$23 -> 0 | T121: ='Ma1'!$W$23 -> 0 | U121: ='Ma1'!$X$23 -> 0 | V121: ='Ma1'!$Y$23 -> 0 | X121: ='Ma1'!$D$49 -> 0 | Y121: ='Ma1'!$E$49 -> 0 | Z121: ='Ma1'!$F$49 -> 0 | AA121: ='Ma1'!$G$49 -> 0 | AC121: ='Ma1'!$J$49 -> 0 | AD121: ='Ma1'!$K$49 -> 0 | AE121: ='Ma1'!$L$49 -> 0 | AF121: ='Ma1'!$M$49 -> 0 | AH121: ='Ma1'!$P$49 -> 0 | AI121: ='Ma1'!$Q$49 -> 0 | AJ121: ='Ma1'!$R$49 -> 0 | AK121: ='Ma1'!$S$49 -> 0 | AM121: ='Ma1'!$V$49 -> 0 | AN121: ='Ma1'!$W$49 -> 0 | AO121: ='Ma1'!$X$49 -> 0 | AP121: ='Ma1'!$Y$49 -> 0 | AR121: ='Ma2'!$D$23 -> 0 | AS121: ='Ma2'!$E$23 -> 0 | AT121: ='Ma2'!$F$23 -> 0 | AU121: ='Ma2'!$G$23 -> 0 | AW121: ='Ma2'!$J$23 -> 0 | AX121: ='Ma2'!$K$23 -> 0 | AY121: ='Ma2'!$L$23 -> 0 | AZ121: ='Ma2'!$M$23 -> 0 | BB121: ='Ma2'!$P$23 -> 0 | BC121: ='Ma2'!$Q$23 -> 0 | BD121: ='Ma2'!$R$23 -> 0 | BE121: ='Ma2'!$S$23 -> 0 | BG121: ='Ma2'!$V$23 -> 0 | BH121: ='Ma2'!$W$23 -> 0 | BI121: ='Ma2'!$X$23 -> 0 | BJ121: ='Ma2'!$Y$23 -> 0 | BL121: ='Ma2'!$D$49 -> 0 | BM121: ='Ma2'!$E$49 -> 0 | BN121: ='Ma2'!$F$49 -> 0 | BO121: ='Ma2'!$G$49 -> 0 | BQ121: ='Ma2'!$J$49 -> 0 | BR121: ='Ma2'!$K$49 -> 0 | BS121: ='Ma2'!$L$49 -> 0 | BT121: ='Ma2'!$M$49 -> 0 | BV121: ='Ma2'!$P$49 -> 0 | BW121: ='Ma2'!$Q$49 -> 0 | BX121: ='Ma2'!$R$49 -> 0 | BY121: ='Ma2'!$S$49 -> 0 | CA121: ='Ma2'!$V$49 -> 0 | CB121: ='Ma2'!$W$49 -> 0 | CC121: ='Ma2'!$X$49 -> 0 | CD121: ='Ma2'!$Y$49 -> 0 | CF121: ='Ma3'!$D$23 -> 0 | CG121: ='Ma3'!$E$23 -> 0 | CH121: ='Ma3'!$F$23 -> 0 | CI121: ='Ma3'!$G$23 -> 0 | CK121: ='Ma3'!$J$23 -> 0 | CL121: ='Ma3'!$K$23 -> 0 | CM121: ='Ma3'!$L$23 -> 0 | CN121: ='Ma3'!$M$23 -> 0 | CP121: ='Ma3'!$P$23 -> 0 | CQ121: ='Ma3'!$Q$23 -> 0 | CR121: ='Ma3'!$R$23 -> 0 | CS121: ='Ma3'!$S$23 -> 0 | CU121: ='Ma3'!$V$23 -> 0 | CV121: ='Ma3'!$W$23 -> 0 | CW121: ='Ma3'!$X$23 -> 0 | CX121: ='Ma3'!$Y$23 -> 0 | CZ121: ='Ma3'!$D$49 -> 0 | DA121: ='Ma3'!$E$49 -> 0 | DB121: ='Ma3'!$F$49 -> 0 | DC121: ='Ma3'!$G$49 -> 0 | DE121: ='Ma3'!$J$49 -> 0 | DF121: ='Ma3'!$K$49 -> 0 | DG121: ='Ma3'!$L$49 -> 0 | DH121: ='Ma3'!$M$49 -> 0 | DJ121: ='Ma3'!$P$49 -> 0 | DK121: ='Ma3'!$Q$49 -> 0 | DL121: ='Ma3'!$R$49 -> 0 | DM121: ='Ma3'!$S$49 -> 0 | DO121: ='Ma3'!$V$49 -> 0 | DP121: ='Ma3'!$W$49 -> 0 | DQ121: ='Ma3'!$X$49 -> 0 | DR121: ='Ma3'!$Y$49 -> 0 | DT121: ='Ma4'!$D$23 -> 0 | DU121: ='Ma4'!$E$23 -> 0 | DV121: ='Ma4'!$F$23 -> 0 | DW121: ='Ma4'!$G$23 -> 0 | DY121: ='Ma4'!$J$23 -> 0 | DZ121: ='Ma4'!$K$23 -> 0 | EA121: ='Ma4'!$L$23 -> 0 | EB121: ='Ma4'!$M$23 -> 0 | ED121: ='Ma4'!$P$23 -> 0 | EE121: ='Ma4'!$Q$23 -> 0 | EF121: ='Ma4'!$R$23 -> 0 | EG121: ='Ma4'!$S$23 -> 0 | EI121: ='Ma4'!$V$23 -> 0 | EJ121: ='Ma4'!$W$23 -> 0 | EK121: ='Ma4'!$X$23 -> 0 | EL121: ='Ma4'!$Y$23 -> 0 | EN121: ='Ma4'!$D$49 -> 0 | EO121: ='Ma4'!$E$49 -> 0 | EP121: ='Ma4'!$F$49 -> 0 | EQ121: ='Ma4'!$G$49 -> 0 | ES121: ='Ma4'!$J$49 -> 0 | ET121: ='Ma4'!$K$49 -> 0 | EU121: ='Ma4'!$L$49 -> 0 | EV121: ='Ma4'!$M$49 -> 0 | EX121: ='Ma4'!$P$49 -> 0 | EY121: ='Ma4'!$Q$49 -> 0 | EZ121: ='Ma4'!$R$49 -> 0 | FA121: ='Ma4'!$S$49 -> 0 | FC121: ='Ma4'!$V$49 -> 0 | FD121: ='Ma4'!$W$49 -> 0 | FE121: ='Ma4'!$X$49 -> 0 | FF121: ='Ma4'!$Y$49 -> 0 | FH121: ='Ma5'!$D$23 -> 0 | FI121: ='Ma5'!$E$23 -> 0 | FJ121: ='Ma5'!$F$23 -> 0 | FK121: ='Ma5'!$G$23 -> 0 | FM121: ='Ma5'!$J$23 -> 0 | FN121: ='Ma5'!$K$23 -> 0 | FO121: ='Ma5'!$L$23 -> 0 | FP121: ='Ma5'!$M$23 -> 0 | FR121: ='Ma5'!$P$23 -> 0 | FS121: ='Ma5'!$Q$23 -> 0 | FT121: ='Ma5'!$R$23 -> 0 | FU121: ='Ma5'!$S$23 -> 0 | FW121: ='Ma5'!$V$23 -> 0 | FX121: ='Ma5'!$W$23 -> 0 | FY121: ='Ma5'!$X$23 -> 0 | FZ121: ='Ma5'!$Y$23 -> 0 | GB121: ='Ma5'!$D$49 -> 0 | GC121: ='Ma5'!$E$49 -> 0 | GD121: ='Ma5'!$F$49 -> 0 | GE121: ='Ma5'!$G$49 -> 0 | GG121: ='Ma5'!$J$49 -> 0 | GH121: ='Ma5'!$K$49 -> 0 | GI121: ='Ma5'!$L$49 -> 0 | GJ121: ='Ma5'!$M$49 -> 0 | GL121: ='Ma5'!$P$49 -> 0 | GM121: ='Ma5'!$Q$49 -> 0 | GN121: ='Ma5'!$R$49 -> 0 | GO121: ='Ma5'!$S$49 -> 0 | GQ121: ='Ma5'!$V$49 -> 0 | GR121: ='Ma5'!$W$49 -> 0 | GS121: ='Ma5'!$X$49 -> 0 | GT121: ='Ma5'!$Y$49 -> 0 | GV121: ='Ma6'!$D$23 -> 0 | GW121: ='Ma6'!$E$23 -> 0 | GX121: ='Ma6'!$F$23 -> 0 | GY121: ='Ma6'!$G$23 -> 0 | HA121: ='Ma6'!$J$23 -> 0 | HB121: ='Ma6'!$K$23 -> 0 | HC121: ='Ma6'!$L$23 -> 0 | HD121: ='Ma6'!$M$23 -> 0 | HF121: ='Ma6'!$P$23 -> 0 | HG121: ='Ma6'!$Q$23 -> 0 | HH121: ='Ma6'!$R$23 -> 0 | HI121: ='Ma6'!$S$23 -> 0 | HK121: ='Ma6'!$V$23 -> 0 | HL121: ='Ma6'!$W$23 -> 0 | HM121: ='Ma6'!$X$23 -> 0 | HN121: ='Ma6'!$Y$23 -> 0 | HP121: ='Ma6'!$D$49 -> 0 | HQ121: ='Ma6'!$E$49 -> 0 | HR121: ='Ma6'!$F$49 -> 0 | HS121: ='Ma6'!$G$49 -> 0 | HU121: ='Ma6'!$J$49 -> 0 | HV121: ='Ma6'!$K$49 -> 0 | HW121: ='Ma6'!$L$49 -> 0 | HX121: ='Ma6'!$M$49 -> 0 | HZ121: ='Ma6'!$P$49 -> 0 | IA121: ='Ma6'!$Q$49 -> 0 | IB121: ='Ma6'!$R$49 -> 0 | IC121: ='Ma6'!$S$49 -> 0 | IE121: ='Ma6'!$V$49 -> 0 | IF121: ='Ma6'!$W$49 -> 0 | IG121: ='Ma6'!$X$49 -> 0 | IH121: ='Ma6'!$Y$49 -> 0 | IJ121: ='Ma7'!$D$23 -> 0 | IK121: ='Ma7'!$E$23 -> 0 | IL121: ='Ma7'!$F$23 -> 0 | IM121: ='Ma7'!$G$23 -> 0 | IO121: ='Ma7'!$J$23 -> 0 | IP121: ='Ma7'!$K$23 -> 0 | IQ121: ='Ma7'!$L$23 -> 0 | IR121: ='Ma7'!$M$23 -> 0 | IT121: ='Ma7'!$P$23 -> 0 | IU121: ='Ma7'!$Q$23 -> 0 | IV121: ='Ma7'!$R$23 -> 0 | IW121: ='Ma7'!$S$23 -> 0 | IY121: ='Ma7'!$V$23 -> 0 | IZ121: ='Ma7'!$W$23 -> 0 | JA121: ='Ma7'!$X$23 -> 0 | JB121: ='Ma7'!$Y$23 -> 0 | JD121: ='Ma7'!$D$49 -> 0 | JE121: ='Ma7'!$E$49 -> 0 | JF121: ='Ma7'!$F$49 -> 0 | JG121: ='Ma7'!$G$49 -> 0 | JI121: ='Ma7'!$J$49 -> 0 | JJ121: ='Ma7'!$K$49 -> 0 | JK121: ='Ma7'!$L$49 -> 0 | JL121: ='Ma7'!$M$49 -> 0 | JN121: ='Ma7'!$P$49 -> 0 | JO121: ='Ma7'!$Q$49 -> 0 | JP121: ='Ma7'!$R$49 -> 0 | JQ121: ='Ma7'!$S$49 -> 0 | JS121: ='Ma7'!$V$49 -> 0 | JT121: ='Ma7'!$W$49 -> 0 | JU121: ='Ma7'!$X$49 -> 0 | JV121: ='Ma7'!$Y$49 -> 0
B122: Strafe | D122: ='Ma1'!$D$24 -> 0 | E122: ='Ma1'!$E$24 -> 0 | F122: ='Ma1'!$F$24 -> 0 | G122: ='Ma1'!$G$24 -> 0 | I122: ='Ma1'!$J$24 -> 0 | J122: ='Ma1'!$K$24 -> 0 | K122: ='Ma1'!$L$24 -> 0 | L122: ='Ma1'!$M$24 -> 0 | N122: ='Ma1'!$P$24 -> 0 | O122: ='Ma1'!$Q$24 -> 0 | P122: ='Ma1'!$R$24 -> 0 | Q122: ='Ma1'!$S$24 -> 0 | S122: ='Ma1'!$V$24 -> 0 | T122: ='Ma1'!$W$24 -> 0 | U122: ='Ma1'!$X$24 -> 0 | V122: ='Ma1'!$Y$24 -> 0 | X122: ='Ma1'!$D$50 -> 0 | Y122: ='Ma1'!$E$50 -> 0 | Z122: ='Ma1'!$F$50 -> 0 | AA122: ='Ma1'!$G$50 -> 0 | AC122: ='Ma1'!$J$50 -> 0 | AD122: ='Ma1'!$K$50 -> 0 | AE122: ='Ma1'!$L$50 -> 0 | AF122: ='Ma1'!$M$50 -> 0 | AH122: ='Ma1'!$P$50 -> 0 | AI122: ='Ma1'!$Q$50 -> 0 | AJ122: ='Ma1'!$R$50 -> 0 | AK122: ='Ma1'!$S$50 -> 0 | AM122: ='Ma1'!$V$50 -> 0 | AN122: ='Ma1'!$W$50 -> 0 | AO122: ='Ma1'!$X$50 -> 0 | AP122: ='Ma1'!$Y$50 -> 0 | AR122: ='Ma2'!$D$24 -> 0 | AS122: ='Ma2'!$E$24 -> 0 | AT122: ='Ma2'!$F$24 -> 0 | AU122: ='Ma2'!$G$24 -> 0 | AW122: ='Ma2'!$J$24 -> 0 | AX122: ='Ma2'!$K$24 -> 0 | AY122: ='Ma2'!$L$24 -> 0 | AZ122: ='Ma2'!$M$24 -> 0 | BB122: ='Ma2'!$P$24 -> 0 | BC122: ='Ma2'!$Q$24 -> 0 | BD122: ='Ma2'!$R$24 -> 0 | BE122: ='Ma2'!$S$24 -> 0 | BG122: ='Ma2'!$V$24 -> 0 | BH122: ='Ma2'!$W$24 -> 0 | BI122: ='Ma2'!$X$24 -> 0 | BJ122: ='Ma2'!$Y$24 -> 0 | BL122: ='Ma2'!$D$50 -> 0 | BM122: ='Ma2'!$E$50 -> 0 | BN122: ='Ma2'!$F$50 -> 0 | BO122: ='Ma2'!$G$50 -> 0 | BQ122: ='Ma2'!$J$50 -> 0 | BR122: ='Ma2'!$K$50 -> 0 | BS122: ='Ma2'!$L$50 -> 0 | BT122: ='Ma2'!$M$50 -> 0 | BV122: ='Ma2'!$P$50 -> 0 | BW122: ='Ma2'!$Q$50 -> 0 | BX122: ='Ma2'!$R$50 -> 0 | BY122: ='Ma2'!$S$50 -> 0 | CA122: ='Ma2'!$V$50 -> 0 | CB122: ='Ma2'!$W$50 -> 0 | CC122: ='Ma2'!$X$50 -> 0 | CD122: ='Ma2'!$Y$50 -> 0 | CF122: ='Ma3'!$D$24 -> 0 | CG122: ='Ma3'!$E$24 -> 0 | CH122: ='Ma3'!$F$24 -> 0 | CI122: ='Ma3'!$G$24 -> 0 | CK122: ='Ma3'!$J$24 -> 0 | CL122: ='Ma3'!$K$24 -> 0 | CM122: ='Ma3'!$L$24 -> 0 | CN122: ='Ma3'!$M$24 -> 0 | CP122: ='Ma3'!$P$24 -> 0 | CQ122: ='Ma3'!$Q$24 -> 0 | CR122: ='Ma3'!$R$24 -> 0 | CS122: ='Ma3'!$S$24 -> 0 | CU122: ='Ma3'!$V$24 -> 0 | CV122: ='Ma3'!$W$24 -> 0 | CW122: ='Ma3'!$X$24 -> 0 | CX122: ='Ma3'!$Y$24 -> 0 | CZ122: ='Ma3'!$D$50 -> 0 | DA122: ='Ma3'!$E$50 -> 0 | DB122: ='Ma3'!$F$50 -> 0 | DC122: ='Ma3'!$G$50 -> 0 | DE122: ='Ma3'!$J$50 -> 0 | DF122: ='Ma3'!$K$50 -> 0 | DG122: ='Ma3'!$L$50 -> 0 | DH122: ='Ma3'!$M$50 -> 0 | DJ122: ='Ma3'!$P$50 -> 0 | DK122: ='Ma3'!$Q$50 -> 0 | DL122: ='Ma3'!$R$50 -> 0 | DM122: ='Ma3'!$S$50 -> 0 | DO122: ='Ma3'!$V$50 -> 0 | DP122: ='Ma3'!$W$50 -> 0 | DQ122: ='Ma3'!$X$50 -> 0 | DR122: ='Ma3'!$Y$50 -> 0 | DT122: ='Ma4'!$D$24 -> 0 | DU122: ='Ma4'!$E$24 -> 0 | DV122: ='Ma4'!$F$24 -> 0 | DW122: ='Ma4'!$G$24 -> 0 | DY122: ='Ma4'!$J$24 -> 0 | DZ122: ='Ma4'!$K$24 -> 0 | EA122: ='Ma4'!$L$24 -> 0 | EB122: ='Ma4'!$M$24 -> 0 | ED122: ='Ma4'!$P$24 -> 0 | EE122: ='Ma4'!$Q$24 -> 0 | EF122: ='Ma4'!$R$24 -> 0 | EG122: ='Ma4'!$S$24 -> 0 | EI122: ='Ma4'!$V$24 -> 0 | EJ122: ='Ma4'!$W$24 -> 0 | EK122: ='Ma4'!$X$24 -> 0 | EL122: ='Ma4'!$Y$24 -> 0 | EN122: ='Ma4'!$D$50 -> 0 | EO122: ='Ma4'!$E$50 -> 0 | EP122: ='Ma4'!$F$50 -> 0 | EQ122: ='Ma4'!$G$50 -> 0 | ES122: ='Ma4'!$J$50 -> 0 | ET122: ='Ma4'!$K$50 -> 0 | EU122: ='Ma4'!$L$50 -> 0 | EV122: ='Ma4'!$M$50 -> 0 | EX122: ='Ma4'!$P$50 -> 0 | EY122: ='Ma4'!$Q$50 -> 0 | EZ122: ='Ma4'!$R$50 -> 0 | FA122: ='Ma4'!$S$50 -> 0 | FC122: ='Ma4'!$V$50 -> 0 | FD122: ='Ma4'!$W$50 -> 0 | FE122: ='Ma4'!$X$50 -> 0 | FF122: ='Ma4'!$Y$50 -> 0 | FH122: ='Ma5'!$D$24 -> 0 | FI122: ='Ma5'!$E$24 -> 0 | FJ122: ='Ma5'!$F$24 -> 0 | FK122: ='Ma5'!$G$24 -> 0 | FM122: ='Ma5'!$J$24 -> 0 | FN122: ='Ma5'!$K$24 -> 0 | FO122: ='Ma5'!$L$24 -> 0 | FP122: ='Ma5'!$M$24 -> 0 | FR122: ='Ma5'!$P$24 -> 0 | FS122: ='Ma5'!$Q$24 -> 0 | FT122: ='Ma5'!$R$24 -> 0 | FU122: ='Ma5'!$S$24 -> 0 | FW122: ='Ma5'!$V$24 -> 0 | FX122: ='Ma5'!$W$24 -> 0 | FY122: ='Ma5'!$X$24 -> 0 | FZ122: ='Ma5'!$Y$24 -> 0 | GB122: ='Ma5'!$D$50 -> 0 | GC122: ='Ma5'!$E$50 -> 0 | GD122: ='Ma5'!$F$50 -> 0 | GE122: ='Ma5'!$G$50 -> 0 | GG122: ='Ma5'!$J$50 -> 0 | GH122: ='Ma5'!$K$50 -> 0 | GI122: ='Ma5'!$L$50 -> 0 | GJ122: ='Ma5'!$M$50 -> 0 | GL122: ='Ma5'!$P$50 -> 0 | GM122: ='Ma5'!$Q$50 -> 0 | GN122: ='Ma5'!$R$50 -> 0 | GO122: ='Ma5'!$S$50 -> 0 | GQ122: ='Ma5'!$V$50 -> 0 | GR122: ='Ma5'!$W$50 -> 0 | GS122: ='Ma5'!$X$50 -> 0 | GT122: ='Ma5'!$Y$50 -> 0 | GV122: ='Ma6'!$D$24 -> 0 | GW122: ='Ma6'!$E$24 -> 0 | GX122: ='Ma6'!$F$24 -> 0 | GY122: ='Ma6'!$G$24 -> 0 | HA122: ='Ma6'!$J$24 -> 0 | HB122: ='Ma6'!$K$24 -> 0 | HC122: ='Ma6'!$L$24 -> 0 | HD122: ='Ma6'!$M$24 -> 0 | HF122: ='Ma6'!$P$24 -> 0 | HG122: ='Ma6'!$Q$24 -> 0 | HH122: ='Ma6'!$R$24 -> 0 | HI122: ='Ma6'!$S$24 -> 0 | HK122: ='Ma6'!$V$24 -> 0 | HL122: ='Ma6'!$W$24 -> 0 | HM122: ='Ma6'!$X$24 -> 0 | HN122: ='Ma6'!$Y$24 -> 0 | HP122: ='Ma6'!$D$50 -> 0 | HQ122: ='Ma6'!$E$50 -> 0 | HR122: ='Ma6'!$F$50 -> 0 | HS122: ='Ma6'!$G$50 -> 0 | HU122: ='Ma6'!$J$50 -> 0 | HV122: ='Ma6'!$K$50 -> 0 | HW122: ='Ma6'!$L$50 -> 0 | HX122: ='Ma6'!$M$50 -> 0 | HZ122: ='Ma6'!$P$50 -> 0 | IA122: ='Ma6'!$Q$50 -> 0 | IB122: ='Ma6'!$R$50 -> 0 | IC122: ='Ma6'!$S$50 -> 0 | IE122: ='Ma6'!$V$50 -> 0 | IF122: ='Ma6'!$W$50 -> 0 | IG122: ='Ma6'!$X$50 -> 0 | IH122: ='Ma6'!$Y$50 -> 0 | IJ122: ='Ma7'!$D$24 -> 0 | IK122: ='Ma7'!$E$24 -> 0 | IL122: ='Ma7'!$F$24 -> 0 | IM122: ='Ma7'!$G$24 -> 0 | IO122: ='Ma7'!$J$24 -> 0 | IP122: ='Ma7'!$K$24 -> 0 | IQ122: ='Ma7'!$L$24 -> 0 | IR122: ='Ma7'!$M$24 -> 0 | IT122: ='Ma7'!$P$24 -> 0 | IU122: ='Ma7'!$Q$24 -> 0 | IV122: ='Ma7'!$R$24 -> 0 | IW122: ='Ma7'!$S$24 -> 0 | IY122: ='Ma7'!$V$24 -> 0 | IZ122: ='Ma7'!$W$24 -> 0 | JA122: ='Ma7'!$X$24 -> 0 | JB122: ='Ma7'!$Y$24 -> 0 | JD122: ='Ma7'!$D$50 -> 0 | JE122: ='Ma7'!$E$50 -> 0 | JF122: ='Ma7'!$F$50 -> 0 | JG122: ='Ma7'!$G$50 -> 0 | JI122: ='Ma7'!$J$50 -> 0 | JJ122: ='Ma7'!$K$50 -> 0 | JK122: ='Ma7'!$L$50 -> 0 | JL122: ='Ma7'!$M$50 -> 0 | JN122: ='Ma7'!$P$50 -> 0 | JO122: ='Ma7'!$Q$50 -> 0 | JP122: ='Ma7'!$R$50 -> 0 | JQ122: ='Ma7'!$S$50 -> 0 | JS122: ='Ma7'!$V$50 -> 0 | JT122: ='Ma7'!$W$50 -> 0 | JU122: ='Ma7'!$X$50 -> 0 | JV122: ='Ma7'!$Y$50 -> 0
